Workbook

Sheet Main Menu
G6: Download from Ledger (BI9)
B8: Enter Assumptions | I8: Detail by Ledger account number (DATA EXTRACT)
C10: Enter Escalation codes | J10: PIP Budget by CC
D12: Borrowings Schedule | K12: Revenue & Expenditure Graphs
E14: Rate Increase Scenarios | L14: Financial Indicators
F16: Capital Expenditure & Depreciation | M16: Sensitivity Analysis
G19: Financial Statements | N19: All Year Budget in Pivot Table by Type
G21: Asset Management Plan (AMP)

Sheet 1 Formatted Statements
G2: Year1 B | H2: Year 2 | I2: Year 2 | J2: Year 3 | K2: Year 4 | L2: Year 5 | M2: Year 6 | N2: Year 7 | O2: Year 8 | P2: Year 9 | Q2: Year 10 | R2: Year 11 | S2: Year 12 | T2: Year 13 | U2: Year 14 | V2: Year 15
B3: Actual | C3: Actual | D3: Actual | E3: Actual | H3: Actual | I3: Actual | J3: Forecast | K3: Forecast | L3: Forecast | M3: Forecast | N3: Forecast | O3: Forecast | P3: Forecast | Q3: Forecast | R3: Forecast | S3: Forecast | T3: Forecast | U3: Forecast | V3: Forecast | Y3: Forecast
A4: INCOME STATEMENT | B4: 2007/08 | C4: 2008/09 | D4: 2009/10 | E4: 2010/11 | F4: Actual 2011/12 | G4: Actual 2012/13 | H4: ORI 2013/14 | I4: 2013/14 | J4: 2014/15 | K4: 2015/16 | L4: 2016/17 | M4: 2017/18 | N4: 2018/19 | O4: 2019/20 | P4: 2020/21 | Q4: 2021/22 | R4: 2022/23 | S4: 2023/24 | T4: 2024/25 | U4: 2025/26 | V4: 2026/27 | Y4: 2014/15
B5: $'000's | C5: $'000's | D5: $'000's | E5: $'000's | F5: $'000's | G5: $'000's | H5: $'000's | I5: $'000's | J5: $'000's | K5: $'000's | L5: $'000's | M5: $'000's | N5: $'000's | O5: $'000's | P5: $'000's | Q5: $'000's | R5: $'000's | S5: $'000's | T5: $'000's | U5: $'000's | V5: $'000's | Y5: $'000's
A6: Incomes from continuing operations
A7: Revenue:
A8: Rates and Annual Charges | B8: 39807 | C8: 43345 | D8: 45849 | E8: 47379 | F8: 49605 | G8: 52209 | H8: 54439 | I8: 54439 | J8: =-GETPIVOTDATA("Sum of Year 3",'6 Pivot tables'!$A$5,"Account","I","CAP","O","OPERATING STATEMENT LINE ITEM","Rates and Annual Charges") -> 56620.537 | K8: =-GETPIVOTDATA("Sum of Year 4",'6 Pivot tables'!$A$5,"Account","I","CAP","O","OPERATING STATEMENT LINE ITEM","Rates and Annual Charges") -> 59063.69749 | L8: =-GETPIVOTDATA("Sum of Year 5",'6 Pivot tables'!$A$5,"Account","I","CAP","O","OPERATING STATEMENT LINE ITEM","Rates and Annual Charges") -> 61129.01153 | M8: =-GETPIVOTDATA("Sum of Year 6",'6 Pivot tables'!$A$5,"Account","I","CAP","O","OPERATING STATEMENT LINE ITEM","Rates and Annual Charges") -> 63279.38353 | N8: =-GETPIVOTDATA("Sum of Year 7",'6 Pivot tables'!$A$5,"Account","I","CAP","O","OPERATING STATEMENT LINE ITEM","Rates and Annual Charges") -> 65518.86696 | O8: =-GETPIVOTDATA("Sum of Year 8",'6 Pivot tables'!$A$5,"Account","I","CAP","O","OPERATING STATEMENT LINE ITEM","Rates and Annual Charges") -> 67851.73686 | P8: =-GETPIVOTDATA("Sum of Year 9",'6 Pivot tables'!$A$5,"Account","I","CAP","O","OPERATING STATEMENT LINE ITEM","Rates and Annual Charges") -> 70655.92424 | Q8: =-GETPIVOTDATA("Sum of Year 10",'6 Pivot tables'!$A$5,"Account","I","CAP","O","OPERATING STATEMENT LINE ITEM","Rates and Annual Charges") -> 73615.127 | R8: =-GETPIVOTDATA("Sum of Year 11",'6 Pivot tables'!$A$5,"Account","I","CAP","O","OPERATING STATEMENT LINE ITEM","Rates and Annual Charges") -> 76739.85848 | S8: =-GETPIVOTDATA("Sum of Year 12",'6 Pivot tables'!$A$5,"Account","I","CAP","O","OPERATING STATEMENT LINE ITEM","Rates and Annual Charges") -> 80394.10947 | T8: =-GETPIVOTDATA("Sum of Year 13",'6 Pivot tables'!$A$5,"Account","I","CAP","O","OPERATING STATEMENT LINE ITEM","Rates and Annual Charges") -> 84299.06922 | U8: =-GETPIVOTDATA("Sum of Year 14",'6 Pivot tables'!$A$5,"Account","I","CAP","O","OPERATING STATEMENT LINE ITEM","Rates and Annual Charges") -> 88475.9334 | V8: =-GETPIVOTDATA("Sum of Year 15",'6 Pivot tables'!$A$5,"Account","I","CAP","O","OPERATING STATEMENT LINE ITEM","Rates and Annual Charges") -> 92947.84086 | Y8: 56620.537 | Z8: =J8-Y8 -> 0
A9: User Charges and Fees | B9: 14419 | C9: 13521 | D9: 14910 | E9: 15781 | F9: 17002 | G9: 18221 | H9: 17429 | I9: 17429 | J9: =-GETPIVOTDATA("Sum of Year 3",'6 Pivot tables'!$A$5,"Account","I","CAP","O","OPERATING STATEMENT LINE ITEM","User Charges and Fees ") -> 20319.984 | K9: =-GETPIVOTDATA("Sum of Year 4",'6 Pivot tables'!$A$5,"Account","I","CAP","O","OPERATING STATEMENT LINE ITEM","User Charges and Fees ") -> 20333.63344 | L9: =-GETPIVOTDATA("Sum of Year 5",'6 Pivot tables'!$A$5,"Account","I","CAP","O","OPERATING STATEMENT LINE ITEM","User Charges and Fees ") -> 21329.54236 | M9: =-GETPIVOTDATA("Sum of Year 6",'6 Pivot tables'!$A$5,"Account","I","CAP","O","OPERATING STATEMENT LINE ITEM","User Charges and Fees ") -> 22189.73015 | N9: =-GETPIVOTDATA("Sum of Year 7",'6 Pivot tables'!$A$5,"Account","I","CAP","O","OPERATING STATEMENT LINE ITEM","User Charges and Fees ") -> 23092.11626 | O9: =-GETPIVOTDATA("Sum of Year 8",'6 Pivot tables'!$A$5,"Account","I","CAP","O","OPERATING STATEMENT LINE ITEM","User Charges and Fees ") -> 24034.28353 | P9: =-GETPIVOTDATA("Sum of Year 9",'6 Pivot tables'!$A$5,"Account","I","CAP","O","OPERATING STATEMENT LINE ITEM","User Charges and Fees ") -> 24934.92135 | Q9: =-GETPIVOTDATA("Sum of Year 10",'6 Pivot tables'!$A$5,"Account","I","CAP","O","OPERATING STATEMENT LINE ITEM","User Charges and Fees ") -> 25856.82334 | R9: =-GETPIVOTDATA("Sum of Year 11",'6 Pivot tables'!$A$5,"Account","I","CAP","O","OPERATING STATEMENT LINE ITEM","User Charges and Fees ") -> 26821.09718 | S9: =-GETPIVOTDATA("Sum of Year 12",'6 Pivot tables'!$A$5,"Account","I","CAP","O","OPERATING STATEMENT LINE ITEM","User Charges and Fees ") -> 27788.39717 | T9: =-GETPIVOTDATA("Sum of Year 13",'6 Pivot tables'!$A$5,"Account","I","CAP","O","OPERATING STATEMENT LINE ITEM","User Charges and Fees ") -> 28790.018 | U9: =-GETPIVOTDATA("Sum of Year 14",'6 Pivot tables'!$A$5,"Account","I","CAP","O","OPERATING STATEMENT LINE ITEM","User Charges and Fees ") -> 29827.8228 | V9: =-GETPIVOTDATA("Sum of Year 15",'6 Pivot tables'!$A$5,"Account","I","CAP","O","OPERATING STATEMENT LINE ITEM","User Charges and Fees ") -> 30903.36649 | Y9: 19319.984 | Z9: =J9-Y9 -> 1000
A10: Investment Revenues | B10: 0 | C10: 8291 | D10: 5541 | E10: 3893 | F10: 3046 | G10: 3238 | H10: 2505 | I10: 2505 | J10: =-GETPIVOTDATA("Sum of Year 3",'6 Pivot tables'!$A$5,"Account","I","CAP","O","OPERATING STATEMENT LINE ITEM","Investment Revenues") -> 2155 | K10: =-GETPIVOTDATA("Sum of Year 4",'6 Pivot tables'!$A$5,"Account","I","CAP","O","OPERATING STATEMENT LINE ITEM","Investment Revenues") -> 2523.896497 | L10: =-GETPIVOTDATA("Sum of Year 5",'6 Pivot tables'!$A$5,"Account","I","CAP","O","OPERATING STATEMENT LINE ITEM","Investment Revenues") -> 2620.580998 | M10: =-GETPIVOTDATA("Sum of Year 6",'6 Pivot tables'!$A$5,"Account","I","CAP","O","OPERATING STATEMENT LINE ITEM","Investment Revenues") -> 2717.837517 | N10: =-GETPIVOTDATA("Sum of Year 7",'6 Pivot tables'!$A$5,"Account","I","CAP","O","OPERATING STATEMENT LINE ITEM","Investment Revenues") -> 2926.517372 | O10: =-GETPIVOTDATA("Sum of Year 8",'6 Pivot tables'!$A$5,"Account","I","CAP","O","OPERATING STATEMENT LINE ITEM","Investment Revenues") -> 3110.474823 | P10: =-GETPIVOTDATA("Sum of Year 9",'6 Pivot tables'!$A$5,"Account","I","CAP","O","OPERATING STATEMENT LINE ITEM","Investment Revenues") -> 3253.736691 | Q10: =-GETPIVOTDATA("Sum of Year 10",'6 Pivot tables'!$A$5,"Account","I","CAP","O","OPERATING STATEMENT LINE ITEM","Investment Revenues") -> 3404.702941 | R10: =-GETPIVOTDATA("Sum of Year 11",'6 Pivot tables'!$A$5,"Account","I","CAP","O","OPERATING STATEMENT LINE ITEM","Investment Revenues") -> 3559.370148 | S10: =-GETPIVOTDATA("Sum of Year 12",'6 Pivot tables'!$A$5,"Account","I","CAP","O","OPERATING STATEMENT LINE ITEM","Investment Revenues") -> 3707.482737 | T10: =-GETPIVOTDATA("Sum of Year 13",'6 Pivot tables'!$A$5,"Account","I","CAP","O","OPERATING STATEMENT LINE ITEM","Investment Revenues") -> 3834.132936 | U10: =-GETPIVOTDATA("Sum of Year 14",'6 Pivot tables'!$A$5,"Account","I","CAP","O","OPERATING STATEMENT LINE ITEM","Investment Revenues") -> 3953.500304 | V10: =-GETPIVOTDATA("Sum of Year 15",'6 Pivot tables'!$A$5,"Account","I","CAP","O","OPERATING STATEMENT LINE ITEM","Investment Revenues") -> 4065.917801 | Y10: 2155 | Z10: 0
A11: Other Revenues | B11: 8822 | C11: 8220 | D11: 11790 | E11: 10906 | F11: 19254 | G11: 18994 | H11: 31383 | I11: 31383 | J11: =-GETPIVOTDATA("Sum of Year 3",'6 Pivot tables'!$A$5,"Account","I","CAP","O","OPERATING STATEMENT LINE ITEM","Other Revenues") -> 14153.726 | K11: =-GETPIVOTDATA("Sum of Year 4",'6 Pivot tables'!$A$5,"Account","I","CAP","O","OPERATING STATEMENT LINE ITEM","Other Revenues") -> 14544.59425 | L11: =-GETPIVOTDATA("Sum of Year 5",'6 Pivot tables'!$A$5,"Account","I","CAP","O","OPERATING STATEMENT LINE ITEM","Other Revenues") -> 15373.73917 | M11: =-GETPIVOTDATA("Sum of Year 6",'6 Pivot tables'!$A$5,"Account","I","CAP","O","OPERATING STATEMENT LINE ITEM","Other Revenues") -> 15880.76369 | N11: =-GETPIVOTDATA("Sum of Year 7",'6 Pivot tables'!$A$5,"Account","I","CAP","O","OPERATING STATEMENT LINE ITEM","Other Revenues") -> 16391.44232 | O11: =-GETPIVOTDATA("Sum of Year 8",'6 Pivot tables'!$A$5,"Account","I","CAP","O","OPERATING STATEMENT LINE ITEM","Other Revenues") -> 16918.75312 | P11: =-GETPIVOTDATA("Sum of Year 9",'6 Pivot tables'!$A$5,"Account","I","CAP","O","OPERATING STATEMENT LINE ITEM","Other Revenues") -> 17463.24409 | Q11: =-GETPIVOTDATA("Sum of Year 10",'6 Pivot tables'!$A$5,"Account","I","CAP","O","OPERATING STATEMENT LINE ITEM","Other Revenues") -> 18025.48144 | R11: =-GETPIVOTDATA("Sum of Year 11",'6 Pivot tables'!$A$5,"Account","I","CAP","O","OPERATING STATEMENT LINE ITEM","Other Revenues") -> 18606.05026 | S11: =-GETPIVOTDATA("Sum of Year 12",'6 Pivot tables'!$A$5,"Account","I","CAP","O","OPERATING STATEMENT LINE ITEM","Other Revenues") -> 19205.5551 | T11: =-GETPIVOTDATA("Sum of Year 13",'6 Pivot tables'!$A$5,"Account","I","CAP","O","OPERATING STATEMENT LINE ITEM","Other Revenues") -> 19824.62067 | U11: =-GETPIVOTDATA("Sum of Year 14",'6 Pivot tables'!$A$5,"Account","I","CAP","O","OPERATING STATEMENT LINE ITEM","Other Revenues") -> 20463.89249 | V11: =-GETPIVOTDATA("Sum of Year 15",'6 Pivot tables'!$A$5,"Account","I","CAP","O","OPERATING STATEMENT LINE ITEM","Other Revenues") -> 21124.0376 | Y11: 14153.726 | Z11: 0
A12: Grants & Contributions - Operating | B12: 4892 | C12: 5578 | D12: 6049 | E12: 7455 | F12: 6530 | G12: 6404 | H12: 5641 | I12: 5641 | J12: =-GETPIVOTDATA("Sum of Year 3",'6 Pivot tables'!$A$5,"Account","I","CAP","O","OPERATING STATEMENT LINE ITEM","Grants & Contributions - Operating") -> 6060.691 | K12: =-GETPIVOTDATA("Sum of Year 4",'6 Pivot tables'!$A$5,"Account","I","CAP","O","OPERATING STATEMENT LINE ITEM","Grants & Contributions - Operating") -> 5912.38953 | L12: =-GETPIVOTDATA("Sum of Year 5",'6 Pivot tables'!$A$5,"Account","I","CAP","O","OPERATING STATEMENT LINE ITEM","Grants & Contributions - Operating") -> 6080.759436 | M12: =-GETPIVOTDATA("Sum of Year 6",'6 Pivot tables'!$A$5,"Account","I","CAP","O","OPERATING STATEMENT LINE ITEM","Grants & Contributions - Operating") -> 6254.189589 | N12: =-GETPIVOTDATA("Sum of Year 7",'6 Pivot tables'!$A$5,"Account","I","CAP","O","OPERATING STATEMENT LINE ITEM","Grants & Contributions - Operating") -> 6420.482773 | O12: =-GETPIVOTDATA("Sum of Year 8",'6 Pivot tables'!$A$5,"Account","I","CAP","O","OPERATING STATEMENT LINE ITEM","Grants & Contributions - Operating") -> 6600.427416 | P12: =-GETPIVOTDATA("Sum of Year 9",'6 Pivot tables'!$A$5,"Account","I","CAP","O","OPERATING STATEMENT LINE ITEM","Grants & Contributions - Operating") -> 6785.421979 | Q12: =-GETPIVOTDATA("Sum of Year 10",'6 Pivot tables'!$A$5,"Account","I","CAP","O","OPERATING STATEMENT LINE ITEM","Grants & Contributions - Operating") -> 6975.608376 | R12: =-GETPIVOTDATA("Sum of Year 11",'6 Pivot tables'!$A$5,"Account","I","CAP","O","OPERATING STATEMENT LINE ITEM","Grants & Contributions - Operating") -> 7171.132518 | S12: =-GETPIVOTDATA("Sum of Year 12",'6 Pivot tables'!$A$5,"Account","I","CAP","O","OPERATING STATEMENT LINE ITEM","Grants & Contributions - Operating") -> 7372.144421 | T12: =-GETPIVOTDATA("Sum of Year 13",'6 Pivot tables'!$A$5,"Account","I","CAP","O","OPERATING STATEMENT LINE ITEM","Grants & Contributions - Operating") -> 7578.798324 | U12: =-GETPIVOTDATA("Sum of Year 14",'6 Pivot tables'!$A$5,"Account","I","CAP","O","OPERATING STATEMENT LINE ITEM","Grants & Contributions - Operating") -> 7791.252808 | V12: =-GETPIVOTDATA("Sum of Year 15",'6 Pivot tables'!$A$5,"Account","I","CAP","O","OPERATING STATEMENT LINE ITEM","Grants & Contributions - Operating") -> 8009.670916 | Y12: 5989.351 | Z12: 71.34
A13: Grants & Contributions - Capital | B13: 6342 | C13: 4158 | D13: 5884 | E13: 7058 | F13: 6460 | G13: 11199 | H13: 16962 | I13: 16962 | J13: =-GETPIVOTDATA("Sum of Year 3",'6 Pivot tables'!$A$5,"Account","I","CAP","O","OPERATING STATEMENT LINE ITEM","Grants & Contributions - Capital") -> 5045.13 | K13: =-GETPIVOTDATA("Sum of Year 4",'6 Pivot tables'!$A$5,"Account","I","CAP","O","OPERATING STATEMENT LINE ITEM","Grants & Contributions - Capital") -> 2595.479817 | L13: =-GETPIVOTDATA("Sum of Year 5",'6 Pivot tables'!$A$5,"Account","I","CAP","O","OPERATING STATEMENT LINE ITEM","Grants & Contributions - Capital") -> 1663.793114 | M13: =-GETPIVOTDATA("Sum of Year 6",'6 Pivot tables'!$A$5,"Account","I","CAP","O","OPERATING STATEMENT LINE ITEM","Grants & Contributions - Capital") -> 1704.688822 | N13: =-GETPIVOTDATA("Sum of Year 7",'6 Pivot tables'!$A$5,"Account","I","CAP","O","OPERATING STATEMENT LINE ITEM","Grants & Contributions - Capital") -> 1742.330912 | O13: =-GETPIVOTDATA("Sum of Year 8",'6 Pivot tables'!$A$5,"Account","I","CAP","O","OPERATING STATEMENT LINE ITEM","Grants & Contributions - Capital") -> 1780.886797 | P13: =-GETPIVOTDATA("Sum of Year 9",'6 Pivot tables'!$A$5,"Account","I","CAP","O","OPERATING STATEMENT LINE ITEM","Grants & Contributions - Capital") -> 1820.246859 | Q13: =-GETPIVOTDATA("Sum of Year 10",'6 Pivot tables'!$A$5,"Account","I","CAP","O","OPERATING STATEMENT LINE ITEM","Grants & Contributions - Capital") -> 1860.199551 | R13: =-GETPIVOTDATA("Sum of Year 11",'6 Pivot tables'!$A$5,"Account","I","CAP","O","OPERATING STATEMENT LINE ITEM","Grants & Contributions - Capital") -> 1901.220833 | S13: =-GETPIVOTDATA("Sum of Year 12",'6 Pivot tables'!$A$5,"Account","I","CAP","O","OPERATING STATEMENT LINE ITEM","Grants & Contributions - Capital") -> 1947.027275 | T13: =-GETPIVOTDATA("Sum of Year 13",'6 Pivot tables'!$A$5,"Account","I","CAP","O","OPERATING STATEMENT LINE ITEM","Grants & Contributions - Capital") -> 2000.570525 | U13: =-GETPIVOTDATA("Sum of Year 14",'6 Pivot tables'!$A$5,"Account","I","CAP","O","OPERATING STATEMENT LINE ITEM","Grants & Contributions - Capital") -> 2055.586215 | V13: =-GETPIVOTDATA("Sum of Year 15",'6 Pivot tables'!$A$5,"Account","I","CAP","O","OPERATING STATEMENT LINE ITEM","Grants & Contributions - Capital") -> 2112.114836 | Y13: 4860 | Z13: 185.13
Z14: 0
A15: Other Income: | Z15: 0
A16: Proceeds from Disposal of Assets | B16: 118612 | C16: =14723+890+76777 -> 92390 | D16: 501 | E16: 25482 | F16: =1000+217+3023 -> 4240 | G16: 325 | H16: 296 | I16: 296 | J16: =-GETPIVOTDATA("Sum of Year 3",'6 Pivot tables'!$A$5,"Account","I","CAP","O","OPERATING STATEMENT LINE ITEM","Proceeds from Disposal of Assets") -> 266.255 | K16: =-GETPIVOTDATA("Sum of Year 4",'6 Pivot tables'!$A$5,"Account","I","CAP","O","OPERATING STATEMENT LINE ITEM","Proceeds from Disposal of Assets") -> 195.96365 | L16: =-GETPIVOTDATA("Sum of Year 5",'6 Pivot tables'!$A$5,"Account","I","CAP","O","OPERATING STATEMENT LINE ITEM","Proceeds from Disposal of Assets") -> 201.7369538 | M16: =-GETPIVOTDATA("Sum of Year 6",'6 Pivot tables'!$A$5,"Account","I","CAP","O","OPERATING STATEMENT LINE ITEM","Proceeds from Disposal of Assets") -> 207.6808165 | N16: =-GETPIVOTDATA("Sum of Year 7",'6 Pivot tables'!$A$5,"Account","I","CAP","O","OPERATING STATEMENT LINE ITEM","Proceeds from Disposal of Assets") -> 213.8557649 | O16: =-GETPIVOTDATA("Sum of Year 8",'6 Pivot tables'!$A$5,"Account","I","CAP","O","OPERATING STATEMENT LINE ITEM","Proceeds from Disposal of Assets") -> 220.2144363 | P16: =-GETPIVOTDATA("Sum of Year 9",'6 Pivot tables'!$A$5,"Account","I","CAP","O","OPERATING STATEMENT LINE ITEM","Proceeds from Disposal of Assets") -> 226.7623002 | Q16: =-GETPIVOTDATA("Sum of Year 10",'6 Pivot tables'!$A$5,"Account","I","CAP","O","OPERATING STATEMENT LINE ITEM","Proceeds from Disposal of Assets") -> 233.5049894 | R16: =-GETPIVOTDATA("Sum of Year 11",'6 Pivot tables'!$A$5,"Account","I","CAP","O","OPERATING STATEMENT LINE ITEM","Proceeds from Disposal of Assets") -> 240.4483043 | S16: =-GETPIVOTDATA("Sum of Year 12",'6 Pivot tables'!$A$5,"Account","I","CAP","O","OPERATING STATEMENT LINE ITEM","Proceeds from Disposal of Assets") -> 247.5982183 | T16: =-GETPIVOTDATA("Sum of Year 13",'6 Pivot tables'!$A$5,"Account","I","CAP","O","OPERATING STATEMENT LINE ITEM","Proceeds from Disposal of Assets") -> 254.9608824 | U16: =-GETPIVOTDATA("Sum of Year 14",'6 Pivot tables'!$A$5,"Account","I","CAP","O","OPERATING STATEMENT LINE ITEM","Proceeds from Disposal of Assets") -> 262.5426312 | V16: =-GETPIVOTDATA("Sum of Year 15",'6 Pivot tables'!$A$5,"Account","I","CAP","O","OPERATING STATEMENT LINE ITEM","Proceeds from Disposal of Assets") -> 270.3499878 | Y16: 266.255 | Z16: 0
A17: Profit from Interests in Joint Ventures & Associates | B17: 0 | C17: 0 | E17: 9 | F17: 20 | Z17: 0
A18: Total Income from Continuing Operations | B18: =SUM(B8:B17) -> 192894 | C18: 175503 | D18: =SUM(D8:D17) -> 90524 | E18: 117963 | F18: 106157 | G18: =SUM(G8:G17) -> 110590 | H18: =SUM(H8:H17) -> 128655 | I18: 128655 | J18: 104621.323 | K18: 105169.6547 | L18: 108399.1636 | M18: 112234.2741 | N18: 116305.6124 | O18: 120516.777 | P18: 125140.2575 | Q18: 129971.4476 | R18: 135039.1777 | S18: 140662.3144 | T18: 146582.1706 | U18: =SUM(U8:U17) -> 152830.5307 | V18: =SUM(V8:V17) -> 159433.2985 | Y18: 103364.853 | Z18: 1256.47
Z19: 0
A20: Expenses from continuing operations | Z20: 0
A21: Expenses: | Z21: 0
A22: Employee Costs | B22: 31045 | C22: 32222 | D22: 34268 | E22: 36305 | F22: 37173 | G22: 38340 | H22: 39129 | I22: 39129 | J22: =GETPIVOTDATA("Sum of Year 3",'6 Pivot tables'!$A$5,"Account","E","CAP","O","OPERATING STATEMENT LINE ITEM","Employee Costs") -> 41317.292 | K22: =GETPIVOTDATA("Sum of Year 4",'6 Pivot tables'!$A$5,"Account","E","CAP","O","OPERATING STATEMENT LINE ITEM","Employee Costs") -> 42360.92701 | L22: =GETPIVOTDATA("Sum of Year 5",'6 Pivot tables'!$A$5,"Account","E","CAP","O","OPERATING STATEMENT LINE ITEM","Employee Costs") -> 43772.26788 | M22: =GETPIVOTDATA("Sum of Year 6",'6 Pivot tables'!$A$5,"Account","E","CAP","O","OPERATING STATEMENT LINE ITEM","Employee Costs") -> 45742.42838 | N22: =GETPIVOTDATA("Sum of Year 7",'6 Pivot tables'!$A$5,"Account","E","CAP","O","OPERATING STATEMENT LINE ITEM","Employee Costs") -> 47793.38433 | O22: =GETPIVOTDATA("Sum of Year 8",'6 Pivot tables'!$A$5,"Account","E","CAP","O","OPERATING STATEMENT LINE ITEM","Employee Costs") -> 49935.47194 | P22: =GETPIVOTDATA("Sum of Year 9",'6 Pivot tables'!$A$5,"Account","E","CAP","O","OPERATING STATEMENT LINE ITEM","Employee Costs") -> 51944.57769 | Q22: =GETPIVOTDATA("Sum of Year 10",'6 Pivot tables'!$A$5,"Account","E","CAP","O","OPERATING STATEMENT LINE ITEM","Employee Costs") -> 54034.57967 | R22: =GETPIVOTDATA("Sum of Year 11",'6 Pivot tables'!$A$5,"Account","E","CAP","O","OPERATING STATEMENT LINE ITEM","Employee Costs") -> 56210.24394 | S22: =GETPIVOTDATA("Sum of Year 12",'6 Pivot tables'!$A$5,"Account","E","CAP","O","OPERATING STATEMENT LINE ITEM","Employee Costs") -> 58473.32751 | T22: =GETPIVOTDATA("Sum of Year 13",'6 Pivot tables'!$A$5,"Account","E","CAP","O","OPERATING STATEMENT LINE ITEM","Employee Costs") -> 60827.33796 | U22: =GETPIVOTDATA("Sum of Year 14",'6 Pivot tables'!$A$5,"Account","E","CAP","O","OPERATING STATEMENT LINE ITEM","Employee Costs") -> 63275.92345 | V22: =GETPIVOTDATA("Sum of Year 15",'6 Pivot tables'!$A$5,"Account","E","CAP","O","OPERATING STATEMENT LINE ITEM","Employee Costs") -> 65822.87838 | Y22: 41262.469 | Z22: 54.823
A23: Materials and Contracts | B23: 23434 | C23: 24317 | D23: 24771 | E23: 26811 | F23: 29581 | G23: 29555 | H23: 28971 | I23: 28971 | J23: =GETPIVOTDATA("Sum of Year 3",'6 Pivot tables'!$A$5,"Account","E","CAP","O","OPERATING STATEMENT LINE ITEM","Materials and Contracts") -> 35758.486 | K23: =GETPIVOTDATA("Sum of Year 4",'6 Pivot tables'!$A$5,"Account","E","CAP","O","OPERATING STATEMENT LINE ITEM","Materials and Contracts") -> 32244.95391 | L23: =GETPIVOTDATA("Sum of Year 5",'6 Pivot tables'!$A$5,"Account","E","CAP","O","OPERATING STATEMENT LINE ITEM","Materials and Contracts") -> 32903.41615 | M23: =GETPIVOTDATA("Sum of Year 6",'6 Pivot tables'!$A$5,"Account","E","CAP","O","OPERATING STATEMENT LINE ITEM","Materials and Contracts") -> 34403.30048 | N23: =GETPIVOTDATA("Sum of Year 7",'6 Pivot tables'!$A$5,"Account","E","CAP","O","OPERATING STATEMENT LINE ITEM","Materials and Contracts") -> 34317.27207 | O23: =GETPIVOTDATA("Sum of Year 8",'6 Pivot tables'!$A$5,"Account","E","CAP","O","OPERATING STATEMENT LINE ITEM","Materials and Contracts") -> 35688.04592 | P23: =GETPIVOTDATA("Sum of Year 9",'6 Pivot tables'!$A$5,"Account","E","CAP","O","OPERATING STATEMENT LINE ITEM","Materials and Contracts") -> 37058.84495 | Q23: =GETPIVOTDATA("Sum of Year 10",'6 Pivot tables'!$A$5,"Account","E","CAP","O","OPERATING STATEMENT LINE ITEM","Materials and Contracts") -> 38495.66872 | R23: =GETPIVOTDATA("Sum of Year 11",'6 Pivot tables'!$A$5,"Account","E","CAP","O","OPERATING STATEMENT LINE ITEM","Materials and Contracts") -> 40002.38646 | S23: =GETPIVOTDATA("Sum of Year 12",'6 Pivot tables'!$A$5,"Account","E","CAP","O","OPERATING STATEMENT LINE ITEM","Materials and Contracts") -> 41583.12241 | T23: =GETPIVOTDATA("Sum of Year 13",'6 Pivot tables'!$A$5,"Account","E","CAP","O","OPERATING STATEMENT LINE ITEM","Materials and Contracts") -> 43242.27358 | U23: =GETPIVOTDATA("Sum of Year 14",'6 Pivot tables'!$A$5,"Account","E","CAP","O","OPERATING STATEMENT LINE ITEM","Materials and Contracts") -> 44984.5288 | V23: =GETPIVOTDATA("Sum of Year 15",'6 Pivot tables'!$A$5,"Account","E","CAP","O","OPERATING STATEMENT LINE ITEM","Materials and Contracts") -> 46814.88903 | Y23: 31509.369 | Z23: 4249.117
A24: Borrowing Costs | B24: 760 | C24: 2289 | D24: 1938 | E24: 3472 | F24: 3682 | G24: 3258 | H24: 3113 | I24: 3113 | J24: =GETPIVOTDATA("Sum of Year 3",'6 Pivot tables'!$A$5,"Account","E","CAP","O","OPERATING STATEMENT LINE ITEM","Borrowing Costs") -> 2289.083 | K24: =GETPIVOTDATA("Sum of Year 4",'6 Pivot tables'!$A$5,"Account","E","CAP","O","OPERATING STATEMENT LINE ITEM","Borrowing Costs") -> 2086.689446 | L24: =GETPIVOTDATA("Sum of Year 5",'6 Pivot tables'!$A$5,"Account","E","CAP","O","OPERATING STATEMENT LINE ITEM","Borrowing Costs") -> 1981.59785 | M24: =GETPIVOTDATA("Sum of Year 6",'6 Pivot tables'!$A$5,"Account","E","CAP","O","OPERATING STATEMENT LINE ITEM","Borrowing Costs") -> 1920.480035 | N24: =GETPIVOTDATA("Sum of Year 7",'6 Pivot tables'!$A$5,"Account","E","CAP","O","OPERATING STATEMENT LINE ITEM","Borrowing Costs") -> 1882.410631 | O24: =GETPIVOTDATA("Sum of Year 8",'6 Pivot tables'!$A$5,"Account","E","CAP","O","OPERATING STATEMENT LINE ITEM","Borrowing Costs") -> 1840.361699 | P24: =GETPIVOTDATA("Sum of Year 9",'6 Pivot tables'!$A$5,"Account","E","CAP","O","OPERATING STATEMENT LINE ITEM","Borrowing Costs") -> 1730.241074 | Q24: =GETPIVOTDATA("Sum of Year 10",'6 Pivot tables'!$A$5,"Account","E","CAP","O","OPERATING STATEMENT LINE ITEM","Borrowing Costs") -> 1717.77025 | R24: =GETPIVOTDATA("Sum of Year 11",'6 Pivot tables'!$A$5,"Account","E","CAP","O","OPERATING STATEMENT LINE ITEM","Borrowing Costs") -> 1703.309234 | S24: =GETPIVOTDATA("Sum of Year 12",'6 Pivot tables'!$A$5,"Account","E","CAP","O","OPERATING STATEMENT LINE ITEM","Borrowing Costs") -> 1686.70441 | T24: =GETPIVOTDATA("Sum of Year 13",'6 Pivot tables'!$A$5,"Account","E","CAP","O","OPERATING STATEMENT LINE ITEM","Borrowing Costs") -> 1681.228016 | U24: =GETPIVOTDATA("Sum of Year 14",'6 Pivot tables'!$A$5,"Account","E","CAP","O","OPERATING STATEMENT LINE ITEM","Borrowing Costs") -> 1673.960495 | V24: =GETPIVOTDATA("Sum of Year 15",'6 Pivot tables'!$A$5,"Account","E","CAP","O","OPERATING STATEMENT LINE ITEM","Borrowing Costs") -> 1664.750389 | Y24: 2289.083 | Z24: 0
A25: Depreciation & Amortisation | B25: 20116 | C25: 8743 | D25: 8983 | E25: 10558 | F25: 11063 | G25: 11753 | H25: 11895 | I25: 11895 | J25: =GETPIVOTDATA("Sum of Year 3",'6 Pivot tables'!$A$5,"Account","E","CAP","O","OPERATING STATEMENT LINE ITEM","Depreciation & Amortisation") -> 12310.75461 | K25: =GETPIVOTDATA("Sum of Year 4",'6 Pivot tables'!$A$5,"Account","E","CAP","O","OPERATING STATEMENT LINE ITEM","Depreciation & Amortisation") -> 12759.46366 | L25: =GETPIVOTDATA("Sum of Year 5",'6 Pivot tables'!$A$5,"Account","E","CAP","O","OPERATING STATEMENT LINE ITEM","Depreciation & Amortisation") -> 12876.55828 | M25: =GETPIVOTDATA("Sum of Year 6",'6 Pivot tables'!$A$5,"Account","E","CAP","O","OPERATING STATEMENT LINE ITEM","Depreciation & Amortisation") -> 12969.44865 | N25: =GETPIVOTDATA("Sum of Year 7",'6 Pivot tables'!$A$5,"Account","E","CAP","O","OPERATING STATEMENT LINE ITEM","Depreciation & Amortisation") -> 13063.20484 | O25: =GETPIVOTDATA("Sum of Year 8",'6 Pivot tables'!$A$5,"Account","E","CAP","O","OPERATING STATEMENT LINE ITEM","Depreciation & Amortisation") -> 13182.98353 | P25: =GETPIVOTDATA("Sum of Year 9",'6 Pivot tables'!$A$5,"Account","E","CAP","O","OPERATING STATEMENT LINE ITEM","Depreciation & Amortisation") -> 13306.15751 | Q25: =GETPIVOTDATA("Sum of Year 10",'6 Pivot tables'!$A$5,"Account","E","CAP","O","OPERATING STATEMENT LINE ITEM","Depreciation & Amortisation") -> 13432.83194 | R25: =GETPIVOTDATA("Sum of Year 11",'6 Pivot tables'!$A$5,"Account","E","CAP","O","OPERATING STATEMENT LINE ITEM","Depreciation & Amortisation") -> 13563.1151 | S25: =GETPIVOTDATA("Sum of Year 12",'6 Pivot tables'!$A$5,"Account","E","CAP","O","OPERATING STATEMENT LINE ITEM","Depreciation & Amortisation") -> 13697.11845 | T25: =GETPIVOTDATA("Sum of Year 13",'6 Pivot tables'!$A$5,"Account","E","CAP","O","OPERATING STATEMENT LINE ITEM","Depreciation & Amortisation") -> 13834.95676 | U25: =GETPIVOTDATA("Sum of Year 14",'6 Pivot tables'!$A$5,"Account","E","CAP","O","OPERATING STATEMENT LINE ITEM","Depreciation & Amortisation") -> 13976.74815 | V25: =GETPIVOTDATA("Sum of Year 15",'6 Pivot tables'!$A$5,"Account","E","CAP","O","OPERATING STATEMENT LINE ITEM","Depreciation & Amortisation") -> 14122.61429 | Y25: 12306.27653 | Z25: 4.47808
A26: Other Expenses | B26: 8943 | C26: 9555 | D26: 9821 | E26: 10694 | F26: 15022 | G26: 12465 | H26: 13300 | I26: 13300 | J26: =GETPIVOTDATA("Sum of Year 3",'6 Pivot tables'!$A$5,"Account","E","CAP","O","OPERATING STATEMENT LINE ITEM","Other Expenses") -> 13528.624 | K26: =GETPIVOTDATA("Sum of Year 4",'6 Pivot tables'!$A$5,"Account","E","CAP","O","OPERATING STATEMENT LINE ITEM","Other Expenses") -> 13872.90095 | L26: =GETPIVOTDATA("Sum of Year 5",'6 Pivot tables'!$A$5,"Account","E","CAP","O","OPERATING STATEMENT LINE ITEM","Other Expenses") -> 14684.2916 | M26: =GETPIVOTDATA("Sum of Year 6",'6 Pivot tables'!$A$5,"Account","E","CAP","O","OPERATING STATEMENT LINE ITEM","Other Expenses") -> 15407.90465 | N26: =GETPIVOTDATA("Sum of Year 7",'6 Pivot tables'!$A$5,"Account","E","CAP","O","OPERATING STATEMENT LINE ITEM","Other Expenses") -> 16470.22358 | O26: =GETPIVOTDATA("Sum of Year 8",'6 Pivot tables'!$A$5,"Account","E","CAP","O","OPERATING STATEMENT LINE ITEM","Other Expenses") -> 17635.21389 | P26: =GETPIVOTDATA("Sum of Year 9",'6 Pivot tables'!$A$5,"Account","E","CAP","O","OPERATING STATEMENT LINE ITEM","Other Expenses") -> 19339.26111 | Q26: =GETPIVOTDATA("Sum of Year 10",'6 Pivot tables'!$A$5,"Account","E","CAP","O","OPERATING STATEMENT LINE ITEM","Other Expenses") -> 20319.8875 | R26: =GETPIVOTDATA("Sum of Year 11",'6 Pivot tables'!$A$5,"Account","E","CAP","O","OPERATING STATEMENT LINE ITEM","Other Expenses") -> 21866.32564 | S26: =GETPIVOTDATA("Sum of Year 12",'6 Pivot tables'!$A$5,"Account","E","CAP","O","OPERATING STATEMENT LINE ITEM","Other Expenses") -> 23569.2671 | T26: =GETPIVOTDATA("Sum of Year 13",'6 Pivot tables'!$A$5,"Account","E","CAP","O","OPERATING STATEMENT LINE ITEM","Other Expenses") -> 26022.01453 | U26: =GETPIVOTDATA("Sum of Year 14",'6 Pivot tables'!$A$5,"Account","E","CAP","O","OPERATING STATEMENT LINE ITEM","Other Expenses") -> 27516.89483 | V26: =GETPIVOTDATA("Sum of Year 15",'6 Pivot tables'!$A$5,"Account","E","CAP","O","OPERATING STATEMENT LINE ITEM","Other Expenses") -> 29803.01043 | Y26: 13527.714 | Z26: 0.91
A27: WDV of Assets sold | B27: 44089 | C27: =12200+798+76777 -> 89775 | D27: 362 | E27: =278+672 -> 950 | F27: =1000+84 -> 1084 | G27: 144 | H27: =34+73 -> 107 | I27: =34+73 -> 107 | J27: =GETPIVOTDATA("Sum of Year 3",'6 Pivot tables'!$A$5,"Account","E","CAP","O","OPERATING STATEMENT LINE ITEM","WDV of assets sold") -> 90.25 | K27: =GETPIVOTDATA("Sum of Year 4",'6 Pivot tables'!$A$5,"Account","E","CAP","O","OPERATING STATEMENT LINE ITEM","WDV of assets sold") -> 92.9575 | L27: =GETPIVOTDATA("Sum of Year 5",'6 Pivot tables'!$A$5,"Account","E","CAP","O","OPERATING STATEMENT LINE ITEM","WDV of assets sold") -> 95.746225 | M27: =GETPIVOTDATA("Sum of Year 6",'6 Pivot tables'!$A$5,"Account","E","CAP","O","OPERATING STATEMENT LINE ITEM","WDV of assets sold") -> 98.61861175 | N27: =GETPIVOTDATA("Sum of Year 7",'6 Pivot tables'!$A$5,"Account","E","CAP","O","OPERATING STATEMENT LINE ITEM","WDV of assets sold") -> 101.5771701 | O27: =GETPIVOTDATA("Sum of Year 8",'6 Pivot tables'!$A$5,"Account","E","CAP","O","OPERATING STATEMENT LINE ITEM","WDV of assets sold") -> 104.6244852 | P27: =GETPIVOTDATA("Sum of Year 9",'6 Pivot tables'!$A$5,"Account","E","CAP","O","OPERATING STATEMENT LINE ITEM","WDV of assets sold") -> 107.7632198 | Q27: =GETPIVOTDATA("Sum of Year 10",'6 Pivot tables'!$A$5,"Account","E","CAP","O","OPERATING STATEMENT LINE ITEM","WDV of assets sold") -> 110.9961164 | R27: =GETPIVOTDATA("Sum of Year 11",'6 Pivot tables'!$A$5,"Account","E","CAP","O","OPERATING STATEMENT LINE ITEM","WDV of assets sold") -> 114.3259998 | S27: =GETPIVOTDATA("Sum of Year 12",'6 Pivot tables'!$A$5,"Account","E","CAP","O","OPERATING STATEMENT LINE ITEM","WDV of assets sold") -> 117.7557798 | T27: =GETPIVOTDATA("Sum of Year 13",'6 Pivot tables'!$A$5,"Account","E","CAP","O","OPERATING STATEMENT LINE ITEM","WDV of assets sold") -> 121.2884532 | U27: =GETPIVOTDATA("Sum of Year 14",'6 Pivot tables'!$A$5,"Account","E","CAP","O","OPERATING STATEMENT LINE ITEM","WDV of assets sold") -> 124.9271068 | V27: =GETPIVOTDATA("Sum of Year 15",'6 Pivot tables'!$A$5,"Account","E","CAP","O","OPERATING STATEMENT LINE ITEM","WDV of assets sold") -> 128.67492 | Y27: 90.25 | Z27: 0
A28: WDV of Assets held for sale | E28: 8120 | F28: 1621 | G28: 0 | H28: =GETPIVOTDATA("Sum of Year 1",'6 Pivot tables'!$A$5,"Account","E","CAP","O","OPERATING STATEMENT LINE ITEM","WDV of Assets held for sale") -> 0 | I28: =GETPIVOTDATA("Sum of Year 2",'6 Pivot tables'!$A$5,"Account","E","CAP","O","OPERATING STATEMENT LINE ITEM","WDV of Assets held for sale") -> 0 | J28: =GETPIVOTDATA("Sum of Year 3",'6 Pivot tables'!$A$5,"Account","E","CAP","O","OPERATING STATEMENT LINE ITEM","WDV of Assets held for sale") -> 0.001 | K28: =GETPIVOTDATA("Sum of Year 4",'6 Pivot tables'!$A$5,"Account","E","CAP","O","OPERATING STATEMENT LINE ITEM","WDV of Assets held for sale") -> 0 | L28: =GETPIVOTDATA("Sum of Year 5",'6 Pivot tables'!$A$5,"Account","E","CAP","O","OPERATING STATEMENT LINE ITEM","WDV of Assets held for sale") -> 0 | M28: =GETPIVOTDATA("Sum of Year 6",'6 Pivot tables'!$A$5,"Account","E","CAP","O","OPERATING STATEMENT LINE ITEM","WDV of Assets held for sale") -> 0 | N28: =GETPIVOTDATA("Sum of Year 7",'6 Pivot tables'!$A$5,"Account","E","CAP","O","OPERATING STATEMENT LINE ITEM","WDV of Assets held for sale") -> 0 | O28: =GETPIVOTDATA("Sum of Year 8",'6 Pivot tables'!$A$5,"Account","E","CAP","O","OPERATING STATEMENT LINE ITEM","WDV of Assets held for sale") -> 0 | P28: =GETPIVOTDATA("Sum of Year 9",'6 Pivot tables'!$A$5,"Account","E","CAP","O","OPERATING STATEMENT LINE ITEM","WDV of Assets held for sale") -> 0 | Q28: =GETPIVOTDATA("Sum of Year 10",'6 Pivot tables'!$A$5,"Account","E","CAP","O","OPERATING STATEMENT LINE ITEM","WDV of Assets held for sale") -> 0 | R28: =GETPIVOTDATA("Sum of Year 11",'6 Pivot tables'!$A$5,"Account","E","CAP","O","OPERATING STATEMENT LINE ITEM","WDV of Assets held for sale") -> 0 | S28: =GETPIVOTDATA("Sum of Year 12",'6 Pivot tables'!$A$5,"Account","E","CAP","O","OPERATING STATEMENT LINE ITEM","WDV of Assets held for sale") -> 0 | T28: =GETPIVOTDATA("Sum of Year 13",'6 Pivot tables'!$A$5,"Account","E","CAP","O","OPERATING STATEMENT LINE ITEM","WDV of Assets held for sale") -> 0 | U28: =GETPIVOTDATA("Sum of Year 14",'6 Pivot tables'!$A$5,"Account","E","CAP","O","OPERATING STATEMENT LINE ITEM","WDV of Assets held for sale") -> 0 | V28: =GETPIVOTDATA("Sum of Year 15",'6 Pivot tables'!$A$5,"Account","E","CAP","O","OPERATING STATEMENT LINE ITEM","WDV of Assets held for sale") -> 0 | Y28: 0.001 | Z28: 0
A29: Interest and Investment losses | B29: 202 | C29: 0 | Z29: 0
A30: Loss from Interests in Joint Ventures & Associates | B30: 6 | C30: =-'3 Assumptions'!C172 -> 17 | D30: =-'3 Assumptions'!D172 -> 25 | E30: 0 | F30: 0 | G30: 8 | H30: 3 | I30: =-'3 Assumptions'!I172 -> 3 | J30: =-'3 Assumptions'!J172 -> 5 | K30: =-'3 Assumptions'!K172 -> 3 | L30: =-'3 Assumptions'!L172 -> 3 | M30: =-'3 Assumptions'!M172 -> 3 | N30: =-'3 Assumptions'!N172 -> 3 | O30: =-'3 Assumptions'!O172 -> 3 | P30: =-'3 Assumptions'!P172 -> 3 | Q30: =-'3 Assumptions'!Q172 -> 3 | R30: =-'3 Assumptions'!R172 -> 3 | S30: =-'3 Assumptions'!S172 -> 3 | T30: =-'3 Assumptions'!T172 -> 3 | U30: =-'3 Assumptions'!U172 -> 3 | V30: =-'3 Assumptions'!V172 -> 3 | Y30: 5 | Z30: 0
A31: Total Expenses from Continuing Operations | B31: =SUM(B22:B30) -> 128595 | C31: 166918 | D31: =SUM(D22:D30) -> 80168 | E31: 96910 | F31: 99226 | G31: =SUM(G22:G30) -> 95523 | H31: 96518 | I31: 96518 | J31: 105299.4906 | K31: 103420.8925 | L31: 106316.878 | M31: 110545.1808 | N31: 113631.0726 | O31: =SUM(O22:O30) -> 118389.7015 | P31: 123489.8456 | Q31: 128114.7342 | R31: =SUM(R22:R30) -> 133462.7064 | S31: 139130.2957 | T31: 145732.0993 | U31: 151555.9828 | V31: 158359.8174 | Y31: 100990.1625 | Z31: 4309.32808
Z32: 0
Z33: 0
A34: Net Operating Result for the year | B34: =+B18-B31 -> 64299 | C34: =+C18-C31 -> 8585 | D34: =+D18-D31 -> 10356 | E34: 21053 | F34: =+F18-F31 -> 6931 | G34: =+G18-G31 -> 15067 | H34: =+H18-H31 -> 32137 | I34: =+I18-I31 -> 32137 | J34: =+J18-J31 -> -678.16761 | K34: 1748.762194 | L34: 2082.285583 | M34: 1689.093302 | N34: 2674.539742 | O34: 2127.075527 | P34: 1650.411963 | Q34: 1856.713446 | R34: 1576.471353 | S34: 1532.018737 | T34: 850.0712668 | U34: =+U18-U31 -> 1274.547814 | V34: =+V18-V31 -> 1073.481035 | Y34: 2374.69047 | Z34: -3052.85808 | AB34: =2761.9-2808.2 -> -46.3
A35: Net Operating result for the year before Grants & contributions provided for capital purposes | C35: =C34-C13 -> 4427 | D35: =D34-D13 -> 4472 | E35: =E34-E13 -> 13995 | F35: =F34-F13 -> 471 | G35: 3868 | H35: 15175 | I35: =I34-I13 -> 15175 | J35: =J34-J13 -> -5723.29761 | K35: -846.717623 | L35: 418.4924693 | M35: -15.59552074 | N35: 932.2088298 | O35: 346.1887294 | P35: -169.8348955 | Q35: -3.486104597 | R35: -324.7494803 | S35: -415.0085386 | T35: -1150.499259 | U35: =U34-U13 -> -781.0384011 | V35: =V34-V13 -> -1038.6338 | Y35: -2485.30953 | Z35: -3237.98808
A36: Other Comprehensive Income: | C36: 0 | D36: 147188 | E36: =79437 -> 79437 | F36: =11554 -> 11554 | G36: 79396 | H36: 16052 | I36: 16052 | J36: 0 | K36: 0 | L36: 0 | M36: 0 | N36: 0 | O36: 0 | P36: 0 | Q36: 0 | R36: 0 | S36: 0 | T36: 0 | U36: 0 | V36: 0 | Y36: 0 | Z36: 0
A37: Total Compreh Income for the year | C37: =C34+C36 -> 8585 | D37: =D34+D36 -> 157544 | E37: 100490 | F37: 18485 | G37: 94463 | H37: 48189 | I37: 48189 | J37: -678.16761 | K37: 1748.762194 | L37: 2082.285583 | M37: =M34+M36 -> 1689.093302 | N37: 2674.539742 | O37: 2127.075527 | P37: 1650.411963 | Q37: 1856.713446 | R37: 1576.471353 | S37: 1532.018737 | T37: 850.0712668 | U37: =U34+U36 -> 1274.547814 | V37: =V34+V36 -> 1073.481035 | Y37: 2374.69047 | Z37: -3052.85808
A39: Exception Items contributing to Operating Result
A40: Loss/Gain from sale of assets | F40: =F28+F27-F16 -> -1535 | G40: =G28+G27-G16 -> -181 | H40: =H28+H27-H16 -> -189 | I40: =I28+I27-I16 -> -189 | J40: =J28+J27-J16 -> -176.004 | K40: =K28+K27-K16 -> -103.00615 | L40: -105.9907288 | M40: -109.0622047 | N40: -112.2785948 | O40: -115.5899511 | P40: -118.9990805 | Q40: -122.5088731 | R40: -126.1223045 | S40: -129.8424384 | T40: -133.6724292 | U40: -137.6155243 | V40: -141.6750677 | Y40: -176.004
A41: Less: Expenditure PIPs funded by Reserves & S94 Contrib Resv | H41: =-'PIP Budget Funds_Exps Only'!B118/1000 -> -482.5 | I41: =-'PIP Budget Funds_Exps Only'!B118/1000 -> -482.5 | J41: =-'PIP Budget Funds_Exps Only'!C118/1000 -> -763.05 | K41: =-'PIP Budget Funds_Exps Only'!D118/1000 -> -230 | L41: =-'PIP Budget Funds_Exps Only'!E118/1000 -> -214.8 | M41: =-'PIP Budget Funds_Exps Only'!F118/1000 -> -221.25 | N41: =-'PIP Budget Funds_Exps Only'!G118/1000 -> -227.852 | O41: =-'PIP Budget Funds_Exps Only'!H118/1000 -> -234.68756 | P41: =-'PIP Budget Funds_Exps Only'!I118/1000 -> -241.7281868 | Q41: =-'PIP Budget Funds_Exps Only'!J118/1000 -> -248.9800324 | R41: =-'PIP Budget Funds_Exps Only'!K118/1000 -> -256.4494334 | S41: =-'PIP Budget Funds_Exps Only'!L118/1000 -> -264.1429164 | T41: =-'PIP Budget Funds_Exps Only'!M118/1000 -> -272.0672039 | U41: =-'PIP Budget Funds_Exps Only'!N118/1000 -> -280.22922 | V41: =-'PIP Budget Funds_Exps Only'!O118/1000 -> -288.6360966 | Y41: -763.05
A44: Underlying Operating Result for the year | H44: =H35-H40-H41-H42-H43 -> 15846.5 | I44: =I35-I40-I41-I42-I43 -> 15846.5 | J44: =J35-J40-J41-J42-J43 -> -4784.24361 | K44: -513.711473 | L44: 739.2831981 | M44: 314.716684 | N44: 1272.339425 | O44: 696.4662405 | P44: 190.8923718 | Q44: 368.0028009 | R44: 57.82225762 | S44: -21.0231838 | T44: -744.7596256 | U44: -363.1936568 | V44: -608.322636 | Y44: -1546.25553
A45: Percentage Representing Unfunded Depreciation Expenses | H45: =H44/H25 -> 1.332198403 | I45: =I44/I25 -> 1.332198403 | J45: -0.3886230992 | K45: -0.04026121213 | L45: 0.05741310543 | M45: 0.02426600332 | N45: 0.09739871956 | O45: 0.05283069942 | P45: 0.01434616805 | Q45: 0.02739577198 | R45: 0.004263198918 | S45: -0.001534861794 | T45: -0.05383172776 | U45: -0.02598556208 | V45: -0.04307436453 | Y45: -0.1256477153
A46: Percentage Representing Unfunded Depreciation Expenses | G46: =IF(G45>0,0,G45) -> 0 | H46: =IF(H45>0,0,H45) -> 0 | I46: =IF(I45>0,0,I45) -> 0 | J46: =IF(J45>0,0,J45) -> -0.3886230992 | K46: -0.04026121213 | L46: 0 | M46: 0 | N46: 0 | O46: 0 | P46: 0 | Q46: 0 | R46: 0 | S46: -0.001534861794 | T46: -0.05383172776 | U46: -0.02598556208 | V46: -0.04307436453 | Y46: -0.1256477153
A48: Capital Expenses:
A49: Plant & Equipment | E49: =#REF! ->  | F49: =#REF! ->  | J49: =#REF! ->  | K49: =#REF! ->  | L49: =#REF! ->  | M49: =#REF! ->  | N49: =#REF! ->  | O49: =#REF! ->  | P49: =#REF! ->  | Q49: =#REF! ->  | R49: =#REF! ->  | S49: =#REF! ->  | T49: =#REF! ->  | U49: =#REF! ->  | V49: =#REF! -> 
A50: F&F & Office Equipments | E50: =#REF!+#REF! ->  | F50: =#REF!+#REF! ->  | J50: =#REF!+#REF! ->  | K50: =#REF!+#REF! ->  | L50: =#REF!+#REF! ->  | M50: =#REF!+#REF! ->  | N50: =#REF!+#REF! ->  | O50: =#REF!+#REF! ->  | P50: =#REF!+#REF! ->  | Q50: =#REF!+#REF! ->  | R50: =#REF!+#REF! ->  | S50: =#REF!+#REF! ->  | T50: =#REF!+#REF! ->  | U50: =#REF!+#REF! ->  | V50: =#REF!+#REF! -> 
A51: Library books | E51: =#REF! ->  | F51: =#REF! ->  | J51: =#REF! ->  | K51: =#REF! ->  | L51: =#REF! ->  | M51: =#REF! ->  | N51: =#REF! ->  | O51: =#REF! ->  | P51: =#REF! ->  | Q51: =#REF! ->  | R51: =#REF! ->  | S51: =#REF! ->  | T51: =#REF! ->  | U51: =#REF! ->  | V51: =#REF! -> 
A52: Capital Works Projects | D52: =D96 -> 82448 | E52: =#REF!+#REF!+#REF!+#REF!+#REF!+#REF!+#REF! ->  | F52: =#REF!+#REF!+#REF!+#REF!+#REF!+#REF!+#REF! ->  | J52: =#REF!+#REF!+#REF!+#REF!+#REF!+#REF!+#REF! ->  | K52: =#REF!+#REF!+#REF!+#REF!+#REF!+#REF!+#REF! ->  | L52: =#REF!+#REF!+#REF!+#REF!+#REF!+#REF!+#REF! ->  | M52: =#REF!+#REF!+#REF!+#REF!+#REF!+#REF!+#REF! ->  | N52: =#REF!+#REF!+#REF!+#REF!+#REF!+#REF!+#REF! ->  | O52: =#REF!+#REF!+#REF!+#REF!+#REF!+#REF!+#REF! ->  | P52: =#REF!+#REF!+#REF!+#REF!+#REF!+#REF!+#REF! ->  | Q52: =#REF!+#REF!+#REF!+#REF!+#REF!+#REF!+#REF! ->  | R52: =#REF!+#REF!+#REF!+#REF!+#REF!+#REF!+#REF! ->  | S52: =#REF!+#REF!+#REF!+#REF!+#REF!+#REF!+#REF! ->  | T52: =#REF!+#REF!+#REF!+#REF!+#REF!+#REF!+#REF! ->  | U52: =#REF!+#REF!+#REF!+#REF!+#REF!+#REF!+#REF! ->  | V52: =#REF!+#REF!+#REF!+#REF!+#REF!+#REF!+#REF! -> 
A53: Total Capital Expenses | D53: =SUM(D49:D52) -> 82448 | F53: =SUM(F49:F52) ->  | U53: =SUM(U49:U52) ->  | V53: =SUM(V49:V52) -> 
A55: Capital Funding Sources:
A56: Grants & Contributions - Capital | D56: =D13 -> 5884 | E56: =E13 -> 7058 | F56: =F13 -> 6460 | J56: =J13 -> 5045.13 | K56: 2595.479817 | L56: 1663.793114 | M56: 1704.688822 | N56: 1742.330912 | O56: 1780.886797 | P56: 1820.246859 | Q56: 1860.199551 | R56: =R13 -> 1901.220833 | S56: 1947.027275 | T56: 2000.570525 | U56: 2055.586215 | V56: 2112.114836 | Y56: 4860 | Z56: =J56-Y56 -> 185.13
A57: Transfer to Reserves | D57: =-D95-D17 -> -19485 | E57: =-E95-E17 -> -54501 | F57: =-F95-F17 -> -43734 | J57: =-J95-J17 -> -12627.729 | K57: =-K95-K17 -> -9808.12362 | L57: -9622.629079 | M57: -10349.41676 | N57: -10677.58766 | O57: -11023.40024 | P57: -10781.07113 | Q57: -11126.07364 | R57: =-R95-R17 -> -11431.04486 | S57: -11746.33353 | T57: -12022.30038 | U57: -12359.31852 | V57: -12707.77376 | Y57: -11556.389 | Z57: =J57-Y57 -> -1071.34
A58: Transfer from Reserves | D58: =D85+D30 -> 77222 | E58: =E85+E30 -> 73564 | F58: =F85+F30 -> 36504 | J58: =J85+J30 -> 25808.339 | K58: =K85+K30 -> 10472.87736 | L58: =L85+L30 -> 6342.844078 | M58: =M85+M30 -> 6300.176845 | N58: 6683.230065 | O58: 6842.386964 | P58: 7935.392287 | Q58: 7104.579585 | R58: =R85+R30 -> 7278.712059 | S58: 7193.348974 | T58: 7367.517421 | U58: 7546.7681 | V58: 7731.25158 | Y58: 17091.009
A59: New borrowings | D59: =D84 -> 3300 | E59: =E84 -> 25000 | F59: =F84 -> 0 | J59: 0 | K59: 0 | L59: 0 | M59: 0 | N59: 0 | O59: 0 | P59: 0 | Q59: 0 | R59: =R84 -> 0 | S59: 0 | T59: 0 | U59: 0 | V59: 0 | Y59: 0
A60: Debt Redemption | D60: =-D94 -> -756 | E60: =-E94 -> -1189 | F60: =-F94 -> -4306 | J60: =-J94 -> -3695.275 | K60: =-K94 -> -4790.336819 | L60: =-L94 -> -1887.513471 | M60: -1532.015352 | N60: -1617.197474 | O60: -1703.436942 | P60: -2296.551966 | Q60: -1355.450473 | R60: =-R94 -> -1417.499862 | S60: -1221.983525 | T60: -1277.457455 | U60: -1335.972449 | V60: -1397.711215 | Y60: -3695.275
A61: Total Capital Funding Sources | D61: =SUM(D56:D60) -> 66165 | E61: =SUM(E56:E60) -> 49932 | F61: =SUM(F56:F60) -> -5076 | J61: =SUM(J56:J60) -> 14530.465 | K61: -1530.10326 | L61: -3503.505358 | M61: =SUM(M56:M60) -> -3876.566447 | N61: -3869.224157 | O61: -4103.563417 | P61: -3321.983951 | Q61: -3516.744972 | R61: =SUM(R56:R60) -> -3668.611827 | S61: -3827.940805 | T61: -3931.669891 | U61: -4092.936649 | V61: -4262.118561 | Y61: 6699.345
A63: Non-Cash Items
A64: Depreciation & Amortisation | D64: =D25 -> 8983 | E64: =E25 -> 10558 | F64: =F25 -> 11063 | J64: =J25 -> 12310.75461 | K64: =K25 -> 12759.46366 | L64: 12876.55828 | M64: 12969.44865 | N64: 13063.20484 | O64: 13182.98353 | P64: 13306.15751 | Q64: 13432.83194 | R64: =R25 -> 13563.1151 | S64: 13697.11845 | T64: 13834.95676 | U64: 13976.74815 | V64: 14122.61429 | Y64: 12306.27653 | Z64: =J64-Y64 -> 4.47808
A65: WDV of Assets Sold | D65: =D27+D28 -> 362 | E65: =E27+E28 -> 9070 | F65: =F27+F28 -> 2705 | J65: =J27+J28 -> 90.251 | K65: 92.9575 | L65: 95.746225 | M65: 98.61861175 | N65: 101.5771701 | O65: 104.6244852 | P65: 107.7632198 | Q65: =Q27+Q28 -> 110.9961164 | R65: 114.3259998 | S65: 117.7557798 | T65: 121.2884532 | U65: 124.9271068 | V65: 128.67492 | Y65: 90.251
A66: 50% LSL Accruals | D66: 0 | E66: 0 | F66: 0 | G66: 0 | H66: 0 | I66: 0 | J66: 634.45 | K66: =J66*1.04 -> 659.828 | L66: =K66*1.04 -> 686.22112 | M66: 713.6699648 | N66: 742.2167634 | O66: 771.9054339 | P66: 802.7816513 | Q66: 834.8929173 | R66: =Q66*1.04 -> 868.288634 | S66: =R66*1.04 -> 903.0201794 | T66: 939.1409866 | U66: 976.706626 | V66: 1015.774891 | Y66: 634.45
A67: Total Non-Cash Items | D67: =SUM(D64:D66) -> 9345 | E67: =SUM(E64:E66) -> 19628 | F67: =SUM(F64:F66) -> 13768 | J67: =SUM(J64:J66) -> 13035.45561 | K67: =SUM(K64:K66) -> 13512.24916 | L67: 13658.52562 | M67: 13781.73723 | N67: 13906.99877 | O67: 14059.51345 | P67: 14216.70238 | Q67: 14378.72097 | R67: =SUM(R64:R66) -> 14545.72973 | S67: 14717.89441 | T67: 14895.3862 | U67: 15078.38189 | V67: 15267.0641 | Y67: 13030.97753
A70: Budget Result | B70: =+B34-B47 -> 64299 | C70: =+C37-C47 -> 8585 | D70: =D35-D53+D61+D67 -> -2466 | E70: =E35-E53+E61+E67 ->  | F70: =F35-F53+F61+F67 ->  | G70: =+G34-G47 -> 15067 | I70: =I35-I53+I61+I67 -> 15175 | J70: =J35-J53+J61+J67 ->  | K70: =K35-K53+K61+K67 ->  | O70: =O35-O53+O61+O67 ->  | R70: =R35-R53+R61+R67 -> 
B72: =B3 -> Actual | C72: Actual | D72: =D3 -> Actual | E72: =E3 -> Actual | H72: =H3 -> Actual | I72: Actual | J72: Forecast | K72: Forecast | L72: Forecast | M72: Forecast | N72: Forecast | O72: Forecast | P72: Forecast | Q72: Forecast | R72: =R3 -> Forecast | S72: Forecast | T72: Forecast | U72: =U3 -> Forecast | V72: Forecast | Y72: Forecast
A73: CASH (RATES) BUDGETS STATEMENT | B73: 2007/08 | C73: 2008/09 | D73: =D4 -> 2009/10 | E73: 2010/11 | F73: Actual 2011/12 | G73: Actual 2012/13 | H73: =H4 -> ORI 2013/14 | I73: 2013/14 | J73: 2014/15 | K73: 2015/16 | L73: 2016/17 | M73: 2017/18 | N73: 2018/19 | O73: 2019/20 | P73: 2020/21 | Q73: 2021/22 | R73: 2022/23 | S73: 2023/24 | T73: 2024/25 | U73: 2025/26 | V73: 2026/27 | Y73: 2014/15
B74: $'000's | C74: $'000's | D74: $'000's | E74: $'000's | F74: $'000's | G74: $'000's | H74: $'000's | I74: $'000's | J74: $'000's | K74: $'000's | L74: $'000's | M74: $'000's | N74: $'000's | O74: $'000's | P74: $'000's | Q74: $'000's | R74: $'000's | S74: $'000's | T74: $'000's | U74: $'000's | V74: $'000's | Y74: $'000's
A76: Revenues
A77: Rates and Annual Charges | B77: =+B8 -> 39807 | C77: =+C8 -> 43345 | D77: =+D8 -> 45849 | E77: =+E8 -> 47379 | F77: =+F8 -> 49605 | G77: =+G8 -> 52209 | H77: =+H8 -> 54439 | I77: =+I8 -> 54439 | J77: =+J8 -> 56620.537 | K77: =+K8 -> 59063.69749 | L77: 61129.01153 | M77: 63279.38353 | N77: 65518.86696 | O77: 67851.73686 | P77: 70655.92424 | Q77: 73615.127 | R77: =+R8 -> 76739.85848 | S77: 80394.10947 | T77: =+T8 -> 84299.06922 | U77: 88475.9334 | V77: 92947.84086 | Y77: 56620.537 | Z77: =J77-Y77 -> 0
A78: User Charges and Fees | B78: 14419 | C78: 13521 | D78: 14910 | E78: 15781 | F78: =+F9 -> 17002 | G78: =+G9 -> 18221 | H78: 17429 | I78: 17429 | J78: =+J9 -> 20319.984 | K78: 20333.63344 | L78: 21329.54236 | M78: 22189.73015 | N78: 23092.11626 | O78: 24034.28353 | P78: 24934.92135 | Q78: 25856.82334 | R78: 26821.09718 | S78: 27788.39717 | T78: 28790.018 | U78: 29827.8228 | V78: 30903.36649 | Y78: 19319.984 | Z78: =J78-Y78 -> 1000
A79: Investment Revenues | B79: 0 | C79: 8291 | D79: 5541 | E79: 3893 | F79: =+F10 -> 3046 | G79: 3238 | H79: 2505 | I79: 2505 | J79: =+J10 -> 2155 | K79: 2523.896497 | L79: 2620.580998 | M79: 2717.837517 | N79: 2926.517372 | O79: 3110.474823 | P79: 3253.736691 | Q79: 3404.702941 | R79: 3559.370148 | S79: 3707.482737 | T79: 3834.132936 | U79: 3953.500304 | V79: 4065.917801 | Y79: 2155 | Z79: 0
A80: Other Revenues | B80: 8822 | C80: 8220 | D80: 11790 | E80: 10906 | F80: =+F11 -> 19254 | G80: 18994 | H80: 31383 | I80: 31383 | J80: =+J11 -> 14153.726 | K80: 14544.59425 | L80: 15373.73917 | M80: 15880.76369 | N80: 16391.44232 | O80: 16918.75312 | P80: 17463.24409 | Q80: 18025.48144 | R80: 18606.05026 | S80: 19205.5551 | T80: 19824.62067 | U80: 20463.89249 | V80: 21124.0376 | Y80: 14153.726 | Z80: 0
A81: Grants & Contributions - Operating | B81: 4892 | C81: 5578 | D81: 6049 | E81: 7455 | F81: =+F12 -> 6530 | G81: 6404 | H81: 5641 | I81: 5641 | J81: =+J12 -> 6060.691 | K81: 5912.38953 | L81: 6080.759436 | M81: 6254.189589 | N81: 6420.482773 | O81: 6600.427416 | P81: 6785.421979 | Q81: 6975.608376 | R81: 7171.132518 | S81: 7372.144421 | T81: 7578.798324 | U81: 7791.252808 | V81: 8009.670916 | Y81: 5989.351 | Z81: 71.34
A82: Grants & Contributions - Capital | B82: 6342 | C82: 4158 | D82: 5884 | E82: 7058 | F82: =+F13 -> 6460 | G82: 11199 | H82: 16962 | I82: 16962 | J82: =+J13 -> 5045.13 | K82: 2595.479817 | L82: 1663.793114 | M82: 1704.688822 | N82: 1742.330912 | O82: 1780.886797 | P82: 1820.246859 | Q82: 1860.199551 | R82: 1901.220833 | S82: 1947.027275 | T82: 2000.570525 | U82: 2055.586215 | V82: 2112.114836 | Y82: 4860 | Z82: 185.13
A83: Proceeds from Disposal of Assets | B83: =B16 -> 118612 | C83: 92390 | D83: =D16 -> 501 | E83: =E16 -> 25482 | F83: =F16 -> 4240 | G83: =G16 -> 325 | H83: =H16 -> 296 | I83: 296 | J83: 266.255 | K83: 195.96365 | L83: 201.7369538 | M83: 207.6808165 | N83: 213.8557649 | O83: 220.2144363 | P83: 226.7623002 | Q83: 233.5049894 | R83: 240.4483043 | S83: 247.5982183 | T83: 254.9608824 | U83: =U16 -> 262.5426312 | V83: =V16 -> 270.3499878 | Y83: 266.255 | Z83: 0
A84: New borrowings | B84: =B182 -> 30000 | C84: =C182 -> 0 | D84: =D182 -> 3300 | E84: ='9 Loan Schedules'!I66 -> 25000 | F84: ='9 Loan Schedules'!J66 -> 0 | G84: ='9 Loan Schedules'!K66 -> 2000 | H84: ='9 Loan Schedules'!L66 -> 0 | I84: ='9 Loan Schedules'!M66 -> 0 | J84: ='9 Loan Schedules'!N66 -> 0 | K84: ='9 Loan Schedules'!O66 -> 0 | L84: ='9 Loan Schedules'!P66 -> 0 | M84: ='9 Loan Schedules'!Q66 -> 0 | N84: ='9 Loan Schedules'!R66 -> 0 | O84: ='9 Loan Schedules'!S66 -> 0 | P84: ='9 Loan Schedules'!T66 -> 0 | Q84: ='9 Loan Schedules'!U66 -> 0 | R84: ='9 Loan Schedules'!V66 -> 0 | S84: ='9 Loan Schedules'!W66 -> 0 | T84: ='9 Loan Schedules'!X66 -> 0 | U84: ='9 Loan Schedules'!Y66 -> 0 | V84: ='9 Loan Schedules'!Z66 -> 0 | Y84: 0 | Z84: 0
A85: Transfers from Reserves | B85: 40660 | C85: 79062 | D85: =47197+30000 -> 77197 | E85: 73564 | F85: 36504 | G85: 15779 | H85: 17982 | I85: 17982 | J85: =-GETPIVOTDATA("Sum of Year 3",'6 Pivot tables'!$A$5,"Account","I","CAP","O","OPERATING STATEMENT LINE ITEM","Transfers from Reserves") -> 25803.339 | K85: =-GETPIVOTDATA("Sum of Year 4",'6 Pivot tables'!$A$5,"Account","I","CAP","O","OPERATING STATEMENT LINE ITEM","Transfers from Reserves") -> 10469.87736 | L85: =-GETPIVOTDATA("Sum of Year 5",'6 Pivot tables'!$A$5,"Account","I","CAP","O","OPERATING STATEMENT LINE ITEM","Transfers from Reserves") -> 6339.844078 | M85: =-GETPIVOTDATA("Sum of Year 6",'6 Pivot tables'!$A$5,"Account","I","CAP","O","OPERATING STATEMENT LINE ITEM","Transfers from Reserves") -> 6297.176845 | N85: =-GETPIVOTDATA("Sum of Year 7",'6 Pivot tables'!$A$5,"Account","I","CAP","O","OPERATING STATEMENT LINE ITEM","Transfers from Reserves") -> 6680.230065 | O85: =-GETPIVOTDATA("Sum of Year 8",'6 Pivot tables'!$A$5,"Account","I","CAP","O","OPERATING STATEMENT LINE ITEM","Transfers from Reserves") -> 6839.386964 | P85: =-GETPIVOTDATA("Sum of Year 9",'6 Pivot tables'!$A$5,"Account","I","CAP","O","OPERATING STATEMENT LINE ITEM","Transfers from Reserves") -> 7932.392287 | Q85: =-GETPIVOTDATA("Sum of Year 10",'6 Pivot tables'!$A$5,"Account","I","CAP","O","OPERATING STATEMENT LINE ITEM","Transfers from Reserves") -> 7101.579585 | R85: =-GETPIVOTDATA("Sum of Year 11",'6 Pivot tables'!$A$5,"Account","I","CAP","O","OPERATING STATEMENT LINE ITEM","Transfers from Reserves") -> 7275.712059 | S85: =-GETPIVOTDATA("Sum of Year 12",'6 Pivot tables'!$A$5,"Account","I","CAP","O","OPERATING STATEMENT LINE ITEM","Transfers from Reserves") -> 7190.348974 | T85: =-GETPIVOTDATA("Sum of Year 13",'6 Pivot tables'!$A$5,"Account","I","CAP","O","OPERATING STATEMENT LINE ITEM","Transfers from Reserves") -> 7364.517421 | U85: =-GETPIVOTDATA("Sum of Year 14",'6 Pivot tables'!$A$5,"Account","I","CAP","O","OPERATING STATEMENT LINE ITEM","Transfers from Reserves") -> 7543.7681 | V85: =-GETPIVOTDATA("Sum of Year 15",'6 Pivot tables'!$A$5,"Account","I","CAP","O","OPERATING STATEMENT LINE ITEM","Transfers from Reserves") -> 7728.25158 | Y85: 17086.009 | Z85: 8717.33
A86: Total Revenue | B86: =SUM(B77:B85) -> 263554 | C86: 254565 | D86: 171021 | E86: 216518 | F86: =SUM(F77:F85) -> 142641 | G86: =SUM(G77:G85) -> 128369 | H86: =SUM(H77:H85) -> 146637 | I86: 146637 | J86: 130424.662 | K86: 115639.532 | L86: 114739.0076 | M86: 118531.451 | N86: 122985.8424 | O86: 127356.164 | P86: 133072.6498 | Q86: 137073.0272 | R86: 142314.8898 | S86: 147852.6634 | T86: 153946.688 | U86: =SUM(U77:U85) -> 160374.2988 | V86: =SUM(V77:V85) -> 167161.5501 | Y86: 120450.862 | Z86: 9973.8
Z87: 0
A88: Expenses | Z88: 0
A89: Employee Costs | B89: =B22 -> 31045 | C89: =C22 -> 32222 | D89: 34268 | E89: 36305 | F89: =F22 -> 37173 | G89: =G22 -> 38340 | H89: 39129 | I89: 39129 | J89: =J22 -> 41317.292 | K89: 42360.92701 | L89: 43772.26788 | M89: 45742.42838 | N89: 47793.38433 | O89: 49935.47194 | P89: 51944.57769 | Q89: 54034.57967 | R89: =R22 -> 56210.24394 | S89: 58473.32751 | T89: =T22 -> 60827.33796 | U89: 63275.92345 | V89: 65822.87838 | Y89: 41262.469 | Z89: 54.823
A90: Materials and Contracts | B90: 23434 | C90: 24317 | D90: 24771 | E90: 26811 | F90: =F23 -> 29581 | G90: 29555 | H90: 28971 | I90: 28971 | J90: =J23 -> 35758.486 | K90: 32244.95391 | L90: 32903.41615 | M90: 34403.30048 | N90: 34317.27207 | O90: 35688.04592 | P90: 37058.84495 | Q90: 38495.66872 | R90: 40002.38646 | S90: 41583.12241 | T90: 43242.27358 | U90: 44984.5288 | V90: 46814.88903 | Y90: 31509.369 | Z90: 4249.117
A91: Borrowing Costs | B91: 760 | C91: 2289 | D91: 1938 | E91: 3472 | F91: =F24 -> 3682 | G91: 3258 | H91: 3113 | I91: 3113 | J91: =J24 -> 2289.083 | K91: 2086.689446 | L91: 1981.59785 | M91: 1920.480035 | N91: 1882.410631 | O91: 1840.361699 | P91: 1730.241074 | Q91: 1717.77025 | R91: 1703.309234 | S91: 1686.70441 | T91: 1681.228016 | U91: 1673.960495 | V91: 1664.750389 | Y91: 2289.083 | Z91: 0
A92: Other expenses | B92: =B26 -> 8943 | C92: 9555 | D92: 9821 | E92: 10694 | F92: =F26 -> 15022 | G92: =G26 -> 12465 | H92: =H26 -> 13300 | I92: 13300 | J92: =J26 -> 13528.624 | K92: 13872.90095 | L92: 14684.2916 | M92: 15407.90465 | N92: 16470.22358 | O92: 17635.21389 | P92: 19339.26111 | Q92: 20319.8875 | R92: =R26 -> 21866.32564 | S92: 23569.2671 | T92: 26022.01453 | U92: 27516.89483 | V92: 29803.01043 | Y92: 13527.714 | Z92: 0.91
A93: Interest and Investment losses | B93: =B29 -> 202 | C93: =C29 -> 0 | D93: =D29 -> 0 | E93: =E29 -> 0 | F93: =F29 -> 0 | G93: =G29 -> 0 | H93: =H29 -> 0 | I93: 0 | J93: 0 | K93: 0 | L93: 0 | M93: 0 | N93: 0 | O93: 0 | P93: 0 | Q93: 0 | R93: =R29 -> 0 | S93: 0 | T93: 0 | U93: 0 | V93: 0 | Y93: 0 | Z93: 0
A94: Debt Redemption | B94: =-B183 -> 515 | C94: =-C183 -> 726 | D94: =-D183 -> 756 | E94: =-E183 -> 1189 | F94: 4306 | G94: =-G183 -> 6382 | H94: =-H183 -> 3610 | I94: =-I183 -> 3610 | J94: =GETPIVOTDATA("Sum of Year 3",'6 Pivot tables'!$A$5,"Account","E","CAP","O","OPERATING STATEMENT LINE ITEM","Loan redemption") -> 3695.275 | K94: =GETPIVOTDATA("Sum of Year 4",'6 Pivot tables'!$A$5,"Account","E","CAP","O","OPERATING STATEMENT LINE ITEM","Loan redemption") -> 4790.336819 | L94: =GETPIVOTDATA("Sum of Year 5",'6 Pivot tables'!$A$5,"Account","E","CAP","O","OPERATING STATEMENT LINE ITEM","Loan redemption") -> 1887.513471 | M94: =GETPIVOTDATA("Sum of Year 6",'6 Pivot tables'!$A$5,"Account","E","CAP","O","OPERATING STATEMENT LINE ITEM","Loan redemption") -> 1532.015352 | N94: =GETPIVOTDATA("Sum of Year 7",'6 Pivot tables'!$A$5,"Account","E","CAP","O","OPERATING STATEMENT LINE ITEM","Loan redemption") -> 1617.197474 | O94: =GETPIVOTDATA("Sum of Year 8",'6 Pivot tables'!$A$5,"Account","E","CAP","O","OPERATING STATEMENT LINE ITEM","Loan redemption") -> 1703.436942 | P94: =GETPIVOTDATA("Sum of Year 9",'6 Pivot tables'!$A$5,"Account","E","CAP","O","OPERATING STATEMENT LINE ITEM","Loan redemption") -> 2296.551966 | Q94: =GETPIVOTDATA("Sum of Year 10",'6 Pivot tables'!$A$5,"Account","E","CAP","O","OPERATING STATEMENT LINE ITEM","Loan redemption") -> 1355.450473 | R94: =GETPIVOTDATA("Sum of Year 11",'6 Pivot tables'!$A$5,"Account","E","CAP","O","OPERATING STATEMENT LINE ITEM","Loan redemption") -> 1417.499862 | S94: =GETPIVOTDATA("Sum of Year 12",'6 Pivot tables'!$A$5,"Account","E","CAP","O","OPERATING STATEMENT LINE ITEM","Loan redemption") -> 1221.983525 | T94: =GETPIVOTDATA("Sum of Year 13",'6 Pivot tables'!$A$5,"Account","E","CAP","O","OPERATING STATEMENT LINE ITEM","Loan redemption") -> 1277.457455 | U94: =GETPIVOTDATA("Sum of Year 14",'6 Pivot tables'!$A$5,"Account","E","CAP","O","OPERATING STATEMENT LINE ITEM","Loan redemption") -> 1335.972449 | V94: =GETPIVOTDATA("Sum of Year 15",'6 Pivot tables'!$A$5,"Account","E","CAP","O","OPERATING STATEMENT LINE ITEM","Loan redemption") -> 1397.711215 | Y94: 3695.275 | Z94: 0
A95: Transfers to reserves | B95: 124185 | C95: 124185 | D95: 19485 | E95: 54492 | F95: 43714 | G95: 22809 | H95: 31303 | I95: 31303 | J95: =GETPIVOTDATA("Sum of Year 3",'6 Pivot tables'!$A$5,"Account","E","CAP","O","OPERATING STATEMENT LINE ITEM","Transfers to Reserves") -> 12627.729 | K95: =GETPIVOTDATA("Sum of Year 4",'6 Pivot tables'!$A$5,"Account","E","CAP","O","OPERATING STATEMENT LINE ITEM","Transfers to Reserves") -> 9808.12362 | L95: =GETPIVOTDATA("Sum of Year 5",'6 Pivot tables'!$A$5,"Account","E","CAP","O","OPERATING STATEMENT LINE ITEM","Transfers to Reserves") -> 9622.629079 | M95: =GETPIVOTDATA("Sum of Year 6",'6 Pivot tables'!$A$5,"Account","E","CAP","O","OPERATING STATEMENT LINE ITEM","Transfers to Reserves") -> 10349.41676 | N95: =GETPIVOTDATA("Sum of Year 7",'6 Pivot tables'!$A$5,"Account","E","CAP","O","OPERATING STATEMENT LINE ITEM","Transfers to Reserves") -> 10677.58766 | O95: =GETPIVOTDATA("Sum of Year 8",'6 Pivot tables'!$A$5,"Account","E","CAP","O","OPERATING STATEMENT LINE ITEM","Transfers to Reserves") -> 11023.40024 | P95: =GETPIVOTDATA("Sum of Year 9",'6 Pivot tables'!$A$5,"Account","E","CAP","O","OPERATING STATEMENT LINE ITEM","Transfers to Reserves") -> 10781.07113 | Q95: =GETPIVOTDATA("Sum of Year 10",'6 Pivot tables'!$A$5,"Account","E","CAP","O","OPERATING STATEMENT LINE ITEM","Transfers to Reserves") -> 11126.07364 | R95: =GETPIVOTDATA("Sum of Year 11",'6 Pivot tables'!$A$5,"Account","E","CAP","O","OPERATING STATEMENT LINE ITEM","Transfers to Reserves") -> 11431.04486 | S95: =GETPIVOTDATA("Sum of Year 12",'6 Pivot tables'!$A$5,"Account","E","CAP","O","OPERATING STATEMENT LINE ITEM","Transfers to Reserves") -> 11746.33353 | T95: =GETPIVOTDATA("Sum of Year 13",'6 Pivot tables'!$A$5,"Account","E","CAP","O","OPERATING STATEMENT LINE ITEM","Transfers to Reserves") -> 12022.30038 | U95: =GETPIVOTDATA("Sum of Year 14",'6 Pivot tables'!$A$5,"Account","E","CAP","O","OPERATING STATEMENT LINE ITEM","Transfers to Reserves") -> 12359.31852 | V95: =GETPIVOTDATA("Sum of Year 15",'6 Pivot tables'!$A$5,"Account","E","CAP","O","OPERATING STATEMENT LINE ITEM","Transfers to Reserves") -> 12707.77376 | Y95: 11556.389 | Z95: 1071.34
A96: Capital Expenditure | B96: 22894 | C96: 22894 | D96: 82448 | E96: 62219 | F96: 20492 | G96: 11986 | H96: 23924 | I96: 23924 | J96: =GETPIVOTDATA("Sum of Year 3",'6 Pivot tables'!$A$5,"Account","E","CAP","C") -> 23607.045 | K96: =GETPIVOTDATA("Sum of Year 4",'6 Pivot tables'!$A$5,"Account","E","CAP","C") -> 10345.28703 | L96: =GETPIVOTDATA("Sum of Year 5",'6 Pivot tables'!$A$5,"Account","E","CAP","C") -> 9148.871441 | M96: =GETPIVOTDATA("Sum of Year 6",'6 Pivot tables'!$A$5,"Account","E","CAP","C") -> 8963.188584 | N96: =GETPIVOTDATA("Sum of Year 7",'6 Pivot tables'!$A$5,"Account","E","CAP","C") -> 10453.4445 | O96: =GETPIVOTDATA("Sum of Year 8",'6 Pivot tables'!$A$5,"Account","E","CAP","C") -> 10759.20004 | P96: =GETPIVOTDATA("Sum of Year 9",'6 Pivot tables'!$A$5,"Account","E","CAP","C") -> 11074.61681 | Q96: =GETPIVOTDATA("Sum of Year 10",'6 Pivot tables'!$A$5,"Account","E","CAP","C") -> 11399.99292 | R96: =GETPIVOTDATA("Sum of Year 11",'6 Pivot tables'!$A$5,"Account","E","CAP","C") -> 11735.63597 | S96: =GETPIVOTDATA("Sum of Year 12",'6 Pivot tables'!$A$5,"Account","E","CAP","C") -> 12081.86329 | T96: =GETPIVOTDATA("Sum of Year 13",'6 Pivot tables'!$A$5,"Account","E","CAP","C") -> 12439.00233 | U96: =GETPIVOTDATA("Sum of Year 14",'6 Pivot tables'!$A$5,"Account","E","CAP","C") -> 12807.3909 | V96: =GETPIVOTDATA("Sum of Year 15",'6 Pivot tables'!$A$5,"Account","E","CAP","C") -> 13204.25001 | Y96: 17189.665 | Z96: 6417.38
A97: Total Expenses | B97: =SUM(B89:B96) -> 211978 | C97: 216188 | D97: 173487 | E97: 195182 | F97: =SUM(F89:F96) -> 153970 | G97: =SUM(G89:G96) -> 124795 | H97: =SUM(H89:H96) -> 143350 | I97: 143350 | J97: 132823.534 | K97: =SUM(K89:K96) -> 115509.2188 | L97: 114000.5875 | M97: 118318.7342 | N97: 123211.5202 | O97: 128585.1307 | P97: 134225.1647 | Q97: 138449.4232 | R97: 144366.446 | S97: 150362.6018 | T97: 157511.6142 | U97: =SUM(U89:U96) -> 163953.9894 | V97: =SUM(V89:V96) -> 171415.2632 | Y97: 121029.964 | Z97: 11793.57
Z98: 0
A99: CASH BUDGET SURPLUS/(DEFICIT) | B99: =+B86-B97 -> 51576 | C99: 38377 | D99: =+D86-D97 -> -2466 | E99: 21336 | F99: -11329 | G99: 3574 | H99: 3287 | I99: =+I86-I97 -> 3287 | J99: =+J86-J97 -> -2398.872 | K99: =+K86-K97 -> 130.3132469 | L99: 738.4201748 | M99: =+M86-M97 -> 212.7167087 | N99: =+N86-N97 -> -225.6778165 | O99: -1228.966712 | P99: -1152.514927 | Q99: -1376.395943 | R99: -2051.556175 | S99: =+S86-S97 -> -2509.938405 | T99: =+T86-T97 -> -3564.92627 | U99: =+U86-U97 -> -3579.690686 | V99: =+V86-V97 -> -4253.71316 | Y99: -579.102 | Z99: =J99-Y99 -> -1819.77
A100: CASH BUDGET SURPLUS/(DEFICIT) AFTER ADJ 50% LSL ACCRUAL | C100: 0 | D100: 0 | E100: 0 | F100: 0 | G100: =G99+G66 -> 3574 | H100: =H99+H66 -> 3287 | I100: =I99+I66 -> 3287 | J100: =J99+J66 -> -1764.422 | K100: =K99+K66 -> 790.1412469 | L100: 1424.641295 | M100: =M99+M66 -> 926.3866735 | N100: 516.5389469 | O100: -457.0612781 | P100: -349.7332759 | Q100: -541.5030257 | R100: -1183.267541 | S100: -1606.918225 | T100: -2625.785284 | U100: -2602.98406 | V100: -3237.938269 | Y100: 55.348 | Z100: -1819.77
A101: Accumulated Adjusted Cash Position: | B101: ='Working Fund'!B53 -> 3409.1 | C101: ='Working Fund'!B49+'Working Fund'!B47 -> 34251 | D101: ='Working Fund'!C45 -> 2107 | E101: =D101+E100 -> 2107 | F101: =E101+F100 -> 2107 | G101: =F101+G100 -> 5681 | H101: =G101+H100 -> 8968 | I101: =G101+I100 -> 8968 | J101: =I101+J100 -> 7203.578 | Y101: 3217.969568
B103: =B3 -> Actual | C103: =C3 -> Actual | D103: =D3 -> Actual | E103: =E3 -> Actual | H103: =H3 -> Actual | I103: Actual | J103: Forecast | K103: Forecast | L103: Forecast | M103: Forecast | N103: Forecast | O103: Forecast | P103: Forecast | Q103: Forecast | R103: =R3 -> Forecast | S103: Forecast | T103: Forecast | U103: =U3 -> Forecast | V103: Forecast
A104: BALANCE SHEET | B104: =B4 -> 2007/08 | C104: =C4 -> 2008/09 | D104: =D4 -> 2009/10 | E104: =E4 -> 2010/11 | F104: =F4 -> Actual 2011/12 | G104: =G4 -> Actual 2012/13 | H104: ORI 2013/14 | I104: 2013/14 | J104: 2014/15 | K104: 2015/16 | L104: 2016/17 | M104: 2017/18 | N104: 2018/19 | O104: 2019/20 | P104: 2020/21 | Q104: 2021/22 | R104: 2022/23 | S104: 2023/24 | T104: 2024/25 | U104: 2025/26 | V104: 2026/27
B105: $'000's | C105: $'000's | D105: $'000's | E105: $'000's | F105: $'000's | G105: $'000's | H105: $'000's | I105: $'000's | J105: $'000's | K105: $'000's | L105: $'000's | M105: $'000's | N105: $'000's | O105: $'000's | P105: $'000's | Q105: $'000's | R105: $'000's | S105: $'000's | T105: $'000's | U105: $'000's | V105: $'000's
A107: Current Assets
A108: Cash and cash equivalents (Available) | B108: 6143 | C108: 7661 | D108: 7042 | E108: 11163 | F108: =F192 -> 9033 | G108: 22619 | H108: =H192 -> 6687.5 | I108: =I192 -> 6687.5 | J108: =J192 -> 10936.51659 | K108: 9711.878927 | L108: 11144.02252 | M108: 12385.9432 | N108: 13257.68147 | O108: 13220.08822 | P108: 13315.37911 | Q108: 13255.95084 | R108: 12592.14067 | S108: 11540.25557 | T108: 9510.655406 | U108: 7547.067924 | V108: 4996.136244
A109: Investments (Reserves) | B109: 146574 | C109: =74844+33706 -> 108550 | D109: ='3 Assumptions'!D154 -> 52617 | E109: ='3 Assumptions'!E154 -> 24309 | F109: ='3 Assumptions'!F154 -> 36427 | G109: ='3 Assumptions'!G154 -> 32605 | H109: ='3 Assumptions'!H154 -> 64748 | I109: ='3 Assumptions'!I154 -> 64748 | J109: ='3 Assumptions'!J154 -> 47358.39 | K109: ='3 Assumptions'!K154 -> 46696.63626 | L109: ='3 Assumptions'!L154 -> 49979.42126 | M109: ='3 Assumptions'!M154 -> 54031.66118 | N109: ='3 Assumptions'!N154 -> 58029.01877 | O109: ='3 Assumptions'!O154 -> 62213.03204 | P109: ='3 Assumptions'!P154 -> 65061.71089 | Q109: ='3 Assumptions'!Q154 -> 69086.20494 | R109: ='3 Assumptions'!R154 -> 73241.53773 | S109: ='3 Assumptions'!S154 -> 77797.52229 | T109: ='3 Assumptions'!T154 -> 82455.30525 | U109: ='3 Assumptions'!U154 -> 87270.85567 | V109: ='3 Assumptions'!V154 -> 92250.37785
A110: Receivables | B110: 5019 | C110: 4391 | D110: ='3 Assumptions'!D150 -> 6188 | E110: ='3 Assumptions'!E150 -> 29056 | F110: ='3 Assumptions'!F150 -> 6674 | G110: ='3 Assumptions'!G150 -> 6744 | H110: ='3 Assumptions'!H150 -> 4709.5 | I110: ='3 Assumptions'!I150 -> 4709.5 | J110: ='3 Assumptions'!J150 -> 3934.507545 | K110: ='3 Assumptions'!K150 -> 4016.551316 | L110: ='3 Assumptions'!L150 -> 4206.04439 | M110: ='3 Assumptions'!M150 -> 4360.165689 | N110: ='3 Assumptions'!N150 -> 4519.798532 | O110: ='3 Assumptions'!O150 -> 4685.884625 | P110: ='3 Assumptions'!P150 -> 4859.504284 | Q110: ='3 Assumptions'!Q150 -> 5039.410475 | R110: ='3 Assumptions'!R150 -> 5227.572456 | S110: ='3 Assumptions'!S150 -> 5428.193322 | T110: ='3 Assumptions'!T150 -> 5638.235375 | U110: ='3 Assumptions'!U150 -> 5858.329323 | V110: ='3 Assumptions'!V150 -> 6089.12184
A111: Inventories | B111: 31 | C111: 29 | D111: ='3 Assumptions'!D155 -> 25 | E111: ='3 Assumptions'!E155 -> 20 | F111: ='3 Assumptions'!F155 -> 27 | G111: ='3 Assumptions'!G155 -> 26 | H111: ='3 Assumptions'!H155 -> 28 | I111: ='3 Assumptions'!I155 -> 28 | J111: ='3 Assumptions'!J155 -> 28 | K111: ='3 Assumptions'!K155 -> 28 | L111: ='3 Assumptions'!L155 -> 28 | M111: ='3 Assumptions'!M155 -> 28 | N111: ='3 Assumptions'!N155 -> 28 | O111: ='3 Assumptions'!O155 -> 28 | P111: ='3 Assumptions'!P155 -> 28 | Q111: ='3 Assumptions'!Q155 -> 28 | R111: ='3 Assumptions'!R155 -> 28 | S111: ='3 Assumptions'!S155 -> 28 | T111: ='3 Assumptions'!T155 -> 28 | U111: ='3 Assumptions'!U155 -> 28 | V111: ='3 Assumptions'!V155 -> 28
A112: Other | B112: 246 | C112: 1165 | D112: ='3 Assumptions'!D156 -> 160 | E112: ='3 Assumptions'!E156 -> 397 | F112: ='3 Assumptions'!F156 -> 2157 | G112: ='3 Assumptions'!G156 -> 445 | H112: ='3 Assumptions'!H156 -> 391 | I112: ='3 Assumptions'!I156 -> 391 | J112: ='3 Assumptions'!J156 -> 391 | K112: ='3 Assumptions'!K156 -> 391 | L112: ='3 Assumptions'!L156 -> 391 | M112: ='3 Assumptions'!M156 -> 391 | N112: ='3 Assumptions'!N156 -> 391 | O112: ='3 Assumptions'!O156 -> 391 | P112: ='3 Assumptions'!P156 -> 391 | Q112: ='3 Assumptions'!Q156 -> 391 | R112: ='3 Assumptions'!R156 -> 391 | S112: ='3 Assumptions'!S156 -> 391 | T112: ='3 Assumptions'!T156 -> 391 | U112: ='3 Assumptions'!U156 -> 391 | V112: ='3 Assumptions'!V156 -> 391
A113: Non-current assets held for sale | B113: 8578 | C113: 8589 | D113: ='3 Assumptions'!D163 -> 8589 | E113: ='3 Assumptions'!E163-'3 Assumptions'!E164 -> 1525 | F113: ='3 Assumptions'!F163-'3 Assumptions'!F164 -> 0 | G113: ='3 Assumptions'!G163 -> 0 | H113: ='3 Assumptions'!H163 -> 0 | I113: ='3 Assumptions'!I163 -> 0 | J113: ='3 Assumptions'!G163 -> 0 | K113: ='3 Assumptions'!I163 -> 0 | L113: ='3 Assumptions'!J163 -> 0 | M113: ='3 Assumptions'!K163 -> 0 | N113: ='3 Assumptions'!L163 -> 0 | O113: ='3 Assumptions'!M163 -> 0 | P113: ='3 Assumptions'!N163 -> 0 | Q113: ='3 Assumptions'!O163 -> 0 | R113: ='3 Assumptions'!P163 -> 0 | S113: ='3 Assumptions'!Q163 -> 0 | T113: ='3 Assumptions'!R163 -> 0 | U113: ='3 Assumptions'!S163 -> 0 | V113: ='3 Assumptions'!T163 -> 0
A114: Total Current Assets | B114: =SUM(B108:B113) -> 166591 | C114: 130385 | D114: 74621 | E114: 66470 | F114: =SUM(F108:F113) -> 54318 | G114: =SUM(G108:G113) -> 62439 | H114: =SUM(H108:H113) -> 76564 | I114: 76564 | J114: 62648.41414 | K114: 60844.0665 | L114: 65748.48817 | M114: 71196.77006 | N114: 76225.49877 | O114: 80538.00489 | P114: 83655.59428 | Q114: 87800.56626 | R114: =SUM(R108:R113) -> 91480.25086 | S114: 95184.97118 | T114: 98023.19603 | U114: 101095.2529 | V114: 103754.6359
K115: =K116-K118 -> 0
A116: Non-Current Assets | D116: =C118+D96-D27-D25-D28+D36+D28 -> 2551173 | E116: =D118+E96-E27-E25-E28+E36+E28 -> 2672622 | F116: =E118+F96-F27-F25-F28+F36+F28 -> 2691465 | G116: =F118+G96-G27-G25-G28+G36 -> 2742704.15 | H116: =G118+H96-H27-H25-H28+H36 -> 2754522 | I116: =G118+I96-I27-I25-I28+I36 -> 2754522 | J116: =I118+J96-J27-J25-J28+J36 -> 2765727.639 | K116: =J118+K96-K27-K25-K28+K36 -> 2763220.476 | L116: 2759397.043 | M116: 2755292.165 | N116: =M118+N96-N27-N25-N28+N36 -> 2752580.827 | O116: =N118+O96-O27-O25-O28+O36+O28 -> 2750052.419 | P116: =O118+P96-P27-P25-P28+P36+P28 -> 2747713.115 | Q116: =P118+Q96-Q27-Q25-Q28+Q36+Q28 -> 2745569.28 | R116: =Q118+R96-R27-R25-R28+R36+R28 -> 2743627.475 | S116: =R118+S96-S27-S25-S28+S36+S28 -> 2741894.464 | T116: =S118+T96-T27-T25-T28+T36+T28 -> 2740377.221 | U116: =T118+U96-U27-U25-U28+U36+U28 -> 2739082.937 | V116: =U118+V96-V27-V25-V28+V36+V28 -> 2738035.897
A117: Receivables | B117: 42 | C117: 42 | D117: ='3 Assumptions'!D170 -> 42 | E117: ='3 Assumptions'!E170 -> 42 | F117: ='3 Assumptions'!F170 -> 42 | G117: ='3 Assumptions'!G170 -> 42 | H117: ='3 Assumptions'!H170 -> 41.4 | I117: ='3 Assumptions'!I170 -> 41.4 | J117: ='3 Assumptions'!J170 -> 41.4 | K117: ='3 Assumptions'!K170 -> 41.4 | L117: ='3 Assumptions'!L170 -> 41.4 | M117: ='3 Assumptions'!M170 -> 41.4 | N117: ='3 Assumptions'!N170 -> 41.4 | O117: ='3 Assumptions'!O170 -> 41.4 | P117: ='3 Assumptions'!P170 -> 41.4 | Q117: ='3 Assumptions'!Q170 -> 41.4 | R117: ='3 Assumptions'!R170 -> 41.4 | S117: ='3 Assumptions'!S170 -> 41.4 | T117: ='3 Assumptions'!T170 -> 41.4 | U117: ='3 Assumptions'!U170 -> 41.4 | V117: ='3 Assumptions'!V170 -> 41.4
A118: Infrastructure, Property, Plant & Equipment | B118: 2280955 | C118: 2330882 | D118: 2542474 | E118: 2671566 | F118: ='7 Capex + Depreciation'!C90 -> 2663219.15 | G118: ='7 Capex + Depreciation'!D90 -> 2726548 | H118: ='7 Capex + Depreciation'!E90 -> 2754521.6 | I118: ='7 Capex + Depreciation'!F90 -> 2754521.6 | J118: ='7 Capex + Depreciation'!G90 -> 2765727.61 | K118: ='7 Capex + Depreciation'!H90 -> 2763220.476 | L118: ='7 Capex + Depreciation'!I90 -> 2759397.043 | M118: ='7 Capex + Depreciation'!J90 -> 2755292.165 | N118: ='7 Capex + Depreciation'!K90 -> 2752580.827 | O118: ='7 Capex + Depreciation'!L90 -> 2750052.419 | P118: ='7 Capex + Depreciation'!M90 -> 2747713.115 | Q118: ='7 Capex + Depreciation'!N90 -> 2745569.28 | R118: ='7 Capex + Depreciation'!O90 -> 2743627.475 | S118: ='7 Capex + Depreciation'!P90 -> 2741894.464 | T118: ='7 Capex + Depreciation'!Q90 -> 2740377.221 | U118: ='7 Capex + Depreciation'!R90 -> 2739082.937 | V118: ='7 Capex + Depreciation'!S90 -> 2738035.897
A119: Investments accounted for using the equity method | B119: 85 | C119: 68 | D119: ='3 Assumptions'!D173 -> 43 | E119: ='3 Assumptions'!E173 -> 52 | F119: ='3 Assumptions'!F173 -> 72 | G119: ='3 Assumptions'!G173 -> 64 | H119: ='3 Assumptions'!H173 -> 61 | I119: ='3 Assumptions'!I173 -> 61 | J119: ='3 Assumptions'!J173 -> 56 | K119: ='3 Assumptions'!K173 -> 53 | L119: ='3 Assumptions'!L173 -> 50 | M119: ='3 Assumptions'!M173 -> 47 | N119: ='3 Assumptions'!N173 -> 44 | O119: ='3 Assumptions'!O173 -> 41 | P119: ='3 Assumptions'!P173 -> 38 | Q119: ='3 Assumptions'!Q173 -> 35 | R119: ='3 Assumptions'!R173 -> 32 | S119: ='3 Assumptions'!S173 -> 29 | T119: ='3 Assumptions'!T173 -> 26 | U119: ='3 Assumptions'!U173 -> 23 | V119: ='3 Assumptions'!V173 -> 20
A120: Investments Property | D120: 8700 | E120: 8150 | F120: 41960 | G120: ='7 Capex + Depreciation'!D187 -> 61940 | H120: ='7 Capex + Depreciation'!E187 -> 64904 | I120: ='7 Capex + Depreciation'!F187 -> 64904 | J120: ='7 Capex + Depreciation'!G187 -> 64904 | K120: ='7 Capex + Depreciation'!H187 -> 64904 | L120: ='7 Capex + Depreciation'!I187 -> 64904 | M120: ='7 Capex + Depreciation'!J187 -> 64904 | N120: ='7 Capex + Depreciation'!K187 -> 64904 | O120: ='7 Capex + Depreciation'!L187 -> 64904 | P120: ='7 Capex + Depreciation'!M187 -> 64904 | Q120: ='7 Capex + Depreciation'!N187 -> 64904 | R120: ='7 Capex + Depreciation'!O187 -> 64904 | S120: ='7 Capex + Depreciation'!P187 -> 64904 | T120: ='7 Capex + Depreciation'!Q187 -> 64904 | U120: ='7 Capex + Depreciation'!R187 -> 64904 | V120: ='7 Capex + Depreciation'!S187 -> 64904
A121: Total Non-Current Assets | B121: =SUM(B117:B119) -> 2281082 | C121: =SUM(C117:C119) -> 2330992 | D121: =SUM(D117:D120) -> 2551259 | E121: =SUM(E117:E120) -> 2679810 | F121: =SUM(F117:F120) -> 2705293.15 | G121: =SUM(G117:G120) -> 2788594 | H121: =SUM(H117:H120) -> 2819528 | I121: 2819528 | J121: 2830729.01 | K121: =SUM(K117:K120) -> 2828218.876 | L121: 2824392.443 | M121: 2820284.565 | N121: 2817570.227 | O121: 2815038.819 | P121: 2812696.515 | Q121: 2810549.68 | R121: 2808604.875 | S121: 2806868.864 | T121: 2805348.621 | U121: 2804051.337 | V121: 2803001.297
A123: TOTAL ASSETS | B123: =+B114+B121 -> 2447673 | C123: =+C114+C121 -> 2461377 | D123: 2625880 | E123: =+E114+E121 -> 2746280 | F123: =+F114+F121 -> 2759611.15 | G123: =+G114+G121 -> 2851033 | H123: 2896092 | I123: 2896092 | J123: 2893377.425 | K123: 2889062.943 | L123: 2890140.931 | M123: 2891481.335 | N123: 2893795.726 | O123: 2895576.824 | P123: 2896352.109 | Q123: 2898350.246 | R123: =+R114+R121 -> 2900085.126 | S123: 2902053.835 | T123: 2903371.817 | U123: 2905146.59 | V123: 2906755.933
A125: Current Liabilities
A126: Payables | B126: 14510 | C126: 15742 | D126: ='3 Assumptions'!D178+'3 Assumptions'!D160 -> 19466 | E126: ='3 Assumptions'!E178+'3 Assumptions'!E160 -> 14294 | F126: ='3 Assumptions'!F178+'3 Assumptions'!F160 -> 12072 | G126: ='3 Assumptions'!G178+'3 Assumptions'!G160 -> 8489 | H126: ='3 Assumptions'!H178+'3 Assumptions'!H160 -> 13494 | I126: ='3 Assumptions'!I178+'3 Assumptions'!I160 -> 13494 | J126: ='3 Assumptions'!J178+'3 Assumptions'!J160 -> 14315.34403 | K126: ='3 Assumptions'!K178+'3 Assumptions'!K160 -> 12167.54545 | L126: ='3 Assumptions'!L178+'3 Assumptions'!L160 -> 12130.76558 | M126: ='3 Assumptions'!M178+'3 Assumptions'!M160 -> 12334.93161 | N126: ='3 Assumptions'!N178+'3 Assumptions'!N160 -> 12550.96763 | O126: ='3 Assumptions'!O178+'3 Assumptions'!O160 -> 12802.57032 | P126: ='3 Assumptions'!P178+'3 Assumptions'!P160 -> 13055.60052 | Q126: ='3 Assumptions'!Q178+'3 Assumptions'!Q160 -> 13318.67776 | R126: ='3 Assumptions'!R178+'3 Assumptions'!R160 -> 13592.34587 | S126: ='3 Assumptions'!S178+'3 Assumptions'!S160 -> 13877.18311 | T126: ='3 Assumptions'!T178+'3 Assumptions'!T160 -> 14173.80451 | U126: ='3 Assumptions'!U178+'3 Assumptions'!U160 -> 14482.8644 | V126: ='3 Assumptions'!V178+'3 Assumptions'!V160 -> 14807.25248
A127: Borrowings | B127: 727 | C127: 749 | D127: ='3 Assumptions'!D187 -> 1015 | E127: ='3 Assumptions'!E187 -> 1307 | F127: ='3 Assumptions'!F187 -> 1381 | G127: ='3 Assumptions'!G187 -> 3610 | H127: ='3 Assumptions'!H187 -> 3695 | I127: ='3 Assumptions'!I187 -> 3695 | J127: ='3 Assumptions'!J187 -> 3696.95755 | K127: ='3 Assumptions'!K187 -> 4790.336819 | L127: ='3 Assumptions'!L187 -> 1887.513471 | M127: ='3 Assumptions'!M187 -> 1532.015352 | N127: ='3 Assumptions'!N187 -> 1617.197474 | O127: ='3 Assumptions'!O187 -> 1703.436942 | P127: ='3 Assumptions'!P187 -> 2296.551966 | Q127: ='3 Assumptions'!Q187 -> 1355.450473 | R127: ='3 Assumptions'!R187 -> 1417.499862 | S127: ='3 Assumptions'!S187 -> 1221.983525 | T127: ='3 Assumptions'!T187 -> 1277.457455 | U127: ='3 Assumptions'!U187 -> 1335.972449 | V127: ='3 Assumptions'!V187 -> 1397.711215
A128: Provisions | B128: 7814 | C128: 8572 | D128: ='3 Assumptions'!D186 -> 9211 | E128: ='3 Assumptions'!E186 -> 9864 | F128: ='3 Assumptions'!F186 -> 10379 | G128: ='3 Assumptions'!G186 -> 11170 | H128: ='3 Assumptions'!H186 -> 10868 | I128: ='3 Assumptions'!I186 -> 10868 | J128: ='3 Assumptions'!J186 -> 11667.94972 | K128: ='3 Assumptions'!K186 -> 12502.03841 | L128: ='3 Assumptions'!L186 -> 13379.38858 | M128: ='3 Assumptions'!M186 -> 14313.59034 | N128: ='3 Assumptions'!N186 -> 15307.2048 | O128: ='3 Assumptions'!O186 -> 16363.07933 | P128: ='3 Assumptions'!P186 -> 17478.92037 | Q128: ='3 Assumptions'!Q186 -> 18657.44245 | R128: ='3 Assumptions'!R186 -> 19901.52842 | S128: ='3 Assumptions'!S186 -> 21214.16399 | T128: ='3 Assumptions'!T186 -> 22598.48289 | U128: ='3 Assumptions'!U186 -> 24057.77502 | V128: ='3 Assumptions'!V186 -> 25595.49521
A129: Total Current Liabilities | B129: =SUM(B126:B128) -> 23051 | C129: 25063 | D129: 29692 | E129: 25465 | F129: =SUM(F126:F128) -> 23832 | G129: =SUM(G126:G128) -> 23269 | H129: 28057 | I129: 28057 | J129: 29680.2513 | K129: 29459.92068 | L129: 27397.66764 | M129: 28180.53731 | N129: 29475.3699 | O129: 30869.08659 | P129: 32831.07285 | Q129: 33331.57068 | R129: 34911.37415 | S129: 36313.33063 | T129: 38049.74485 | U129: =SUM(U126:U128) -> 39876.61187 | V129: =SUM(V126:V128) -> 41800.45891
A131: Non-Current Liabilities
A132: Payables | B132: 1987 | C132: 2230 | D132: ='3 Assumptions'!D191 -> 1468 | E132: ='3 Assumptions'!E191 -> 1365 | F132: ='3 Assumptions'!F191 -> 1317 | G132: ='3 Assumptions'!G191 -> 4901 | H132: ='3 Assumptions'!H191 -> 0 | I132: ='3 Assumptions'!I191 -> 0 | J132: ='3 Assumptions'!J191 -> 0 | K132: ='3 Assumptions'!K191 -> 0 | L132: ='3 Assumptions'!L191 -> 0 | M132: ='3 Assumptions'!M191 -> 0 | N132: ='3 Assumptions'!N191 -> 0 | O132: ='3 Assumptions'!O191 -> 0 | P132: ='3 Assumptions'!P191 -> 0 | Q132: ='3 Assumptions'!Q191 -> 0 | R132: ='3 Assumptions'!R191 -> 0 | S132: ='3 Assumptions'!S191 -> 0 | T132: ='3 Assumptions'!T191 -> 0 | U132: ='3 Assumptions'!U191 -> 0 | V132: ='3 Assumptions'!V191 -> 0
A133: Borrowings | B133: 33728 | C133: 34090 | D133: ='3 Assumptions'!D198 -> 37120 | E133: ='3 Assumptions'!E198 -> 61382 | F133: ='3 Assumptions'!F198 -> 57728 | G133: ='3 Assumptions'!G198 -> 51848 | H133: ='3 Assumptions'!H198 -> 48876 | I133: ='3 Assumptions'!I198 -> 48876 | J133: ='3 Assumptions'!J198 -> 45177.0849 | K133: ='3 Assumptions'!K198 -> 39293.36881 | L133: ='3 Assumptions'!L198 -> 40308.67869 | M133: ='3 Assumptions'!M198 -> 39132.16146 | N133: ='3 Assumptions'!N198 -> 37429.78186 | O133: ='3 Assumptions'!O198 -> 35640.10545 | P133: ='3 Assumptions'!P198 -> 32750.43846 | Q133: ='3 Assumptions'!Q198 -> 32336.08948 | R133: ='3 Assumptions'!R198 -> 30856.54023 | S133: ='3 Assumptions'!S198 -> 29830.07304 | T133: ='3 Assumptions'!T198 -> 28497.14166 | U133: ='3 Assumptions'!U198 -> 27102.65421 | V133: ='3 Assumptions'!V198 -> 25643.20423
A134: Provisions | B134: 369 | C134: 394 | D134: ='3 Assumptions'!D196 -> 456 | E134: ='3 Assumptions'!E196 -> 434 | F134: ='3 Assumptions'!F196 -> 615 | G134: ='3 Assumptions'!G196 -> 433 | H134: ='3 Assumptions'!H196 -> 388 | I134: ='3 Assumptions'!I196 -> 388 | J134: ='3 Assumptions'!J196 -> 427.2849383 | K134: ='3 Assumptions'!K196 -> 468.0876895 | L134: ='3 Assumptions'!L196 -> 510.7338767 | M134: ='3 Assumptions'!M196 -> 555.6913462 | N134: ='3 Assumptions'!N196 -> 603.08981 | O134: ='3 Assumptions'!O196 -> 653.0721397 | P134: ='3 Assumptions'!P196 -> 705.6263812 | Q134: ='3 Assumptions'!Q196 -> 760.9009309 | R134: ='3 Assumptions'!R196 -> 819.0548315 | S134: ='3 Assumptions'!S196 -> 880.2561879 | T134: ='3 Assumptions'!T196 -> 944.6840489 | U134: ='3 Assumptions'!U196 -> 1012.529182 | V134: ='3 Assumptions'!V196 -> 1083.994906
A135: Total Non-Current Liabilities | B135: =SUM(B132:B134) -> 36084 | C135: 36714 | D135: 39044 | E135: =SUM(E132:E134) -> 63181 | F135: =SUM(F132:F134) -> 59660 | G135: =SUM(G132:G134) -> 57182 | H135: =SUM(H132:H134) -> 49264 | I135: 49264 | J135: 45604.36984 | K135: 39761.4565 | L135: 40819.41257 | M135: 39687.8528 | N135: 38032.87167 | O135: 36293.17759 | P135: 33456.06484 | Q135: 33096.99041 | R135: 31675.59506 | S135: 30710.32923 | T135: 29441.82571 | U135: 28115.18339 | V135: 26727.19914
A137: TOTAL LIABILITIES | B137: =+B135+B129 -> 59135 | C137: =+C135+C129 -> 61777 | D137: =+D135+D129 -> 68736 | E137: =+E135+E129 -> 88646 | F137: =+F135+F129 -> 83492 | G137: =+G135+G129 -> 80451 | H137: 77321 | I137: 77321 | J137: 75284.62114 | K137: 69221.37718 | L137: 68217.0802 | M137: 67868.39011 | N137: 67508.24157 | O137: 67162.26418 | P137: 66287.13769 | Q137: 66428.56109 | R137: 66586.96921 | S137: 67023.65986 | T137: 67491.57056 | U137: 67991.79526 | V137: 68527.65804
A139: NET ASSETS | B139: =+B123-B137 -> 2388538 | C139: =+C123-C137 -> 2399600 | D139: =+D123-D137 -> 2557144 | E139: =+E123-E137 -> 2657634 | F139: =+F123-F137 -> 2676119.15 | G139: =+G123-G137 -> 2770582 | H139: 2818771 | I139: 2818771 | J139: 2818092.803 | K139: 2819841.566 | L139: 2821923.851 | M139: 2823612.944 | N139: 2826287.484 | O139: 2828414.56 | P139: 2830064.972 | Q139: 2831921.685 | R139: 2833498.156 | S139: =+S123-S137 -> 2835030.175 | T139: 2835880.247 | U139: 2837154.794 | V139: 2838228.275
A141: EQUITY
A142: Accumulated Surplus | B142: =2200455-122639 -> 2077816 | C142: =2211517-C144 -> 2131760 | D142: =+C142+D34+D36-D144+C144-D143+C143 -> 2300096 | E142: =+D142+E34+E36-E144+D144-E143+D143 -> 2348425 | F142: =+E142+F34+F36-F144+E144-F143+E143 -> 2347748 | G142: =+F142+G34+G36-G144+F144-G143+F143 -> 2355785 | H142: =+G142+H34+H36-H144+G144-H143+G143 -> 2390653 | I142: =+G142+I34+I36-I144+G144-I143+G143 -> 2390653 | J142: =+I142+J34-J144+I144 -> 2403295.832 | K142: =+J142+K34-K144+J144 -> 2391723.595 | L142: =+K142+L34-L144+K144 -> 2406981.49 | M142: 2409332.337 | N142: 2408724.092 | O142: 2406798.928 | P142: 2404451.982 | Q142: 2402124.682 | R142: 2400852.475 | S142: 2398359.999 | T142: 2395054.738 | U142: =+T142+U34-U144+T144 -> 2391773.301 | V142: =+U142+V34-V144+U144 -> 2388188.999
A143: Asset Revaluation Reserve | B143: 188083 | C143: 188083 | D143: ='3 Assumptions'!D204 -> 205003 | E143: ='3 Assumptions'!E204 -> 276236 | F143: ='3 Assumptions'!F204 -> 288188 | G143: ='3 Assumptions'!G204 -> 367584 | H143: ='3 Assumptions'!H204 -> 367584 | I143: ='3 Assumptions'!I204 -> 367584 | J143: ='3 Assumptions'!J204 -> 367584 | K143: ='3 Assumptions'!K204 -> 367584 | L143: ='3 Assumptions'!L204 -> 367584 | M143: ='3 Assumptions'!M204 -> 367584 | N143: ='3 Assumptions'!N204 -> 367584 | O143: ='3 Assumptions'!O204 -> 367584 | P143: ='3 Assumptions'!P204 -> 367584 | Q143: ='3 Assumptions'!Q204 -> 367584 | R143: ='3 Assumptions'!R204 -> 367584 | S143: ='3 Assumptions'!S204 -> 367584 | T143: ='3 Assumptions'!T204 -> 367584 | U143: ='3 Assumptions'!U204 -> 367584 | V143: ='3 Assumptions'!V204 -> 367584
A144: Other Reserves | B144: 122639 | C144: ='3 Assumptions'!C206 -> 79757 | D144: ='3 Assumptions'!D206 -> 52045 | E144: ='3 Assumptions'!E206 -> 32973 | F144: ='3 Assumptions'!F206 -> 40183 | G144: ='3 Assumptions'!G206 -> 47213 | H144: ='3 Assumptions'!H206 -> 60534 | I144: ='3 Assumptions'!I206 -> 60534 | J144: ='3 Assumptions'!G206 -> 47213 | K144: ='3 Assumptions'!I206 -> 60534 | L144: ='3 Assumptions'!J206 -> 47358.39 | M144: ='3 Assumptions'!K206 -> 46696.63626 | N144: ='3 Assumptions'!L206 -> 49979.42126 | O144: ='3 Assumptions'!M206 -> 54031.66118 | P144: ='3 Assumptions'!N206 -> 58029.01877 | Q144: ='3 Assumptions'!O206 -> 62213.03204 | R144: ='3 Assumptions'!P206 -> 65061.71089 | S144: ='3 Assumptions'!Q206 -> 69086.20494 | T144: ='3 Assumptions'!R206 -> 73241.53773 | U144: ='3 Assumptions'!S206 -> 77797.52229 | V144: ='3 Assumptions'!T206 -> 82455.30525
A145: TOTAL EQUITY | B145: =SUM(B142:B144) -> 2388538 | C145: 2399600 | D145: 2557144 | E145: 2657634 | F145: =SUM(F142:F144) -> 2676119 | G145: =SUM(G142:G144) -> 2770582 | H145: =SUM(H142:H144) -> 2818771 | I145: 2818771 | J145: 2818092.832 | K145: 2819841.595 | L145: =SUM(L142:L144) -> 2821923.88 | M145: 2823612.973 | N145: 2826287.513 | O145: 2828414.589 | P145: 2830065.001 | Q145: 2831921.714 | R145: =SUM(R142:R144) -> 2833498.185 | S145: 2835030.204 | T145: 2835880.276 | U145: 2837154.823 | V145: 2838228.304
A146: check totals | B146: =+B139-B145 -> 0 | C146: =+C139-C145 -> 0 | D146: 0 | E146: =+E139-E145 -> 0 | F146: =+F139-F145 -> 0.1499999999 | G146: =+G139-G145 -> 0 | H146: =+H139-H145 -> 0 | I146: =+I139-I145 -> 0 | J146: -0.02900000103 | K146: -0.02900000103 | L146: -0.02899999917 | M146: -0.02900000149 | N146: -0.0290000001 | O146: -0.02900000056 | P146: -0.02900000056 | Q146: -0.02900000056 | R146: -0.0290000001 | S146: -0.0290000001 | T146: -0.02900000103 | U146: =+U139-U145 -> -0.02900000056 | V146: =+V139-V145 -> -0.0290000001
B149: =B3 -> Actual | C149: =C3 -> Actual | D149: =D3 -> Actual | E149: =E3 -> Actual | F149: =F3 -> 0 | H149: =H3 -> Actual | I149: Actual | J149: Forecast | K149: Forecast | L149: Forecast | M149: Forecast | N149: Forecast | O149: Forecast | P149: Forecast | Q149: Forecast | R149: =R3 -> Forecast | S149: Forecast | T149: Forecast | U149: =U3 -> Forecast | V149: Forecast
A150: CASH FLOW STATEMENT | B150: =B4 -> 2007/08 | C150: =C4 -> 2008/09 | D150: =D4 -> 2009/10 | E150: =E4 -> 2010/11 | F150: =F4 -> Actual 2011/12 | G150: =G4 -> Actual 2012/13 | H150: ORI 2013/14 | I150: 2013/14 | J150: 2014/15 | K150: 2015/16 | L150: 2016/17 | M150: 2017/18 | N150: 2018/19 | O150: 2019/20 | P150: 2020/21 | Q150: 2021/22 | R150: 2022/23 | S150: 2023/24 | T150: 2024/25 | U150: 2025/26 | V150: 2026/27
B151: $'000's | C151: $'000's | D151: $'000's | E151: $'000's | F151: $'000's | G151: $'000's | H151: $'000's | I151: $'000's | J151: $'000's | K151: $'000's | L151: $'000's | M151: $'000's | N151: $'000's | O151: $'000's | P151: $'000's | Q151: $'000's | R151: $'000's | S151: $'000's | T151: $'000's | U151: $'000's | V151: $'000's
A153: Cash flow from operating activities
A155: Receipts:
A156: Rates and Annual Charges | B156: 39712 | C156: 43017 | D156: 45869 | E156: 47251 | F156: 49627 | G156: 52532 | H156: =+H8+'3 Assumptions'!G146-'3 Assumptions'!H146 -> 54736.5 | I156: =+I8+'3 Assumptions'!G146-'3 Assumptions'!I146 -> 54736.5 | J156: =+J8+'3 Assumptions'!I146-'3 Assumptions'!J146 -> 56234.06099 | K156: =+K8+'3 Assumptions'!J146-'3 Assumptions'!K146 -> 59014.42154 | L156: =+L8+'3 Assumptions'!K146-'3 Assumptions'!L146 -> 61087.35634 | M156: =+M8+'3 Assumptions'!L146-'3 Assumptions'!M146 -> 63236.01281 | N156: =+N8+'3 Assumptions'!M146-'3 Assumptions'!N146 -> 65473.69896 | O156: =+O8+'3 Assumptions'!N146-'3 Assumptions'!O146 -> 67804.68536 | P156: =+P8+'3 Assumptions'!O146-'3 Assumptions'!P146 -> 70599.36677 | Q156: =+Q8+'3 Assumptions'!P146-'3 Assumptions'!Q146 -> 73555.44302 | R156: =+R8+'3 Assumptions'!Q146-'3 Assumptions'!R146 -> 76676.83597 | S156: =+S8+'3 Assumptions'!R146-'3 Assumptions'!S146 -> 80320.40712 | T156: =+T8+'3 Assumptions'!S146-'3 Assumptions'!T146 -> 84220.31034 | U156: =+U8+'3 Assumptions'!T146-'3 Assumptions'!U146 -> 88391.6905 | V156: =+V8+'3 Assumptions'!U146-'3 Assumptions'!V146 -> 92857.64724
A157: User Charges and Fees | B157: 15672 | C157: 14502 | D157: 14455 | E157: 12893 | F157: 17179 | G157: 18771 | H157: 21887 | I157: 21887 | J157: =J9-'3 Assumptions'!J170+'3 Assumptions'!I170-'3 Assumptions'!J149+'3 Assumptions'!I149 -> 21481.45246 | K157: =K9-'3 Assumptions'!K170+'3 Assumptions'!J170-'3 Assumptions'!K149+'3 Assumptions'!J149 -> 20300.86562 | L157: =L9-'3 Assumptions'!L170+'3 Assumptions'!K170-'3 Assumptions'!L149+'3 Assumptions'!K149 -> 21181.70447 | M157: =M9-'3 Assumptions'!M170+'3 Assumptions'!L170-'3 Assumptions'!M149+'3 Assumptions'!L149 -> 22078.97956 | N157: =N9-'3 Assumptions'!N170+'3 Assumptions'!M170-'3 Assumptions'!N149+'3 Assumptions'!M149 -> 22977.65141 | O157: =O9-'3 Assumptions'!O170+'3 Assumptions'!N170-'3 Assumptions'!O149+'3 Assumptions'!N149 -> 23915.24894 | P157: =P9-'3 Assumptions'!P170+'3 Assumptions'!O170-'3 Assumptions'!P149+'3 Assumptions'!O149 -> 24817.85917 | Q157: =Q9-'3 Assumptions'!Q170+'3 Assumptions'!P170-'3 Assumptions'!Q149+'3 Assumptions'!P149 -> 25736.60112 | R157: =R9-'3 Assumptions'!R170+'3 Assumptions'!Q170-'3 Assumptions'!R149+'3 Assumptions'!Q149 -> 26695.95771 | S157: =S9-'3 Assumptions'!S170+'3 Assumptions'!R170-'3 Assumptions'!S149+'3 Assumptions'!R149 -> 27661.47866 | T157: =T9-'3 Assumptions'!T170+'3 Assumptions'!S170-'3 Assumptions'!T149+'3 Assumptions'!S149 -> 28658.73483 | U157: =U9-'3 Assumptions'!U170+'3 Assumptions'!T170-'3 Assumptions'!U149+'3 Assumptions'!T149 -> 29691.97176 | V157: =V9-'3 Assumptions'!V170+'3 Assumptions'!U170-'3 Assumptions'!V149+'3 Assumptions'!U149 -> 30762.76759
A158: Interest & Investment Revenues | B158: 5211 | C158: 8144 | D158: 4146 | E158: 3940 | F158: 2880 | G158: 2951 | H158: 2153 | I158: 2153 | J158: =J10 -> 2155 | K158: 2523.896497 | L158: 2620.580998 | M158: 2717.837517 | N158: 2926.517372 | O158: 3110.474823 | P158: =P10 -> 3253.736691 | Q158: 3404.702941 | R158: =R10 -> 3559.370148 | S158: 3707.482737 | T158: 3834.132936 | U158: 3953.500304 | V158: 4065.917801
A159: Grants & Contributions | B159: 11117 | C159: 10389 | D159: 12134 | E159: 14833 | F159: 13232 | G159: 18216 | H159: 8194 | I159: 8194 | J159: =J12+J13 -> 11105.821 | K159: =K12+K13 -> 8507.869347 | L159: 7744.55255 | M159: 7958.878411 | N159: 8162.813685 | O159: 8381.314214 | P159: 8605.668837 | Q159: 8835.807927 | R159: =R12+R13 -> 9072.353351 | S159: 9319.171697 | T159: 9579.36885 | U159: 9846.839023 | V159: 10121.78575
A160: Other | B160: 14198 | C160: 10189 | D160: 22089 | E160: 20484 | F160: =19040+1230 -> 20270 | G160: =2493+18910 -> 21403 | H160: =1285+31827 -> 33112 | I160: =1285+31827 -> 33112 | J160: =J11-'3 Assumptions'!J156+'3 Assumptions'!I156 -> 14153.726 | K160: =K11-'3 Assumptions'!K156+'3 Assumptions'!J156 -> 14544.59425 | L160: =L11-'3 Assumptions'!L156+'3 Assumptions'!K156 -> 15373.73917 | M160: =M11-'3 Assumptions'!M156+'3 Assumptions'!L156 -> 15880.76369 | N160: =N11-'3 Assumptions'!N156+'3 Assumptions'!M156 -> 16391.44232 | O160: =O11-'3 Assumptions'!O156+'3 Assumptions'!N156 -> 16918.75312 | P160: =P11-'3 Assumptions'!P156+'3 Assumptions'!O156 -> 17463.24409 | Q160: =Q11-'3 Assumptions'!Q156+'3 Assumptions'!P156 -> 18025.48144 | R160: =R11-'3 Assumptions'!R156+'3 Assumptions'!Q156 -> 18606.05026 | S160: =S11-'3 Assumptions'!S156+'3 Assumptions'!R156 -> 19205.5551 | T160: =T11-'3 Assumptions'!T156+'3 Assumptions'!S156 -> 19824.62067 | U160: =U11-'3 Assumptions'!U156+'3 Assumptions'!T156 -> 20463.89249 | V160: =V11-'3 Assumptions'!V156+'3 Assumptions'!U156 -> 21124.0376
A162: Payments:
A163: Employee Costs & oncosts | B163: -30479 | C163: -31615 | D163: -33612 | E163: -35767 | F163: -36713 | G163: -37796 | H163: -39494 | I163: -39494 | J163: =-J22+'3 Assumptions'!J213 -> -40478.05734 | K163: =-K22+'3 Assumptions'!K213 -> -41486.03557 | L163: =-L22+'3 Assumptions'!L213 -> -42852.27152 | M163: =-M22+'3 Assumptions'!M213 -> -44763.26915 | N163: =-N22+'3 Assumptions'!N213 -> -46752.37141 | O163: =-O22+'3 Assumptions'!O213 -> -48829.61508 | P163: =-P22+'3 Assumptions'!P213 -> -50776.18241 | Q163: =-Q22+'3 Assumptions'!Q213 -> -52800.78303 | R163: =-R22+'3 Assumptions'!R213 -> -54908.00407 | S163: =-S22+'3 Assumptions'!S213 -> -57099.49058 | T163: =-T22+'3 Assumptions'!T213 -> -59378.5912 | U163: =-U22+'3 Assumptions'!U213 -> -61748.78618 | V163: =-V22+'3 Assumptions'!V213 -> -64213.69248
A164: Materials and Contracts | B164: -30378 | C164: -28722 | D164: -28428 | E164: -25389 | F164: -34641 | G164: -31978 | H164: -31999 | I164: -31999 | J164: =-J23-'3 Assumptions'!I178+'3 Assumptions'!J178-'3 Assumptions'!I191+'3 Assumptions'!J191-'3 Assumptions'!I160+'3 Assumptions'!J160 -> -34937.14197 | K164: =-K23-'3 Assumptions'!J178+'3 Assumptions'!K178-'3 Assumptions'!J191+'3 Assumptions'!K191-'3 Assumptions'!J160+'3 Assumptions'!K160 -> -34392.7525 | L164: =-L23-'3 Assumptions'!K178+'3 Assumptions'!L178-'3 Assumptions'!K191+'3 Assumptions'!L191-'3 Assumptions'!K160+'3 Assumptions'!L160 -> -32940.19601 | M164: =-M23-'3 Assumptions'!L178+'3 Assumptions'!M178-'3 Assumptions'!L191+'3 Assumptions'!M191-'3 Assumptions'!L160+'3 Assumptions'!M160 -> -34199.13444 | N164: =-N23-'3 Assumptions'!M178+'3 Assumptions'!N178-'3 Assumptions'!M191+'3 Assumptions'!N191-'3 Assumptions'!M160+'3 Assumptions'!N160 -> -34101.23605 | O164: =-O23-'3 Assumptions'!N178+'3 Assumptions'!O178-'3 Assumptions'!N191+'3 Assumptions'!O191-'3 Assumptions'!N160+'3 Assumptions'!O160 -> -35436.44323 | P164: =-P23-'3 Assumptions'!O178+'3 Assumptions'!P178-'3 Assumptions'!O191+'3 Assumptions'!P191-'3 Assumptions'!O160+'3 Assumptions'!P160 -> -36805.81475 | Q164: =-Q23-'3 Assumptions'!P178+'3 Assumptions'!Q178-'3 Assumptions'!P191+'3 Assumptions'!Q191-'3 Assumptions'!P160+'3 Assumptions'!Q160 -> -38232.59148 | R164: =-R23-'3 Assumptions'!Q178+'3 Assumptions'!R178-'3 Assumptions'!Q191+'3 Assumptions'!R191-'3 Assumptions'!Q160+'3 Assumptions'!R160 -> -39728.71835 | S164: =-S23-'3 Assumptions'!R178+'3 Assumptions'!S178-'3 Assumptions'!R191+'3 Assumptions'!S191-'3 Assumptions'!R160+'3 Assumptions'!S160 -> -41298.28517 | T164: =-T23-'3 Assumptions'!S178+'3 Assumptions'!T178-'3 Assumptions'!S191+'3 Assumptions'!T191-'3 Assumptions'!S160+'3 Assumptions'!T160 -> -42945.65218 | U164: =-U23-'3 Assumptions'!T178+'3 Assumptions'!U178-'3 Assumptions'!T191+'3 Assumptions'!U191-'3 Assumptions'!T160+'3 Assumptions'!U160 -> -44675.46892 | V164: =-V23-'3 Assumptions'!U178+'3 Assumptions'!V178-'3 Assumptions'!U191+'3 Assumptions'!V191-'3 Assumptions'!U160+'3 Assumptions'!V160 -> -46490.50095
A165: Borrowing Costs | B165: -760 | C165: -1196 | D165: -1187 | E165: -2436 | F165: -3021 | G165: -2702 | H165: -2402 | I165: -2402 | J165: =-J24 -> -2289.083 | K165: -2086.689446 | L165: -1981.59785 | M165: -1920.480035 | N165: -1882.410631 | O165: -1840.361699 | P165: -1730.241074 | Q165: -1717.77025 | R165: =-R24 -> -1703.309234 | S165: -1686.70441 | T165: -1681.228016 | U165: -1673.960495 | V165: -1664.750389
A166: Other | B166: -6123 | C166: -7655 | D166: -13159 | E166: -25124 | F166: =-1071-19818 -> -20889 | G166: =-1512-14106 -> -15618 | H166: =-913-15881 -> -16794 | I166: =-913-15881 -> -16794 | J166: =-J26 -> -13528.624 | K166: -13872.90095 | L166: -14684.2916 | M166: -15407.90465 | N166: -16470.22358 | O166: -17635.21389 | P166: -19339.26111 | Q166: -20319.8875 | R166: =-R26 -> -21866.32564 | S166: -23569.2671 | T166: -26022.01453 | U166: -27516.89483 | V166: -29803.01043
A167: Net cash inflow from operating activities | B167: =SUM(B156:B166) -> 18170 | C167: 17053 | D167: 22307 | E167: 10685 | F167: =SUM(F156:F166) -> 7924 | G167: 25779 | H167: =SUM(H156:H166) -> 29393.5 | I167: 29393.5 | J167: 13897.15414 | K167: 13053.26879 | L167: 15549.57656 | M167: 15581.68371 | N167: 16725.88207 | O167: 16388.84257 | P167: 16088.37621 | Q167: 16487.00419 | R167: 16404.21015 | S167: 16560.34806 | T167: 16089.6817 | U167: =SUM(U156:U166) -> 16732.78365 | V167: =SUM(V156:V166) -> 16760.20174
A169: Cash flow from investing activities
A170: Receipts
A171: Sale of investment securities | B171: 31297 | C171: 76777 | D171: 112956 | E171: 38186 | F171: 38000 | G171: 62000 | H171: =-'3 Assumptions'!H153 -> 25602 | I171: =-'3 Assumptions'!I153 -> 25602 | J171: =-'3 Assumptions'!J153 -> 17389.61 | K171: =-'3 Assumptions'!K153 -> 661.753742 | L171: =-'3 Assumptions'!L153 -> 0 | M171: =-'3 Assumptions'!M153 -> 0 | N171: =-'3 Assumptions'!N153 -> 0 | O171: =-'3 Assumptions'!O153 -> 0 | P171: =-'3 Assumptions'!P153 -> 0 | Q171: =-'3 Assumptions'!Q153 -> 0 | R171: =-'3 Assumptions'!R153 -> 0 | S171: =-'3 Assumptions'!S153 -> 0 | T171: =-'3 Assumptions'!T153 -> 0 | U171: =-'3 Assumptions'!U153 -> 0 | V171: =-'3 Assumptions'!V153 -> 0
A172: Sale of infrastructure, property, plant & equipment | B172: 87315 | C172: 15613 | D172: =D83 -> 501 | E172: 2978 | F172: 23721 | G172: =G83 -> 325 | H172: =H83 -> 296 | I172: =I83 -> 296 | J172: 266.255 | K172: 195.96365 | L172: 201.7369538 | M172: 207.6808165 | N172: =N83 -> 213.8557649 | O172: 220.2144363 | P172: 226.7623002 | Q172: 233.5049894 | R172: =R83 -> 240.4483043 | S172: 247.5982183 | T172: 254.9608824 | U172: 262.5426312 | V172: 270.3499878
A173: Proceeds from sale of assets held for resale | B173: 0 | C173: 0 | D173: =-'3 Assumptions'!D163+'3 Assumptions'!C163 -> 0 | E173: 0 | F173: 3023 | G173: 0 | H173: ='7 Capex + Depreciation'!E140 -> 0 | I173: ='7 Capex + Depreciation'!F140 -> 0 | J173: ='7 Capex + Depreciation'!G140 -> 0 | K173: ='7 Capex + Depreciation'!H140 -> 0 | L173: ='7 Capex + Depreciation'!I140 -> 0 | M173: ='7 Capex + Depreciation'!J140 -> 0 | N173: ='7 Capex + Depreciation'!K140 -> 0 | O173: ='7 Capex + Depreciation'!L140 -> 0 | P173: ='7 Capex + Depreciation'!M140 -> 0 | Q173: ='7 Capex + Depreciation'!N140 -> 0 | R173: ='7 Capex + Depreciation'!O140 -> 0 | S173: ='7 Capex + Depreciation'!P140 -> 0 | T173: ='7 Capex + Depreciation'!Q140 -> 0 | U173: ='7 Capex + Depreciation'!R140 -> 0 | V173: ='7 Capex + Depreciation'!S140 -> 0
A174: Payments:
A175: Purchase of infrastructure, property, plant & equipment | B175: =-B96 -> -22894 | C175: -68646 | D175: -82449 | E175: =-E96 -> -62219 | F175: =-F96 -> -20492 | G175: =-G96 -> -11986 | H175: =-H96+'7 Capex + Depreciation'!E52 -> -9809 | I175: =-I96+'7 Capex + Depreciation'!F52 -> -9809 | J175: =-J96 -> -23607.045 | K175: -10345.28703 | L175: -9148.871441 | M175: -8963.188584 | N175: =-N96 -> -10453.4445 | O175: -10759.20004 | P175: -11074.61681 | Q175: -11399.99292 | R175: =-R96 -> -11735.63597 | S175: -12081.86329 | T175: -12439.00233 | U175: -12807.3909 | V175: -13204.25001
A176: Purchase of Investment Property | F176: 0 | G176: -410 | H176: -181 | I176: -181
A177: Purchase of investment securities | B177: -144849 | C177: -38553 | D177: -56478 | E177: -9320 | F177: -50000 | G177: =-'3 Assumptions'!G152 -> -57740 | H177: =-'3 Assumptions'!H152 -> -57623 | I177: =-'3 Assumptions'!I152 -> -57623 | J177: =-'3 Assumptions'!J152 -> 0 | K177: =-'3 Assumptions'!K152 -> 0 | L177: =-'3 Assumptions'!L152 -> -3282.785001 | M177: =-'3 Assumptions'!M152 -> -4052.239917 | N177: =-'3 Assumptions'!N152 -> -3997.357595 | O177: =-'3 Assumptions'!O152 -> -4184.013273 | P177: =-'3 Assumptions'!P152 -> -2848.678843 | Q177: =-'3 Assumptions'!Q152 -> -4024.49405 | R177: =-'3 Assumptions'!R152 -> -4155.332798 | S177: =-'3 Assumptions'!S152 -> -4555.984555 | T177: =-'3 Assumptions'!T152 -> -4657.782962 | U177: =-'3 Assumptions'!U152 -> -4815.550415 | V177: =-'3 Assumptions'!V152 -> -4979.522182
A178: Net cash outflow from investing activities | B178: =SUM(B171:B177) -> -49131 | C178: =SUM(C171:C177) -> -14809 | D178: =SUM(D171:D177) -> -25470 | E178: =SUM(E171:E177) -> -30375 | F178: =SUM(F171:F177) -> -5748 | G178: =SUM(G171:G177) -> -7811 | H178: =SUM(H171:H177) -> -41715 | I178: -41715 | J178: =SUM(J171:J177) -> -5951.18 | K178: -9487.569638 | L178: -12229.91949 | M178: -12807.74768 | N178: -14236.94633 | O178: -14722.99888 | P178: -13696.53335 | Q178: -15190.98198 | R178: -15650.52046 | S178: -16390.24963 | T178: -16841.82441 | U178: =SUM(U171:U177) -> -17360.39868 | V178: =SUM(V171:V177) -> -17913.4222
A180: Cash flow from financing activities
A182: Proceeds from new borrowings | B182: 30000 | C182: 0 | D182: ='9 Loan Schedules'!H66 -> 3300 | E182: ='9 Loan Schedules'!I66 -> 25000 | F182: ='9 Loan Schedules'!J66 -> 0 | G182: ='9 Loan Schedules'!K66 -> 2000 | H182: ='9 Loan Schedules'!L66 -> 0 | I182: ='9 Loan Schedules'!M66 -> 0 | J182: ='9 Loan Schedules'!N66 -> 0 | K182: ='9 Loan Schedules'!O66 -> 0 | L182: ='9 Loan Schedules'!P66 -> 0 | M182: ='9 Loan Schedules'!Q66 -> 0 | N182: ='9 Loan Schedules'!R66 -> 0 | O182: ='9 Loan Schedules'!S66 -> 0 | P182: ='9 Loan Schedules'!T66 -> 0 | Q182: ='9 Loan Schedules'!U66 -> 0 | R182: ='9 Loan Schedules'!V66 -> 0 | S182: ='9 Loan Schedules'!W66 -> 0 | T182: ='9 Loan Schedules'!X66 -> 0 | U182: ='9 Loan Schedules'!Y66 -> 0 | V182: ='9 Loan Schedules'!Z66 -> 0
A183: Repayment of borrowings & advances | B183: -515 | C183: -726 | D183: -756 | E183: -1189 | F183: -4306 | G183: -6382 | H183: -3610 | I183: -3610 | J183: =-'9 Loan Schedules'!N67 -> -3696.95755 | K183: =-'9 Loan Schedules'!O67 -> -4790.336819 | L183: =-'9 Loan Schedules'!P67 -> -1887.513471 | M183: =-'9 Loan Schedules'!Q67 -> -1532.015352 | N183: =-'9 Loan Schedules'!R67 -> -1617.197474 | O183: =-'9 Loan Schedules'!S67 -> -1703.436942 | P183: =-'9 Loan Schedules'!T67 -> -2296.551966 | Q183: =-'9 Loan Schedules'!U67 -> -1355.450473 | R183: =-'9 Loan Schedules'!V67 -> -1417.499862 | S183: =-'9 Loan Schedules'!W67 -> -1221.983525 | T183: =-'9 Loan Schedules'!X67 -> -1277.457455 | U183: =-'9 Loan Schedules'!Y67 -> -1335.972449 | V183: =-'9 Loan Schedules'!Z67 -> -1397.711215
A184: Repayment of Finance Lease liabilities | B184: 0 | C184: 0 | E184: 0 | F184: 0 | G184: 0 | H184: 0 | I184: 0 | J184: 0 | K184: 0 | L184: 0 | M184: 0 | N184: 0 | O184: 0 | P184: 0 | Q184: 0 | R184: 0
A186: Net cash (outflow)/inflow from financing activities | B186: =SUM(B182:B185) -> 29485 | C186: =SUM(C182:C185) -> -726 | D186: =SUM(D182:D185) -> 2544 | E186: 23811 | F186: =SUM(F182:F185) -> -4306 | G186: -4382 | H186: =SUM(H182:H185) -> -3610 | I186: -3610 | J186: -3696.95755 | K186: -4790.336819 | L186: -1887.513471 | M186: -1532.015352 | N186: -1617.197474 | O186: -1703.436942 | P186: -2296.551966 | Q186: -1355.450473 | R186: -1417.499862 | S186: -1221.983525 | T186: -1277.457455 | U186: =SUM(U182:U185) -> -1335.972449 | V186: =SUM(V182:V185) -> -1397.711215
A188: Net increase/(decrease) in cash held | B188: =+B167+B178+B186 -> -1476 | C188: =+C167+C178+C186 -> 1518 | D188: -619 | E188: =+E167+E178+E186 -> 4121 | F188: =+F167+F178+F186 -> -2130 | G188: =+G167+G178+G186 -> 13586 | H188: =+H167+H178+H186 -> -15931.5 | I188: =+I167+I178+I186 -> -15931.5 | J188: 4249.016592 | K188: -1224.637665 | L188: =+L167+L178+L186 -> 1432.143597 | M188: 1241.920673 | N188: 871.7382719 | O188: -37.59325019 | P188: =+P167+P178+P186 -> 95.29088978 | Q188: -59.42826394 | R188: =+R167+R178+R186 -> -663.8101744 | S188: -1051.885099 | T188: -2029.600164 | U188: -1963.587483 | V188: -2550.93168
A190: Cash assets at beginning of reporting period | B190: 7619 | C190: =B192 -> 6143 | D190: 7661 | E190: 7042 | F190: 11163 | G190: =F192 -> 9033 | H190: =G192 -> 22619 | I190: =G192 -> 22619 | J190: =I192 -> 6687.5 | K190: =J192 -> 10936.51659 | L190: 9711.878927 | M190: 11144.02252 | N190: 12385.9432 | O190: 13257.68147 | P190: 13220.08822 | Q190: 13315.37911 | R190: 13255.95084 | S190: 12592.14067 | T190: 11540.25557 | U190: 9510.655406 | V190: 7547.067924
A192: Cash assets at end of reporting period | B192: =+B190+B188 -> 6143 | C192: =+C190+C188 -> 7661 | D192: 7042 | E192: 11163 | F192: =+F190+F188 -> 9033 | G192: =+G190+G188 -> 22619 | H192: =+H190+H188 -> 6687.5 | I192: 6687.5 | J192: 10936.51659 | K192: 9711.878927 | L192: 11144.02252 | M192: 12385.9432 | N192: =+N190+N188 -> 13257.68147 | O192: 13220.08822 | P192: 13315.37911 | Q192: 13255.95084 | R192: 12592.14067 | S192: 11540.25557 | T192: =+T190+T188 -> 9510.655406 | U192: =+U190+U188 -> 7547.067924 | V192: =+V190+V188 -> 4996.136244
A193: Plus: Investment on hand at end of year | D193: =D109 -> 52617 | E193: 24309 | F193: 36427 | G193: 32605 | H193: 64748 | I193: 64748 | J193: 47358.39 | K193: =K109 -> 46696.63626 | L193: 49979.42126 | M193: 54031.66118 | N193: 58029.01877 | O193: 62213.03204 | P193: 65061.71089 | Q193: 69086.20494 | R193: 73241.53773 | S193: 77797.52229 | T193: =T109 -> 82455.30525 | U193: =U109 -> 87270.85567 | V193: =V109 -> 92250.37785
A194: Cash & Investment at end of year | D194: =D192+D193 -> 59659 | E194: =E192+E193 -> 35472 | F194: =F192+F193 -> 45460 | G194: =G192+G193 -> 55224 | H194: =H192+H193 -> 71435.5 | I194: =I192+I193 -> 71435.5 | J194: =J192+J193 -> 58294.90659 | K194: 56408.51519 | L194: 61123.44378 | M194: 66417.60437 | N194: 71286.70024 | O194: 75433.12026 | P194: 78377.08999 | Q194: 82342.15578 | R194: =R192+R193 -> 85833.6784 | S194: 89337.77786 | T194: 91965.96066 | U194: =U192+U193 -> 94817.92359 | V194: =V192+V193 -> 97246.51409
A195: CAPITAL WORKS STATEMENT | D195: =D4 -> 2009/10 | E195: 2010/11 | F195: =F4 -> Actual 2011/12 | I195: 2013/14 | J195: 2014/15 | K195: 2015/16 | L195: 2016/17
D196: $'000's | E196: $'000's | F196: $'000's | I196: $'000's | J196: $'000's | K196: $'000's | L196: $'000's
A198: Land | D198: =#REF!+#REF! ->  | E198: =#REF!+#REF! ->  | F198: =#REF!+#REF! ->  | I198: =#REF!+#REF! ->  | J198: =#REF!+#REF! ->  | K198: =#REF!+#REF! ->  | L198: =#REF!+#REF! -> 
A199: Roads | D199: =#REF! ->  | E199: =#REF! ->  | F199: =#REF! ->  | I199: =#REF! ->  | J199: =#REF! ->  | K199: =#REF! ->  | L199: =#REF! -> 
A200: Drainage | D200: =#REF! ->  | E200: =#REF! ->  | F200: =#REF! ->  | I200: =#REF! ->  | J200: =#REF! ->  | K200: =#REF! ->  | L200: =#REF! -> 
A201: Buildings | D201: =#REF! ->  | E201: =#REF! ->  | F201: =#REF! ->  | I201: =#REF! ->  | J201: =#REF! ->  | K201: =#REF! ->  | L201: =#REF! -> 
A202: Other structures | D202: =+#REF! ->  | E202: =+#REF! ->  | F202: =+#REF! ->  | I202: =+#REF! ->  | J202: =+#REF! ->  | K202: =+#REF! ->  | L202: =+#REF! -> 
A203: Plant, fleet, furniture & equipment | D203: =#REF!+#REF!+#REF!+#REF!+#REF! ->  | E203: =#REF!+#REF!+#REF!+#REF!+#REF! ->  | F203: =#REF!+#REF!+#REF!+#REF!+#REF! ->  | I203: =#REF!+#REF!+#REF!+#REF!+#REF! ->  | J203: =#REF!+#REF!+#REF!+#REF!+#REF! ->  | K203: =#REF!+#REF!+#REF!+#REF!+#REF! ->  | L203: =#REF!+#REF!+#REF!+#REF!+#REF! -> 
A205: Total capital works | D205: =SUM(D198:D204) ->  | F205: =SUM(F198:F204) -> 
A207: Represented by:
A208: Renewal | D208: =+D205-D209 ->  | F208: =+F205-F209 -> 
A209: New assets | D209: =#REF! ->  | E209: =#REF! ->  | F209: =#REF! ->  | I209: =#REF! ->  | J209: =#REF! ->  | K209: =#REF! ->  | L209: =#REF! -> 
A210: Total capital works | D210: =SUM(D208:D209) ->  | F210: =SUM(F208:F209) -> 
A212: Property, Plant & Equipment movement | D212: =D195 -> 2009/10 | E212: 2010/11 | F212: =F195 -> Actual 2011/12 | I212: 2013/14 | J212: 2014/15 | K212: 2015/16 | L212: 2016/17
A213: Reconciliation Worksheet | D213: $'000's | E213: $'000's | F213: $'000's | I213: $'000's | J213: $'000's | K213: $'000's | L213: $'000's
A215: The movement between the previous year and the
A216: current year in property, plant and equipment as
A217: shown in the Statement of Financial Position
A218: links to the net of the following items:
A220: Total capital works | D220: =+D205 ->  | F220: =+F205 -> 
A221: Asset revaluation movement
A222: Depreciation and amortisation | D222: =-D25 -> -8983 | E222: -10558 | F222: =-F25 -> -11063 | I222: -11895 | J222: -12310.75461 | K222: -12759.46366 | L222: -12876.55828
A223: Written down value of assets sold | D223: =-#REF! ->  | E223: =-#REF! ->  | F223: =-#REF! ->  | I223: =-#REF! ->  | J223: =-#REF! ->  | K223: =-#REF! ->  | L223: =-#REF! -> 
A224: Net movement in property, plant & equipment | D224: =SUM(D220:D223) ->  | F224: =SUM(F220:F223) -> 
D225: =+D118-C118-D224 ->  | E225: =+E118-C118-E224 ->  | F225: =+F118-D118-F224 ->  | I225: =+I118-D118-I224 ->  | J225: =+J118-I118-J224 ->  | K225: =+K118-J118-K224 ->  | L225: =+L118-K118-L224 ->  | M225: Should equal zero
B227: =B3 -> Actual | C227: =C3 -> Actual | D227: Actual | E227: =E3 -> Actual | F227: 0 | G227: 0 | I227: Actual | J227: Forecast | K227: Forecast | L227: Forecast | M227: Forecast | N227: Forecast | O227: Forecast | P227: Forecast | Q227: Forecast | R227: =R3 -> Forecast | S227: Forecast
A228: Long Term Financial Projections (Special Schedule 8) | B228: =B4 -> 2007/08 | C228: =C4 -> 2008/09 | D228: =D4 -> 2009/10 | E228: 2010/11 | F228: Actual 2011/12 | G228: Actual 2012/13 | I228: =I4 -> 2013/14 | J228: 2014/15 | K228: 2015/16 | L228: 2016/17 | M228: 2017/18 | N228: 2018/19 | O228: 2019/20 | P228: 2020/21 | Q228: 2021/22 | R228: 2022/23 | S228: 2023/24
B229: =B5 -> $'000's | C229: =C5 -> $'000's | D229: =D5 -> $'000's | E229: $'000's | F229: $'000's | G229: $'000's | I229: =I5 -> $'000's | J229: $'000's | K229: $'000's | L229: $'000's | M229: $'000's | N229: $'000's | O229: $'000's | P229: $'000's | Q229: $'000's | R229: $'000's | S229: $'000's
A231: Recurrent Budget
A232: Income from continuing operations | B232: =B18 -> 192894 | C232: =C18 -> 175503 | D232: =D18 -> 90524 | E232: =E18 -> 117963 | F232: =F18 -> 106157 | G232: =G18 -> 110590 | I232: 128655 | J232: 104621.323 | K232: 105169.6547 | L232: 108399.1636 | M232: 112234.2741 | N232: 116305.6124 | O232: 120516.777 | P232: 125140.2575 | Q232: 129971.4476 | R232: =R18 -> 135039.1777 | S232: =S18 -> 140662.3144
A233: Expenses from continuing operations | B233: =B31 -> 128595 | C233: =C31 -> 166918 | D233: =D31 -> 80168 | E233: =E31 -> 96910 | F233: =F31 -> 99226 | I233: =I31 -> 96518 | J233: 105299.4906 | K233: 103420.8925 | L233: 106316.878 | M233: 110545.1808 | N233: 113631.0726 | O233: 118389.7015 | P233: 123489.8456 | Q233: 128114.7342 | R233: =R31 -> 133462.7064 | S233: =S31 -> 139130.2957
A235: Operating result form continuing operations | B235: =+B232-B233 -> 64299 | C235: =+C232-C233 -> 8585 | D235: =+D232-D233 -> 10356 | E235: =+E232-E233 -> 21053 | F235: =+F232-F233 -> 6931 | I235: 32137 | J235: -678.16761 | K235: 1748.762194 | L235: 2082.285583 | M235: 1689.093302 | N235: 2674.539742 | O235: 2127.075527 | P235: 1650.411963 | Q235: 1856.713446 | R235: =+R232-R233 -> 1576.471353 | S235: =+S232-S233 -> 1532.018737
A237: Capital Budget
A238: New Works | B238: 13100 | C238: 13100 | D238: =#REF! ->  | E238: =#REF! ->  | F238: =#REF! ->  | I238: =#REF! ->  | J238: =#REF! ->  | K238: =#REF! ->  | L238: =#REF! ->  | M238: =#REF! ->  | N238: =#REF! ->  | O238: =#REF! ->  | P238: =#REF! ->  | Q238: =#REF! ->  | R238: =#REF! ->  | S238: =#REF! -> 
A239: Replacement of exisitng assets | B239: 5800 | C239: 5800 | D239: =#REF!-#REF! ->  | E239: =#REF!-#REF! ->  | F239: =#REF!-#REF! ->  | I239: =#REF!-#REF! ->  | J239: =#REF!-#REF! ->  | K239: =#REF!-#REF! ->  | L239: =#REF!-#REF! ->  | M239: =#REF!-#REF! ->  | N239: =#REF!-#REF! ->  | O239: =#REF!-#REF! ->  | P239: =#REF!-#REF! ->  | Q239: =#REF!-#REF! ->  | R239: =#REF!-#REF! ->  | S239: =#REF!-#REF! -> 
A240: Sub-total Capital Budget | B240: =SUM(B238:B239) -> 18900 | C240: =SUM(C238:C239) -> 18900 | D240: =SUM(D238:D239) ->  | F240: =SUM(F238:F239) -> 
A242: Civic Place | B242: 4000 | C242: 4000
... 9 more rows

Sheet 2 DATA EXTRACT
K1: LINE ITEMS | N1: from Download
N2: ='1 Formatted Statements'!G3 -> 0 | O2: Forecast | P2: ='1 Formatted Statements'!I3 -> Actual | Q2: ='1 Formatted Statements'!I3 -> Actual | R2: ='1 Formatted Statements'!J3 -> Forecast | S2: ='1 Formatted Statements'!K3 -> Forecast | T2: ='1 Formatted Statements'!L3 -> Forecast | U2: ='1 Formatted Statements'!M3 -> Forecast | V2: ='1 Formatted Statements'!N3 -> Forecast | W2: ='1 Formatted Statements'!O3 -> Forecast | X2: ='1 Formatted Statements'!P3 -> Forecast | Y2: ='1 Formatted Statements'!Q3 -> Forecast | Z2: ='1 Formatted Statements'!R3 -> Forecast | AA2: ='1 Formatted Statements'!S3 -> Forecast | AB2: ='1 Formatted Statements'!T3 -> Forecast | AC2: ='1 Formatted Statements'!U3 -> Forecast
N3: ='1 Formatted Statements'!G4 -> Actual 2012/13 | O3: ='1 Formatted Statements'!H4 -> ORI 2013/14 | P3: ='1 Formatted Statements'!I4 -> 2013/14 | Q3: ='1 Formatted Statements'!J4 -> 2014/15 | R3: ='1 Formatted Statements'!K4 -> 2015/16 | S3: ='1 Formatted Statements'!L4 -> 2016/17 | T3: ='1 Formatted Statements'!M4 -> 2017/18 | U3: ='1 Formatted Statements'!N4 -> 2018/19 | V3: ='1 Formatted Statements'!O4 -> 2019/20 | W3: ='1 Formatted Statements'!P4 -> 2020/21 | X3: ='1 Formatted Statements'!Q4 -> 2021/22 | Y3: ='1 Formatted Statements'!R4 -> 2022/23 | Z3: ='1 Formatted Statements'!S4 -> 2023/24 | AA3: ='1 Formatted Statements'!T4 -> 2024/25 | AB3: ='1 Formatted Statements'!U4 -> 2025/26 | AC3: ='1 Formatted Statements'!V4 -> 2026/27 | AE3: Year 1 | AF3: Year 2 | AG3: Year 3 | AH3: Year 4 | AI3: Year 5 | AJ3: Year 6 | AK3: Year 7 | AL3: Year 8 | AM3: Year 9 | AN3: Year 10 | AO3: Year 11 | AP3: Year 12 | AQ3: Year 13 | AR3: Year 14 | AS3: Year 15 | AT3: Current year = | AU3: ='1 Formatted Statements'!H4 -> ORI 2013/14 | AV3: ='1 Formatted Statements'!I4 -> 2013/14 | AW3: ='1 Formatted Statements'!J4 -> 2014/15
A4: TransKey | B4: Level2 | C4: Short Level2 | D4: Level3 | E4: Level32 | F4: Short Level4 | G4: Short Level42 | H4: Account Type | I4: CAP FLAG | J4: Level4 | K4: OPERATING STATEMENT LINE ITEM | L4: LINE ITEM NO. | M4: Escalation Code | N4: Year 1B | O4: Year 1 | P4: Year 2 | Q4: Year 3 | R4: Year 4 | S4: Year 5 | T4: Year 6 | U4: Year 7 | V4: Year 8 | W4: Year 9 | X4: Year 10 | Y4: Year 11 | Z4: Year 12 | AA4: Year 13 | AB4: Year 14 | AC4: Year 15 | AD4: blank | AE4: Escalation 2012/13 | AF4: Escalation 2013/14 | AG4: Escalation 2014/15 | AH4: Escalation 2015/16 | AI4: Escalation 2016/17 | AJ4: Escalation 2017/18 | AK4: Escalation 2018/19 | AL4: Escalation 2019/20 | AM4: Escalation 2020/21 | AN4: Escalation 2021/22 | AO4: Escalation 2022/23 | AP4: Escalation 2023/24 | AQ4: Escalation 2024/25 | AR4: Escalation 2025/26 | AS4: Escalation 2026/27 | AT4: ORIGYTDJUN | AU4: REVISED BUDGET | AV4: NEXT BUDG (Budget ) | AW4: NEXT BUDG (Budget )
A5: W1100.0001.1001 | B5: =VLOOKUP($A5,'5 Download BI9'!$A:$T,2,FALSE) -> 1100 - Mayor && Council | C5: =VLOOKUP($A5,'5 Download BI9'!$A:$U,3,FALSE) -> 1100 | D5: =VLOOKUP($A5,'5 Download BI9'!$A:$U,4,FALSE) -> 0001 - General Admin | E5: =VLOOKUP($A5,'5 Download BI9'!$A:$U,5,FALSE) -> 0001 | F5: =VLOOKUP($A5,'5 Download BI9'!$A:$U,6,FALSE) -> 1001 | G5: =VLOOKUP($A5,'5 Download BI9'!$A:$U,7,FALSE) -> 1001 | H5: =VLOOKUP($A5,'5 Download BI9'!$A:$U,8,FALSE) -> E | I5: =IF(AND(G5>"3099",G5<"3141"),"C",IF(G5="1191","C",IF(G5="1192","C",IF(G5="1194","C",IF(G5="1195","C",IF(G5="1197","C",IF(G5="1198","C","O"))))))) -> O | J5: =VLOOKUP($A5,'5 Download BI9'!$A:$U,12,FALSE) -> 1001 - Award Staff - Salaries | K5: =VLOOKUP(J5,'Esc code lookup'!$B$4:$E$701,4,FALSE) -> Employee Costs | L5: =VLOOKUP(K5,#REF!,2,FALSE) ->  | M5: =IF(E5>"5003","M",IF(ISNA(VLOOKUP(C5,'Esc code lookup'!$G$31:$I$39,1,FALSE)),VLOOKUP(J5,'Esc code lookup'!$B:$C,2,FALSE),IF(F5="1512","M",VLOOKUP(C5,'Esc code lookup'!$G$31:$I$39,2,FALSE)))) -> 3 | N5: =AY5/1000 -> 0 | O5: =AU5/1000 -> 71.257 | P5: =+AV5/1000 -> 71.257 | Q5: =IF(ISERROR(AW5/1000),0,(AW5/1000)) -> 73.574 | R5: =IF($M5="M"," ",+Q5*(1+AH5)) -> 76.51696 | S5: 79.5776384 | T5: 82.76074394 | U5: 86.07117369 | V5: 89.51402064 | W5: 93.09458147 | X5: 96.81836473 | Y5: 100.6910993 | Z5: 104.7187433 | AA5: 108.907493 | AB5: 113.2637927 | AC5: 117.7943444 | AE5: =VLOOKUP($M5,'4 Escalation codes'!$A:$Q,3,FALSE) -> 0.0325 | AF5: =VLOOKUP($M5,'4 Escalation codes'!$A:$Q,4,FALSE) -> 0.044 | AG5: =VLOOKUP($M5,'4 Escalation codes'!$A:$Q,5,FALSE) -> 0.04 | AH5: =VLOOKUP($M5,'4 Escalation codes'!$A:$Q,6,FALSE) -> 0.04 | AI5: =VLOOKUP($M5,'4 Escalation codes'!$A:$Q,7,FALSE) -> 0.04 | AJ5: =VLOOKUP($M5,'4 Escalation codes'!$A:$Q,8,FALSE) -> 0.04 | AK5: =VLOOKUP($M5,'4 Escalation codes'!$A:$Q,9,FALSE) -> 0.04 | AL5: =VLOOKUP($M5,'4 Escalation codes'!$A:$Q,10,FALSE) -> 0.04 | AM5: =VLOOKUP($M5,'4 Escalation codes'!$A:$Q,11,FALSE) -> 0.04 | AN5: =VLOOKUP($M5,'4 Escalation codes'!$A:$Q,12,FALSE) -> 0.04 | AO5: =VLOOKUP($M5,'4 Escalation codes'!$A:$Q,13,FALSE) -> 0.04 | AP5: =VLOOKUP($M5,'4 Escalation codes'!$A:$Q,14,FALSE) -> 0.04 | AQ5: =VLOOKUP($M5,'4 Escalation codes'!$A:$Q,15,FALSE) -> 0.04 | AR5: =VLOOKUP($M5,'4 Escalation codes'!$A:$Q,16,FALSE) -> 0.04 | AS5: =VLOOKUP($M5,'4 Escalation codes'!$A:$Q,17,FALSE) -> 0.04 | AT5: =VLOOKUP($A5,'5 Download BI9'!$A:$U,13,FALSE) -> 71257 | AU5: =VLOOKUP($A5,'5 Download BI9'!$A:$U,13,FALSE) -> 71257 | AV5: =VLOOKUP($A5,'5 Download BI9'!$A:$U,20,FALSE) -> 71257 | AW5: =VLOOKUP($A5,'5 Download BI9'!$A:$U,19,FALSE) -> 73574 | AX5: =AA5-Z5 -> 4.188749731
A6: W1100.0001.1055 | B6: =VLOOKUP($A6,'5 Download BI9'!$A:$T,2,FALSE) -> 1100 - Mayor && Council | C6: =VLOOKUP($A6,'5 Download BI9'!$A:$U,3,FALSE) -> 1100 | D6: =VLOOKUP($A6,'5 Download BI9'!$A:$U,4,FALSE) -> 0001 - General Admin | E6: =VLOOKUP($A6,'5 Download BI9'!$A:$U,5,FALSE) -> 0001 | F6: =VLOOKUP($A6,'5 Download BI9'!$A:$U,6,FALSE) -> 1055 | G6: =VLOOKUP($A6,'5 Download BI9'!$A:$U,7,FALSE) -> 1055 | H6: =VLOOKUP($A6,'5 Download BI9'!$A:$U,8,FALSE) -> E | I6: O | J6: =VLOOKUP($A6,'5 Download BI9'!$A:$U,12,FALSE) -> 1055 - Award Staff - LSL Accrual | K6: =VLOOKUP(J6,'Esc code lookup'!$B$4:$E$701,4,FALSE) -> Employee Costs | L6: =VLOOKUP(K6,#REF!,2,FALSE) ->  | M6: =IF(E6>"5003","M",IF(ISNA(VLOOKUP(C6,'Esc code lookup'!$G$31:$I$39,1,FALSE)),VLOOKUP(J6,'Esc code lookup'!$B:$C,2,FALSE),IF(F6="1512","M",VLOOKUP(C6,'Esc code lookup'!$G$31:$I$39,2,FALSE)))) -> 3 | N6: 0 | O6: 4.105 | P6: =+AV6/1000 -> 4.105 | Q6: 4.336 | R6: 4.50944 | S6: 4.6898176 | T6: 4.877410304 | U6: 5.072506716 | V6: 5.275406985 | W6: 5.486423264 | X6: 5.705880195 | Y6: 5.934115403 | Z6: 6.171480019 | AA6: 6.418339219 | AB6: 6.675072788 | AC6: 6.9420757 | AE6: =VLOOKUP($M6,'4 Escalation codes'!$A:$Q,3,FALSE) -> 0.0325 | AF6: =VLOOKUP($M6,'4 Escalation codes'!$A:$Q,4,FALSE) -> 0.044 | AG6: =VLOOKUP($M6,'4 Escalation codes'!$A:$Q,5,FALSE) -> 0.04 | AH6: =VLOOKUP($M6,'4 Escalation codes'!$A:$Q,6,FALSE) -> 0.04 | AI6: =VLOOKUP($M6,'4 Escalation codes'!$A:$Q,7,FALSE) -> 0.04 | AJ6: =VLOOKUP($M6,'4 Escalation codes'!$A:$Q,8,FALSE) -> 0.04 | AK6: =VLOOKUP($M6,'4 Escalation codes'!$A:$Q,9,FALSE) -> 0.04 | AL6: =VLOOKUP($M6,'4 Escalation codes'!$A:$Q,10,FALSE) -> 0.04 | AM6: =VLOOKUP($M6,'4 Escalation codes'!$A:$Q,11,FALSE) -> 0.04 | AN6: =VLOOKUP($M6,'4 Escalation codes'!$A:$Q,12,FALSE) -> 0.04 | AO6: =VLOOKUP($M6,'4 Escalation codes'!$A:$Q,13,FALSE) -> 0.04 | AP6: =VLOOKUP($M6,'4 Escalation codes'!$A:$Q,14,FALSE) -> 0.04 | AQ6: =VLOOKUP($M6,'4 Escalation codes'!$A:$Q,15,FALSE) -> 0.04 | AR6: =VLOOKUP($M6,'4 Escalation codes'!$A:$Q,16,FALSE) -> 0.04 | AS6: =VLOOKUP($M6,'4 Escalation codes'!$A:$Q,17,FALSE) -> 0.04 | AT6: =VLOOKUP($A6,'5 Download BI9'!$A:$U,13,FALSE) -> 4105 | AU6: =VLOOKUP($A6,'5 Download BI9'!$A:$U,13,FALSE) -> 4105 | AV6: =VLOOKUP($A6,'5 Download BI9'!$A:$U,20,FALSE) -> 4105 | AW6: =VLOOKUP($A6,'5 Download BI9'!$A:$U,19,FALSE) -> 4336 | AX6: 0.2468592007
A7: W1100.0001.1110 | B7: =VLOOKUP($A7,'5 Download BI9'!$A:$T,2,FALSE) -> 1100 - Mayor && Council | C7: =VLOOKUP($A7,'5 Download BI9'!$A:$U,3,FALSE) -> 1100 | D7: =VLOOKUP($A7,'5 Download BI9'!$A:$U,4,FALSE) -> 0001 - General Admin | E7: =VLOOKUP($A7,'5 Download BI9'!$A:$U,5,FALSE) -> 0001 | F7: =VLOOKUP($A7,'5 Download BI9'!$A:$U,6,FALSE) -> 1110 | G7: =VLOOKUP($A7,'5 Download BI9'!$A:$U,7,FALSE) -> 1110 | H7: =VLOOKUP($A7,'5 Download BI9'!$A:$U,8,FALSE) -> E | I7: O | J7: =VLOOKUP($A7,'5 Download BI9'!$A:$U,12,FALSE) -> 1110 - Award Staff - Superannuation. | K7: =VLOOKUP(J7,'Esc code lookup'!$B$4:$E$701,4,FALSE) -> Employee Costs | L7: =VLOOKUP(K7,#REF!,2,FALSE) ->  | M7: =IF(E7>"5003","M",IF(ISNA(VLOOKUP(C7,'Esc code lookup'!$G$31:$I$39,1,FALSE)),VLOOKUP(J7,'Esc code lookup'!$B:$C,2,FALSE),IF(F7="1512","M",VLOOKUP(C7,'Esc code lookup'!$G$31:$I$39,2,FALSE)))) -> 14 | N7: 0 | O7: 6.591 | P7: 6.591 | Q7: 6.99 | R7: 7.64706 | S7: 8.35823658 | T7: 9.110477872 | U7: 9.903089447 | V7: 10.74485205 | W7: 11.17464613 | X7: 11.62163198 | Y7: 12.08649726 | Z7: 12.56995715 | AA7: 13.07275543 | AB7: 13.59566565 | AC7: 14.13949228 | AE7: =VLOOKUP($M7,'4 Escalation codes'!$A:$Q,3,FALSE) -> 0 | AF7: =VLOOKUP($M7,'4 Escalation codes'!$A:$Q,4,FALSE) -> 0.044 | AG7: =VLOOKUP($M7,'4 Escalation codes'!$A:$Q,5,FALSE) -> 0.068 | AH7: =VLOOKUP($M7,'4 Escalation codes'!$A:$Q,6,FALSE) -> 0.094 | AI7: =VLOOKUP($M7,'4 Escalation codes'!$A:$Q,7,FALSE) -> 0.093 | AJ7: =VLOOKUP($M7,'4 Escalation codes'!$A:$Q,8,FALSE) -> 0.09 | AK7: =VLOOKUP($M7,'4 Escalation codes'!$A:$Q,9,FALSE) -> 0.087 | AL7: =VLOOKUP($M7,'4 Escalation codes'!$A:$Q,10,FALSE) -> 0.085 | AM7: =VLOOKUP($M7,'4 Escalation codes'!$A:$Q,11,FALSE) -> 0.04 | AN7: =VLOOKUP($M7,'4 Escalation codes'!$A:$Q,12,FALSE) -> 0.04 | AO7: =VLOOKUP($M7,'4 Escalation codes'!$A:$Q,13,FALSE) -> 0.04 | AP7: =VLOOKUP($M7,'4 Escalation codes'!$A:$Q,14,FALSE) -> 0.04 | AQ7: =VLOOKUP($M7,'4 Escalation codes'!$A:$Q,15,FALSE) -> 0.04 | AR7: =VLOOKUP($M7,'4 Escalation codes'!$A:$Q,16,FALSE) -> 0.04 | AS7: =VLOOKUP($M7,'4 Escalation codes'!$A:$Q,17,FALSE) -> 0.04 | AT7: =VLOOKUP($A7,'5 Download BI9'!$A:$U,13,FALSE) -> 6591 | AU7: =VLOOKUP($A7,'5 Download BI9'!$A:$U,13,FALSE) -> 6591 | AV7: =VLOOKUP($A7,'5 Download BI9'!$A:$U,20,FALSE) -> 6591 | AW7: =VLOOKUP($A7,'5 Download BI9'!$A:$U,19,FALSE) -> 6990 | AX7: 0.5027982859
A8: W1100.0001.1130 | B8: =VLOOKUP($A8,'5 Download BI9'!$A:$T,2,FALSE) -> 1100 - Mayor && Council | C8: =VLOOKUP($A8,'5 Download BI9'!$A:$U,3,FALSE) -> 1100 | D8: =VLOOKUP($A8,'5 Download BI9'!$A:$U,4,FALSE) -> 0001 - General Admin | E8: =VLOOKUP($A8,'5 Download BI9'!$A:$U,5,FALSE) -> 0001 | F8: =VLOOKUP($A8,'5 Download BI9'!$A:$U,6,FALSE) -> 1130 | G8: =VLOOKUP($A8,'5 Download BI9'!$A:$U,7,FALSE) -> 1130 | H8: =VLOOKUP($A8,'5 Download BI9'!$A:$U,8,FALSE) -> E | I8: O | J8: =VLOOKUP($A8,'5 Download BI9'!$A:$U,12,FALSE) -> 1130 - Staff Costs-Workers Comp Insur Prem | K8: =VLOOKUP(J8,'Esc code lookup'!$B$4:$E$701,4,FALSE) -> Employee Costs | L8: =VLOOKUP(K8,#REF!,2,FALSE) ->  | M8: =IF(E8>"5003","M",IF(ISNA(VLOOKUP(C8,'Esc code lookup'!$G$31:$I$39,1,FALSE)),VLOOKUP(J8,'Esc code lookup'!$B:$C,2,FALSE),IF(F8="1512","M",VLOOKUP(C8,'Esc code lookup'!$G$31:$I$39,2,FALSE)))) -> 3 | N8: 0 | O8: 2.762 | P8: 2.762 | Q8: 2.08 | R8: 2.1632 | S8: 2.249728 | T8: 2.33971712 | U8: 2.433305805 | V8: 2.530638037 | W8: 2.631863558 | X8: 2.737138101 | Y8: 2.846623625 | Z8: 2.96048857 | AA8: 3.078908113 | AB8: 3.202064437 | AC8: 3.330147015 | AE8: =VLOOKUP($M8,'4 Escalation codes'!$A:$Q,3,FALSE) -> 0.0325 | AF8: =VLOOKUP($M8,'4 Escalation codes'!$A:$Q,4,FALSE) -> 0.044 | AG8: =VLOOKUP($M8,'4 Escalation codes'!$A:$Q,5,FALSE) -> 0.04 | AH8: =VLOOKUP($M8,'4 Escalation codes'!$A:$Q,6,FALSE) -> 0.04 | AI8: =VLOOKUP($M8,'4 Escalation codes'!$A:$Q,7,FALSE) -> 0.04 | AJ8: =VLOOKUP($M8,'4 Escalation codes'!$A:$Q,8,FALSE) -> 0.04 | AK8: =VLOOKUP($M8,'4 Escalation codes'!$A:$Q,9,FALSE) -> 0.04 | AL8: =VLOOKUP($M8,'4 Escalation codes'!$A:$Q,10,FALSE) -> 0.04 | AM8: =VLOOKUP($M8,'4 Escalation codes'!$A:$Q,11,FALSE) -> 0.04 | AN8: =VLOOKUP($M8,'4 Escalation codes'!$A:$Q,12,FALSE) -> 0.04 | AO8: =VLOOKUP($M8,'4 Escalation codes'!$A:$Q,13,FALSE) -> 0.04 | AP8: =VLOOKUP($M8,'4 Escalation codes'!$A:$Q,14,FALSE) -> 0.04 | AQ8: =VLOOKUP($M8,'4 Escalation codes'!$A:$Q,15,FALSE) -> 0.04 | AR8: =VLOOKUP($M8,'4 Escalation codes'!$A:$Q,16,FALSE) -> 0.04 | AS8: =VLOOKUP($M8,'4 Escalation codes'!$A:$Q,17,FALSE) -> 0.04 | AT8: =VLOOKUP($A8,'5 Download BI9'!$A:$U,13,FALSE) -> 2762 | AU8: =VLOOKUP($A8,'5 Download BI9'!$A:$U,13,FALSE) -> 2762 | AV8: =VLOOKUP($A8,'5 Download BI9'!$A:$U,20,FALSE) -> 2762 | AW8: =VLOOKUP($A8,'5 Download BI9'!$A:$U,19,FALSE) -> 2080 | AX8: 0.1184195428
A9: W1100.0001.1241 | B9: =VLOOKUP($A9,'5 Download BI9'!$A:$T,2,FALSE) -> 1100 - Mayor && Council | C9: =VLOOKUP($A9,'5 Download BI9'!$A:$U,3,FALSE) -> 1100 | D9: =VLOOKUP($A9,'5 Download BI9'!$A:$U,4,FALSE) -> 0001 - General Admin | E9: =VLOOKUP($A9,'5 Download BI9'!$A:$U,5,FALSE) -> 0001 | F9: =VLOOKUP($A9,'5 Download BI9'!$A:$U,6,FALSE) -> 1241 | G9: =VLOOKUP($A9,'5 Download BI9'!$A:$U,7,FALSE) -> 1241 | H9: =VLOOKUP($A9,'5 Download BI9'!$A:$U,8,FALSE) -> E | I9: O | J9: =VLOOKUP($A9,'5 Download BI9'!$A:$U,12,FALSE) -> 1241 - Office Admin-Stationary | K9: =VLOOKUP(J9,'Esc code lookup'!$B$4:$E$701,4,FALSE) -> Materials and Contracts | L9: =VLOOKUP(K9,#REF!,2,FALSE) ->  | M9: =IF(E9>"5003","M",IF(ISNA(VLOOKUP(C9,'Esc code lookup'!$G$31:$I$39,1,FALSE)),VLOOKUP(J9,'Esc code lookup'!$B:$C,2,FALSE),IF(F9="1512","M",VLOOKUP(C9,'Esc code lookup'!$G$31:$I$39,2,FALSE)))) -> CPI-C | N9: 0 | O9: 14.14 | P9: 14.14 | Q9: 14.281 | R9: 14.638025 | S9: 15.00397562 | T9: 15.37907502 | U9: 15.80199958 | V9: 16.23655457 | W9: 16.68305982 | X9: 17.14184396 | Y9: 17.61324467 | Z9: 18.0976089 | AA9: 18.59529314 | AB9: 19.10666371 | AC9: 19.63209696 | AE9: =VLOOKUP($M9,'4 Escalation codes'!$A:$Q,3,FALSE) -> 0 | AF9: =VLOOKUP($M9,'4 Escalation codes'!$A:$Q,4,FALSE) -> 0.01 | AG9: =VLOOKUP($M9,'4 Escalation codes'!$A:$Q,5,FALSE) -> 0.03 | AH9: =VLOOKUP($M9,'4 Escalation codes'!$A:$Q,6,FALSE) -> 0.025 | AI9: =VLOOKUP($M9,'4 Escalation codes'!$A:$Q,7,FALSE) -> 0.025 | AJ9: =VLOOKUP($M9,'4 Escalation codes'!$A:$Q,8,FALSE) -> 0.025 | AK9: =VLOOKUP($M9,'4 Escalation codes'!$A:$Q,9,FALSE) -> 0.0275 | AL9: =VLOOKUP($M9,'4 Escalation codes'!$A:$Q,10,FALSE) -> 0.0275 | AM9: =VLOOKUP($M9,'4 Escalation codes'!$A:$Q,11,FALSE) -> 0.0275 | AN9: =VLOOKUP($M9,'4 Escalation codes'!$A:$Q,12,FALSE) -> 0.0275 | AO9: =VLOOKUP($M9,'4 Escalation codes'!$A:$Q,13,FALSE) -> 0.0275 | AP9: =VLOOKUP($M9,'4 Escalation codes'!$A:$Q,14,FALSE) -> 0.0275 | AQ9: =VLOOKUP($M9,'4 Escalation codes'!$A:$Q,15,FALSE) -> 0.0275 | AR9: =VLOOKUP($M9,'4 Escalation codes'!$A:$Q,16,FALSE) -> 0.0275 | AS9: =VLOOKUP($M9,'4 Escalation codes'!$A:$Q,17,FALSE) -> 0.0275 | AT9: =VLOOKUP($A9,'5 Download BI9'!$A:$U,13,FALSE) -> 14140 | AU9: =VLOOKUP($A9,'5 Download BI9'!$A:$U,13,FALSE) -> 14140 | AV9: =VLOOKUP($A9,'5 Download BI9'!$A:$U,20,FALSE) -> 14140 | AW9: =VLOOKUP($A9,'5 Download BI9'!$A:$U,19,FALSE) -> 14281 | AX9: 0.4976842447
A10: W1100.0001.1670 | B10: =VLOOKUP($A10,'5 Download BI9'!$A:$T,2,FALSE) -> 1100 - Mayor && Council | C10: =VLOOKUP($A10,'5 Download BI9'!$A:$U,3,FALSE) -> 1100 | D10: =VLOOKUP($A10,'5 Download BI9'!$A:$U,4,FALSE) -> 0001 - General Admin | E10: =VLOOKUP($A10,'5 Download BI9'!$A:$U,5,FALSE) -> 0001 | F10: =VLOOKUP($A10,'5 Download BI9'!$A:$U,6,FALSE) -> 1670 | G10: =VLOOKUP($A10,'5 Download BI9'!$A:$U,7,FALSE) -> 1670 | H10: =VLOOKUP($A10,'5 Download BI9'!$A:$U,8,FALSE) -> E | I10: O | J10: =VLOOKUP($A10,'5 Download BI9'!$A:$U,12,FALSE) -> 1670 - Gen Admin-Mayoral Allowance | K10: =VLOOKUP(J10,'Esc code lookup'!$B$4:$E$701,4,FALSE) -> Other Expenses | L10: =VLOOKUP(K10,#REF!,2,FALSE) ->  | M10: =IF(E10>"5003","M",IF(ISNA(VLOOKUP(C10,'Esc code lookup'!$G$31:$I$39,1,FALSE)),VLOOKUP(J10,'Esc code lookup'!$B:$C,2,FALSE),IF(F10="1512","M",VLOOKUP(C10,'Esc code lookup'!$G$31:$I$39,2,FALSE)))) -> CPI-C | N10: 0 | O10: 58.277 | P10: 58.277 | Q10: 60.025 | R10: 61.525625 | S10: 63.06376562 | T10: 64.64035977 | U10: 66.41796966 | V10: 68.24446382 | W10: 70.12118658 | X10: 72.04951921 | Y10: 74.03088099 | Z10: 76.06673022 | AA10: 78.1585653 | AB10: 80.30792584 | AC10: 82.5163938 | AE10: =VLOOKUP($M10,'4 Escalation codes'!$A:$Q,3,FALSE) -> 0 | AF10: =VLOOKUP($M10,'4 Escalation codes'!$A:$Q,4,FALSE) -> 0.01 | AG10: =VLOOKUP($M10,'4 Escalation codes'!$A:$Q,5,FALSE) -> 0.03 | AH10: =VLOOKUP($M10,'4 Escalation codes'!$A:$Q,6,FALSE) -> 0.025 | AI10: =VLOOKUP($M10,'4 Escalation codes'!$A:$Q,7,FALSE) -> 0.025 | AJ10: =VLOOKUP($M10,'4 Escalation codes'!$A:$Q,8,FALSE) -> 0.025 | AK10: =VLOOKUP($M10,'4 Escalation codes'!$A:$Q,9,FALSE) -> 0.0275 | AL10: =VLOOKUP($M10,'4 Escalation codes'!$A:$Q,10,FALSE) -> 0.0275 | AM10: =VLOOKUP($M10,'4 Escalation codes'!$A:$Q,11,FALSE) -> 0.0275 | AN10: =VLOOKUP($M10,'4 Escalation codes'!$A:$Q,12,FALSE) -> 0.0275 | AO10: =VLOOKUP($M10,'4 Escalation codes'!$A:$Q,13,FALSE) -> 0.0275 | AP10: =VLOOKUP($M10,'4 Escalation codes'!$A:$Q,14,FALSE) -> 0.0275 | AQ10: =VLOOKUP($M10,'4 Escalation codes'!$A:$Q,15,FALSE) -> 0.0275 | AR10: =VLOOKUP($M10,'4 Escalation codes'!$A:$Q,16,FALSE) -> 0.0275 | AS10: =VLOOKUP($M10,'4 Escalation codes'!$A:$Q,17,FALSE) -> 0.0275 | AT10: =VLOOKUP($A10,'5 Download BI9'!$A:$U,13,FALSE) -> 58277 | AU10: =VLOOKUP($A10,'5 Download BI9'!$A:$U,13,FALSE) -> 58277 | AV10: =VLOOKUP($A10,'5 Download BI9'!$A:$U,20,FALSE) -> 58277 | AW10: =VLOOKUP($A10,'5 Download BI9'!$A:$U,19,FALSE) -> 60025 | AX10: 2.091835081
A11: W1100.0001.1671 | B11: =VLOOKUP($A11,'5 Download BI9'!$A:$T,2,FALSE) -> 1100 - Mayor && Council | C11: =VLOOKUP($A11,'5 Download BI9'!$A:$U,3,FALSE) -> 1100 | D11: =VLOOKUP($A11,'5 Download BI9'!$A:$U,4,FALSE) -> 0001 - General Admin | E11: =VLOOKUP($A11,'5 Download BI9'!$A:$U,5,FALSE) -> 0001 | F11: =VLOOKUP($A11,'5 Download BI9'!$A:$U,6,FALSE) -> 1671 | G11: =VLOOKUP($A11,'5 Download BI9'!$A:$U,7,FALSE) -> 1671 | H11: =VLOOKUP($A11,'5 Download BI9'!$A:$U,8,FALSE) -> E | I11: O | J11: =VLOOKUP($A11,'5 Download BI9'!$A:$U,12,FALSE) -> 1671 - Gen Admin-Members Fees | K11: =VLOOKUP(J11,'Esc code lookup'!$B$4:$E$701,4,FALSE) -> Other Expenses | L11: =VLOOKUP(K11,#REF!,2,FALSE) ->  | M11: =IF(E11>"5003","M",IF(ISNA(VLOOKUP(C11,'Esc code lookup'!$G$31:$I$39,1,FALSE)),VLOOKUP(J11,'Esc code lookup'!$B:$C,2,FALSE),IF(F11="1512","M",VLOOKUP(C11,'Esc code lookup'!$G$31:$I$39,2,FALSE)))) -> CPI-C | N11: 0 | O11: 268.256 | P11: 268.256 | Q11: 276.304 | R11: 283.2116 | S11: 290.29189 | T11: 297.5491872 | U11: 305.7317899 | V11: 314.1394141 | W11: 322.778248 | X11: 331.6546498 | Y11: 340.7751527 | Z11: 350.1464694 | AA11: 359.7754973 | AB11: 369.6693235 | AC11: 379.8352299 | AE11: =VLOOKUP($M11,'4 Escalation codes'!$A:$Q,3,FALSE) -> 0 | AF11: =VLOOKUP($M11,'4 Escalation codes'!$A:$Q,4,FALSE) -> 0.01 | AG11: =VLOOKUP($M11,'4 Escalation codes'!$A:$Q,5,FALSE) -> 0.03 | AH11: =VLOOKUP($M11,'4 Escalation codes'!$A:$Q,6,FALSE) -> 0.025 | AI11: =VLOOKUP($M11,'4 Escalation codes'!$A:$Q,7,FALSE) -> 0.025 | AJ11: =VLOOKUP($M11,'4 Escalation codes'!$A:$Q,8,FALSE) -> 0.025 | AK11: =VLOOKUP($M11,'4 Escalation codes'!$A:$Q,9,FALSE) -> 0.0275 | AL11: =VLOOKUP($M11,'4 Escalation codes'!$A:$Q,10,FALSE) -> 0.0275 | AM11: =VLOOKUP($M11,'4 Escalation codes'!$A:$Q,11,FALSE) -> 0.0275 | AN11: =VLOOKUP($M11,'4 Escalation codes'!$A:$Q,12,FALSE) -> 0.0275 | AO11: =VLOOKUP($M11,'4 Escalation codes'!$A:$Q,13,FALSE) -> 0.0275 | AP11: =VLOOKUP($M11,'4 Escalation codes'!$A:$Q,14,FALSE) -> 0.0275 | AQ11: =VLOOKUP($M11,'4 Escalation codes'!$A:$Q,15,FALSE) -> 0.0275 | AR11: =VLOOKUP($M11,'4 Escalation codes'!$A:$Q,16,FALSE) -> 0.0275 | AS11: =VLOOKUP($M11,'4 Escalation codes'!$A:$Q,17,FALSE) -> 0.0275 | AT11: =VLOOKUP($A11,'5 Download BI9'!$A:$U,13,FALSE) -> 268256 | AU11: =VLOOKUP($A11,'5 Download BI9'!$A:$U,13,FALSE) -> 268256 | AV11: =VLOOKUP($A11,'5 Download BI9'!$A:$U,20,FALSE) -> 268256 | AW11: =VLOOKUP($A11,'5 Download BI9'!$A:$U,19,FALSE) -> 276304 | AX11: 9.629027908
A12: W1100.0001.1692 | B12: =VLOOKUP($A12,'5 Download BI9'!$A:$T,2,FALSE) -> 1100 - Mayor && Council | C12: =VLOOKUP($A12,'5 Download BI9'!$A:$U,3,FALSE) -> 1100 | D12: =VLOOKUP($A12,'5 Download BI9'!$A:$U,4,FALSE) -> 0001 - General Admin | E12: =VLOOKUP($A12,'5 Download BI9'!$A:$U,5,FALSE) -> 0001 | F12: =VLOOKUP($A12,'5 Download BI9'!$A:$U,6,FALSE) -> 1692 | G12: =VLOOKUP($A12,'5 Download BI9'!$A:$U,7,FALSE) -> 1692 | H12: =VLOOKUP($A12,'5 Download BI9'!$A:$U,8,FALSE) -> E | I12: O | J12: =VLOOKUP($A12,'5 Download BI9'!$A:$U,12,FALSE) -> 1692 - Insur Costs-Public && Prof Liability | K12: =VLOOKUP(J12,'Esc code lookup'!$B$4:$E$701,4,FALSE) -> Other Expenses | L12: =VLOOKUP(K12,#REF!,2,FALSE) ->  | M12: =IF(E12>"5003","M",IF(ISNA(VLOOKUP(C12,'Esc code lookup'!$G$31:$I$39,1,FALSE)),VLOOKUP(J12,'Esc code lookup'!$B:$C,2,FALSE),IF(F12="1512","M",VLOOKUP(C12,'Esc code lookup'!$G$31:$I$39,2,FALSE)))) -> CPI-C | N12: 0 | O12: 1.352 | P12: 1.352 | Q12: 1.443 | R12: 1.479075 | S12: 1.516051875 | T12: 1.553953172 | U12: 1.596686884 | V12: 1.640595773 | W12: 1.685712157 | X12: 1.732069242 | Y12: 1.779701146 | Z12: 1.828642927 | AA12: 1.878930608 | AB12: 1.930601199 | AC12: 1.983692732 | AE12: =VLOOKUP($M12,'4 Escalation codes'!$A:$Q,3,FALSE) -> 0 | AF12: =VLOOKUP($M12,'4 Escalation codes'!$A:$Q,4,FALSE) -> 0.01 | AG12: =VLOOKUP($M12,'4 Escalation codes'!$A:$Q,5,FALSE) -> 0.03 | AH12: =VLOOKUP($M12,'4 Escalation codes'!$A:$Q,6,FALSE) -> 0.025 | AI12: =VLOOKUP($M12,'4 Escalation codes'!$A:$Q,7,FALSE) -> 0.025 | AJ12: =VLOOKUP($M12,'4 Escalation codes'!$A:$Q,8,FALSE) -> 0.025 | AK12: =VLOOKUP($M12,'4 Escalation codes'!$A:$Q,9,FALSE) -> 0.0275 | AL12: =VLOOKUP($M12,'4 Escalation codes'!$A:$Q,10,FALSE) -> 0.0275 | AM12: =VLOOKUP($M12,'4 Escalation codes'!$A:$Q,11,FALSE) -> 0.0275 | AN12: =VLOOKUP($M12,'4 Escalation codes'!$A:$Q,12,FALSE) -> 0.0275 | AO12: =VLOOKUP($M12,'4 Escalation codes'!$A:$Q,13,FALSE) -> 0.0275 | AP12: =VLOOKUP($M12,'4 Escalation codes'!$A:$Q,14,FALSE) -> 0.0275 | AQ12: =VLOOKUP($M12,'4 Escalation codes'!$A:$Q,15,FALSE) -> 0.0275 | AR12: =VLOOKUP($M12,'4 Escalation codes'!$A:$Q,16,FALSE) -> 0.0275 | AS12: =VLOOKUP($M12,'4 Escalation codes'!$A:$Q,17,FALSE) -> 0.0275 | AT12: =VLOOKUP($A12,'5 Download BI9'!$A:$U,13,FALSE) -> 1352 | AU12: =VLOOKUP($A12,'5 Download BI9'!$A:$U,13,FALSE) -> 1352 | AV12: =VLOOKUP($A12,'5 Download BI9'!$A:$U,20,FALSE) -> 1352 | AW12: =VLOOKUP($A12,'5 Download BI9'!$A:$U,19,FALSE) -> 1443 | AX12: 0.0502876805
A13: W1100.0002.1660 | B13: =VLOOKUP($A13,'5 Download BI9'!$A:$T,2,FALSE) -> 1100 - Mayor && Council | C13: =VLOOKUP($A13,'5 Download BI9'!$A:$U,3,FALSE) -> 1100 | D13: =VLOOKUP($A13,'5 Download BI9'!$A:$U,4,FALSE) -> 0002 - Election Expenses | E13: =VLOOKUP($A13,'5 Download BI9'!$A:$U,5,FALSE) -> 0002 | F13: =VLOOKUP($A13,'5 Download BI9'!$A:$U,6,FALSE) -> 1660 | G13: =VLOOKUP($A13,'5 Download BI9'!$A:$U,7,FALSE) -> 1660 | H13: =VLOOKUP($A13,'5 Download BI9'!$A:$U,8,FALSE) -> E | I13: O | J13: =VLOOKUP($A13,'5 Download BI9'!$A:$U,12,FALSE) -> 1660 - Gen Admin-Election Expenses | K13: =VLOOKUP(J13,'Esc code lookup'!$B$4:$E$701,4,FALSE) -> Other Expenses | L13: =VLOOKUP(K13,#REF!,2,FALSE) ->  | M13: =IF(E13>"5003","M",IF(ISNA(VLOOKUP(C13,'Esc code lookup'!$G$31:$I$39,1,FALSE)),VLOOKUP(J13,'Esc code lookup'!$B:$C,2,FALSE),IF(F13="1512","M",VLOOKUP(C13,'Esc code lookup'!$G$31:$I$39,2,FALSE)))) -> M | N13: 0 | O13: 1e-05 | P13: 305.00001 | Q13: 0 | R13: =IF($M13="M"," ",+Q13*(1+AH13)) ->  | S13: ='3 Assumptions'!L30 -> 349.74886 | T13: ='3 Assumptions'!M30 -> 0 | U13: ='3 Assumptions'!N30 -> 0 | V13: ='3 Assumptions'!O30 -> 0 | W13: ='3 Assumptions'!P30 -> 425.0421443 | X13: ='3 Assumptions'!Q30 -> 0 | Y13: ='3 Assumptions'!R30 -> 0 | Z13: ='3 Assumptions'!S30 -> 0 | AA13: ='3 Assumptions'!T30 -> 575.7513996 | AB13: ='3 Assumptions'!U30 -> 0 | AC13: ='3 Assumptions'!V30 -> 0 | AD13: =IF(O13=0,IF(P13<>0,"new"," ")) -> FALSE | AE13: =VLOOKUP($M13,'4 Escalation codes'!$A:$Q,3,FALSE) -> 0 | AF13: =VLOOKUP($M13,'4 Escalation codes'!$A:$Q,4,FALSE) -> 0 | AG13: =VLOOKUP($M13,'4 Escalation codes'!$A:$Q,5,FALSE) -> 0 | AH13: =VLOOKUP($M13,'4 Escalation codes'!$A:$Q,6,FALSE) -> 0 | AI13: =VLOOKUP($M13,'4 Escalation codes'!$A:$Q,7,FALSE) -> 0 | AJ13: =VLOOKUP($M13,'4 Escalation codes'!$A:$Q,8,FALSE) -> 0 | AK13: =VLOOKUP($M13,'4 Escalation codes'!$A:$Q,9,FALSE) -> 0 | AL13: =VLOOKUP($M13,'4 Escalation codes'!$A:$Q,10,FALSE) -> 0 | AM13: =VLOOKUP($M13,'4 Escalation codes'!$A:$Q,11,FALSE) -> 0 | AN13: =VLOOKUP($M13,'4 Escalation codes'!$A:$Q,12,FALSE) -> 0 | AO13: =VLOOKUP($M13,'4 Escalation codes'!$A:$Q,13,FALSE) -> 0 | AP13: =VLOOKUP($M13,'4 Escalation codes'!$A:$Q,14,FALSE) -> 0 | AQ13: =VLOOKUP($M13,'4 Escalation codes'!$A:$Q,15,FALSE) -> 0 | AR13: =VLOOKUP($M13,'4 Escalation codes'!$A:$Q,16,FALSE) -> 0 | AS13: =VLOOKUP($M13,'4 Escalation codes'!$A:$Q,17,FALSE) -> 0 | AT13: =VLOOKUP($A13,'5 Download BI9'!$A:$U,13,FALSE) -> 0.01 | AU13: =VLOOKUP($A13,'5 Download BI9'!$A:$U,13,FALSE) -> 0.01 | AV13: =VLOOKUP($A13,'5 Download BI9'!$A:$U,20,FALSE) -> 305000.01 | AW13: =VLOOKUP($A13,'5 Download BI9'!$A:$U,19,FALSE) -> 0 | AX13: 575.7513996
A14: W1100.0002.3324 | B14: =VLOOKUP($A14,'5 Download BI9'!$A:$T,2,FALSE) -> 1100 - Mayor && Council | C14: =VLOOKUP($A14,'5 Download BI9'!$A:$U,3,FALSE) -> 1100 | D14: =VLOOKUP($A14,'5 Download BI9'!$A:$U,4,FALSE) -> 0002 - Election Expenses | E14: =VLOOKUP($A14,'5 Download BI9'!$A:$U,5,FALSE) -> 0002 | F14: =VLOOKUP($A14,'5 Download BI9'!$A:$U,6,FALSE) -> 3324 | G14: =VLOOKUP($A14,'5 Download BI9'!$A:$U,7,FALSE) -> 3324 | H14: =VLOOKUP($A14,'5 Download BI9'!$A:$U,8,FALSE) -> E | I14: O | J14: =VLOOKUP($A14,'5 Download BI9'!$A:$U,12,FALSE) -> 3324 - Trf To-Election Reserve | K14: =VLOOKUP(J14,'Esc code lookup'!$B$4:$E$701,4,FALSE) -> Transfers to Reserves | L14: =VLOOKUP(K14,#REF!,2,FALSE) ->  | M14: =IF(E14>"5003","M",IF(ISNA(VLOOKUP(C14,'Esc code lookup'!$G$31:$I$39,1,FALSE)),VLOOKUP(J14,'Esc code lookup'!$B:$C,2,FALSE),IF(F14="1512","M",VLOOKUP(C14,'Esc code lookup'!$G$31:$I$39,2,FALSE)))) -> M | N14: 0 | O14: 50 | P14: 50 | Q14: 50 | R14: =Q14 -> 50 | S14: =IF($M14="M"," ",+R14*(1+AI14)) ->  | T14: 50 | U14: 50 | V14: 50 | W14: =IF($M14="M"," ",+V14*(1+AM14)) ->  | X14: 50 | Y14: 50 | Z14: 50 | AA14: =IF($M14="M"," ",+Z14*(1+AQ14)) ->  | AB14: =IF($M14="M"," ",+AA14*(1+AR14)) ->  | AC14: =IF($M14="M"," ",+AB14*(1+AS14)) ->  | AE14: =VLOOKUP($M14,'4 Escalation codes'!$A:$Q,3,FALSE) -> 0 | AF14: =VLOOKUP($M14,'4 Escalation codes'!$A:$Q,4,FALSE) -> 0 | AG14: =VLOOKUP($M14,'4 Escalation codes'!$A:$Q,5,FALSE) -> 0 | AH14: =VLOOKUP($M14,'4 Escalation codes'!$A:$Q,6,FALSE) -> 0 | AI14: =VLOOKUP($M14,'4 Escalation codes'!$A:$Q,7,FALSE) -> 0 | AJ14: =VLOOKUP($M14,'4 Escalation codes'!$A:$Q,8,FALSE) -> 0 | AK14: =VLOOKUP($M14,'4 Escalation codes'!$A:$Q,9,FALSE) -> 0 | AL14: =VLOOKUP($M14,'4 Escalation codes'!$A:$Q,10,FALSE) -> 0 | AM14: =VLOOKUP($M14,'4 Escalation codes'!$A:$Q,11,FALSE) -> 0 | AN14: =VLOOKUP($M14,'4 Escalation codes'!$A:$Q,12,FALSE) -> 0 | AO14: =VLOOKUP($M14,'4 Escalation codes'!$A:$Q,13,FALSE) -> 0 | AP14: =VLOOKUP($M14,'4 Escalation codes'!$A:$Q,14,FALSE) -> 0 | AQ14: =VLOOKUP($M14,'4 Escalation codes'!$A:$Q,15,FALSE) -> 0 | AR14: =VLOOKUP($M14,'4 Escalation codes'!$A:$Q,16,FALSE) -> 0 | AS14: =VLOOKUP($M14,'4 Escalation codes'!$A:$Q,17,FALSE) -> 0 | AT14: =VLOOKUP($A14,'5 Download BI9'!$A:$U,13,FALSE) -> 50000 | AU14: =VLOOKUP($A14,'5 Download BI9'!$A:$U,13,FALSE) -> 50000 | AV14: =VLOOKUP($A14,'5 Download BI9'!$A:$U,20,FALSE) -> 50000 | AW14: =VLOOKUP($A14,'5 Download BI9'!$A:$U,19,FALSE) -> 50000
A15: W1100.0003.1161 | B15: =VLOOKUP($A15,'5 Download BI9'!$A:$T,2,FALSE) -> 1100 - Mayor && Council | C15: =VLOOKUP($A15,'5 Download BI9'!$A:$U,3,FALSE) -> 1100 | D15: =VLOOKUP($A15,'5 Download BI9'!$A:$U,4,FALSE) -> 0003 - Delegates Expenses | E15: =VLOOKUP($A15,'5 Download BI9'!$A:$U,5,FALSE) -> 0003 | F15: =VLOOKUP($A15,'5 Download BI9'!$A:$U,6,FALSE) -> 1161 | G15: =VLOOKUP($A15,'5 Download BI9'!$A:$U,7,FALSE) -> 1161 | H15: =VLOOKUP($A15,'5 Download BI9'!$A:$U,8,FALSE) -> E | I15: O | J15: =VLOOKUP($A15,'5 Download BI9'!$A:$U,12,FALSE) -> 1161 - Staff Costs-Conferences/Seminars | K15: =VLOOKUP(J15,'Esc code lookup'!$B$4:$E$701,4,FALSE) -> Employee Costs | L15: =VLOOKUP(K15,#REF!,2,FALSE) ->  | M15: =IF(E15>"5003","M",IF(ISNA(VLOOKUP(C15,'Esc code lookup'!$G$31:$I$39,1,FALSE)),VLOOKUP(J15,'Esc code lookup'!$B:$C,2,FALSE),IF(F15="1512","M",VLOOKUP(C15,'Esc code lookup'!$G$31:$I$39,2,FALSE)))) -> 3 | N15: 0 | O15: 39 | P15: 39 | Q15: 39.39 | R15: =IF($M15="M"," ",+Q15*(1+AH15)) -> 40.9656 | S15: 42.604224 | T15: =IF($M15="M"," ",+S15*(1+AJ15)) -> 44.30839296 | U15: =IF($M15="M"," ",+T15*(1+AK15)) -> 46.08072868 | V15: =IF($M15="M"," ",+U15*(1+AL15)) -> 47.92395783 | W15: 49.84091614 | X15: =IF($M15="M"," ",+W15*(1+AN15)) -> 51.83455278 | Y15: =IF($M15="M"," ",+X15*(1+AO15)) -> 53.9079349 | Z15: =IF($M15="M"," ",+Y15*(1+AP15)) -> 56.06425229 | AA15: 58.30682238 | AB15: 60.63909528 | AC15: 63.06465909 | AE15: =VLOOKUP($M15,'4 Escalation codes'!$A:$Q,3,FALSE) -> 0.0325 | AF15: =VLOOKUP($M15,'4 Escalation codes'!$A:$Q,4,FALSE) -> 0.044 | AG15: =VLOOKUP($M15,'4 Escalation codes'!$A:$Q,5,FALSE) -> 0.04 | AH15: =VLOOKUP($M15,'4 Escalation codes'!$A:$Q,6,FALSE) -> 0.04 | AI15: =VLOOKUP($M15,'4 Escalation codes'!$A:$Q,7,FALSE) -> 0.04 | AJ15: =VLOOKUP($M15,'4 Escalation codes'!$A:$Q,8,FALSE) -> 0.04 | AK15: =VLOOKUP($M15,'4 Escalation codes'!$A:$Q,9,FALSE) -> 0.04 | AL15: =VLOOKUP($M15,'4 Escalation codes'!$A:$Q,10,FALSE) -> 0.04 | AM15: =VLOOKUP($M15,'4 Escalation codes'!$A:$Q,11,FALSE) -> 0.04 | AN15: =VLOOKUP($M15,'4 Escalation codes'!$A:$Q,12,FALSE) -> 0.04 | AO15: =VLOOKUP($M15,'4 Escalation codes'!$A:$Q,13,FALSE) -> 0.04 | AP15: =VLOOKUP($M15,'4 Escalation codes'!$A:$Q,14,FALSE) -> 0.04 | AQ15: =VLOOKUP($M15,'4 Escalation codes'!$A:$Q,15,FALSE) -> 0.04 | AR15: =VLOOKUP($M15,'4 Escalation codes'!$A:$Q,16,FALSE) -> 0.04 | AS15: =VLOOKUP($M15,'4 Escalation codes'!$A:$Q,17,FALSE) -> 0.04 | AT15: =VLOOKUP($A15,'5 Download BI9'!$A:$U,13,FALSE) -> 39000 | AU15: =VLOOKUP($A15,'5 Download BI9'!$A:$U,13,FALSE) -> 39000 | AV15: =VLOOKUP($A15,'5 Download BI9'!$A:$U,20,FALSE) -> 39000 | AW15: =VLOOKUP($A15,'5 Download BI9'!$A:$U,19,FALSE) -> 39390 | AX15: 2.242570092
A16: W1100.0003.1749 | B16: =VLOOKUP($A16,'5 Download BI9'!$A:$T,2,FALSE) -> 1100 - Mayor && Council | C16: =VLOOKUP($A16,'5 Download BI9'!$A:$U,3,FALSE) -> 1100 | D16: =VLOOKUP($A16,'5 Download BI9'!$A:$U,4,FALSE) -> 0003 - Delegates Expenses | E16: =VLOOKUP($A16,'5 Download BI9'!$A:$U,5,FALSE) -> 0003 | F16: =VLOOKUP($A16,'5 Download BI9'!$A:$U,6,FALSE) -> 1749 | G16: =VLOOKUP($A16,'5 Download BI9'!$A:$U,7,FALSE) -> 1749 | H16: =VLOOKUP($A16,'5 Download BI9'!$A:$U,8,FALSE) -> E | I16: O | J16: =VLOOKUP($A16,'5 Download BI9'!$A:$U,12,FALSE) -> 1749 - Comm Costs-Other | K16: =VLOOKUP(J16,'Esc code lookup'!$B$4:$E$701,4,FALSE) -> Other Expenses | L16: =VLOOKUP(K16,#REF!,2,FALSE) ->  | M16: =IF(E16>"5003","M",IF(ISNA(VLOOKUP(C16,'Esc code lookup'!$G$31:$I$39,1,FALSE)),VLOOKUP(J16,'Esc code lookup'!$B:$C,2,FALSE),IF(F16="1512","M",VLOOKUP(C16,'Esc code lookup'!$G$31:$I$39,2,FALSE)))) -> CPI-C | N16: 0 | O16: 18.98 | P16: 18.98 | Q16: 19.17 | R16: 19.64925 | S16: 20.14048125 | T16: 20.64399328 | U16: 21.2117031 | V16: 21.79502493 | W16: 22.39438812 | X16: 23.01023379 | Y16: 23.64301522 | Z16: 24.29319814 | AA16: 24.96126109 | AB16: 25.64769577 | AC16: 26.3530074 | AE16: =VLOOKUP($M16,'4 Escalation codes'!$A:$Q,3,FALSE) -> 0 | AF16: =VLOOKUP($M16,'4 Escalation codes'!$A:$Q,4,FALSE) -> 0.01 | AG16: =VLOOKUP($M16,'4 Escalation codes'!$A:$Q,5,FALSE) -> 0.03 | AH16: =VLOOKUP($M16,'4 Escalation codes'!$A:$Q,6,FALSE) -> 0.025 | AI16: =VLOOKUP($M16,'4 Escalation codes'!$A:$Q,7,FALSE) -> 0.025 | AJ16: =VLOOKUP($M16,'4 Escalation codes'!$A:$Q,8,FALSE) -> 0.025 | AK16: =VLOOKUP($M16,'4 Escalation codes'!$A:$Q,9,FALSE) -> 0.0275 | AL16: =VLOOKUP($M16,'4 Escalation codes'!$A:$Q,10,FALSE) -> 0.0275 | AM16: =VLOOKUP($M16,'4 Escalation codes'!$A:$Q,11,FALSE) -> 0.0275 | AN16: =VLOOKUP($M16,'4 Escalation codes'!$A:$Q,12,FALSE) -> 0.0275 | AO16: =VLOOKUP($M16,'4 Escalation codes'!$A:$Q,13,FALSE) -> 0.0275 | AP16: =VLOOKUP($M16,'4 Escalation codes'!$A:$Q,14,FALSE) -> 0.0275 | AQ16: =VLOOKUP($M16,'4 Escalation codes'!$A:$Q,15,FALSE) -> 0.0275 | AR16: =VLOOKUP($M16,'4 Escalation codes'!$A:$Q,16,FALSE) -> 0.0275 | AS16: =VLOOKUP($M16,'4 Escalation codes'!$A:$Q,17,FALSE) -> 0.0275 | AT16: =VLOOKUP($A16,'5 Download BI9'!$A:$U,13,FALSE) -> 18980 | AU16: =VLOOKUP($A16,'5 Download BI9'!$A:$U,13,FALSE) -> 18980 | AV16: =VLOOKUP($A16,'5 Download BI9'!$A:$U,20,FALSE) -> 18980 | AW16: =VLOOKUP($A16,'5 Download BI9'!$A:$U,19,FALSE) -> 19170 | AX16: 0.6680629488
A17: W1100.0004.1243 | B17: =VLOOKUP($A17,'5 Download BI9'!$A:$T,2,FALSE) -> 1100 - Mayor && Council | C17: =VLOOKUP($A17,'5 Download BI9'!$A:$U,3,FALSE) -> 1100 | D17: =VLOOKUP($A17,'5 Download BI9'!$A:$U,4,FALSE) -> 0004 - Council Functions | E17: =VLOOKUP($A17,'5 Download BI9'!$A:$U,5,FALSE) -> 0004 | F17: =VLOOKUP($A17,'5 Download BI9'!$A:$U,6,FALSE) -> 1243 | G17: =VLOOKUP($A17,'5 Download BI9'!$A:$U,7,FALSE) -> 1243 | H17: =VLOOKUP($A17,'5 Download BI9'!$A:$U,8,FALSE) -> E | I17: O | J17: =VLOOKUP($A17,'5 Download BI9'!$A:$U,12,FALSE) -> 1243 - Gen Admin-Food Supplies - No GST | K17: =VLOOKUP(J17,'Esc code lookup'!$B$4:$E$701,4,FALSE) -> Materials and Contracts | L17: =VLOOKUP(K17,#REF!,2,FALSE) ->  | M17: =IF(E17>"5003","M",IF(ISNA(VLOOKUP(C17,'Esc code lookup'!$G$31:$I$39,1,FALSE)),VLOOKUP(J17,'Esc code lookup'!$B:$C,2,FALSE),IF(F17="1512","M",VLOOKUP(C17,'Esc code lookup'!$G$31:$I$39,2,FALSE)))) -> CPI-C | N17: 0 | O17: 36.36 | P17: 36.36 | Q17: 36.724 | R17: 37.6421 | S17: 38.5831525 | T17: 39.54773131 | U17: 40.63529392 | V17: 41.75276451 | W17: 42.90096553 | X17: 44.08074208 | Y17: 45.29296249 | Z17: 46.53851896 | AA17: 47.81832823 | AB17: 49.13333226 | AC17: 50.48449889 | AE17: =VLOOKUP($M17,'4 Escalation codes'!$A:$Q,3,FALSE) -> 0 | AF17: =VLOOKUP($M17,'4 Escalation codes'!$A:$Q,4,FALSE) -> 0.01 | AG17: =VLOOKUP($M17,'4 Escalation codes'!$A:$Q,5,FALSE) -> 0.03 | AH17: =VLOOKUP($M17,'4 Escalation codes'!$A:$Q,6,FALSE) -> 0.025 | AI17: =VLOOKUP($M17,'4 Escalation codes'!$A:$Q,7,FALSE) -> 0.025 | AJ17: =VLOOKUP($M17,'4 Escalation codes'!$A:$Q,8,FALSE) -> 0.025 | AK17: =VLOOKUP($M17,'4 Escalation codes'!$A:$Q,9,FALSE) -> 0.0275 | AL17: =VLOOKUP($M17,'4 Escalation codes'!$A:$Q,10,FALSE) -> 0.0275 | AM17: =VLOOKUP($M17,'4 Escalation codes'!$A:$Q,11,FALSE) -> 0.0275 | AN17: =VLOOKUP($M17,'4 Escalation codes'!$A:$Q,12,FALSE) -> 0.0275 | AO17: =VLOOKUP($M17,'4 Escalation codes'!$A:$Q,13,FALSE) -> 0.0275 | AP17: =VLOOKUP($M17,'4 Escalation codes'!$A:$Q,14,FALSE) -> 0.0275 | AQ17: =VLOOKUP($M17,'4 Escalation codes'!$A:$Q,15,FALSE) -> 0.0275 | AR17: =VLOOKUP($M17,'4 Escalation codes'!$A:$Q,16,FALSE) -> 0.0275 | AS17: =VLOOKUP($M17,'4 Escalation codes'!$A:$Q,17,FALSE) -> 0.0275 | AT17: =VLOOKUP($A17,'5 Download BI9'!$A:$U,13,FALSE) -> 36360 | AU17: =VLOOKUP($A17,'5 Download BI9'!$A:$U,13,FALSE) -> 36360 | AV17: =VLOOKUP($A17,'5 Download BI9'!$A:$U,20,FALSE) -> 36360 | AW17: =VLOOKUP($A17,'5 Download BI9'!$A:$U,19,FALSE) -> 36724 | AX17: 1.279809271
A18: W1100.0004.1244 | B18: =VLOOKUP($A18,'5 Download BI9'!$A:$T,2,FALSE) -> 1100 - Mayor && Council | C18: =VLOOKUP($A18,'5 Download BI9'!$A:$U,3,FALSE) -> 1100 | D18: =VLOOKUP($A18,'5 Download BI9'!$A:$U,4,FALSE) -> 0004 - Council Functions | E18: =VLOOKUP($A18,'5 Download BI9'!$A:$U,5,FALSE) -> 0004 | F18: =VLOOKUP($A18,'5 Download BI9'!$A:$U,6,FALSE) -> 1244 | G18: =VLOOKUP($A18,'5 Download BI9'!$A:$U,7,FALSE) -> 1244 | H18: =VLOOKUP($A18,'5 Download BI9'!$A:$U,8,FALSE) -> E | I18: O | J18: =VLOOKUP($A18,'5 Download BI9'!$A:$U,12,FALSE) -> 1244 - Gen Admin-Food Supplies - GST | K18: =VLOOKUP(J18,'Esc code lookup'!$B$4:$E$701,4,FALSE) -> Materials and Contracts | L18: =VLOOKUP(K18,#REF!,2,FALSE) ->  | M18: =IF(E18>"5003","M",IF(ISNA(VLOOKUP(C18,'Esc code lookup'!$G$31:$I$39,1,FALSE)),VLOOKUP(J18,'Esc code lookup'!$B:$C,2,FALSE),IF(F18="1512","M",VLOOKUP(C18,'Esc code lookup'!$G$31:$I$39,2,FALSE)))) -> CPI-C | N18: 0 | O18: 4.636 | P18: 4.636 | Q18: 4.682 | R18: 4.79905 | S18: 4.91902625 | T18: 5.042001906 | U18: 5.180656959 | V18: 5.323125025 | W18: 5.469510963 | X18: 5.619922515 | Y18: 5.774470384 | Z18: 5.933268319 | AA18: 6.096433198 | AB18: 6.264085111 | AC18: 6.436347452 | AE18: =VLOOKUP($M18,'4 Escalation codes'!$A:$Q,3,FALSE) -> 0 | AF18: =VLOOKUP($M18,'4 Escalation codes'!$A:$Q,4,FALSE) -> 0.01 | AG18: =VLOOKUP($M18,'4 Escalation codes'!$A:$Q,5,FALSE) -> 0.03 | AH18: =VLOOKUP($M18,'4 Escalation codes'!$A:$Q,6,FALSE) -> 0.025 | AI18: =VLOOKUP($M18,'4 Escalation codes'!$A:$Q,7,FALSE) -> 0.025 | AJ18: =VLOOKUP($M18,'4 Escalation codes'!$A:$Q,8,FALSE) -> 0.025 | AK18: =VLOOKUP($M18,'4 Escalation codes'!$A:$Q,9,FALSE) -> 0.0275 | AL18: =VLOOKUP($M18,'4 Escalation codes'!$A:$Q,10,FALSE) -> 0.0275 | AM18: =VLOOKUP($M18,'4 Escalation codes'!$A:$Q,11,FALSE) -> 0.0275 | AN18: =VLOOKUP($M18,'4 Escalation codes'!$A:$Q,12,FALSE) -> 0.0275 | AO18: =VLOOKUP($M18,'4 Escalation codes'!$A:$Q,13,FALSE) -> 0.0275 | AP18: =VLOOKUP($M18,'4 Escalation codes'!$A:$Q,14,FALSE) -> 0.0275 | AQ18: =VLOOKUP($M18,'4 Escalation codes'!$A:$Q,15,FALSE) -> 0.0275 | AR18: =VLOOKUP($M18,'4 Escalation codes'!$A:$Q,16,FALSE) -> 0.0275 | AS18: =VLOOKUP($M18,'4 Escalation codes'!$A:$Q,17,FALSE) -> 0.0275 | AT18: =VLOOKUP($A18,'5 Download BI9'!$A:$U,13,FALSE) -> 4636 | AU18: =VLOOKUP($A18,'5 Download BI9'!$A:$U,13,FALSE) -> 4636 | AV18: =VLOOKUP($A18,'5 Download BI9'!$A:$U,20,FALSE) -> 4636 | AW18: =VLOOKUP($A18,'5 Download BI9'!$A:$U,19,FALSE) -> 4682 | AX18: 0.1631648788
A19: W1100.0005.1672 | B19: =VLOOKUP($A19,'5 Download BI9'!$A:$T,2,FALSE) -> 1100 - Mayor && Council | C19: =VLOOKUP($A19,'5 Download BI9'!$A:$U,3,FALSE) -> 1100 | D19: =VLOOKUP($A19,'5 Download BI9'!$A:$U,4,FALSE) -> 0005 - Citizenship Ceromonies | E19: =VLOOKUP($A19,'5 Download BI9'!$A:$U,5,FALSE) -> 0005 | F19: =VLOOKUP($A19,'5 Download BI9'!$A:$U,6,FALSE) -> 1672 | G19: =VLOOKUP($A19,'5 Download BI9'!$A:$U,7,FALSE) -> 1672 | H19: =VLOOKUP($A19,'5 Download BI9'!$A:$U,8,FALSE) -> E | I19: O | J19: =VLOOKUP($A19,'5 Download BI9'!$A:$U,12,FALSE) -> 1672 - Councillors- Other Expenses | K19: =VLOOKUP(J19,'Esc code lookup'!$B$4:$E$701,4,FALSE) -> Other Expenses | L19: =VLOOKUP(K19,#REF!,2,FALSE) ->  | M19: =IF(E19>"5003","M",IF(ISNA(VLOOKUP(C19,'Esc code lookup'!$G$31:$I$39,1,FALSE)),VLOOKUP(J19,'Esc code lookup'!$B:$C,2,FALSE),IF(F19="1512","M",VLOOKUP(C19,'Esc code lookup'!$G$31:$I$39,2,FALSE)))) -> CPI-C | N19: 0 | O19: 2 | P19: 2 | Q19: 2.02 | R19: 2.0705 | S19: 2.1222625 | T19: 2.175319062 | U19: 2.235140337 | V19: 2.296606696 | W19: 2.35976338 | X19: 2.424656873 | Y19: 2.491334937 | Z19: 2.559846648 | AA19: 2.630242431 | AB19: 2.702574098 | AC19: 2.776894885 | AE19: =VLOOKUP($M19,'4 Escalation codes'!$A:$Q,3,FALSE) -> 0 | AF19: =VLOOKUP($M19,'4 Escalation codes'!$A:$Q,4,FALSE) -> 0.01 | AG19: =VLOOKUP($M19,'4 Escalation codes'!$A:$Q,5,FALSE) -> 0.03 | AH19: =VLOOKUP($M19,'4 Escalation codes'!$A:$Q,6,FALSE) -> 0.025 | AI19: =VLOOKUP($M19,'4 Escalation codes'!$A:$Q,7,FALSE) -> 0.025 | AJ19: =VLOOKUP($M19,'4 Escalation codes'!$A:$Q,8,FALSE) -> 0.025 | AK19: =VLOOKUP($M19,'4 Escalation codes'!$A:$Q,9,FALSE) -> 0.0275 | AL19: =VLOOKUP($M19,'4 Escalation codes'!$A:$Q,10,FALSE) -> 0.0275 | AM19: =VLOOKUP($M19,'4 Escalation codes'!$A:$Q,11,FALSE) -> 0.0275 | AN19: =VLOOKUP($M19,'4 Escalation codes'!$A:$Q,12,FALSE) -> 0.0275 | AO19: =VLOOKUP($M19,'4 Escalation codes'!$A:$Q,13,FALSE) -> 0.0275 | AP19: =VLOOKUP($M19,'4 Escalation codes'!$A:$Q,14,FALSE) -> 0.0275 | AQ19: =VLOOKUP($M19,'4 Escalation codes'!$A:$Q,15,FALSE) -> 0.0275 | AR19: =VLOOKUP($M19,'4 Escalation codes'!$A:$Q,16,FALSE) -> 0.0275 | AS19: =VLOOKUP($M19,'4 Escalation codes'!$A:$Q,17,FALSE) -> 0.0275 | AT19: =VLOOKUP($A19,'5 Download BI9'!$A:$U,13,FALSE) -> 2000 | AU19: =VLOOKUP($A19,'5 Download BI9'!$A:$U,13,FALSE) -> 2000 | AV19: =VLOOKUP($A19,'5 Download BI9'!$A:$U,20,FALSE) -> 2000 | AW19: =VLOOKUP($A19,'5 Download BI9'!$A:$U,19,FALSE) -> 2020 | AX19: 0.07039578282
A20: W1100.0005.1832 | B20: =VLOOKUP($A20,'5 Download BI9'!$A:$T,2,FALSE) -> 1100 - Mayor && Council | C20: =VLOOKUP($A20,'5 Download BI9'!$A:$U,3,FALSE) -> 1100 | D20: =VLOOKUP($A20,'5 Download BI9'!$A:$U,4,FALSE) -> 0005 - Citizenship Ceromonies | E20: =VLOOKUP($A20,'5 Download BI9'!$A:$U,5,FALSE) -> 0005 | F20: =VLOOKUP($A20,'5 Download BI9'!$A:$U,6,FALSE) -> 1832 | G20: =VLOOKUP($A20,'5 Download BI9'!$A:$U,7,FALSE) -> 1832 | H20: =VLOOKUP($A20,'5 Download BI9'!$A:$U,8,FALSE) -> E | I20: O | J20: =VLOOKUP($A20,'5 Download BI9'!$A:$U,12,FALSE) -> 1832 - Gen Admin-Sundry Expenses-GST | K20: =VLOOKUP(J20,'Esc code lookup'!$B$4:$E$701,4,FALSE) -> Other Expenses | L20: =VLOOKUP(K20,#REF!,2,FALSE) ->  | M20: =IF(E20>"5003","M",IF(ISNA(VLOOKUP(C20,'Esc code lookup'!$G$31:$I$39,1,FALSE)),VLOOKUP(J20,'Esc code lookup'!$B:$C,2,FALSE),IF(F20="1512","M",VLOOKUP(C20,'Esc code lookup'!$G$31:$I$39,2,FALSE)))) -> CPI-C | N20: 0 | O20: 4.89 | P20: 4.89 | Q20: 4.939 | R20: 5.062475 | S20: 5.189036875 | T20: 5.318762797 | U20: 5.465028774 | V20: 5.615317065 | W20: 5.769738284 | X20: 5.928406087 | Y20: 6.091437255 | Z20: 6.258951779 | AA20: 6.431072953 | AB20: 6.607927459 | AC20: 6.789645464 | AE20: =VLOOKUP($M20,'4 Escalation codes'!$A:$Q,3,FALSE) -> 0 | AF20: =VLOOKUP($M20,'4 Escalation codes'!$A:$Q,4,FALSE) -> 0.01 | AG20: =VLOOKUP($M20,'4 Escalation codes'!$A:$Q,5,FALSE) -> 0.03 | AH20: =VLOOKUP($M20,'4 Escalation codes'!$A:$Q,6,FALSE) -> 0.025 | AI20: =VLOOKUP($M20,'4 Escalation codes'!$A:$Q,7,FALSE) -> 0.025 | AJ20: =VLOOKUP($M20,'4 Escalation codes'!$A:$Q,8,FALSE) -> 0.025 | AK20: =VLOOKUP($M20,'4 Escalation codes'!$A:$Q,9,FALSE) -> 0.0275 | AL20: =VLOOKUP($M20,'4 Escalation codes'!$A:$Q,10,FALSE) -> 0.0275 | AM20: =VLOOKUP($M20,'4 Escalation codes'!$A:$Q,11,FALSE) -> 0.0275 | AN20: =VLOOKUP($M20,'4 Escalation codes'!$A:$Q,12,FALSE) -> 0.0275 | AO20: =VLOOKUP($M20,'4 Escalation codes'!$A:$Q,13,FALSE) -> 0.0275 | AP20: =VLOOKUP($M20,'4 Escalation codes'!$A:$Q,14,FALSE) -> 0.0275 | AQ20: =VLOOKUP($M20,'4 Escalation codes'!$A:$Q,15,FALSE) -> 0.0275 | AR20: =VLOOKUP($M20,'4 Escalation codes'!$A:$Q,16,FALSE) -> 0.0275 | AS20: =VLOOKUP($M20,'4 Escalation codes'!$A:$Q,17,FALSE) -> 0.0275 | AT20: =VLOOKUP($A20,'5 Download BI9'!$A:$U,13,FALSE) -> 4890 | AU20: =VLOOKUP($A20,'5 Download BI9'!$A:$U,13,FALSE) -> 4890 | AV20: =VLOOKUP($A20,'5 Download BI9'!$A:$U,20,FALSE) -> 4890 | AW20: =VLOOKUP($A20,'5 Download BI9'!$A:$U,19,FALSE) -> 4939 | AX20: 0.1721211739
A21: W1100.0006.1810 | B21: =VLOOKUP($A21,'5 Download BI9'!$A:$T,2,FALSE) -> 1100 - Mayor && Council | C21: =VLOOKUP($A21,'5 Download BI9'!$A:$U,3,FALSE) -> 1100 | D21: =VLOOKUP($A21,'5 Download BI9'!$A:$U,4,FALSE) -> 0006 - Sec 356 Donations - General | E21: =VLOOKUP($A21,'5 Download BI9'!$A:$U,5,FALSE) -> 0006 | F21: =VLOOKUP($A21,'5 Download BI9'!$A:$U,6,FALSE) -> 1810 | G21: =VLOOKUP($A21,'5 Download BI9'!$A:$U,7,FALSE) -> 1810 | H21: =VLOOKUP($A21,'5 Download BI9'!$A:$U,8,FALSE) -> E | I21: O | J21: =VLOOKUP($A21,'5 Download BI9'!$A:$U,12,FALSE) -> 1810 - Gen Admin-Subsid && Donat-No GST | K21: =VLOOKUP(J21,'Esc code lookup'!$B$4:$E$701,4,FALSE) -> Other Expenses | L21: =VLOOKUP(K21,#REF!,2,FALSE) ->  | M21: =IF(E21>"5003","M",IF(ISNA(VLOOKUP(C21,'Esc code lookup'!$G$31:$I$39,1,FALSE)),VLOOKUP(J21,'Esc code lookup'!$B:$C,2,FALSE),IF(F21="1512","M",VLOOKUP(C21,'Esc code lookup'!$G$31:$I$39,2,FALSE)))) -> CPI-C | N21: 0 | O21: 10.1 | P21: 10.1 | Q21: 10.201 | R21: 10.456025 | S21: 10.71742562 | T21: 10.98536127 | U21: 11.2874587 | V21: 11.59786381 | W21: 11.91680507 | X21: 12.24451721 | Y21: 12.58124143 | Z21: 12.92722557 | AA21: 13.28272427 | AB21: 13.64799919 | AC21: 14.02331917 | AE21: =VLOOKUP($M21,'4 Escalation codes'!$A:$Q,3,FALSE) -> 0 | AF21: =VLOOKUP($M21,'4 Escalation codes'!$A:$Q,4,FALSE) -> 0.01 | AG21: =VLOOKUP($M21,'4 Escalation codes'!$A:$Q,5,FALSE) -> 0.03 | AH21: =VLOOKUP($M21,'4 Escalation codes'!$A:$Q,6,FALSE) -> 0.025 | AI21: =VLOOKUP($M21,'4 Escalation codes'!$A:$Q,7,FALSE) -> 0.025 | AJ21: =VLOOKUP($M21,'4 Escalation codes'!$A:$Q,8,FALSE) -> 0.025 | AK21: =VLOOKUP($M21,'4 Escalation codes'!$A:$Q,9,FALSE) -> 0.0275 | AL21: =VLOOKUP($M21,'4 Escalation codes'!$A:$Q,10,FALSE) -> 0.0275 | AM21: =VLOOKUP($M21,'4 Escalation codes'!$A:$Q,11,FALSE) -> 0.0275 | AN21: =VLOOKUP($M21,'4 Escalation codes'!$A:$Q,12,FALSE) -> 0.0275 | AO21: =VLOOKUP($M21,'4 Escalation codes'!$A:$Q,13,FALSE) -> 0.0275 | AP21: =VLOOKUP($M21,'4 Escalation codes'!$A:$Q,14,FALSE) -> 0.0275 | AQ21: =VLOOKUP($M21,'4 Escalation codes'!$A:$Q,15,FALSE) -> 0.0275 | AR21: =VLOOKUP($M21,'4 Escalation codes'!$A:$Q,16,FALSE) -> 0.0275 | AS21: =VLOOKUP($M21,'4 Escalation codes'!$A:$Q,17,FALSE) -> 0.0275 | AT21: =VLOOKUP($A21,'5 Download BI9'!$A:$U,13,FALSE) -> 10100 | AU21: =VLOOKUP($A21,'5 Download BI9'!$A:$U,13,FALSE) -> 10100 | AV21: =VLOOKUP($A21,'5 Download BI9'!$A:$U,20,FALSE) -> 10100 | AW21: =VLOOKUP($A21,'5 Download BI9'!$A:$U,19,FALSE) -> 10201 | AX21: 0.3554987032
A22: W1100.0008.1832 | B22: =VLOOKUP($A22,'5 Download BI9'!$A:$T,2,FALSE) -> 1100 - Mayor && Council | C22: =VLOOKUP($A22,'5 Download BI9'!$A:$U,3,FALSE) -> 1100 | D22: =VLOOKUP($A22,'5 Download BI9'!$A:$U,4,FALSE) -> 0008 - Mayoral Travelling Expenses | E22: =VLOOKUP($A22,'5 Download BI9'!$A:$U,5,FALSE) -> 0008 | F22: =VLOOKUP($A22,'5 Download BI9'!$A:$U,6,FALSE) -> 1832 | G22: =VLOOKUP($A22,'5 Download BI9'!$A:$U,7,FALSE) -> 1832 | H22: =VLOOKUP($A22,'5 Download BI9'!$A:$U,8,FALSE) -> E | I22: O | J22: =VLOOKUP($A22,'5 Download BI9'!$A:$U,12,FALSE) -> 1832 - Gen Admin-Sundry Expenses-GST | K22: =VLOOKUP(J22,'Esc code lookup'!$B$4:$E$701,4,FALSE) -> Other Expenses | L22: =VLOOKUP(K22,#REF!,2,FALSE) ->  | M22: =IF(E22>"5003","M",IF(ISNA(VLOOKUP(C22,'Esc code lookup'!$G$31:$I$39,1,FALSE)),VLOOKUP(J22,'Esc code lookup'!$B:$C,2,FALSE),IF(F22="1512","M",VLOOKUP(C22,'Esc code lookup'!$G$31:$I$39,2,FALSE)))) -> CPI-C | N22: 0 | O22: 8.243 | P22: 8.243 | Q22: 8.325 | R22: 8.533125 | S22: 8.746453125 | T22: 8.965114453 | U22: 9.211655101 | V22: 9.464975616 | W22: 9.725262445 | X22: 9.992707163 | Y22: 10.26750661 | Z22: 10.54986304 | AA22: 10.83998427 | AB22: 11.13808384 | AC22: 11.44438115 | AE22: =VLOOKUP($M22,'4 Escalation codes'!$A:$Q,3,FALSE) -> 0 | AF22: =VLOOKUP($M22,'4 Escalation codes'!$A:$Q,4,FALSE) -> 0.01 | AG22: =VLOOKUP($M22,'4 Escalation codes'!$A:$Q,5,FALSE) -> 0.03 | AH22: =VLOOKUP($M22,'4 Escalation codes'!$A:$Q,6,FALSE) -> 0.025 | AI22: =VLOOKUP($M22,'4 Escalation codes'!$A:$Q,7,FALSE) -> 0.025 | AJ22: =VLOOKUP($M22,'4 Escalation codes'!$A:$Q,8,FALSE) -> 0.025 | AK22: =VLOOKUP($M22,'4 Escalation codes'!$A:$Q,9,FALSE) -> 0.0275 | AL22: =VLOOKUP($M22,'4 Escalation codes'!$A:$Q,10,FALSE) -> 0.0275 | AM22: =VLOOKUP($M22,'4 Escalation codes'!$A:$Q,11,FALSE) -> 0.0275 | AN22: =VLOOKUP($M22,'4 Escalation codes'!$A:$Q,12,FALSE) -> 0.0275 | AO22: =VLOOKUP($M22,'4 Escalation codes'!$A:$Q,13,FALSE) -> 0.0275 | AP22: =VLOOKUP($M22,'4 Escalation codes'!$A:$Q,14,FALSE) -> 0.0275 | AQ22: =VLOOKUP($M22,'4 Escalation codes'!$A:$Q,15,FALSE) -> 0.0275 | AR22: =VLOOKUP($M22,'4 Escalation codes'!$A:$Q,16,FALSE) -> 0.0275 | AS22: =VLOOKUP($M22,'4 Escalation codes'!$A:$Q,17,FALSE) -> 0.0275 | AT22: =VLOOKUP($A22,'5 Download BI9'!$A:$U,13,FALSE) -> 8243 | AU22: =VLOOKUP($A22,'5 Download BI9'!$A:$U,13,FALSE) -> 8243 | AV22: =VLOOKUP($A22,'5 Download BI9'!$A:$U,20,FALSE) -> 8243 | AW22: =VLOOKUP($A22,'5 Download BI9'!$A:$U,19,FALSE) -> 8325 | AX22: 0.2901212336
A23: W1100.0010.1000 | B23: =VLOOKUP($A23,'5 Download BI9'!$A:$T,2,FALSE) -> 1100 - Mayor && Council | C23: =VLOOKUP($A23,'5 Download BI9'!$A:$U,3,FALSE) -> 1100 | D23: =VLOOKUP($A23,'5 Download BI9'!$A:$U,4,FALSE) -> 0010 - Mayoral Functions | E23: =VLOOKUP($A23,'5 Download BI9'!$A:$U,5,FALSE) -> 0010 | F23: =VLOOKUP($A23,'5 Download BI9'!$A:$U,6,FALSE) -> 1000 | G23: =VLOOKUP($A23,'5 Download BI9'!$A:$U,7,FALSE) -> 1000 | H23: =VLOOKUP($A23,'5 Download BI9'!$A:$U,8,FALSE) -> E | I23: O | J23: =VLOOKUP($A23,'5 Download BI9'!$A:$U,12,FALSE) -> 1000 - Gen Admin-Estimate Expenditure | K23: =VLOOKUP(J23,'Esc code lookup'!$B$4:$E$701,4,FALSE) -> Materials and Contracts | L23: =VLOOKUP(K23,#REF!,2,FALSE) ->  | M23: =IF(E23>"5003","M",IF(ISNA(VLOOKUP(C23,'Esc code lookup'!$G$31:$I$39,1,FALSE)),VLOOKUP(J23,'Esc code lookup'!$B:$C,2,FALSE),IF(F23="1512","M",VLOOKUP(C23,'Esc code lookup'!$G$31:$I$39,2,FALSE)))) -> CPI-C | N23: 0 | O23: 5.151 | P23: 5.151 | Q23: 5.203 | R23: 5.333075 | S23: 5.466401875 | T23: 5.603061922 | U23: 5.757146125 | V23: 5.915467643 | W23: 6.078143003 | X23: 6.245291936 | Y23: 6.417037464 | Z23: 6.593505994 | AA23: 6.774827409 | AB23: 6.961135163 | AC23: 7.15256638 | AE23: =VLOOKUP($M23,'4 Escalation codes'!$A:$Q,3,FALSE) -> 0 | AF23: =VLOOKUP($M23,'4 Escalation codes'!$A:$Q,4,FALSE) -> 0.01 | AG23: =VLOOKUP($M23,'4 Escalation codes'!$A:$Q,5,FALSE) -> 0.03 | AH23: =VLOOKUP($M23,'4 Escalation codes'!$A:$Q,6,FALSE) -> 0.025 | AI23: =VLOOKUP($M23,'4 Escalation codes'!$A:$Q,7,FALSE) -> 0.025 | AJ23: =VLOOKUP($M23,'4 Escalation codes'!$A:$Q,8,FALSE) -> 0.025 | AK23: =VLOOKUP($M23,'4 Escalation codes'!$A:$Q,9,FALSE) -> 0.0275 | AL23: =VLOOKUP($M23,'4 Escalation codes'!$A:$Q,10,FALSE) -> 0.0275 | AM23: =VLOOKUP($M23,'4 Escalation codes'!$A:$Q,11,FALSE) -> 0.0275 | AN23: =VLOOKUP($M23,'4 Escalation codes'!$A:$Q,12,FALSE) -> 0.0275 | AO23: =VLOOKUP($M23,'4 Escalation codes'!$A:$Q,13,FALSE) -> 0.0275 | AP23: =VLOOKUP($M23,'4 Escalation codes'!$A:$Q,14,FALSE) -> 0.0275 | AQ23: =VLOOKUP($M23,'4 Escalation codes'!$A:$Q,15,FALSE) -> 0.0275 | AR23: =VLOOKUP($M23,'4 Escalation codes'!$A:$Q,16,FALSE) -> 0.0275 | AS23: =VLOOKUP($M23,'4 Escalation codes'!$A:$Q,17,FALSE) -> 0.0275 | AT23: =VLOOKUP($A23,'5 Download BI9'!$A:$U,13,FALSE) -> 5151 | AU23: =VLOOKUP($A23,'5 Download BI9'!$A:$U,13,FALSE) -> 5151 | AV23: =VLOOKUP($A23,'5 Download BI9'!$A:$U,20,FALSE) -> 5151 | AW23: =VLOOKUP($A23,'5 Download BI9'!$A:$U,19,FALSE) -> 5203 | AX23: 0.1813214148
A24: W1100.0010.1832 | B24: =VLOOKUP($A24,'5 Download BI9'!$A:$T,2,FALSE) -> 1100 - Mayor && Council | C24: =VLOOKUP($A24,'5 Download BI9'!$A:$U,3,FALSE) -> 1100 | D24: =VLOOKUP($A24,'5 Download BI9'!$A:$U,4,FALSE) -> 0010 - Mayoral Functions | E24: =VLOOKUP($A24,'5 Download BI9'!$A:$U,5,FALSE) -> 0010 | F24: =VLOOKUP($A24,'5 Download BI9'!$A:$U,6,FALSE) -> 1832 | G24: =VLOOKUP($A24,'5 Download BI9'!$A:$U,7,FALSE) -> 1832 | H24: =VLOOKUP($A24,'5 Download BI9'!$A:$U,8,FALSE) -> E | I24: O | J24: =VLOOKUP($A24,'5 Download BI9'!$A:$U,12,FALSE) -> 1832 - Gen Admin-Sundry Expenses-GST | K24: =VLOOKUP(J24,'Esc code lookup'!$B$4:$E$701,4,FALSE) -> Other Expenses | L24: =VLOOKUP(K24,#REF!,2,FALSE) ->  | M24: =IF(E24>"5003","M",IF(ISNA(VLOOKUP(C24,'Esc code lookup'!$G$31:$I$39,1,FALSE)),VLOOKUP(J24,'Esc code lookup'!$B:$C,2,FALSE),IF(F24="1512","M",VLOOKUP(C24,'Esc code lookup'!$G$31:$I$39,2,FALSE)))) -> CPI-C | N24: 0 | O24: 0 | P24: 8.8 | Q24: 0 | R24: 0 | S24: 0 | T24: 0 | U24: 0 | V24: 0 | W24: 0 | X24: 0 | Y24: 0 | Z24: 0 | AA24: 0 | AB24: 0 | AC24: 0 | AE24: =VLOOKUP($M24,'4 Escalation codes'!$A:$Q,3,FALSE) -> 0 | AF24: =VLOOKUP($M24,'4 Escalation codes'!$A:$Q,4,FALSE) -> 0.01 | AG24: =VLOOKUP($M24,'4 Escalation codes'!$A:$Q,5,FALSE) -> 0.03 | AH24: =VLOOKUP($M24,'4 Escalation codes'!$A:$Q,6,FALSE) -> 0.025 | AI24: =VLOOKUP($M24,'4 Escalation codes'!$A:$Q,7,FALSE) -> 0.025 | AJ24: =VLOOKUP($M24,'4 Escalation codes'!$A:$Q,8,FALSE) -> 0.025 | AK24: =VLOOKUP($M24,'4 Escalation codes'!$A:$Q,9,FALSE) -> 0.0275 | AL24: =VLOOKUP($M24,'4 Escalation codes'!$A:$Q,10,FALSE) -> 0.0275 | AM24: =VLOOKUP($M24,'4 Escalation codes'!$A:$Q,11,FALSE) -> 0.0275 | AN24: =VLOOKUP($M24,'4 Escalation codes'!$A:$Q,12,FALSE) -> 0.0275 | AO24: =VLOOKUP($M24,'4 Escalation codes'!$A:$Q,13,FALSE) -> 0.0275 | AP24: =VLOOKUP($M24,'4 Escalation codes'!$A:$Q,14,FALSE) -> 0.0275 | AQ24: =VLOOKUP($M24,'4 Escalation codes'!$A:$Q,15,FALSE) -> 0.0275 | AR24: =VLOOKUP($M24,'4 Escalation codes'!$A:$Q,16,FALSE) -> 0.0275 | AS24: =VLOOKUP($M24,'4 Escalation codes'!$A:$Q,17,FALSE) -> 0.0275 | AT24: =VLOOKUP($A24,'5 Download BI9'!$A:$U,13,FALSE) -> 0 | AU24: =VLOOKUP($A24,'5 Download BI9'!$A:$U,13,FALSE) -> 0 | AV24: =VLOOKUP($A24,'5 Download BI9'!$A:$U,20,FALSE) -> 8800 | AW24: =VLOOKUP($A24,'5 Download BI9'!$A:$U,19,FALSE) -> 0 | AX24: 0
A25: W1100.0203.1743 | B25: =VLOOKUP($A25,'5 Download BI9'!$A:$T,2,FALSE) -> 1100 - Mayor && Council | C25: =VLOOKUP($A25,'5 Download BI9'!$A:$U,3,FALSE) -> 1100 | D25: =VLOOKUP($A25,'5 Download BI9'!$A:$U,4,FALSE) -> 0203 - Telephone && Communications | E25: =VLOOKUP($A25,'5 Download BI9'!$A:$U,5,FALSE) -> 0203 | F25: =VLOOKUP($A25,'5 Download BI9'!$A:$U,6,FALSE) -> 1743 | G25: =VLOOKUP($A25,'5 Download BI9'!$A:$U,7,FALSE) -> 1743 | H25: =VLOOKUP($A25,'5 Download BI9'!$A:$U,8,FALSE) -> E | I25: O | J25: =VLOOKUP($A25,'5 Download BI9'!$A:$U,12,FALSE) -> 1743 - Comm Costs-Mobile Phones | K25: =VLOOKUP(J25,'Esc code lookup'!$B$4:$E$701,4,FALSE) -> Other Expenses | L25: =VLOOKUP(K25,#REF!,2,FALSE) ->  | M25: =IF(E25>"5003","M",IF(ISNA(VLOOKUP(C25,'Esc code lookup'!$G$31:$I$39,1,FALSE)),VLOOKUP(J25,'Esc code lookup'!$B:$C,2,FALSE),IF(F25="1512","M",VLOOKUP(C25,'Esc code lookup'!$G$31:$I$39,2,FALSE)))) -> CPI-C | N25: 0 | O25: 7.212 | P25: 7.212 | Q25: 7.284 | R25: 7.4661 | S25: 7.6527525 | T25: 7.844071312 | U25: 8.059783274 | V25: 8.281427314 | W25: 8.509166565 | X25: 8.743168645 | Y25: 8.983605783 | Z25: 9.230654942 | AA25: 9.484497953 | AB25: 9.745321647 | AC25: 10.01331799 | AE25: =VLOOKUP($M25,'4 Escalation codes'!$A:$Q,3,FALSE) -> 0 | AF25: =VLOOKUP($M25,'4 Escalation codes'!$A:$Q,4,FALSE) -> 0.01 | AG25: =VLOOKUP($M25,'4 Escalation codes'!$A:$Q,5,FALSE) -> 0.03 | AH25: =VLOOKUP($M25,'4 Escalation codes'!$A:$Q,6,FALSE) -> 0.025 | AI25: =VLOOKUP($M25,'4 Escalation codes'!$A:$Q,7,FALSE) -> 0.025 | AJ25: =VLOOKUP($M25,'4 Escalation codes'!$A:$Q,8,FALSE) -> 0.025 | AK25: =VLOOKUP($M25,'4 Escalation codes'!$A:$Q,9,FALSE) -> 0.0275 | AL25: =VLOOKUP($M25,'4 Escalation codes'!$A:$Q,10,FALSE) -> 0.0275 | AM25: =VLOOKUP($M25,'4 Escalation codes'!$A:$Q,11,FALSE) -> 0.0275 | AN25: =VLOOKUP($M25,'4 Escalation codes'!$A:$Q,12,FALSE) -> 0.0275 | AO25: =VLOOKUP($M25,'4 Escalation codes'!$A:$Q,13,FALSE) -> 0.0275 | AP25: =VLOOKUP($M25,'4 Escalation codes'!$A:$Q,14,FALSE) -> 0.0275 | AQ25: =VLOOKUP($M25,'4 Escalation codes'!$A:$Q,15,FALSE) -> 0.0275 | AR25: =VLOOKUP($M25,'4 Escalation codes'!$A:$Q,16,FALSE) -> 0.0275 | AS25: =VLOOKUP($M25,'4 Escalation codes'!$A:$Q,17,FALSE) -> 0.0275 | AT25: =VLOOKUP($A25,'5 Download BI9'!$A:$U,13,FALSE) -> 7212 | AU25: =VLOOKUP($A25,'5 Download BI9'!$A:$U,13,FALSE) -> 7212 | AV25: =VLOOKUP($A25,'5 Download BI9'!$A:$U,20,FALSE) -> 7212 | AW25: =VLOOKUP($A25,'5 Download BI9'!$A:$U,19,FALSE) -> 7284 | AX25: 0.2538430109
A26: W1100.3999.1671 | B26: =VLOOKUP($A26,'5 Download BI9'!$A:$T,2,FALSE) -> 1100 - Mayor && Council | C26: =VLOOKUP($A26,'5 Download BI9'!$A:$U,3,FALSE) -> 1100 | D26: =VLOOKUP($A26,'5 Download BI9'!$A:$U,4,FALSE) -> 3999 - General Expenses | E26: =VLOOKUP($A26,'5 Download BI9'!$A:$U,5,FALSE) -> 3999 | F26: =VLOOKUP($A26,'5 Download BI9'!$A:$U,6,FALSE) -> 1671 | G26: =VLOOKUP($A26,'5 Download BI9'!$A:$U,7,FALSE) -> 1671 | H26: =VLOOKUP($A26,'5 Download BI9'!$A:$U,8,FALSE) -> E | I26: O | J26: =VLOOKUP($A26,'5 Download BI9'!$A:$U,12,FALSE) -> 1671 - Gen Admin-Members Fees | K26: =VLOOKUP(J26,'Esc code lookup'!$B$4:$E$701,4,FALSE) -> Other Expenses | L26: =VLOOKUP(K26,#REF!,2,FALSE) ->  | M26: =IF(E26>"5003","M",IF(ISNA(VLOOKUP(C26,'Esc code lookup'!$G$31:$I$39,1,FALSE)),VLOOKUP(J26,'Esc code lookup'!$B:$C,2,FALSE),IF(F26="1512","M",VLOOKUP(C26,'Esc code lookup'!$G$31:$I$39,2,FALSE)))) -> CPI-C | N26: 0 | O26: 5.461 | P26: 5.461 | Q26: 5.516 | R26: 5.6539 | S26: 5.7952475 | T26: 5.940128687 | U26: 6.103482226 | V26: 6.271327988 | W26: 6.443789507 | X26: 6.620993719 | Y26: 6.803071046 | Z26: 6.9901555 | AA26: 7.182384776 | AB26: 7.379900357 | AC26: 7.582847617 | AE26: =VLOOKUP($M26,'4 Escalation codes'!$A:$Q,3,FALSE) -> 0 | AF26: =VLOOKUP($M26,'4 Escalation codes'!$A:$Q,4,FALSE) -> 0.01 | AG26: =VLOOKUP($M26,'4 Escalation codes'!$A:$Q,5,FALSE) -> 0.03 | AH26: =VLOOKUP($M26,'4 Escalation codes'!$A:$Q,6,FALSE) -> 0.025 | AI26: =VLOOKUP($M26,'4 Escalation codes'!$A:$Q,7,FALSE) -> 0.025 | AJ26: =VLOOKUP($M26,'4 Escalation codes'!$A:$Q,8,FALSE) -> 0.025 | AK26: =VLOOKUP($M26,'4 Escalation codes'!$A:$Q,9,FALSE) -> 0.0275 | AL26: =VLOOKUP($M26,'4 Escalation codes'!$A:$Q,10,FALSE) -> 0.0275 | AM26: =VLOOKUP($M26,'4 Escalation codes'!$A:$Q,11,FALSE) -> 0.0275 | AN26: =VLOOKUP($M26,'4 Escalation codes'!$A:$Q,12,FALSE) -> 0.0275 | AO26: =VLOOKUP($M26,'4 Escalation codes'!$A:$Q,13,FALSE) -> 0.0275 | AP26: =VLOOKUP($M26,'4 Escalation codes'!$A:$Q,14,FALSE) -> 0.0275 | AQ26: =VLOOKUP($M26,'4 Escalation codes'!$A:$Q,15,FALSE) -> 0.0275 | AR26: =VLOOKUP($M26,'4 Escalation codes'!$A:$Q,16,FALSE) -> 0.0275 | AS26: =VLOOKUP($M26,'4 Escalation codes'!$A:$Q,17,FALSE) -> 0.0275 | AT26: =VLOOKUP($A26,'5 Download BI9'!$A:$U,13,FALSE) -> 5461 | AU26: =VLOOKUP($A26,'5 Download BI9'!$A:$U,13,FALSE) -> 5461 | AV26: =VLOOKUP($A26,'5 Download BI9'!$A:$U,20,FALSE) -> 5461 | AW26: =VLOOKUP($A26,'5 Download BI9'!$A:$U,19,FALSE) -> 5516 | AX26: 0.1922292762
A27: W1100.3999.1832 | B27: =VLOOKUP($A27,'5 Download BI9'!$A:$T,2,FALSE) -> 1100 - Mayor && Council | C27: =VLOOKUP($A27,'5 Download BI9'!$A:$U,3,FALSE) -> 1100 | D27: =VLOOKUP($A27,'5 Download BI9'!$A:$U,4,FALSE) -> 3999 - General Expenses | E27: =VLOOKUP($A27,'5 Download BI9'!$A:$U,5,FALSE) -> 3999 | F27: =VLOOKUP($A27,'5 Download BI9'!$A:$U,6,FALSE) -> 1832 | G27: =VLOOKUP($A27,'5 Download BI9'!$A:$U,7,FALSE) -> 1832 | H27: =VLOOKUP($A27,'5 Download BI9'!$A:$U,8,FALSE) -> E | I27: O | J27: =VLOOKUP($A27,'5 Download BI9'!$A:$U,12,FALSE) -> 1832 - Gen Admin-Sundry Expenses-GST | K27: =VLOOKUP(J27,'Esc code lookup'!$B$4:$E$701,4,FALSE) -> Other Expenses | L27: =VLOOKUP(K27,#REF!,2,FALSE) ->  | M27: =IF(E27>"5003","M",IF(ISNA(VLOOKUP(C27,'Esc code lookup'!$G$31:$I$39,1,FALSE)),VLOOKUP(J27,'Esc code lookup'!$B:$C,2,FALSE),IF(F27="1512","M",VLOOKUP(C27,'Esc code lookup'!$G$31:$I$39,2,FALSE)))) -> CPI-C | N27: 0 | O27: 4.739 | P27: 4.739 | Q27: 4.786 | R27: 4.90565 | S27: 5.02829125 | T27: 5.153998531 | U27: 5.295733491 | V27: 5.441366162 | W27: 5.591003731 | X27: 5.744756334 | Y27: 5.902737133 | Z27: 6.065062404 | AA27: 6.23185162 | AB27: 6.40322754 | AC27: 6.579316297 | AE27: =VLOOKUP($M27,'4 Escalation codes'!$A:$Q,3,FALSE) -> 0 | AF27: =VLOOKUP($M27,'4 Escalation codes'!$A:$Q,4,FALSE) -> 0.01 | AG27: =VLOOKUP($M27,'4 Escalation codes'!$A:$Q,5,FALSE) -> 0.03 | AH27: =VLOOKUP($M27,'4 Escalation codes'!$A:$Q,6,FALSE) -> 0.025 | AI27: =VLOOKUP($M27,'4 Escalation codes'!$A:$Q,7,FALSE) -> 0.025 | AJ27: =VLOOKUP($M27,'4 Escalation codes'!$A:$Q,8,FALSE) -> 0.025 | AK27: =VLOOKUP($M27,'4 Escalation codes'!$A:$Q,9,FALSE) -> 0.0275 | AL27: =VLOOKUP($M27,'4 Escalation codes'!$A:$Q,10,FALSE) -> 0.0275 | AM27: =VLOOKUP($M27,'4 Escalation codes'!$A:$Q,11,FALSE) -> 0.0275 | AN27: =VLOOKUP($M27,'4 Escalation codes'!$A:$Q,12,FALSE) -> 0.0275 | AO27: =VLOOKUP($M27,'4 Escalation codes'!$A:$Q,13,FALSE) -> 0.0275 | AP27: =VLOOKUP($M27,'4 Escalation codes'!$A:$Q,14,FALSE) -> 0.0275 | AQ27: =VLOOKUP($M27,'4 Escalation codes'!$A:$Q,15,FALSE) -> 0.0275 | AR27: =VLOOKUP($M27,'4 Escalation codes'!$A:$Q,16,FALSE) -> 0.0275 | AS27: =VLOOKUP($M27,'4 Escalation codes'!$A:$Q,17,FALSE) -> 0.0275 | AT27: =VLOOKUP($A27,'5 Download BI9'!$A:$U,13,FALSE) -> 4739 | AU27: =VLOOKUP($A27,'5 Download BI9'!$A:$U,13,FALSE) -> 4739 | AV27: =VLOOKUP($A27,'5 Download BI9'!$A:$U,20,FALSE) -> 4739 | AW27: =VLOOKUP($A27,'5 Download BI9'!$A:$U,19,FALSE) -> 4786 | AX27: 0.1667892161
A28: W2100.0001.1001 | B28: =VLOOKUP($A28,'5 Download BI9'!$A:$T,2,FALSE) -> 2100 - General Management | C28: =VLOOKUP($A28,'5 Download BI9'!$A:$U,3,FALSE) -> 2100 | D28: =VLOOKUP($A28,'5 Download BI9'!$A:$U,4,FALSE) -> 0001 - General Admin | E28: =VLOOKUP($A28,'5 Download BI9'!$A:$U,5,FALSE) -> 0001 | F28: =VLOOKUP($A28,'5 Download BI9'!$A:$U,6,FALSE) -> 1001 | G28: =VLOOKUP($A28,'5 Download BI9'!$A:$U,7,FALSE) -> 1001 | H28: =VLOOKUP($A28,'5 Download BI9'!$A:$U,8,FALSE) -> E | I28: O | J28: =VLOOKUP($A28,'5 Download BI9'!$A:$U,12,FALSE) -> 1001 - Award Staff - Salaries | K28: =VLOOKUP(J28,'Esc code lookup'!$B$4:$E$701,4,FALSE) -> Employee Costs | L28: =VLOOKUP(K28,#REF!,2,FALSE) ->  | M28: =IF(E28>"5003","M",IF(ISNA(VLOOKUP(C28,'Esc code lookup'!$G$31:$I$39,1,FALSE)),VLOOKUP(J28,'Esc code lookup'!$B:$C,2,FALSE),IF(F28="1512","M",VLOOKUP(C28,'Esc code lookup'!$G$31:$I$39,2,FALSE)))) -> 3 | N28: 0 | O28: 84.169 | P28: 84.169 | Q28: 86.908 | R28: 90.38432 | S28: 93.9996928 | T28: 97.75968051 | U28: 101.6700677 | V28: 105.7368704 | W28: 109.9663453 | X28: 114.3649991 | Y28: 118.939599 | Z28: 123.697183 | AA28: 128.6450703 | AB28: 133.7908731 | AC28: 139.1425081 | AE28: =VLOOKUP($M28,'4 Escalation codes'!$A:$Q,3,FALSE) -> 0.0325 | AF28: =VLOOKUP($M28,'4 Escalation codes'!$A:$Q,4,FALSE) -> 0.044 | AG28: =VLOOKUP($M28,'4 Escalation codes'!$A:$Q,5,FALSE) -> 0.04 | AH28: =VLOOKUP($M28,'4 Escalation codes'!$A:$Q,6,FALSE) -> 0.04 | AI28: =VLOOKUP($M28,'4 Escalation codes'!$A:$Q,7,FALSE) -> 0.04 | AJ28: =VLOOKUP($M28,'4 Escalation codes'!$A:$Q,8,FALSE) -> 0.04 | AK28: =VLOOKUP($M28,'4 Escalation codes'!$A:$Q,9,FALSE) -> 0.04 | AL28: =VLOOKUP($M28,'4 Escalation codes'!$A:$Q,10,FALSE) -> 0.04 | AM28: =VLOOKUP($M28,'4 Escalation codes'!$A:$Q,11,FALSE) -> 0.04 | AN28: =VLOOKUP($M28,'4 Escalation codes'!$A:$Q,12,FALSE) -> 0.04 | AO28: =VLOOKUP($M28,'4 Escalation codes'!$A:$Q,13,FALSE) -> 0.04 | AP28: =VLOOKUP($M28,'4 Escalation codes'!$A:$Q,14,FALSE) -> 0.04 | AQ28: =VLOOKUP($M28,'4 Escalation codes'!$A:$Q,15,FALSE) -> 0.04 | AR28: =VLOOKUP($M28,'4 Escalation codes'!$A:$Q,16,FALSE) -> 0.04 | AS28: =VLOOKUP($M28,'4 Escalation codes'!$A:$Q,17,FALSE) -> 0.04 | AT28: =VLOOKUP($A28,'5 Download BI9'!$A:$U,13,FALSE) -> 84169 | AU28: =VLOOKUP($A28,'5 Download BI9'!$A:$U,13,FALSE) -> 84169 | AV28: =VLOOKUP($A28,'5 Download BI9'!$A:$U,20,FALSE) -> 84169 | AW28: =VLOOKUP($A28,'5 Download BI9'!$A:$U,19,FALSE) -> 86908 | AX28: 4.94788732
A29: W2100.0001.1003 | B29: =VLOOKUP($A29,'5 Download BI9'!$A:$T,2,FALSE) -> 2100 - General Management | C29: =VLOOKUP($A29,'5 Download BI9'!$A:$U,3,FALSE) -> 2100 | D29: =VLOOKUP($A29,'5 Download BI9'!$A:$U,4,FALSE) -> 0001 - General Admin | E29: =VLOOKUP($A29,'5 Download BI9'!$A:$U,5,FALSE) -> 0001 | F29: =VLOOKUP($A29,'5 Download BI9'!$A:$U,6,FALSE) -> 1003 | G29: =VLOOKUP($A29,'5 Download BI9'!$A:$U,7,FALSE) -> 1003 | H29: =VLOOKUP($A29,'5 Download BI9'!$A:$U,8,FALSE) -> E | I29: O | J29: =VLOOKUP($A29,'5 Download BI9'!$A:$U,12,FALSE) -> 1003 - Award Staff - Overtime | K29: =VLOOKUP(J29,'Esc code lookup'!$B$4:$E$701,4,FALSE) -> Employee Costs | L29: =VLOOKUP(K29,#REF!,2,FALSE) ->  | M29: =IF(E29>"5003","M",IF(ISNA(VLOOKUP(C29,'Esc code lookup'!$G$31:$I$39,1,FALSE)),VLOOKUP(J29,'Esc code lookup'!$B:$C,2,FALSE),IF(F29="1512","M",VLOOKUP(C29,'Esc code lookup'!$G$31:$I$39,2,FALSE)))) -> 3 | N29: 0 | O29: 0 | P29: 0 | Q29: 4.995 | R29: 5.1948 | S29: 5.402592 | T29: 5.61869568 | U29: 5.843443507 | V29: 6.077181247 | W29: 6.320268497 | X29: 6.573079237 | Y29: 6.836002407 | Z29: 7.109442503 | AA29: 7.393820203 | AB29: 7.689573011 | AC29: 7.997155932 | AE29: =VLOOKUP($M29,'4 Escalation codes'!$A:$Q,3,FALSE) -> 0.0325 | AF29: =VLOOKUP($M29,'4 Escalation codes'!$A:$Q,4,FALSE) -> 0.044 | AG29: =VLOOKUP($M29,'4 Escalation codes'!$A:$Q,5,FALSE) -> 0.04 | AH29: =VLOOKUP($M29,'4 Escalation codes'!$A:$Q,6,FALSE) -> 0.04 | AI29: =VLOOKUP($M29,'4 Escalation codes'!$A:$Q,7,FALSE) -> 0.04 | AJ29: =VLOOKUP($M29,'4 Escalation codes'!$A:$Q,8,FALSE) -> 0.04 | AK29: =VLOOKUP($M29,'4 Escalation codes'!$A:$Q,9,FALSE) -> 0.04 | AL29: =VLOOKUP($M29,'4 Escalation codes'!$A:$Q,10,FALSE) -> 0.04 | AM29: =VLOOKUP($M29,'4 Escalation codes'!$A:$Q,11,FALSE) -> 0.04 | AN29: =VLOOKUP($M29,'4 Escalation codes'!$A:$Q,12,FALSE) -> 0.04 | AO29: =VLOOKUP($M29,'4 Escalation codes'!$A:$Q,13,FALSE) -> 0.04 | AP29: =VLOOKUP($M29,'4 Escalation codes'!$A:$Q,14,FALSE) -> 0.04 | AQ29: =VLOOKUP($M29,'4 Escalation codes'!$A:$Q,15,FALSE) -> 0.04 | AR29: =VLOOKUP($M29,'4 Escalation codes'!$A:$Q,16,FALSE) -> 0.04 | AS29: =VLOOKUP($M29,'4 Escalation codes'!$A:$Q,17,FALSE) -> 0.04 | AT29: =VLOOKUP($A29,'5 Download BI9'!$A:$U,13,FALSE) -> 0 | AU29: =VLOOKUP($A29,'5 Download BI9'!$A:$U,13,FALSE) -> 0 | AV29: =VLOOKUP($A29,'5 Download BI9'!$A:$U,20,FALSE) -> 0 | AW29: =VLOOKUP($A29,'5 Download BI9'!$A:$U,19,FALSE) -> 4995 | AX29: 0.2843777001
A30: W2100.0001.1040 | B30: =VLOOKUP($A30,'5 Download BI9'!$A:$T,2,FALSE) -> 2100 - General Management | C30: =VLOOKUP($A30,'5 Download BI9'!$A:$U,3,FALSE) -> 2100 | D30: =VLOOKUP($A30,'5 Download BI9'!$A:$U,4,FALSE) -> 0001 - General Admin | E30: =VLOOKUP($A30,'5 Download BI9'!$A:$U,5,FALSE) -> 0001 | F30: =VLOOKUP($A30,'5 Download BI9'!$A:$U,6,FALSE) -> 1040 | G30: =VLOOKUP($A30,'5 Download BI9'!$A:$U,7,FALSE) -> 1040 | H30: =VLOOKUP($A30,'5 Download BI9'!$A:$U,8,FALSE) -> E | I30: O | J30: =VLOOKUP($A30,'5 Download BI9'!$A:$U,12,FALSE) -> 1040 - Contract Staff - Salaries | K30: =VLOOKUP(J30,'Esc code lookup'!$B$4:$E$701,4,FALSE) -> Employee Costs | L30: =VLOOKUP(K30,#REF!,2,FALSE) ->  | M30: =IF(E30>"5003","M",IF(ISNA(VLOOKUP(C30,'Esc code lookup'!$G$31:$I$39,1,FALSE)),VLOOKUP(J30,'Esc code lookup'!$B:$C,2,FALSE),IF(F30="1512","M",VLOOKUP(C30,'Esc code lookup'!$G$31:$I$39,2,FALSE)))) -> 3 | N30: 0 | O30: 283.44 | P30: 283.44 | Q30: 318.552 | R30: 331.29408 | S30: 344.5458432 | T30: 358.3276769 | U30: 372.660784 | V30: 387.5672154 | W30: 403.069904 | X30: 419.1927001 | Y30: 435.9604081 | Z30: 453.3988245 | AA30: 471.5347774 | AB30: 490.3961685 | AC30: 510.0120153 | AE30: =VLOOKUP($M30,'4 Escalation codes'!$A:$Q,3,FALSE) -> 0.0325 | AF30: =VLOOKUP($M30,'4 Escalation codes'!$A:$Q,4,FALSE) -> 0.044 | AG30: =VLOOKUP($M30,'4 Escalation codes'!$A:$Q,5,FALSE) -> 0.04 | AH30: =VLOOKUP($M30,'4 Escalation codes'!$A:$Q,6,FALSE) -> 0.04 | AI30: =VLOOKUP($M30,'4 Escalation codes'!$A:$Q,7,FALSE) -> 0.04 | AJ30: =VLOOKUP($M30,'4 Escalation codes'!$A:$Q,8,FALSE) -> 0.04 | AK30: =VLOOKUP($M30,'4 Escalation codes'!$A:$Q,9,FALSE) -> 0.04 | AL30: =VLOOKUP($M30,'4 Escalation codes'!$A:$Q,10,FALSE) -> 0.04 | AM30: =VLOOKUP($M30,'4 Escalation codes'!$A:$Q,11,FALSE) -> 0.04 | AN30: =VLOOKUP($M30,'4 Escalation codes'!$A:$Q,12,FALSE) -> 0.04 | AO30: =VLOOKUP($M30,'4 Escalation codes'!$A:$Q,13,FALSE) -> 0.04 | AP30: =VLOOKUP($M30,'4 Escalation codes'!$A:$Q,14,FALSE) -> 0.04 | AQ30: =VLOOKUP($M30,'4 Escalation codes'!$A:$Q,15,FALSE) -> 0.04 | AR30: =VLOOKUP($M30,'4 Escalation codes'!$A:$Q,16,FALSE) -> 0.04 | AS30: =VLOOKUP($M30,'4 Escalation codes'!$A:$Q,17,FALSE) -> 0.04 | AT30: =VLOOKUP($A30,'5 Download BI9'!$A:$U,13,FALSE) -> 283440 | AU30: =VLOOKUP($A30,'5 Download BI9'!$A:$U,13,FALSE) -> 283440 | AV30: =VLOOKUP($A30,'5 Download BI9'!$A:$U,20,FALSE) -> 283440 | AW30: =VLOOKUP($A30,'5 Download BI9'!$A:$U,19,FALSE) -> 318552 | AX30: 18.13595298
A31: W2100.0001.1045 | B31: =VLOOKUP($A31,'5 Download BI9'!$A:$T,2,FALSE) -> 2100 - General Management | C31: =VLOOKUP($A31,'5 Download BI9'!$A:$U,3,FALSE) -> 2100 | D31: =VLOOKUP($A31,'5 Download BI9'!$A:$U,4,FALSE) -> 0001 - General Admin | E31: =VLOOKUP($A31,'5 Download BI9'!$A:$U,5,FALSE) -> 0001 | F31: =VLOOKUP($A31,'5 Download BI9'!$A:$U,6,FALSE) -> 1045 | G31: =VLOOKUP($A31,'5 Download BI9'!$A:$U,7,FALSE) -> 1045 | H31: =VLOOKUP($A31,'5 Download BI9'!$A:$U,8,FALSE) -> E | I31: O | J31: =VLOOKUP($A31,'5 Download BI9'!$A:$U,12,FALSE) -> 1045 - Contract Staff - Motor Vehicles | K31: =VLOOKUP(J31,'Esc code lookup'!$B$4:$E$701,4,FALSE) -> Employee Costs | L31: =VLOOKUP(K31,#REF!,2,FALSE) ->  | M31: =IF(E31>"5003","M",IF(ISNA(VLOOKUP(C31,'Esc code lookup'!$G$31:$I$39,1,FALSE)),VLOOKUP(J31,'Esc code lookup'!$B:$C,2,FALSE),IF(F31="1512","M",VLOOKUP(C31,'Esc code lookup'!$G$31:$I$39,2,FALSE)))) -> 3 | N31: 0 | O31: 12 | P31: 12 | Q31: 0 | R31: 0 | S31: 0 | T31: 0 | U31: 0 | V31: 0 | W31: 0 | X31: 0 | Y31: 0 | Z31: 0 | AA31: 0 | AB31: 0 | AC31: 0 | AE31: =VLOOKUP($M31,'4 Escalation codes'!$A:$Q,3,FALSE) -> 0.0325 | AF31: =VLOOKUP($M31,'4 Escalation codes'!$A:$Q,4,FALSE) -> 0.044 | AG31: =VLOOKUP($M31,'4 Escalation codes'!$A:$Q,5,FALSE) -> 0.04 | AH31: =VLOOKUP($M31,'4 Escalation codes'!$A:$Q,6,FALSE) -> 0.04 | AI31: =VLOOKUP($M31,'4 Escalation codes'!$A:$Q,7,FALSE) -> 0.04 | AJ31: =VLOOKUP($M31,'4 Escalation codes'!$A:$Q,8,FALSE) -> 0.04 | AK31: =VLOOKUP($M31,'4 Escalation codes'!$A:$Q,9,FALSE) -> 0.04 | AL31: =VLOOKUP($M31,'4 Escalation codes'!$A:$Q,10,FALSE) -> 0.04 | AM31: =VLOOKUP($M31,'4 Escalation codes'!$A:$Q,11,FALSE) -> 0.04 | AN31: =VLOOKUP($M31,'4 Escalation codes'!$A:$Q,12,FALSE) -> 0.04 | AO31: =VLOOKUP($M31,'4 Escalation codes'!$A:$Q,13,FALSE) -> 0.04 | AP31: =VLOOKUP($M31,'4 Escalation codes'!$A:$Q,14,FALSE) -> 0.04 | AQ31: =VLOOKUP($M31,'4 Escalation codes'!$A:$Q,15,FALSE) -> 0.04 | AR31: =VLOOKUP($M31,'4 Escalation codes'!$A:$Q,16,FALSE) -> 0.04 | AS31: =VLOOKUP($M31,'4 Escalation codes'!$A:$Q,17,FALSE) -> 0.04 | AT31: =VLOOKUP($A31,'5 Download BI9'!$A:$U,13,FALSE) -> 12000 | AU31: =VLOOKUP($A31,'5 Download BI9'!$A:$U,13,FALSE) -> 12000 | AV31: =VLOOKUP($A31,'5 Download BI9'!$A:$U,20,FALSE) -> 12000 | AW31: =VLOOKUP($A31,'5 Download BI9'!$A:$U,19,FALSE) -> 0 | AX31: 0
A32: W2100.0001.1055 | B32: =VLOOKUP($A32,'5 Download BI9'!$A:$T,2,FALSE) -> 2100 - General Management | C32: =VLOOKUP($A32,'5 Download BI9'!$A:$U,3,FALSE) -> 2100 | D32: =VLOOKUP($A32,'5 Download BI9'!$A:$U,4,FALSE) -> 0001 - General Admin | E32: =VLOOKUP($A32,'5 Download BI9'!$A:$U,5,FALSE) -> 0001 | F32: =VLOOKUP($A32,'5 Download BI9'!$A:$U,6,FALSE) -> 1055 | G32: =VLOOKUP($A32,'5 Download BI9'!$A:$U,7,FALSE) -> 1055 | H32: =VLOOKUP($A32,'5 Download BI9'!$A:$U,8,FALSE) -> E | I32: O | J32: =VLOOKUP($A32,'5 Download BI9'!$A:$U,12,FALSE) -> 1055 - Award Staff - LSL Accrual | K32: =VLOOKUP(J32,'Esc code lookup'!$B$4:$E$701,4,FALSE) -> Employee Costs | L32: =VLOOKUP(K32,#REF!,2,FALSE) ->  | M32: =IF(E32>"5003","M",IF(ISNA(VLOOKUP(C32,'Esc code lookup'!$G$31:$I$39,1,FALSE)),VLOOKUP(J32,'Esc code lookup'!$B:$C,2,FALSE),IF(F32="1512","M",VLOOKUP(C32,'Esc code lookup'!$G$31:$I$39,2,FALSE)))) -> 3 | N32: 0 | O32: 2.908 | P32: 2.908 | Q32: 3.071 | R32: 3.19384 | S32: 3.3215936 | T32: 3.454457344 | U32: 3.592635638 | V32: 3.736341063 | W32: 3.885794706 | X32: 4.041226494 | Y32: 4.202875554 | Z32: 4.370990576 | AA32: 4.545830199 | AB32: 4.727663407 | AC32: 4.916769943 | AE32: =VLOOKUP($M32,'4 Escalation codes'!$A:$Q,3,FALSE) -> 0.0325 | AF32: =VLOOKUP($M32,'4 Escalation codes'!$A:$Q,4,FALSE) -> 0.044 | AG32: =VLOOKUP($M32,'4 Escalation codes'!$A:$Q,5,FALSE) -> 0.04 | AH32: =VLOOKUP($M32,'4 Escalation codes'!$A:$Q,6,FALSE) -> 0.04 | AI32: =VLOOKUP($M32,'4 Escalation codes'!$A:$Q,7,FALSE) -> 0.04 | AJ32: =VLOOKUP($M32,'4 Escalation codes'!$A:$Q,8,FALSE) -> 0.04 | AK32: =VLOOKUP($M32,'4 Escalation codes'!$A:$Q,9,FALSE) -> 0.04 | AL32: =VLOOKUP($M32,'4 Escalation codes'!$A:$Q,10,FALSE) -> 0.04 | AM32: =VLOOKUP($M32,'4 Escalation codes'!$A:$Q,11,FALSE) -> 0.04 | AN32: =VLOOKUP($M32,'4 Escalation codes'!$A:$Q,12,FALSE) -> 0.04 | AO32: =VLOOKUP($M32,'4 Escalation codes'!$A:$Q,13,FALSE) -> 0.04 | AP32: =VLOOKUP($M32,'4 Escalation codes'!$A:$Q,14,FALSE) -> 0.04 | AQ32: =VLOOKUP($M32,'4 Escalation codes'!$A:$Q,15,FALSE) -> 0.04 | AR32: =VLOOKUP($M32,'4 Escalation codes'!$A:$Q,16,FALSE) -> 0.04 | AS32: =VLOOKUP($M32,'4 Escalation codes'!$A:$Q,17,FALSE) -> 0.04 | AT32: =VLOOKUP($A32,'5 Download BI9'!$A:$U,13,FALSE) -> 2908 | AU32: =VLOOKUP($A32,'5 Download BI9'!$A:$U,13,FALSE) -> 2908 | AV32: =VLOOKUP($A32,'5 Download BI9'!$A:$U,20,FALSE) -> 2908 | AW32: =VLOOKUP($A32,'5 Download BI9'!$A:$U,19,FALSE) -> 3071 | AX32: 0.174839623
A33: W2100.0001.1075 | B33: =VLOOKUP($A33,'5 Download BI9'!$A:$T,2,FALSE) -> 2100 - General Management | C33: =VLOOKUP($A33,'5 Download BI9'!$A:$U,3,FALSE) -> 2100 | D33: =VLOOKUP($A33,'5 Download BI9'!$A:$U,4,FALSE) -> 0001 - General Admin | E33: =VLOOKUP($A33,'5 Download BI9'!$A:$U,5,FALSE) -> 0001 | F33: =VLOOKUP($A33,'5 Download BI9'!$A:$U,6,FALSE) -> 1075 | G33: =VLOOKUP($A33,'5 Download BI9'!$A:$U,7,FALSE) -> 1075 | H33: =VLOOKUP($A33,'5 Download BI9'!$A:$U,8,FALSE) -> E | I33: O | J33: =VLOOKUP($A33,'5 Download BI9'!$A:$U,12,FALSE) -> 1075 - Contract Staff - LSL Accrual | K33: =VLOOKUP(J33,'Esc code lookup'!$B$4:$E$701,4,FALSE) -> Employee Costs | L33: =VLOOKUP(K33,#REF!,2,FALSE) ->  | M33: =IF(E33>"5003","M",IF(ISNA(VLOOKUP(C33,'Esc code lookup'!$G$31:$I$39,1,FALSE)),VLOOKUP(J33,'Esc code lookup'!$B:$C,2,FALSE),IF(F33="1512","M",VLOOKUP(C33,'Esc code lookup'!$G$31:$I$39,2,FALSE)))) -> 3 | N33: 0 | O33: 18.716 | P33: 18.716 | Q33: 17.438 | R33: 18.13552 | S33: 18.8609408 | T33: 19.61537843 | U33: 20.39999357 | V33: 21.21599331 | W33: 22.06463304 | X33: 22.94721837 | Y33: 23.8651071 | Z33: 24.81971139 | AA33: 25.81249984 | AB33: 26.84499983 | AC33: 27.91879983 | AE33: =VLOOKUP($M33,'4 Escalation codes'!$A:$Q,3,FALSE) -> 0.0325 | AF33: =VLOOKUP($M33,'4 Escalation codes'!$A:$Q,4,FALSE) -> 0.044 | AG33: =VLOOKUP($M33,'4 Escalation codes'!$A:$Q,5,FALSE) -> 0.04 | AH33: =VLOOKUP($M33,'4 Escalation codes'!$A:$Q,6,FALSE) -> 0.04 | AI33: =VLOOKUP($M33,'4 Escalation codes'!$A:$Q,7,FALSE) -> 0.04 | AJ33: =VLOOKUP($M33,'4 Escalation codes'!$A:$Q,8,FALSE) -> 0.04 | AK33: =VLOOKUP($M33,'4 Escalation codes'!$A:$Q,9,FALSE) -> 0.04 | AL33: =VLOOKUP($M33,'4 Escalation codes'!$A:$Q,10,FALSE) -> 0.04 | AM33: =VLOOKUP($M33,'4 Escalation codes'!$A:$Q,11,FALSE) -> 0.04 | AN33: =VLOOKUP($M33,'4 Escalation codes'!$A:$Q,12,FALSE) -> 0.04 | AO33: =VLOOKUP($M33,'4 Escalation codes'!$A:$Q,13,FALSE) -> 0.04 | AP33: =VLOOKUP($M33,'4 Escalation codes'!$A:$Q,14,FALSE) -> 0.04 | AQ33: =VLOOKUP($M33,'4 Escalation codes'!$A:$Q,15,FALSE) -> 0.04 | AR33: =VLOOKUP($M33,'4 Escalation codes'!$A:$Q,16,FALSE) -> 0.04 | AS33: =VLOOKUP($M33,'4 Escalation codes'!$A:$Q,17,FALSE) -> 0.04 | AT33: =VLOOKUP($A33,'5 Download BI9'!$A:$U,13,FALSE) -> 18716 | AU33: =VLOOKUP($A33,'5 Download BI9'!$A:$U,13,FALSE) -> 18716 | AV33: =VLOOKUP($A33,'5 Download BI9'!$A:$U,20,FALSE) -> 18716 | AW33: =VLOOKUP($A33,'5 Download BI9'!$A:$U,19,FALSE) -> 17438 | AX33: 0.9927884554
A34: W2100.0001.1110 | B34: =VLOOKUP($A34,'5 Download BI9'!$A:$T,2,FALSE) -> 2100 - General Management | C34: =VLOOKUP($A34,'5 Download BI9'!$A:$U,3,FALSE) -> 2100 | D34: =VLOOKUP($A34,'5 Download BI9'!$A:$U,4,FALSE) -> 0001 - General Admin | E34: =VLOOKUP($A34,'5 Download BI9'!$A:$U,5,FALSE) -> 0001 | F34: =VLOOKUP($A34,'5 Download BI9'!$A:$U,6,FALSE) -> 1110 | G34: =VLOOKUP($A34,'5 Download BI9'!$A:$U,7,FALSE) -> 1110 | H34: =VLOOKUP($A34,'5 Download BI9'!$A:$U,8,FALSE) -> E | I34: O | J34: =VLOOKUP($A34,'5 Download BI9'!$A:$U,12,FALSE) -> 1110 - Award Staff - Superannuation. | K34: =VLOOKUP(J34,'Esc code lookup'!$B$4:$E$701,4,FALSE) -> Employee Costs | L34: =VLOOKUP(K34,#REF!,2,FALSE) ->  | M34: =IF(E34>"5003","M",IF(ISNA(VLOOKUP(C34,'Esc code lookup'!$G$31:$I$39,1,FALSE)),VLOOKUP(J34,'Esc code lookup'!$B:$C,2,FALSE),IF(F34="1512","M",VLOOKUP(C34,'Esc code lookup'!$G$31:$I$39,2,FALSE)))) -> 14 | N34: 0 | O34: 34.005 | P34: 34.005 | Q34: 8.256 | R34: 9.032064 | S34: 9.872045952 | T34: 10.76053009 | U34: 11.69669621 | V34: 12.69091538 | W34: 13.198552 | X34: 13.72649408 | Y34: 14.27555384 | Z34: 14.84657599 | AA34: 15.44043903 | AB34: 16.0580566 | AC34: 16.70037886 | AE34: =VLOOKUP($M34,'4 Escalation codes'!$A:$Q,3,FALSE) -> 0 | AF34: =VLOOKUP($M34,'4 Escalation codes'!$A:$Q,4,FALSE) -> 0.044 | AG34: =VLOOKUP($M34,'4 Escalation codes'!$A:$Q,5,FALSE) -> 0.068 | AH34: =VLOOKUP($M34,'4 Escalation codes'!$A:$Q,6,FALSE) -> 0.094 | AI34: =VLOOKUP($M34,'4 Escalation codes'!$A:$Q,7,FALSE) -> 0.093 | AJ34: =VLOOKUP($M34,'4 Escalation codes'!$A:$Q,8,FALSE) -> 0.09 | AK34: =VLOOKUP($M34,'4 Escalation codes'!$A:$Q,9,FALSE) -> 0.087 | AL34: =VLOOKUP($M34,'4 Escalation codes'!$A:$Q,10,FALSE) -> 0.085 | AM34: =VLOOKUP($M34,'4 Escalation codes'!$A:$Q,11,FALSE) -> 0.04 | AN34: =VLOOKUP($M34,'4 Escalation codes'!$A:$Q,12,FALSE) -> 0.04 | AO34: =VLOOKUP($M34,'4 Escalation codes'!$A:$Q,13,FALSE) -> 0.04 | AP34: =VLOOKUP($M34,'4 Escalation codes'!$A:$Q,14,FALSE) -> 0.04 | AQ34: =VLOOKUP($M34,'4 Escalation codes'!$A:$Q,15,FALSE) -> 0.04 | AR34: =VLOOKUP($M34,'4 Escalation codes'!$A:$Q,16,FALSE) -> 0.04 | AS34: =VLOOKUP($M34,'4 Escalation codes'!$A:$Q,17,FALSE) -> 0.04 | AT34: =VLOOKUP($A34,'5 Download BI9'!$A:$U,13,FALSE) -> 34005 | AU34: =VLOOKUP($A34,'5 Download BI9'!$A:$U,13,FALSE) -> 34005 | AV34: =VLOOKUP($A34,'5 Download BI9'!$A:$U,20,FALSE) -> 34005 | AW34: =VLOOKUP($A34,'5 Download BI9'!$A:$U,19,FALSE) -> 8256 | AX34: 0.5938630398
A35: W2100.0001.1130 | B35: =VLOOKUP($A35,'5 Download BI9'!$A:$T,2,FALSE) -> 2100 - General Management | C35: =VLOOKUP($A35,'5 Download BI9'!$A:$U,3,FALSE) -> 2100 | D35: =VLOOKUP($A35,'5 Download BI9'!$A:$U,4,FALSE) -> 0001 - General Admin | E35: =VLOOKUP($A35,'5 Download BI9'!$A:$U,5,FALSE) -> 0001 | F35: =VLOOKUP($A35,'5 Download BI9'!$A:$U,6,FALSE) -> 1130 | G35: =VLOOKUP($A35,'5 Download BI9'!$A:$U,7,FALSE) -> 1130 | H35: =VLOOKUP($A35,'5 Download BI9'!$A:$U,8,FALSE) -> E | I35: O | J35: =VLOOKUP($A35,'5 Download BI9'!$A:$U,12,FALSE) -> 1130 - Staff Costs-Workers Comp Insur Prem | K35: =VLOOKUP(J35,'Esc code lookup'!$B$4:$E$701,4,FALSE) -> Employee Costs | L35: =VLOOKUP(K35,#REF!,2,FALSE) ->  | M35: =IF(E35>"5003","M",IF(ISNA(VLOOKUP(C35,'Esc code lookup'!$G$31:$I$39,1,FALSE)),VLOOKUP(J35,'Esc code lookup'!$B:$C,2,FALSE),IF(F35="1512","M",VLOOKUP(C35,'Esc code lookup'!$G$31:$I$39,2,FALSE)))) -> 3 | N35: 0 | O35: 14.668 | P35: 14.668 | Q35: =IF(ISERROR(AW35/1000),0,(AW35/1000)) -> 10.761 | R35: 11.19144 | S35: 11.6390976 | T35: 12.1046615 | U35: 12.58884796 | V35: 13.09240188 | W35: 13.61609796 | X35: 14.16074188 | Y35: 14.72717155 | Z35: 15.31625841 | AA35: 15.92890875 | AB35: 16.5660651 | AC35: 17.2287077 | AE35: =VLOOKUP($M35,'4 Escalation codes'!$A:$Q,3,FALSE) -> 0.0325 | AF35: =VLOOKUP($M35,'4 Escalation codes'!$A:$Q,4,FALSE) -> 0.044 | AG35: =VLOOKUP($M35,'4 Escalation codes'!$A:$Q,5,FALSE) -> 0.04 | AH35: =VLOOKUP($M35,'4 Escalation codes'!$A:$Q,6,FALSE) -> 0.04 | AI35: =VLOOKUP($M35,'4 Escalation codes'!$A:$Q,7,FALSE) -> 0.04 | AJ35: =VLOOKUP($M35,'4 Escalation codes'!$A:$Q,8,FALSE) -> 0.04 | AK35: =VLOOKUP($M35,'4 Escalation codes'!$A:$Q,9,FALSE) -> 0.04 | AL35: =VLOOKUP($M35,'4 Escalation codes'!$A:$Q,10,FALSE) -> 0.04 | AM35: =VLOOKUP($M35,'4 Escalation codes'!$A:$Q,11,FALSE) -> 0.04 | AN35: =VLOOKUP($M35,'4 Escalation codes'!$A:$Q,12,FALSE) -> 0.04 | AO35: =VLOOKUP($M35,'4 Escalation codes'!$A:$Q,13,FALSE) -> 0.04 | AP35: =VLOOKUP($M35,'4 Escalation codes'!$A:$Q,14,FALSE) -> 0.04 | AQ35: =VLOOKUP($M35,'4 Escalation codes'!$A:$Q,15,FALSE) -> 0.04 | AR35: =VLOOKUP($M35,'4 Escalation codes'!$A:$Q,16,FALSE) -> 0.04 | AS35: =VLOOKUP($M35,'4 Escalation codes'!$A:$Q,17,FALSE) -> 0.04 | AT35: =VLOOKUP($A35,'5 Download BI9'!$A:$U,13,FALSE) -> 14668 | AU35: =VLOOKUP($A35,'5 Download BI9'!$A:$U,13,FALSE) -> 14668 | AV35: =VLOOKUP($A35,'5 Download BI9'!$A:$U,20,FALSE) -> 14668 | AW35: =VLOOKUP($A35,'5 Download BI9'!$A:$U,19,FALSE) -> 10761 | AX35: 0.6126503365
A36: W2100.0001.1161 | B36: =VLOOKUP($A36,'5 Download BI9'!$A:$T,2,FALSE) -> 2100 - General Management | C36: =VLOOKUP($A36,'5 Download BI9'!$A:$U,3,FALSE) -> 2100 | D36: =VLOOKUP($A36,'5 Download BI9'!$A:$U,4,FALSE) -> 0001 - General Admin | E36: =VLOOKUP($A36,'5 Download BI9'!$A:$U,5,FALSE) -> 0001 | F36: =VLOOKUP($A36,'5 Download BI9'!$A:$U,6,FALSE) -> 1161 | G36: =VLOOKUP($A36,'5 Download BI9'!$A:$U,7,FALSE) -> 1161 | H36: =VLOOKUP($A36,'5 Download BI9'!$A:$U,8,FALSE) -> E | I36: O | J36: =VLOOKUP($A36,'5 Download BI9'!$A:$U,12,FALSE) -> 1161 - Staff Costs-Conferences/Seminars | K36: =VLOOKUP(J36,'Esc code lookup'!$B$4:$E$701,4,FALSE) -> Employee Costs | L36: =VLOOKUP(K36,#REF!,2,FALSE) ->  | M36: =IF(E36>"5003","M",IF(ISNA(VLOOKUP(C36,'Esc code lookup'!$G$31:$I$39,1,FALSE)),VLOOKUP(J36,'Esc code lookup'!$B:$C,2,FALSE),IF(F36="1512","M",VLOOKUP(C36,'Esc code lookup'!$G$31:$I$39,2,FALSE)))) -> 3 | N36: 0 | O36: 3 | P36: 3 | Q36: 3.03 | R36: 3.1512 | S36: 3.277248 | T36: 3.40833792 | U36: 3.544671437 | V36: 3.686458294 | W36: 3.833916626 | X36: 3.987273291 | Y36: 4.146764223 | Z36: 4.312634792 | AA36: 4.485140183 | AB36: 4.664545791 | AC36: 4.851127622 | AE36: =VLOOKUP($M36,'4 Escalation codes'!$A:$Q,3,FALSE) -> 0.0325 | AF36: =VLOOKUP($M36,'4 Escalation codes'!$A:$Q,4,FALSE) -> 0.044 | AG36: =VLOOKUP($M36,'4 Escalation codes'!$A:$Q,5,FALSE) -> 0.04 | AH36: =VLOOKUP($M36,'4 Escalation codes'!$A:$Q,6,FALSE) -> 0.04 | AI36: =VLOOKUP($M36,'4 Escalation codes'!$A:$Q,7,FALSE) -> 0.04 | AJ36: =VLOOKUP($M36,'4 Escalation codes'!$A:$Q,8,FALSE) -> 0.04 | AK36: =VLOOKUP($M36,'4 Escalation codes'!$A:$Q,9,FALSE) -> 0.04 | AL36: =VLOOKUP($M36,'4 Escalation codes'!$A:$Q,10,FALSE) -> 0.04 | AM36: =VLOOKUP($M36,'4 Escalation codes'!$A:$Q,11,FALSE) -> 0.04 | AN36: =VLOOKUP($M36,'4 Escalation codes'!$A:$Q,12,FALSE) -> 0.04 | AO36: =VLOOKUP($M36,'4 Escalation codes'!$A:$Q,13,FALSE) -> 0.04 | AP36: =VLOOKUP($M36,'4 Escalation codes'!$A:$Q,14,FALSE) -> 0.04 | AQ36: =VLOOKUP($M36,'4 Escalation codes'!$A:$Q,15,FALSE) -> 0.04 | AR36: =VLOOKUP($M36,'4 Escalation codes'!$A:$Q,16,FALSE) -> 0.04 | AS36: =VLOOKUP($M36,'4 Escalation codes'!$A:$Q,17,FALSE) -> 0.04 | AT36: =VLOOKUP($A36,'5 Download BI9'!$A:$U,13,FALSE) -> 3000 | AU36: =VLOOKUP($A36,'5 Download BI9'!$A:$U,13,FALSE) -> 3000 | AV36: =VLOOKUP($A36,'5 Download BI9'!$A:$U,20,FALSE) -> 3000 | AW36: =VLOOKUP($A36,'5 Download BI9'!$A:$U,19,FALSE) -> 3030 | AX36: 0.1725053917
A37: W2100.0001.1241 | B37: =VLOOKUP($A37,'5 Download BI9'!$A:$T,2,FALSE) -> 2100 - General Management | C37: =VLOOKUP($A37,'5 Download BI9'!$A:$U,3,FALSE) -> 2100 | D37: =VLOOKUP($A37,'5 Download BI9'!$A:$U,4,FALSE) -> 0001 - General Admin | E37: =VLOOKUP($A37,'5 Download BI9'!$A:$U,5,FALSE) -> 0001 | F37: =VLOOKUP($A37,'5 Download BI9'!$A:$U,6,FALSE) -> 1241 | G37: =VLOOKUP($A37,'5 Download BI9'!$A:$U,7,FALSE) -> 1241 | H37: =VLOOKUP($A37,'5 Download BI9'!$A:$U,8,FALSE) -> E | I37: O | J37: =VLOOKUP($A37,'5 Download BI9'!$A:$U,12,FALSE) -> 1241 - Office Admin-Stationary | K37: =VLOOKUP(J37,'Esc code lookup'!$B$4:$E$701,4,FALSE) -> Materials and Contracts | L37: =VLOOKUP(K37,#REF!,2,FALSE) ->  | M37: =IF(E37>"5003","M",IF(ISNA(VLOOKUP(C37,'Esc code lookup'!$G$31:$I$39,1,FALSE)),VLOOKUP(J37,'Esc code lookup'!$B:$C,2,FALSE),IF(F37="1512","M",VLOOKUP(C37,'Esc code lookup'!$G$31:$I$39,2,FALSE)))) -> CPI-C | N37: 0 | O37: 1.515 | P37: 1.515 | Q37: 1.53 | R37: 1.56825 | S37: 1.60745625 | T37: 1.647642656 | U37: 1.692952829 | V37: 1.739509032 | W37: 1.78734553 | X37: 1.836497533 | Y37: 1.887001215 | Z37: 1.938893748 | AA37: 1.992213326 | AB37: 2.046999193 | AC37: 2.10329167 | AE37: =VLOOKUP($M37,'4 Escalation codes'!$A:$Q,3,FALSE) -> 0 | AF37: =VLOOKUP($M37,'4 Escalation codes'!$A:$Q,4,FALSE) -> 0.01 | AG37: =VLOOKUP($M37,'4 Escalation codes'!$A:$Q,5,FALSE) -> 0.03 | AH37: =VLOOKUP($M37,'4 Escalation codes'!$A:$Q,6,FALSE) -> 0.025 | AI37: =VLOOKUP($M37,'4 Escalation codes'!$A:$Q,7,FALSE) -> 0.025 | AJ37: =VLOOKUP($M37,'4 Escalation codes'!$A:$Q,8,FALSE) -> 0.025 | AK37: =VLOOKUP($M37,'4 Escalation codes'!$A:$Q,9,FALSE) -> 0.0275 | AL37: =VLOOKUP($M37,'4 Escalation codes'!$A:$Q,10,FALSE) -> 0.0275 | AM37: =VLOOKUP($M37,'4 Escalation codes'!$A:$Q,11,FALSE) -> 0.0275 | AN37: =VLOOKUP($M37,'4 Escalation codes'!$A:$Q,12,FALSE) -> 0.0275 | AO37: =VLOOKUP($M37,'4 Escalation codes'!$A:$Q,13,FALSE) -> 0.0275 | AP37: =VLOOKUP($M37,'4 Escalation codes'!$A:$Q,14,FALSE) -> 0.0275 | AQ37: =VLOOKUP($M37,'4 Escalation codes'!$A:$Q,15,FALSE) -> 0.0275 | AR37: =VLOOKUP($M37,'4 Escalation codes'!$A:$Q,16,FALSE) -> 0.0275 | AS37: =VLOOKUP($M37,'4 Escalation codes'!$A:$Q,17,FALSE) -> 0.0275 | AT37: =VLOOKUP($A37,'5 Download BI9'!$A:$U,13,FALSE) -> 1515 | AU37: =VLOOKUP($A37,'5 Download BI9'!$A:$U,13,FALSE) -> 1515 | AV37: =VLOOKUP($A37,'5 Download BI9'!$A:$U,20,FALSE) -> 1515 | AW37: =VLOOKUP($A37,'5 Download BI9'!$A:$U,19,FALSE) -> 1530 | AX37: 0.05331957807
A38: W2100.0001.1245 | B38: =VLOOKUP($A38,'5 Download BI9'!$A:$T,2,FALSE) -> 2100 - General Management | C38: =VLOOKUP($A38,'5 Download BI9'!$A:$U,3,FALSE) -> 2100 | D38: =VLOOKUP($A38,'5 Download BI9'!$A:$U,4,FALSE) -> 0001 - General Admin | E38: =VLOOKUP($A38,'5 Download BI9'!$A:$U,5,FALSE) -> 0001 | F38: =VLOOKUP($A38,'5 Download BI9'!$A:$U,6,FALSE) -> 1245 | G38: =VLOOKUP($A38,'5 Download BI9'!$A:$U,7,FALSE) -> 1245 | H38: =VLOOKUP($A38,'5 Download BI9'!$A:$U,8,FALSE) -> E | I38: O | J38: =VLOOKUP($A38,'5 Download BI9'!$A:$U,12,FALSE) -> 1245 - Office Admin-Printing | K38: =VLOOKUP(J38,'Esc code lookup'!$B$4:$E$701,4,FALSE) -> Materials and Contracts | L38: =VLOOKUP(K38,#REF!,2,FALSE) ->  | M38: =IF(E38>"5003","M",IF(ISNA(VLOOKUP(C38,'Esc code lookup'!$G$31:$I$39,1,FALSE)),VLOOKUP(J38,'Esc code lookup'!$B:$C,2,FALSE),IF(F38="1512","M",VLOOKUP(C38,'Esc code lookup'!$G$31:$I$39,2,FALSE)))) -> CPI-C | N38: 0 | O38: 2.3 | P38: =IF(ISERROR(AV38/1000),0,(AV38/1000)) -> 2.3 | Q38: =IF(ISERROR(AW38/1000),0,(AW38/1000)) -> 2.323 | R38: 2.381075 | S38: 2.440601875 | T38: 2.501616922 | U38: 2.570411387 | V38: 2.6410977 | W38: 2.713727887 | X38: 2.788355404 | Y38: 2.865035178 | Z38: 2.943823645 | AA38: 3.024778795 | AB38: 3.107960212 | AC38: 3.193429118 | AE38: =VLOOKUP($M38,'4 Escalation codes'!$A:$Q,3,FALSE) -> 0 | AF38: =VLOOKUP($M38,'4 Escalation codes'!$A:$Q,4,FALSE) -> 0.01 | AG38: =VLOOKUP($M38,'4 Escalation codes'!$A:$Q,5,FALSE) -> 0.03 | AH38: =VLOOKUP($M38,'4 Escalation codes'!$A:$Q,6,FALSE) -> 0.025 | AI38: =VLOOKUP($M38,'4 Escalation codes'!$A:$Q,7,FALSE) -> 0.025 | AJ38: =VLOOKUP($M38,'4 Escalation codes'!$A:$Q,8,FALSE) -> 0.025 | AK38: =VLOOKUP($M38,'4 Escalation codes'!$A:$Q,9,FALSE) -> 0.0275 | AL38: =VLOOKUP($M38,'4 Escalation codes'!$A:$Q,10,FALSE) -> 0.0275 | AM38: =VLOOKUP($M38,'4 Escalation codes'!$A:$Q,11,FALSE) -> 0.0275 | AN38: =VLOOKUP($M38,'4 Escalation codes'!$A:$Q,12,FALSE) -> 0.0275 | AO38: =VLOOKUP($M38,'4 Escalation codes'!$A:$Q,13,FALSE) -> 0.0275 | AP38: =VLOOKUP($M38,'4 Escalation codes'!$A:$Q,14,FALSE) -> 0.0275 | AQ38: =VLOOKUP($M38,'4 Escalation codes'!$A:$Q,15,FALSE) -> 0.0275 | AR38: =VLOOKUP($M38,'4 Escalation codes'!$A:$Q,16,FALSE) -> 0.0275 | AS38: =VLOOKUP($M38,'4 Escalation codes'!$A:$Q,17,FALSE) -> 0.0275 | AT38: =VLOOKUP($A38,'5 Download BI9'!$A:$U,13,FALSE) -> 2300 | AU38: =VLOOKUP($A38,'5 Download BI9'!$A:$U,13,FALSE) -> 2300 | AV38: =VLOOKUP($A38,'5 Download BI9'!$A:$U,20,FALSE) -> 2300 | AW38: =VLOOKUP($A38,'5 Download BI9'!$A:$U,19,FALSE) -> 2323 | AX38: 0.08095515024
A39: W2100.0001.1512 | B39: =VLOOKUP($A39,'5 Download BI9'!$A:$T,2,FALSE) -> 2100 - General Management | C39: =VLOOKUP($A39,'5 Download BI9'!$A:$U,3,FALSE) -> 2100 | D39: =VLOOKUP($A39,'5 Download BI9'!$A:$U,4,FALSE) -> 0001 - General Admin | E39: =VLOOKUP($A39,'5 Download BI9'!$A:$U,5,FALSE) -> 0001 | F39: =VLOOKUP($A39,'5 Download BI9'!$A:$U,6,FALSE) -> 1512 | G39: =VLOOKUP($A39,'5 Download BI9'!$A:$U,7,FALSE) -> 1512 | H39: =VLOOKUP($A39,'5 Download BI9'!$A:$U,8,FALSE) -> E | I39: O | J39: =VLOOKUP($A39,'5 Download BI9'!$A:$U,12,FALSE) -> 1512 - Depn-Motor Vehicles | K39: =VLOOKUP(J39,'Esc code lookup'!$B$4:$E$701,4,FALSE) -> Depreciation & Amortisation | L39: =VLOOKUP(K39,#REF!,2,FALSE) ->  | M39: =IF(E39>"5003","M",IF(ISNA(VLOOKUP(C39,'Esc code lookup'!$G$31:$I$39,1,FALSE)),VLOOKUP(J39,'Esc code lookup'!$B:$C,2,FALSE),IF(F39="1512","M",VLOOKUP(C39,'Esc code lookup'!$G$31:$I$39,2,FALSE)))) -> 16 | N39: 0 | O39: 14.488 | P39: 9.488 | Q39: 14.488 | R39: 14.77776 | S39: 15.0733152 | T39: 15.3747815 | U39: 15.68227713 | V39: 15.99592268 | W39: 16.31584113 | X39: 16.64215795 | Y39: 16.97500111 | Z39: 17.31450113 | AA39: 17.66079116 | AB39: 18.01400698 | AC39: 18.37428712 | AE39: =VLOOKUP($M39,'4 Escalation codes'!$A:$Q,3,FALSE) -> 0 | AF39: =VLOOKUP($M39,'4 Escalation codes'!$A:$Q,4,FALSE) -> 0.02 | AG39: =VLOOKUP($M39,'4 Escalation codes'!$A:$Q,5,FALSE) -> 0.02 | AH39: =VLOOKUP($M39,'4 Escalation codes'!$A:$Q,6,FALSE) -> 0.02 | AI39: =VLOOKUP($M39,'4 Escalation codes'!$A:$Q,7,FALSE) -> 0.02 | AJ39: =VLOOKUP($M39,'4 Escalation codes'!$A:$Q,8,FALSE) -> 0.02 | AK39: =VLOOKUP($M39,'4 Escalation codes'!$A:$Q,9,FALSE) -> 0.02 | AL39: =VLOOKUP($M39,'4 Escalation codes'!$A:$Q,10,FALSE) -> 0.02 | AM39: =VLOOKUP($M39,'4 Escalation codes'!$A:$Q,11,FALSE) -> 0.02 | AN39: =VLOOKUP($M39,'4 Escalation codes'!$A:$Q,12,FALSE) -> 0.02 | AO39: =VLOOKUP($M39,'4 Escalation codes'!$A:$Q,13,FALSE) -> 0.02 | AP39: =VLOOKUP($M39,'4 Escalation codes'!$A:$Q,14,FALSE) -> 0.02 | AQ39: =VLOOKUP($M39,'4 Escalation codes'!$A:$Q,15,FALSE) -> 0.02 | AR39: =VLOOKUP($M39,'4 Escalation codes'!$A:$Q,16,FALSE) -> 0.02 | AS39: =VLOOKUP($M39,'4 Escalation codes'!$A:$Q,17,FALSE) -> 0.02 | AT39: =VLOOKUP($A39,'5 Download BI9'!$A:$U,13,FALSE) -> 14488 | AU39: =VLOOKUP($A39,'5 Download BI9'!$A:$U,13,FALSE) -> 14488 | AV39: =VLOOKUP($A39,'5 Download BI9'!$A:$U,20,FALSE) -> 9488 | AW39: =VLOOKUP($A39,'5 Download BI9'!$A:$U,19,FALSE) -> 14488 | AX39: 0.3462900227
A40: W2100.0001.1692 | B40: =VLOOKUP($A40,'5 Download BI9'!$A:$T,2,FALSE) -> 2100 - General Management | C40: =VLOOKUP($A40,'5 Download BI9'!$A:$U,3,FALSE) -> 2100 | D40: =VLOOKUP($A40,'5 Download BI9'!$A:$U,4,FALSE) -> 0001 - General Admin | E40: =VLOOKUP($A40,'5 Download BI9'!$A:$U,5,FALSE) -> 0001 | F40: =VLOOKUP($A40,'5 Download BI9'!$A:$U,6,FALSE) -> 1692 | G40: =VLOOKUP($A40,'5 Download BI9'!$A:$U,7,FALSE) -> 1692 | H40: =VLOOKUP($A40,'5 Download BI9'!$A:$U,8,FALSE) -> E | I40: O | J40: =VLOOKUP($A40,'5 Download BI9'!$A:$U,12,FALSE) -> 1692 - Insur Costs-Public && Prof Liability | K40: =VLOOKUP(J40,'Esc code lookup'!$B$4:$E$701,4,FALSE) -> Other Expenses | L40: =VLOOKUP(K40,#REF!,2,FALSE) ->  | M40: =IF(E40>"5003","M",IF(ISNA(VLOOKUP(C40,'Esc code lookup'!$G$31:$I$39,1,FALSE)),VLOOKUP(J40,'Esc code lookup'!$B:$C,2,FALSE),IF(F40="1512","M",VLOOKUP(C40,'Esc code lookup'!$G$31:$I$39,2,FALSE)))) -> CPI-C | N40: 0 | O40: 7.181 | P40: 7.181 | Q40: 7.467 | R40: 7.653675 | S40: 7.845016875 | T40: 8.041142297 | U40: 8.26227371 | V40: 8.489486237 | W40: 8.722947109 | X40: 8.962828154 | Y40: 9.209305928 | Z40: 9.462561841 | AA40: 9.722782292 | AB40: 9.990158805 | AC40: 10.26488817 | AE40: =VLOOKUP($M40,'4 Escalation codes'!$A:$Q,3,FALSE) -> 0 | AF40: =VLOOKUP($M40,'4 Escalation codes'!$A:$Q,4,FALSE) -> 0.01 | AG40: =VLOOKUP($M40,'4 Escalation codes'!$A:$Q,5,FALSE) -> 0.03 | AH40: =VLOOKUP($M40,'4 Escalation codes'!$A:$Q,6,FALSE) -> 0.025 | AI40: =VLOOKUP($M40,'4 Escalation codes'!$A:$Q,7,FALSE) -> 0.025 | AJ40: =VLOOKUP($M40,'4 Escalation codes'!$A:$Q,8,FALSE) -> 0.025 | AK40: =VLOOKUP($M40,'4 Escalation codes'!$A:$Q,9,FALSE) -> 0.0275 | AL40: =VLOOKUP($M40,'4 Escalation codes'!$A:$Q,10,FALSE) -> 0.0275 | AM40: =VLOOKUP($M40,'4 Escalation codes'!$A:$Q,11,FALSE) -> 0.0275 | AN40: =VLOOKUP($M40,'4 Escalation codes'!$A:$Q,12,FALSE) -> 0.0275 | AO40: =VLOOKUP($M40,'4 Escalation codes'!$A:$Q,13,FALSE) -> 0.0275 | AP40: =VLOOKUP($M40,'4 Escalation codes'!$A:$Q,14,FALSE) -> 0.0275 | AQ40: =VLOOKUP($M40,'4 Escalation codes'!$A:$Q,15,FALSE) -> 0.0275 | AR40: =VLOOKUP($M40,'4 Escalation codes'!$A:$Q,16,FALSE) -> 0.0275 | AS40: =VLOOKUP($M40,'4 Escalation codes'!$A:$Q,17,FALSE) -> 0.0275 | AT40: =VLOOKUP($A40,'5 Download BI9'!$A:$U,13,FALSE) -> 7181 | AU40: =VLOOKUP($A40,'5 Download BI9'!$A:$U,13,FALSE) -> 7181 | AV40: =VLOOKUP($A40,'5 Download BI9'!$A:$U,20,FALSE) -> 7181 | AW40: =VLOOKUP($A40,'5 Download BI9'!$A:$U,19,FALSE) -> 7467 | AX40: 0.2602204506
A41: W2100.0001.1825 | B41: =VLOOKUP($A41,'5 Download BI9'!$A:$T,2,FALSE) -> 2100 - General Management | C41: =VLOOKUP($A41,'5 Download BI9'!$A:$U,3,FALSE) -> 2100 | D41: =VLOOKUP($A41,'5 Download BI9'!$A:$U,4,FALSE) -> 0001 - General Admin | E41: =VLOOKUP($A41,'5 Download BI9'!$A:$U,5,FALSE) -> 0001 | F41: =VLOOKUP($A41,'5 Download BI9'!$A:$U,6,FALSE) -> 1825 | G41: =VLOOKUP($A41,'5 Download BI9'!$A:$U,7,FALSE) -> 1825 | H41: =VLOOKUP($A41,'5 Download BI9'!$A:$U,8,FALSE) -> E | I41: O | J41: =VLOOKUP($A41,'5 Download BI9'!$A:$U,12,FALSE) -> 1825 - Gen Admin-Memberships && Subs | K41: =VLOOKUP(J41,'Esc code lookup'!$B$4:$E$701,4,FALSE) -> Other Expenses | L41: =VLOOKUP(K41,#REF!,2,FALSE) ->  | M41: =IF(E41>"5003","M",IF(ISNA(VLOOKUP(C41,'Esc code lookup'!$G$31:$I$39,1,FALSE)),VLOOKUP(J41,'Esc code lookup'!$B:$C,2,FALSE),IF(F41="1512","M",VLOOKUP(C41,'Esc code lookup'!$G$31:$I$39,2,FALSE)))) -> CPI-C | N41: 0 | O41: 31.815 | P41: 31.815 | Q41: 25.6 | R41: 26.24 | S41: 26.896 | T41: 27.5684 | U41: 28.326531 | V41: 29.1055106 | W41: 29.90591214 | X41: 30.72832473 | Y41: 31.57335366 | Z41: 32.44162088 | AA41: 33.33376546 | AB41: 34.25044401 | AC41: 35.19233122 | AE41: =VLOOKUP($M41,'4 Escalation codes'!$A:$Q,3,FALSE) -> 0 | AF41: =VLOOKUP($M41,'4 Escalation codes'!$A:$Q,4,FALSE) -> 0.01 | AG41: =VLOOKUP($M41,'4 Escalation codes'!$A:$Q,5,FALSE) -> 0.03 | AH41: =VLOOKUP($M41,'4 Escalation codes'!$A:$Q,6,FALSE) -> 0.025 | AI41: =VLOOKUP($M41,'4 Escalation codes'!$A:$Q,7,FALSE) -> 0.025 | AJ41: =VLOOKUP($M41,'4 Escalation codes'!$A:$Q,8,FALSE) -> 0.025 | AK41: =VLOOKUP($M41,'4 Escalation codes'!$A:$Q,9,FALSE) -> 0.0275 | AL41: =VLOOKUP($M41,'4 Escalation codes'!$A:$Q,10,FALSE) -> 0.0275 | AM41: =VLOOKUP($M41,'4 Escalation codes'!$A:$Q,11,FALSE) -> 0.0275 | AN41: =VLOOKUP($M41,'4 Escalation codes'!$A:$Q,12,FALSE) -> 0.0275 | AO41: =VLOOKUP($M41,'4 Escalation codes'!$A:$Q,13,FALSE) -> 0.0275 | AP41: =VLOOKUP($M41,'4 Escalation codes'!$A:$Q,14,FALSE) -> 0.0275 | AQ41: =VLOOKUP($M41,'4 Escalation codes'!$A:$Q,15,FALSE) -> 0.0275 | AR41: =VLOOKUP($M41,'4 Escalation codes'!$A:$Q,16,FALSE) -> 0.0275 | AS41: =VLOOKUP($M41,'4 Escalation codes'!$A:$Q,17,FALSE) -> 0.0275 | AT41: =VLOOKUP($A41,'5 Download BI9'!$A:$U,13,FALSE) -> 31815 | AU41: =VLOOKUP($A41,'5 Download BI9'!$A:$U,13,FALSE) -> 31815 | AV41: =VLOOKUP($A41,'5 Download BI9'!$A:$U,20,FALSE) -> 31815 | AW41: =VLOOKUP($A41,'5 Download BI9'!$A:$U,19,FALSE) -> 25600 | AX41: 0.8921445743
A42: W2100.0001.1951 | B42: =VLOOKUP($A42,'5 Download BI9'!$A:$T,2,FALSE) -> 2100 - General Management | C42: =VLOOKUP($A42,'5 Download BI9'!$A:$U,3,FALSE) -> 2100 | D42: =VLOOKUP($A42,'5 Download BI9'!$A:$U,4,FALSE) -> 0001 - General Admin | E42: =VLOOKUP($A42,'5 Download BI9'!$A:$U,5,FALSE) -> 0001 | F42: =VLOOKUP($A42,'5 Download BI9'!$A:$U,6,FALSE) -> 1951 | G42: =VLOOKUP($A42,'5 Download BI9'!$A:$U,7,FALSE) -> 1951 | H42: =VLOOKUP($A42,'5 Download BI9'!$A:$U,8,FALSE) -> E | I42: O | J42: =VLOOKUP($A42,'5 Download BI9'!$A:$U,12,FALSE) -> 1951 - Internal Chg-Motor Vehicles | K42: =VLOOKUP(J42,'Esc code lookup'!$B$4:$E$701,4,FALSE) -> Internal Expenses | L42: =VLOOKUP(K42,#REF!,2,FALSE) ->  | M42: =IF(E42>"5003","M",IF(ISNA(VLOOKUP(C42,'Esc code lookup'!$G$31:$I$39,1,FALSE)),VLOOKUP(J42,'Esc code lookup'!$B:$C,2,FALSE),IF(F42="1512","M",VLOOKUP(C42,'Esc code lookup'!$G$31:$I$39,2,FALSE)))) -> CPI-C | N42: 0 | O42: 8.5 | P42: 8.5 | Q42: 8.5 | R42: 8.7125 | S42: 8.9303125 | T42: 9.153570312 | U42: 9.405293496 | V42: 9.663939067 | W42: 9.929697392 | X42: 10.20276407 | Y42: 10.48334008 | Z42: 10.77163193 | AA42: 11.06785181 | AB42: 11.37221774 | AC42: 11.68495372 | AD42: =IF(O42=0,IF(P42<>0,"new"," ")) -> FALSE | AE42: =VLOOKUP($M42,'4 Escalation codes'!$A:$Q,3,FALSE) -> 0 | AF42: =VLOOKUP($M42,'4 Escalation codes'!$A:$Q,4,FALSE) -> 0.01 | AG42: =VLOOKUP($M42,'4 Escalation codes'!$A:$Q,5,FALSE) -> 0.03 | AH42: =VLOOKUP($M42,'4 Escalation codes'!$A:$Q,6,FALSE) -> 0.025 | AI42: =VLOOKUP($M42,'4 Escalation codes'!$A:$Q,7,FALSE) -> 0.025 | AJ42: =VLOOKUP($M42,'4 Escalation codes'!$A:$Q,8,FALSE) -> 0.025 | AK42: =VLOOKUP($M42,'4 Escalation codes'!$A:$Q,9,FALSE) -> 0.0275 | AL42: =VLOOKUP($M42,'4 Escalation codes'!$A:$Q,10,FALSE) -> 0.0275 | AM42: =VLOOKUP($M42,'4 Escalation codes'!$A:$Q,11,FALSE) -> 0.0275 | AN42: =VLOOKUP($M42,'4 Escalation codes'!$A:$Q,12,FALSE) -> 0.0275 | AO42: =VLOOKUP($M42,'4 Escalation codes'!$A:$Q,13,FALSE) -> 0.0275 | AP42: =VLOOKUP($M42,'4 Escalation codes'!$A:$Q,14,FALSE) -> 0.0275 | AQ42: =VLOOKUP($M42,'4 Escalation codes'!$A:$Q,15,FALSE) -> 0.0275 | AR42: =VLOOKUP($M42,'4 Escalation codes'!$A:$Q,16,FALSE) -> 0.0275 | AS42: =VLOOKUP($M42,'4 Escalation codes'!$A:$Q,17,FALSE) -> 0.0275 | AT42: =VLOOKUP($A42,'5 Download BI9'!$A:$U,13,FALSE) -> 8500 | AU42: =VLOOKUP($A42,'5 Download BI9'!$A:$U,13,FALSE) -> 8500 | AV42: =VLOOKUP($A42,'5 Download BI9'!$A:$U,20,FALSE) -> 8500 | AW42: =VLOOKUP($A42,'5 Download BI9'!$A:$U,19,FALSE) -> 8500 | AX42: 0.2962198782
A43: W2100.0001.2240 | B43: =VLOOKUP($A43,'5 Download BI9'!$A:$T,2,FALSE) -> 2100 - General Management | C43: =VLOOKUP($A43,'5 Download BI9'!$A:$U,3,FALSE) -> 2100 | D43: =VLOOKUP($A43,'5 Download BI9'!$A:$U,4,FALSE) -> 0001 - General Admin | E43: =VLOOKUP($A43,'5 Download BI9'!$A:$U,5,FALSE) -> 0001 | F43: =VLOOKUP($A43,'5 Download BI9'!$A:$U,6,FALSE) -> 2240 | G43: =VLOOKUP($A43,'5 Download BI9'!$A:$U,7,FALSE) -> 2240 | H43: =VLOOKUP($A43,'5 Download BI9'!$A:$U,8,FALSE) -> I | I43: O | J43: =VLOOKUP($A43,'5 Download BI9'!$A:$U,12,FALSE) -> 2240 - Inc-M/V Contribution-Contr. St | K43: =VLOOKUP(J43,'Esc code lookup'!$B$4:$E$701,4,FALSE) -> User Charges and Fees | L43: =VLOOKUP(K43,#REF!,2,FALSE) ->  | M43: =IF(E43>"5003","M",IF(ISNA(VLOOKUP(C43,'Esc code lookup'!$G$31:$I$39,1,FALSE)),VLOOKUP(J43,'Esc code lookup'!$B:$C,2,FALSE),IF(F43="1512","M",VLOOKUP(C43,'Esc code lookup'!$G$31:$I$39,2,FALSE)))) -> 2 | N43: 0 | O43: -12 | P43: -12 | Q43: -12 | R43: -12.42 | S43: -12.8547 | T43: -13.3046145 | U43: -13.77027601 | V43: -14.25223567 | W43: -14.75106392 | X43: -15.26735115 | Y43: -15.80170844 | Z43: -16.35476824 | AA43: -16.92718513 | AB43: -17.51963661 | AC43: -18.13282389 | AE43: =VLOOKUP($M43,'4 Escalation codes'!$A:$Q,3,FALSE) -> 0 | AF43: =VLOOKUP($M43,'4 Escalation codes'!$A:$Q,4,FALSE) -> 0.03 | AG43: =VLOOKUP($M43,'4 Escalation codes'!$A:$Q,5,FALSE) -> 0.035 | AH43: =VLOOKUP($M43,'4 Escalation codes'!$A:$Q,6,FALSE) -> 0.035 | AI43: =VLOOKUP($M43,'4 Escalation codes'!$A:$Q,7,FALSE) -> 0.035 | AJ43: =VLOOKUP($M43,'4 Escalation codes'!$A:$Q,8,FALSE) -> 0.035 | AK43: =VLOOKUP($M43,'4 Escalation codes'!$A:$Q,9,FALSE) -> 0.035 | AL43: =VLOOKUP($M43,'4 Escalation codes'!$A:$Q,10,FALSE) -> 0.035 | AM43: =VLOOKUP($M43,'4 Escalation codes'!$A:$Q,11,FALSE) -> 0.035 | AN43: =VLOOKUP($M43,'4 Escalation codes'!$A:$Q,12,FALSE) -> 0.035 | AO43: =VLOOKUP($M43,'4 Escalation codes'!$A:$Q,13,FALSE) -> 0.035 | AP43: =VLOOKUP($M43,'4 Escalation codes'!$A:$Q,14,FALSE) -> 0.035 | AQ43: =VLOOKUP($M43,'4 Escalation codes'!$A:$Q,15,FALSE) -> 0.035 | AR43: =VLOOKUP($M43,'4 Escalation codes'!$A:$Q,16,FALSE) -> 0.035 | AS43: =VLOOKUP($M43,'4 Escalation codes'!$A:$Q,17,FALSE) -> 0.035 | AT43: =VLOOKUP($A43,'5 Download BI9'!$A:$U,13,FALSE) -> -12000 | AU43: =VLOOKUP($A43,'5 Download BI9'!$A:$U,13,FALSE) -> -12000 | AV43: =VLOOKUP($A43,'5 Download BI9'!$A:$U,20,FALSE) -> -12000 | AW43: =VLOOKUP($A43,'5 Download BI9'!$A:$U,19,FALSE) -> -12000 | AX43: -0.5724168884
A44: W2100.0013.1832 | B44: =VLOOKUP($A44,'5 Download BI9'!$A:$T,2,FALSE) -> 2100 - General Management | C44: =VLOOKUP($A44,'5 Download BI9'!$A:$U,3,FALSE) -> 2100 | D44: =VLOOKUP($A44,'5 Download BI9'!$A:$U,4,FALSE) -> 0013 - Health Care && Safety | E44: =VLOOKUP($A44,'5 Download BI9'!$A:$U,5,FALSE) -> 0013 | F44: =VLOOKUP($A44,'5 Download BI9'!$A:$U,6,FALSE) -> 1832 | G44: =VLOOKUP($A44,'5 Download BI9'!$A:$U,7,FALSE) -> 1832 | H44: =VLOOKUP($A44,'5 Download BI9'!$A:$U,8,FALSE) -> E | I44: O | J44: =VLOOKUP($A44,'5 Download BI9'!$A:$U,12,FALSE) -> 1832 - Gen Admin-Sundry Expenses-GST | K44: =VLOOKUP(J44,'Esc code lookup'!$B$4:$E$701,4,FALSE) -> Other Expenses | L44: =VLOOKUP(K44,#REF!,2,FALSE) ->  | M44: =IF(E44>"5003","M",IF(ISNA(VLOOKUP(C44,'Esc code lookup'!$G$31:$I$39,1,FALSE)),VLOOKUP(J44,'Esc code lookup'!$B:$C,2,FALSE),IF(F44="1512","M",VLOOKUP(C44,'Esc code lookup'!$G$31:$I$39,2,FALSE)))) -> CPI-C | N44: 0 | O44: 4.1 | P44: 4.1 | Q44: 4.141 | R44: 4.244525 | S44: 4.350638125 | T44: 4.459404078 | U44: 4.58203769 | V44: 4.708043727 | W44: 4.837514929 | X44: 4.97054659 | Y44: 5.107236621 | Z44: 5.247685628 | AA44: 5.391996983 | AB44: 5.5402769 | AC44: 5.692634515 | AD44: =IF(O44=0,IF(P44<>0,"new"," ")) -> FALSE | AE44: =VLOOKUP($M44,'4 Escalation codes'!$A:$Q,3,FALSE) -> 0 | AF44: =VLOOKUP($M44,'4 Escalation codes'!$A:$Q,4,FALSE) -> 0.01 | AG44: =VLOOKUP($M44,'4 Escalation codes'!$A:$Q,5,FALSE) -> 0.03 | AH44: =VLOOKUP($M44,'4 Escalation codes'!$A:$Q,6,FALSE) -> 0.025 | AI44: =VLOOKUP($M44,'4 Escalation codes'!$A:$Q,7,FALSE) -> 0.025 | AJ44: =VLOOKUP($M44,'4 Escalation codes'!$A:$Q,8,FALSE) -> 0.025 | AK44: =VLOOKUP($M44,'4 Escalation codes'!$A:$Q,9,FALSE) -> 0.0275 | AL44: =VLOOKUP($M44,'4 Escalation codes'!$A:$Q,10,FALSE) -> 0.0275 | AM44: =VLOOKUP($M44,'4 Escalation codes'!$A:$Q,11,FALSE) -> 0.0275 | AN44: =VLOOKUP($M44,'4 Escalation codes'!$A:$Q,12,FALSE) -> 0.0275 | AO44: =VLOOKUP($M44,'4 Escalation codes'!$A:$Q,13,FALSE) -> 0.0275 | AP44: =VLOOKUP($M44,'4 Escalation codes'!$A:$Q,14,FALSE) -> 0.0275 | AQ44: =VLOOKUP($M44,'4 Escalation codes'!$A:$Q,15,FALSE) -> 0.0275 | AR44: =VLOOKUP($M44,'4 Escalation codes'!$A:$Q,16,FALSE) -> 0.0275 | AS44: =VLOOKUP($M44,'4 Escalation codes'!$A:$Q,17,FALSE) -> 0.0275 | AT44: =VLOOKUP($A44,'5 Download BI9'!$A:$U,13,FALSE) -> 4100 | AU44: =VLOOKUP($A44,'5 Download BI9'!$A:$U,13,FALSE) -> 4100 | AV44: =VLOOKUP($A44,'5 Download BI9'!$A:$U,20,FALSE) -> 4100 | AW44: =VLOOKUP($A44,'5 Download BI9'!$A:$U,19,FALSE) -> 4141 | AX44: 0.1443113548
A45: W2100.0203.1743 | B45: =VLOOKUP($A45,'5 Download BI9'!$A:$T,2,FALSE) -> 2100 - General Management | C45: =VLOOKUP($A45,'5 Download BI9'!$A:$U,3,FALSE) -> 2100 | D45: =VLOOKUP($A45,'5 Download BI9'!$A:$U,4,FALSE) -> 0203 - Telephone && Communications | E45: =VLOOKUP($A45,'5 Download BI9'!$A:$U,5,FALSE) -> 0203 | F45: =VLOOKUP($A45,'5 Download BI9'!$A:$U,6,FALSE) -> 1743 | G45: =VLOOKUP($A45,'5 Download BI9'!$A:$U,7,FALSE) -> 1743 | H45: =VLOOKUP($A45,'5 Download BI9'!$A:$U,8,FALSE) -> E | I45: O | J45: =VLOOKUP($A45,'5 Download BI9'!$A:$U,12,FALSE) -> 1743 - Comm Costs-Mobile Phones | K45: =VLOOKUP(J45,'Esc code lookup'!$B$4:$E$701,4,FALSE) -> Other Expenses | L45: =VLOOKUP(K45,#REF!,2,FALSE) ->  | M45: =IF(E45>"5003","M",IF(ISNA(VLOOKUP(C45,'Esc code lookup'!$G$31:$I$39,1,FALSE)),VLOOKUP(J45,'Esc code lookup'!$B:$C,2,FALSE),IF(F45="1512","M",VLOOKUP(C45,'Esc code lookup'!$G$31:$I$39,2,FALSE)))) -> CPI-C | N45: 0 | O45: 1.53 | P45: 1.53 | Q45: 1.545 | R45: 1.583625 | S45: 1.623215625 | T45: 1.663796016 | U45: 1.709550406 | V45: 1.756563042 | W45: 1.804868526 | X45: 1.85450241 | Y45: 1.905501227 | Z45: 1.95790251 | AA45: 2.011744829 | AB45: 2.067067812 | AC45: 2.123912177 | AE45: =VLOOKUP($M45,'4 Escalation codes'!$A:$Q,3,FALSE) -> 0 | AF45: =VLOOKUP($M45,'4 Escalation codes'!$A:$Q,4,FALSE) -> 0.01 | AG45: =VLOOKUP($M45,'4 Escalation codes'!$A:$Q,5,FALSE) -> 0.03 | AH45: =VLOOKUP($M45,'4 Escalation codes'!$A:$Q,6,FALSE) -> 0.025 | AI45: =VLOOKUP($M45,'4 Escalation codes'!$A:$Q,7,FALSE) -> 0.025 | AJ45: =VLOOKUP($M45,'4 Escalation codes'!$A:$Q,8,FALSE) -> 0.025 | AK45: =VLOOKUP($M45,'4 Escalation codes'!$A:$Q,9,FALSE) -> 0.0275 | AL45: =VLOOKUP($M45,'4 Escalation codes'!$A:$Q,10,FALSE) -> 0.0275 | AM45: =VLOOKUP($M45,'4 Escalation codes'!$A:$Q,11,FALSE) -> 0.0275 | AN45: =VLOOKUP($M45,'4 Escalation codes'!$A:$Q,12,FALSE) -> 0.0275 | AO45: =VLOOKUP($M45,'4 Escalation codes'!$A:$Q,13,FALSE) -> 0.0275 | AP45: =VLOOKUP($M45,'4 Escalation codes'!$A:$Q,14,FALSE) -> 0.0275 | AQ45: =VLOOKUP($M45,'4 Escalation codes'!$A:$Q,15,FALSE) -> 0.0275 | AR45: =VLOOKUP($M45,'4 Escalation codes'!$A:$Q,16,FALSE) -> 0.0275 | AS45: =VLOOKUP($M45,'4 Escalation codes'!$A:$Q,17,FALSE) -> 0.0275 | AT45: =VLOOKUP($A45,'5 Download BI9'!$A:$U,13,FALSE) -> 1530 | AU45: =VLOOKUP($A45,'5 Download BI9'!$A:$U,13,FALSE) -> 1530 | AV45: =VLOOKUP($A45,'5 Download BI9'!$A:$U,20,FALSE) -> 1530 | AW45: =VLOOKUP($A45,'5 Download BI9'!$A:$U,19,FALSE) -> 1545 | AX45: 0.05384231903
A46: W2100.3999.1620 | B46: =VLOOKUP($A46,'5 Download BI9'!$A:$T,2,FALSE) -> 2100 - General Management | C46: =VLOOKUP($A46,'5 Download BI9'!$A:$U,3,FALSE) -> 2100 | D46: =VLOOKUP($A46,'5 Download BI9'!$A:$U,4,FALSE) -> 3999 - General Expenses | E46: =VLOOKUP($A46,'5 Download BI9'!$A:$U,5,FALSE) -> 3999 | F46: =VLOOKUP($A46,'5 Download BI9'!$A:$U,6,FALSE) -> 1620 | G46: =VLOOKUP($A46,'5 Download BI9'!$A:$U,7,FALSE) -> 1620 | H46: =VLOOKUP($A46,'5 Download BI9'!$A:$U,8,FALSE) -> E | I46: O | J46: =VLOOKUP($A46,'5 Download BI9'!$A:$U,12,FALSE) -> 1620 - Gen Admin-Legal Services | K46: =VLOOKUP(J46,'Esc code lookup'!$B$4:$E$701,4,FALSE) -> Materials and Contracts | L46: =VLOOKUP(K46,#REF!,2,FALSE) ->  | M46: =IF(E46>"5003","M",IF(ISNA(VLOOKUP(C46,'Esc code lookup'!$G$31:$I$39,1,FALSE)),VLOOKUP(J46,'Esc code lookup'!$B:$C,2,FALSE),IF(F46="1512","M",VLOOKUP(C46,'Esc code lookup'!$G$31:$I$39,2,FALSE)))) -> CPI-C | N46: 0 | O46: 0 | P46: =+AV46/1000 -> 27 | Q46: 15 | R46: 15.375 | S46: =IF($M46="M"," ",+R46*(1+AI46)) -> 15.759375 | T46: 16.15335937 | U46: 16.59757676 | V46: 17.05401012 | W46: =IF($M46="M"," ",+V46*(1+AM46)) -> 17.5229954 | X46: 18.00487777 | Y46: 18.50001191 | Z46: 19.00876224 | AA46: =IF($M46="M"," ",+Z46*(1+AQ46)) -> 19.5315032 | AB46: =IF($M46="M"," ",+AA46*(1+AR46)) -> 20.06861954 | AC46: =IF($M46="M"," ",+AB46*(1+AS46)) -> 20.62050657 | AE46: =VLOOKUP($M46,'4 Escalation codes'!$A:$Q,3,FALSE) -> 0 | AF46: =VLOOKUP($M46,'4 Escalation codes'!$A:$Q,4,FALSE) -> 0.01 | AG46: =VLOOKUP($M46,'4 Escalation codes'!$A:$Q,5,FALSE) -> 0.03 | AH46: =VLOOKUP($M46,'4 Escalation codes'!$A:$Q,6,FALSE) -> 0.025 | AI46: =VLOOKUP($M46,'4 Escalation codes'!$A:$Q,7,FALSE) -> 0.025 | AJ46: =VLOOKUP($M46,'4 Escalation codes'!$A:$Q,8,FALSE) -> 0.025 | AK46: =VLOOKUP($M46,'4 Escalation codes'!$A:$Q,9,FALSE) -> 0.0275 | AL46: =VLOOKUP($M46,'4 Escalation codes'!$A:$Q,10,FALSE) -> 0.0275 | AM46: =VLOOKUP($M46,'4 Escalation codes'!$A:$Q,11,FALSE) -> 0.0275 | AN46: =VLOOKUP($M46,'4 Escalation codes'!$A:$Q,12,FALSE) -> 0.0275 | AO46: =VLOOKUP($M46,'4 Escalation codes'!$A:$Q,13,FALSE) -> 0.0275 | AP46: =VLOOKUP($M46,'4 Escalation codes'!$A:$Q,14,FALSE) -> 0.0275 | AQ46: =VLOOKUP($M46,'4 Escalation codes'!$A:$Q,15,FALSE) -> 0.0275 | AR46: =VLOOKUP($M46,'4 Escalation codes'!$A:$Q,16,FALSE) -> 0.0275 | AS46: =VLOOKUP($M46,'4 Escalation codes'!$A:$Q,17,FALSE) -> 0.0275 | AT46: =VLOOKUP($A46,'5 Download BI9'!$A:$U,13,FALSE) -> 0 | AU46: =VLOOKUP($A46,'5 Download BI9'!$A:$U,13,FALSE) -> 0 | AV46: =VLOOKUP($A46,'5 Download BI9'!$A:$U,20,FALSE) -> 27000 | AW46: =VLOOKUP($A46,'5 Download BI9'!$A:$U,19,FALSE) -> 15000 | AX46: 0.5227409615
A47: W2100.3999.1825 | B47: =VLOOKUP($A47,'5 Download BI9'!$A:$T,2,FALSE) -> 2100 - General Management | C47: =VLOOKUP($A47,'5 Download BI9'!$A:$U,3,FALSE) -> 2100 | D47: =VLOOKUP($A47,'5 Download BI9'!$A:$U,4,FALSE) -> 3999 - General Expenses | E47: =VLOOKUP($A47,'5 Download BI9'!$A:$U,5,FALSE) -> 3999 | F47: =VLOOKUP($A47,'5 Download BI9'!$A:$U,6,FALSE) -> 1825 | G47: =VLOOKUP($A47,'5 Download BI9'!$A:$U,7,FALSE) -> 1825 | H47: =VLOOKUP($A47,'5 Download BI9'!$A:$U,8,FALSE) -> E | I47: O | J47: =VLOOKUP($A47,'5 Download BI9'!$A:$U,12,FALSE) -> 1825 - Gen Admin-Memberships && Subs | K47: =VLOOKUP(J47,'Esc code lookup'!$B$4:$E$701,4,FALSE) -> Other Expenses | L47: =VLOOKUP(K47,#REF!,2,FALSE) ->  | M47: =IF(E47>"5003","M",IF(ISNA(VLOOKUP(C47,'Esc code lookup'!$G$31:$I$39,1,FALSE)),VLOOKUP(J47,'Esc code lookup'!$B:$C,2,FALSE),IF(F47="1512","M",VLOOKUP(C47,'Esc code lookup'!$G$31:$I$39,2,FALSE)))) -> CPI-C | N47: 0 | O47: 2 | P47: =IF(ISERROR(AV47/1000),0,(AV47/1000)) -> 2 | Q47: 2.02 | R47: =IF($M47="M"," ",+Q47*(1+AH47)) -> 2.0705 | S47: 2.1222625 | T47: =IF($M47="M"," ",+S47*(1+AJ47)) -> 2.175319062 | U47: =IF($M47="M"," ",+T47*(1+AK47)) -> 2.235140337 | V47: =IF($M47="M"," ",+U47*(1+AL47)) -> 2.296606696 | W47: 2.35976338 | X47: =IF($M47="M"," ",+W47*(1+AN47)) -> 2.424656873 | Y47: =IF($M47="M"," ",+X47*(1+AO47)) -> 2.491334937 | Z47: =IF($M47="M"," ",+Y47*(1+AP47)) -> 2.559846648 | AA47: 2.630242431 | AB47: 2.702574098 | AC47: 2.776894885 | AE47: =VLOOKUP($M47,'4 Escalation codes'!$A:$Q,3,FALSE) -> 0 | AF47: =VLOOKUP($M47,'4 Escalation codes'!$A:$Q,4,FALSE) -> 0.01 | AG47: =VLOOKUP($M47,'4 Escalation codes'!$A:$Q,5,FALSE) -> 0.03 | AH47: =VLOOKUP($M47,'4 Escalation codes'!$A:$Q,6,FALSE) -> 0.025 | AI47: =VLOOKUP($M47,'4 Escalation codes'!$A:$Q,7,FALSE) -> 0.025 | AJ47: =VLOOKUP($M47,'4 Escalation codes'!$A:$Q,8,FALSE) -> 0.025 | AK47: =VLOOKUP($M47,'4 Escalation codes'!$A:$Q,9,FALSE) -> 0.0275 | AL47: =VLOOKUP($M47,'4 Escalation codes'!$A:$Q,10,FALSE) -> 0.0275 | AM47: =VLOOKUP($M47,'4 Escalation codes'!$A:$Q,11,FALSE) -> 0.0275 | AN47: =VLOOKUP($M47,'4 Escalation codes'!$A:$Q,12,FALSE) -> 0.0275 | AO47: =VLOOKUP($M47,'4 Escalation codes'!$A:$Q,13,FALSE) -> 0.0275 | AP47: =VLOOKUP($M47,'4 Escalation codes'!$A:$Q,14,FALSE) -> 0.0275 | AQ47: =VLOOKUP($M47,'4 Escalation codes'!$A:$Q,15,FALSE) -> 0.0275 | AR47: =VLOOKUP($M47,'4 Escalation codes'!$A:$Q,16,FALSE) -> 0.0275 | AS47: =VLOOKUP($M47,'4 Escalation codes'!$A:$Q,17,FALSE) -> 0.0275 | AT47: =VLOOKUP($A47,'5 Download BI9'!$A:$U,13,FALSE) -> 2000 | AU47: =VLOOKUP($A47,'5 Download BI9'!$A:$U,13,FALSE) -> 2000 | AV47: =VLOOKUP($A47,'5 Download BI9'!$A:$U,20,FALSE) -> 2000 | AW47: =VLOOKUP($A47,'5 Download BI9'!$A:$U,19,FALSE) -> 2020 | AX47: 0.07039578282
A48: W2100.3999.1832 | B48: =VLOOKUP($A48,'5 Download BI9'!$A:$T,2,FALSE) -> 2100 - General Management | C48: =VLOOKUP($A48,'5 Download BI9'!$A:$U,3,FALSE) -> 2100 | D48: =VLOOKUP($A48,'5 Download BI9'!$A:$U,4,FALSE) -> 3999 - General Expenses | E48: =VLOOKUP($A48,'5 Download BI9'!$A:$U,5,FALSE) -> 3999 | F48: =VLOOKUP($A48,'5 Download BI9'!$A:$U,6,FALSE) -> 1832 | G48: =VLOOKUP($A48,'5 Download BI9'!$A:$U,7,FALSE) -> 1832 | H48: =VLOOKUP($A48,'5 Download BI9'!$A:$U,8,FALSE) -> E | I48: O | J48: =VLOOKUP($A48,'5 Download BI9'!$A:$U,12,FALSE) -> 1832 - Gen Admin-Sundry Expenses-GST | K48: =VLOOKUP(J48,'Esc code lookup'!$B$4:$E$701,4,FALSE) -> Other Expenses | L48: =VLOOKUP(K48,#REF!,2,FALSE) ->  | M48: =IF(E48>"5003","M",IF(ISNA(VLOOKUP(C48,'Esc code lookup'!$G$31:$I$39,1,FALSE)),VLOOKUP(J48,'Esc code lookup'!$B:$C,2,FALSE),IF(F48="1512","M",VLOOKUP(C48,'Esc code lookup'!$G$31:$I$39,2,FALSE)))) -> CPI-C | N48: 0 | O48: 26.95 | P48: 26.95 | Q48: 27.22 | R48: 27.9005 | S48: 28.5980125 | T48: 29.31296281 | U48: 30.11906929 | V48: 30.9473437 | W48: 31.79839565 | X48: 32.67285153 | Y48: 33.57135494 | Z48: 34.49456721 | AA48: 35.4431678 | AB48: 36.41785492 | AC48: 37.41934593 | AE48: =VLOOKUP($M48,'4 Escalation codes'!$A:$Q,3,FALSE) -> 0 | AF48: =VLOOKUP($M48,'4 Escalation codes'!$A:$Q,4,FALSE) -> 0.01 | AG48: =VLOOKUP($M48,'4 Escalation codes'!$A:$Q,5,FALSE) -> 0.03 | AH48: =VLOOKUP($M48,'4 Escalation codes'!$A:$Q,6,FALSE) -> 0.025 | AI48: =VLOOKUP($M48,'4 Escalation codes'!$A:$Q,7,FALSE) -> 0.025 | AJ48: =VLOOKUP($M48,'4 Escalation codes'!$A:$Q,8,FALSE) -> 0.025 | AK48: =VLOOKUP($M48,'4 Escalation codes'!$A:$Q,9,FALSE) -> 0.0275 | AL48: =VLOOKUP($M48,'4 Escalation codes'!$A:$Q,10,FALSE) -> 0.0275 | AM48: =VLOOKUP($M48,'4 Escalation codes'!$A:$Q,11,FALSE) -> 0.0275 | AN48: =VLOOKUP($M48,'4 Escalation codes'!$A:$Q,12,FALSE) -> 0.0275 | AO48: =VLOOKUP($M48,'4 Escalation codes'!$A:$Q,13,FALSE) -> 0.0275 | AP48: =VLOOKUP($M48,'4 Escalation codes'!$A:$Q,14,FALSE) -> 0.0275 | AQ48: =VLOOKUP($M48,'4 Escalation codes'!$A:$Q,15,FALSE) -> 0.0275 | AR48: =VLOOKUP($M48,'4 Escalation codes'!$A:$Q,16,FALSE) -> 0.0275 | AS48: =VLOOKUP($M48,'4 Escalation codes'!$A:$Q,17,FALSE) -> 0.0275 | AT48: =VLOOKUP($A48,'5 Download BI9'!$A:$U,13,FALSE) -> 26950 | AU48: =VLOOKUP($A48,'5 Download BI9'!$A:$U,13,FALSE) -> 26950 | AV48: =VLOOKUP($A48,'5 Download BI9'!$A:$U,20,FALSE) -> 26950 | AW48: =VLOOKUP($A48,'5 Download BI9'!$A:$U,19,FALSE) -> 27220 | AX48: 0.9486005981
A49: W2105.0001.1001 | B49: =VLOOKUP($A49,'5 Download BI9'!$A:$T,2,FALSE) -> 2105 - Internal Audit | C49: =VLOOKUP($A49,'5 Download BI9'!$A:$U,3,FALSE) -> 2105 | D49: =VLOOKUP($A49,'5 Download BI9'!$A:$U,4,FALSE) -> 0001 - General Admin | E49: =VLOOKUP($A49,'5 Download BI9'!$A:$U,5,FALSE) -> 0001 | F49: =VLOOKUP($A49,'5 Download BI9'!$A:$U,6,FALSE) -> 1001 | G49: =VLOOKUP($A49,'5 Download BI9'!$A:$U,7,FALSE) -> 1001 | H49: =VLOOKUP($A49,'5 Download BI9'!$A:$U,8,FALSE) -> E | I49: O | J49: =VLOOKUP($A49,'5 Download BI9'!$A:$U,12,FALSE) -> 1001 - Award Staff - Salaries | K49: =VLOOKUP(J49,'Esc code lookup'!$B$4:$E$701,4,FALSE) -> Employee Costs | L49: =VLOOKUP(K49,#REF!,2,FALSE) ->  | M49: =IF(E49>"5003","M",IF(ISNA(VLOOKUP(C49,'Esc code lookup'!$G$31:$I$39,1,FALSE)),VLOOKUP(J49,'Esc code lookup'!$B:$C,2,FALSE),IF(F49="1512","M",VLOOKUP(C49,'Esc code lookup'!$G$31:$I$39,2,FALSE)))) -> 3 | N49: 0 | O49: 73.423 | P49: 73.423 | Q49: 77.709 | R49: 80.81736 | S49: 84.0500544 | T49: 87.41205658 | U49: 90.90853884 | V49: 94.54488039 | W49: 98.32667561 | X49: 102.2597426 | Y49: 106.3501323 | Z49: 110.6041376 | AA49: 115.0283031 | AB49: 119.6294353 | AC49: 124.4146127 | AE49: =VLOOKUP($M49,'4 Escalation codes'!$A:$Q,3,FALSE) -> 0.0325 | AF49: =VLOOKUP($M49,'4 Escalation codes'!$A:$Q,4,FALSE) -> 0.044 | AG49: =VLOOKUP($M49,'4 Escalation codes'!$A:$Q,5,FALSE) -> 0.04 | AH49: =VLOOKUP($M49,'4 Escalation codes'!$A:$Q,6,FALSE) -> 0.04 | AI49: =VLOOKUP($M49,'4 Escalation codes'!$A:$Q,7,FALSE) -> 0.04 | AJ49: =VLOOKUP($M49,'4 Escalation codes'!$A:$Q,8,FALSE) -> 0.04 | AK49: =VLOOKUP($M49,'4 Escalation codes'!$A:$Q,9,FALSE) -> 0.04 | AL49: =VLOOKUP($M49,'4 Escalation codes'!$A:$Q,10,FALSE) -> 0.04 | AM49: =VLOOKUP($M49,'4 Escalation codes'!$A:$Q,11,FALSE) -> 0.04 | AN49: =VLOOKUP($M49,'4 Escalation codes'!$A:$Q,12,FALSE) -> 0.04 | AO49: =VLOOKUP($M49,'4 Escalation codes'!$A:$Q,13,FALSE) -> 0.04 | AP49: =VLOOKUP($M49,'4 Escalation codes'!$A:$Q,14,FALSE) -> 0.04 | AQ49: =VLOOKUP($M49,'4 Escalation codes'!$A:$Q,15,FALSE) -> 0.04 | AR49: =VLOOKUP($M49,'4 Escalation codes'!$A:$Q,16,FALSE) -> 0.04 | AS49: =VLOOKUP($M49,'4 Escalation codes'!$A:$Q,17,FALSE) -> 0.04 | AT49: =VLOOKUP($A49,'5 Download BI9'!$A:$U,13,FALSE) -> 73423 | AU49: =VLOOKUP($A49,'5 Download BI9'!$A:$U,13,FALSE) -> 73423 | AV49: =VLOOKUP($A49,'5 Download BI9'!$A:$U,20,FALSE) -> 73423 | AW49: =VLOOKUP($A49,'5 Download BI9'!$A:$U,19,FALSE) -> 77709 | AX49: 4.424165505
A50: W2105.0001.1040 | B50: =VLOOKUP($A50,'5 Download BI9'!$A:$T,2,FALSE) -> 2105 - Internal Audit | C50: =VLOOKUP($A50,'5 Download BI9'!$A:$U,3,FALSE) -> 2105 | D50: =VLOOKUP($A50,'5 Download BI9'!$A:$U,4,FALSE) -> 0001 - General Admin | E50: =VLOOKUP($A50,'5 Download BI9'!$A:$U,5,FALSE) -> 0001 | F50: =VLOOKUP($A50,'5 Download BI9'!$A:$U,6,FALSE) -> 1040 | G50: =VLOOKUP($A50,'5 Download BI9'!$A:$U,7,FALSE) -> 1040 | H50: =VLOOKUP($A50,'5 Download BI9'!$A:$U,8,FALSE) -> E | I50: O | J50: =VLOOKUP($A50,'5 Download BI9'!$A:$U,12,FALSE) -> 1040 - Contract Staff - Salaries | K50: =VLOOKUP(J50,'Esc code lookup'!$B$4:$E$701,4,FALSE) -> Employee Costs | L50: =VLOOKUP(K50,#REF!,2,FALSE) ->  | M50: =IF(E50>"5003","M",IF(ISNA(VLOOKUP(C50,'Esc code lookup'!$G$31:$I$39,1,FALSE)),VLOOKUP(J50,'Esc code lookup'!$B:$C,2,FALSE),IF(F50="1512","M",VLOOKUP(C50,'Esc code lookup'!$G$31:$I$39,2,FALSE)))) -> 3 | N50: 0 | O50: 153.639 | P50: 153.639 | Q50: 171.022 | R50: 177.86288 | S50: 184.9773952 | T50: 192.376491 | U50: 200.0715506 | V50: 208.0744127 | W50: 216.3973892 | X50: 225.0532847 | Y50: 234.0554161 | Z50: 243.4176328 | AA50: 253.1543381 | AB50: 263.2805116 | AC50: 273.8117321 | AE50: =VLOOKUP($M50,'4 Escalation codes'!$A:$Q,3,FALSE) -> 0.0325 | AF50: =VLOOKUP($M50,'4 Escalation codes'!$A:$Q,4,FALSE) -> 0.044 | AG50: =VLOOKUP($M50,'4 Escalation codes'!$A:$Q,5,FALSE) -> 0.04 | AH50: =VLOOKUP($M50,'4 Escalation codes'!$A:$Q,6,FALSE) -> 0.04 | AI50: =VLOOKUP($M50,'4 Escalation codes'!$A:$Q,7,FALSE) -> 0.04 | AJ50: =VLOOKUP($M50,'4 Escalation codes'!$A:$Q,8,FALSE) -> 0.04 | AK50: =VLOOKUP($M50,'4 Escalation codes'!$A:$Q,9,FALSE) -> 0.04 | AL50: =VLOOKUP($M50,'4 Escalation codes'!$A:$Q,10,FALSE) -> 0.04 | AM50: =VLOOKUP($M50,'4 Escalation codes'!$A:$Q,11,FALSE) -> 0.04 | AN50: =VLOOKUP($M50,'4 Escalation codes'!$A:$Q,12,FALSE) -> 0.04 | AO50: =VLOOKUP($M50,'4 Escalation codes'!$A:$Q,13,FALSE) -> 0.04 | AP50: =VLOOKUP($M50,'4 Escalation codes'!$A:$Q,14,FALSE) -> 0.04 | AQ50: =VLOOKUP($M50,'4 Escalation codes'!$A:$Q,15,FALSE) -> 0.04 | AR50: =VLOOKUP($M50,'4 Escalation codes'!$A:$Q,16,FALSE) -> 0.04 | AS50: =VLOOKUP($M50,'4 Escalation codes'!$A:$Q,17,FALSE) -> 0.04 | AT50: =VLOOKUP($A50,'5 Download BI9'!$A:$U,13,FALSE) -> 153639 | AU50: =VLOOKUP($A50,'5 Download BI9'!$A:$U,13,FALSE) -> 153639 | AV50: =VLOOKUP($A50,'5 Download BI9'!$A:$U,20,FALSE) -> 153639 | AW50: =VLOOKUP($A50,'5 Download BI9'!$A:$U,19,FALSE) -> 171022 | AX50: 9.736705311
A51: W2105.0001.1045 | B51: =VLOOKUP($A51,'5 Download BI9'!$A:$T,2,FALSE) -> 2105 - Internal Audit | C51: =VLOOKUP($A51,'5 Download BI9'!$A:$U,3,FALSE) -> 2105 | D51: =VLOOKUP($A51,'5 Download BI9'!$A:$U,4,FALSE) -> 0001 - General Admin | E51: =VLOOKUP($A51,'5 Download BI9'!$A:$U,5,FALSE) -> 0001 | F51: =VLOOKUP($A51,'5 Download BI9'!$A:$U,6,FALSE) -> 1045 | G51: =VLOOKUP($A51,'5 Download BI9'!$A:$U,7,FALSE) -> 1045 | H51: =VLOOKUP($A51,'5 Download BI9'!$A:$U,8,FALSE) -> E | I51: O | J51: =VLOOKUP($A51,'5 Download BI9'!$A:$U,12,FALSE) -> 1045 - Contract Staff - Motor Vehicles | K51: =VLOOKUP(J51,'Esc code lookup'!$B$4:$E$701,4,FALSE) -> Employee Costs | L51: =VLOOKUP(K51,#REF!,2,FALSE) ->  | M51: =IF(E51>"5003","M",IF(ISNA(VLOOKUP(C51,'Esc code lookup'!$G$31:$I$39,1,FALSE)),VLOOKUP(J51,'Esc code lookup'!$B:$C,2,FALSE),IF(F51="1512","M",VLOOKUP(C51,'Esc code lookup'!$G$31:$I$39,2,FALSE)))) -> 3 | N51: 0 | O51: 12 | P51: 12 | Q51: 0 | R51: 0 | S51: 0 | T51: 0 | U51: 0 | V51: 0 | W51: 0 | X51: 0 | Y51: 0 | Z51: 0 | AA51: 0 | AB51: 0 | AC51: 0 | AE51: =VLOOKUP($M51,'4 Escalation codes'!$A:$Q,3,FALSE) -> 0.0325 | AF51: =VLOOKUP($M51,'4 Escalation codes'!$A:$Q,4,FALSE) -> 0.044 | AG51: =VLOOKUP($M51,'4 Escalation codes'!$A:$Q,5,FALSE) -> 0.04 | AH51: =VLOOKUP($M51,'4 Escalation codes'!$A:$Q,6,FALSE) -> 0.04 | AI51: =VLOOKUP($M51,'4 Escalation codes'!$A:$Q,7,FALSE) -> 0.04 | AJ51: =VLOOKUP($M51,'4 Escalation codes'!$A:$Q,8,FALSE) -> 0.04 | AK51: =VLOOKUP($M51,'4 Escalation codes'!$A:$Q,9,FALSE) -> 0.04 | AL51: =VLOOKUP($M51,'4 Escalation codes'!$A:$Q,10,FALSE) -> 0.04 | AM51: =VLOOKUP($M51,'4 Escalation codes'!$A:$Q,11,FALSE) -> 0.04 | AN51: =VLOOKUP($M51,'4 Escalation codes'!$A:$Q,12,FALSE) -> 0.04 | AO51: =VLOOKUP($M51,'4 Escalation codes'!$A:$Q,13,FALSE) -> 0.04 | AP51: =VLOOKUP($M51,'4 Escalation codes'!$A:$Q,14,FALSE) -> 0.04 | AQ51: =VLOOKUP($M51,'4 Escalation codes'!$A:$Q,15,FALSE) -> 0.04 | AR51: =VLOOKUP($M51,'4 Escalation codes'!$A:$Q,16,FALSE) -> 0.04 | AS51: =VLOOKUP($M51,'4 Escalation codes'!$A:$Q,17,FALSE) -> 0.04 | AT51: =VLOOKUP($A51,'5 Download BI9'!$A:$U,13,FALSE) -> 12000 | AU51: =VLOOKUP($A51,'5 Download BI9'!$A:$U,13,FALSE) -> 12000 | AV51: =VLOOKUP($A51,'5 Download BI9'!$A:$U,20,FALSE) -> 12000 | AW51: =VLOOKUP($A51,'5 Download BI9'!$A:$U,19,FALSE) -> 0 | AX51: 0
A52: W2105.0001.1055 | B52: =VLOOKUP($A52,'5 Download BI9'!$A:$T,2,FALSE) -> 2105 - Internal Audit | C52: =VLOOKUP($A52,'5 Download BI9'!$A:$U,3,FALSE) -> 2105 | D52: =VLOOKUP($A52,'5 Download BI9'!$A:$U,4,FALSE) -> 0001 - General Admin | E52: =VLOOKUP($A52,'5 Download BI9'!$A:$U,5,FALSE) -> 0001 | F52: =VLOOKUP($A52,'5 Download BI9'!$A:$U,6,FALSE) -> 1055 | G52: =VLOOKUP($A52,'5 Download BI9'!$A:$U,7,FALSE) -> 1055 | H52: =VLOOKUP($A52,'5 Download BI9'!$A:$U,8,FALSE) -> E | I52: O | J52: =VLOOKUP($A52,'5 Download BI9'!$A:$U,12,FALSE) -> 1055 - Award Staff - LSL Accrual | K52: =VLOOKUP(J52,'Esc code lookup'!$B$4:$E$701,4,FALSE) -> Employee Costs | L52: =VLOOKUP(K52,#REF!,2,FALSE) ->  | M52: =IF(E52>"5003","M",IF(ISNA(VLOOKUP(C52,'Esc code lookup'!$G$31:$I$39,1,FALSE)),VLOOKUP(J52,'Esc code lookup'!$B:$C,2,FALSE),IF(F52="1512","M",VLOOKUP(C52,'Esc code lookup'!$G$31:$I$39,2,FALSE)))) -> 3 | N52: 0 | O52: 0.996 | P52: 0.996 | Q52: 1.085 | R52: 1.1284 | S52: 1.173536 | T52: 1.22047744 | U52: 1.269296538 | V52: 1.320068399 | W52: 1.372871135 | X52: 1.42778598 | Y52: 1.48489742 | Z52: 1.544293316 | AA52: 1.606065049 | AB52: 1.670307651 | AC52: 1.737119957 | AE52: =VLOOKUP($M52,'4 Escalation codes'!$A:$Q,3,FALSE) -> 0.0325 | AF52: =VLOOKUP($M52,'4 Escalation codes'!$A:$Q,4,FALSE) -> 0.044 | AG52: =VLOOKUP($M52,'4 Escalation codes'!$A:$Q,5,FALSE) -> 0.04 | AH52: =VLOOKUP($M52,'4 Escalation codes'!$A:$Q,6,FALSE) -> 0.04 | AI52: =VLOOKUP($M52,'4 Escalation codes'!$A:$Q,7,FALSE) -> 0.04 | AJ52: =VLOOKUP($M52,'4 Escalation codes'!$A:$Q,8,FALSE) -> 0.04 | AK52: =VLOOKUP($M52,'4 Escalation codes'!$A:$Q,9,FALSE) -> 0.04 | AL52: =VLOOKUP($M52,'4 Escalation codes'!$A:$Q,10,FALSE) -> 0.04 | AM52: =VLOOKUP($M52,'4 Escalation codes'!$A:$Q,11,FALSE) -> 0.04 | AN52: =VLOOKUP($M52,'4 Escalation codes'!$A:$Q,12,FALSE) -> 0.04 | AO52: =VLOOKUP($M52,'4 Escalation codes'!$A:$Q,13,FALSE) -> 0.04 | AP52: =VLOOKUP($M52,'4 Escalation codes'!$A:$Q,14,FALSE) -> 0.04 | AQ52: =VLOOKUP($M52,'4 Escalation codes'!$A:$Q,15,FALSE) -> 0.04 | AR52: =VLOOKUP($M52,'4 Escalation codes'!$A:$Q,16,FALSE) -> 0.04 | AS52: =VLOOKUP($M52,'4 Escalation codes'!$A:$Q,17,FALSE) -> 0.04 | AT52: =VLOOKUP($A52,'5 Download BI9'!$A:$U,13,FALSE) -> 996 | AU52: =VLOOKUP($A52,'5 Download BI9'!$A:$U,13,FALSE) -> 996 | AV52: =VLOOKUP($A52,'5 Download BI9'!$A:$U,20,FALSE) -> 996 | AW52: =VLOOKUP($A52,'5 Download BI9'!$A:$U,19,FALSE) -> 1085 | AX52: 0.06177173266
A53: W2105.0001.1075 | B53: =VLOOKUP($A53,'5 Download BI9'!$A:$T,2,FALSE) -> 2105 - Internal Audit | C53: =VLOOKUP($A53,'5 Download BI9'!$A:$U,3,FALSE) -> 2105 | D53: =VLOOKUP($A53,'5 Download BI9'!$A:$U,4,FALSE) -> 0001 - General Admin | E53: =VLOOKUP($A53,'5 Download BI9'!$A:$U,5,FALSE) -> 0001 | F53: =VLOOKUP($A53,'5 Download BI9'!$A:$U,6,FALSE) -> 1075 | G53: =VLOOKUP($A53,'5 Download BI9'!$A:$U,7,FALSE) -> 1075 | H53: =VLOOKUP($A53,'5 Download BI9'!$A:$U,8,FALSE) -> E | I53: O | J53: =VLOOKUP($A53,'5 Download BI9'!$A:$U,12,FALSE) -> 1075 - Contract Staff - LSL Accrual | K53: =VLOOKUP(J53,'Esc code lookup'!$B$4:$E$701,4,FALSE) -> Employee Costs | L53: =VLOOKUP(K53,#REF!,2,FALSE) ->  | M53: =IF(E53>"5003","M",IF(ISNA(VLOOKUP(C53,'Esc code lookup'!$G$31:$I$39,1,FALSE)),VLOOKUP(J53,'Esc code lookup'!$B:$C,2,FALSE),IF(F53="1512","M",VLOOKUP(C53,'Esc code lookup'!$G$31:$I$39,2,FALSE)))) -> 3 | N53: 0 | O53: 5.466 | P53: 5.466 | Q53: 5.682 | R53: 5.90928 | S53: 6.1456512 | T53: 6.391477248 | U53: 6.647136338 | V53: 6.913021791 | W53: 7.189542663 | X53: 7.47712437 | Y53: 7.776209344 | Z53: 8.087257718 | AA53: 8.410748027 | AB53: 8.747177948 | AC53: 9.097065066 | AE53: =VLOOKUP($M53,'4 Escalation codes'!$A:$Q,3,FALSE) -> 0.0325 | AF53: =VLOOKUP($M53,'4 Escalation codes'!$A:$Q,4,FALSE) -> 0.044 | AG53: =VLOOKUP($M53,'4 Escalation codes'!$A:$Q,5,FALSE) -> 0.04 | AH53: =VLOOKUP($M53,'4 Escalation codes'!$A:$Q,6,FALSE) -> 0.04 | AI53: =VLOOKUP($M53,'4 Escalation codes'!$A:$Q,7,FALSE) -> 0.04 | AJ53: =VLOOKUP($M53,'4 Escalation codes'!$A:$Q,8,FALSE) -> 0.04 | AK53: =VLOOKUP($M53,'4 Escalation codes'!$A:$Q,9,FALSE) -> 0.04 | AL53: =VLOOKUP($M53,'4 Escalation codes'!$A:$Q,10,FALSE) -> 0.04 | AM53: =VLOOKUP($M53,'4 Escalation codes'!$A:$Q,11,FALSE) -> 0.04 | AN53: =VLOOKUP($M53,'4 Escalation codes'!$A:$Q,12,FALSE) -> 0.04 | AO53: =VLOOKUP($M53,'4 Escalation codes'!$A:$Q,13,FALSE) -> 0.04 | AP53: =VLOOKUP($M53,'4 Escalation codes'!$A:$Q,14,FALSE) -> 0.04 | AQ53: =VLOOKUP($M53,'4 Escalation codes'!$A:$Q,15,FALSE) -> 0.04 | AR53: =VLOOKUP($M53,'4 Escalation codes'!$A:$Q,16,FALSE) -> 0.04 | AS53: =VLOOKUP($M53,'4 Escalation codes'!$A:$Q,17,FALSE) -> 0.04 | AT53: =VLOOKUP($A53,'5 Download BI9'!$A:$U,13,FALSE) -> 5466 | AU53: =VLOOKUP($A53,'5 Download BI9'!$A:$U,13,FALSE) -> 5466 | AV53: =VLOOKUP($A53,'5 Download BI9'!$A:$U,20,FALSE) -> 5466 | AW53: =VLOOKUP($A53,'5 Download BI9'!$A:$U,19,FALSE) -> 5682 | AX53: 0.3234903087
A54: W2105.0001.1110 | B54: =VLOOKUP($A54,'5 Download BI9'!$A:$T,2,FALSE) -> 2105 - Internal Audit | C54: =VLOOKUP($A54,'5 Download BI9'!$A:$U,3,FALSE) -> 2105 | D54: =VLOOKUP($A54,'5 Download BI9'!$A:$U,4,FALSE) -> 0001 - General Admin | E54: =VLOOKUP($A54,'5 Download BI9'!$A:$U,5,FALSE) -> 0001 | F54: =VLOOKUP($A54,'5 Download BI9'!$A:$U,6,FALSE) -> 1110 | G54: =VLOOKUP($A54,'5 Download BI9'!$A:$U,7,FALSE) -> 1110 | H54: =VLOOKUP($A54,'5 Download BI9'!$A:$U,8,FALSE) -> E | I54: O | J54: =VLOOKUP($A54,'5 Download BI9'!$A:$U,12,FALSE) -> 1110 - Award Staff - Superannuation. | K54: =VLOOKUP(J54,'Esc code lookup'!$B$4:$E$701,4,FALSE) -> Employee Costs | L54: =VLOOKUP(K54,#REF!,2,FALSE) ->  | M54: =IF(E54>"5003","M",IF(ISNA(VLOOKUP(C54,'Esc code lookup'!$G$31:$I$39,1,FALSE)),VLOOKUP(J54,'Esc code lookup'!$B:$C,2,FALSE),IF(F54="1512","M",VLOOKUP(C54,'Esc code lookup'!$G$31:$I$39,2,FALSE)))) -> 14 | N54: 0 | O54: 6.792 | P54: 6.792 | Q54: 7.382 | R54: 8.075908 | S54: 8.826967444 | T54: 9.621394514 | U54: 10.45845584 | V54: 11.34742458 | W54: 11.80132157 | X54: 12.27337443 | Y54: 12.76430941 | Z54: 13.27488178 | AA54: 13.80587705 | AB54: 14.35811214 | AC54: 14.93243662 | AE54: =VLOOKUP($M54,'4 Escalation codes'!$A:$Q,3,FALSE) -> 0 | AF54: =VLOOKUP($M54,'4 Escalation codes'!$A:$Q,4,FALSE) -> 0.044 | AG54: =VLOOKUP($M54,'4 Escalation codes'!$A:$Q,5,FALSE) -> 0.068 | AH54: =VLOOKUP($M54,'4 Escalation codes'!$A:$Q,6,FALSE) -> 0.094 | AI54: =VLOOKUP($M54,'4 Escalation codes'!$A:$Q,7,FALSE) -> 0.093 | AJ54: =VLOOKUP($M54,'4 Escalation codes'!$A:$Q,8,FALSE) -> 0.09 | AK54: =VLOOKUP($M54,'4 Escalation codes'!$A:$Q,9,FALSE) -> 0.087 | AL54: =VLOOKUP($M54,'4 Escalation codes'!$A:$Q,10,FALSE) -> 0.085 | AM54: =VLOOKUP($M54,'4 Escalation codes'!$A:$Q,11,FALSE) -> 0.04 | AN54: =VLOOKUP($M54,'4 Escalation codes'!$A:$Q,12,FALSE) -> 0.04 | AO54: =VLOOKUP($M54,'4 Escalation codes'!$A:$Q,13,FALSE) -> 0.04 | AP54: =VLOOKUP($M54,'4 Escalation codes'!$A:$Q,14,FALSE) -> 0.04 | AQ54: =VLOOKUP($M54,'4 Escalation codes'!$A:$Q,15,FALSE) -> 0.04 | AR54: =VLOOKUP($M54,'4 Escalation codes'!$A:$Q,16,FALSE) -> 0.04 | AS54: =VLOOKUP($M54,'4 Escalation codes'!$A:$Q,17,FALSE) -> 0.04 | AT54: =VLOOKUP($A54,'5 Download BI9'!$A:$U,13,FALSE) -> 6792 | AU54: =VLOOKUP($A54,'5 Download BI9'!$A:$U,13,FALSE) -> 6792 | AV54: =VLOOKUP($A54,'5 Download BI9'!$A:$U,20,FALSE) -> 6792 | AW54: =VLOOKUP($A54,'5 Download BI9'!$A:$U,19,FALSE) -> 7382 | AX54: 0.5309952713
A55: W2105.0001.1130 | B55: =VLOOKUP($A55,'5 Download BI9'!$A:$T,2,FALSE) -> 2105 - Internal Audit | C55: =VLOOKUP($A55,'5 Download BI9'!$A:$U,3,FALSE) -> 2105 | D55: =VLOOKUP($A55,'5 Download BI9'!$A:$U,4,FALSE) -> 0001 - General Admin | E55: =VLOOKUP($A55,'5 Download BI9'!$A:$U,5,FALSE) -> 0001 | F55: =VLOOKUP($A55,'5 Download BI9'!$A:$U,6,FALSE) -> 1130 | G55: =VLOOKUP($A55,'5 Download BI9'!$A:$U,7,FALSE) -> 1130 | H55: =VLOOKUP($A55,'5 Download BI9'!$A:$U,8,FALSE) -> E | I55: O | J55: =VLOOKUP($A55,'5 Download BI9'!$A:$U,12,FALSE) -> 1130 - Staff Costs-Workers Comp Insur Prem | K55: =VLOOKUP(J55,'Esc code lookup'!$B$4:$E$701,4,FALSE) -> Employee Costs | L55: =VLOOKUP(K55,#REF!,2,FALSE) ->  | M55: =IF(E55>"5003","M",IF(ISNA(VLOOKUP(C55,'Esc code lookup'!$G$31:$I$39,1,FALSE)),VLOOKUP(J55,'Esc code lookup'!$B:$C,2,FALSE),IF(F55="1512","M",VLOOKUP(C55,'Esc code lookup'!$G$31:$I$39,2,FALSE)))) -> 3 | N55: 0 | O55: 8.503 | P55: 8.503 | Q55: 6.44 | R55: 6.6976 | S55: 6.965504 | T55: 7.24412416 | U55: 7.533889126 | V55: 7.835244691 | W55: 8.148654479 | X55: 8.474600658 | Y55: 8.813584685 | Z55: 9.166128072 | AA55: 9.532773195 | AB55: 9.914084123 | AC55: 10.31064749 | AE55: =VLOOKUP($M55,'4 Escalation codes'!$A:$Q,3,FALSE) -> 0.0325 | AF55: =VLOOKUP($M55,'4 Escalation codes'!$A:$Q,4,FALSE) -> 0.044 | AG55: =VLOOKUP($M55,'4 Escalation codes'!$A:$Q,5,FALSE) -> 0.04 | AH55: =VLOOKUP($M55,'4 Escalation codes'!$A:$Q,6,FALSE) -> 0.04 | AI55: =VLOOKUP($M55,'4 Escalation codes'!$A:$Q,7,FALSE) -> 0.04 | AJ55: =VLOOKUP($M55,'4 Escalation codes'!$A:$Q,8,FALSE) -> 0.04 | AK55: =VLOOKUP($M55,'4 Escalation codes'!$A:$Q,9,FALSE) -> 0.04 | AL55: =VLOOKUP($M55,'4 Escalation codes'!$A:$Q,10,FALSE) -> 0.04 | AM55: =VLOOKUP($M55,'4 Escalation codes'!$A:$Q,11,FALSE) -> 0.04 | AN55: =VLOOKUP($M55,'4 Escalation codes'!$A:$Q,12,FALSE) -> 0.04 | AO55: =VLOOKUP($M55,'4 Escalation codes'!$A:$Q,13,FALSE) -> 0.04 | AP55: =VLOOKUP($M55,'4 Escalation codes'!$A:$Q,14,FALSE) -> 0.04 | AQ55: =VLOOKUP($M55,'4 Escalation codes'!$A:$Q,15,FALSE) -> 0.04 | AR55: =VLOOKUP($M55,'4 Escalation codes'!$A:$Q,16,FALSE) -> 0.04 | AS55: =VLOOKUP($M55,'4 Escalation codes'!$A:$Q,17,FALSE) -> 0.04 | AT55: =VLOOKUP($A55,'5 Download BI9'!$A:$U,13,FALSE) -> 8503 | AU55: =VLOOKUP($A55,'5 Download BI9'!$A:$U,13,FALSE) -> 8503 | AV55: =VLOOKUP($A55,'5 Download BI9'!$A:$U,20,FALSE) -> 8503 | AW55: =VLOOKUP($A55,'5 Download BI9'!$A:$U,19,FALSE) -> 6440 | AX55: 0.3666451229
A56: W2105.0001.1140 | B56: =VLOOKUP($A56,'5 Download BI9'!$A:$T,2,FALSE) -> 2105 - Internal Audit | C56: =VLOOKUP($A56,'5 Download BI9'!$A:$U,3,FALSE) -> 2105 | D56: =VLOOKUP($A56,'5 Download BI9'!$A:$U,4,FALSE) -> 0001 - General Admin | E56: =VLOOKUP($A56,'5 Download BI9'!$A:$U,5,FALSE) -> 0001 | F56: =VLOOKUP($A56,'5 Download BI9'!$A:$U,6,FALSE) -> 1140 | G56: =VLOOKUP($A56,'5 Download BI9'!$A:$U,7,FALSE) -> 1140 | H56: =VLOOKUP($A56,'5 Download BI9'!$A:$U,8,FALSE) -> E | I56: O | J56: =VLOOKUP($A56,'5 Download BI9'!$A:$U,12,FALSE) -> 1140 - Staff Costs-Fringe Benefits Tax | K56: =VLOOKUP(J56,'Esc code lookup'!$B$4:$E$701,4,FALSE) -> Employee Costs | L56: =VLOOKUP(K56,#REF!,2,FALSE) ->  | M56: =IF(E56>"5003","M",IF(ISNA(VLOOKUP(C56,'Esc code lookup'!$G$31:$I$39,1,FALSE)),VLOOKUP(J56,'Esc code lookup'!$B:$C,2,FALSE),IF(F56="1512","M",VLOOKUP(C56,'Esc code lookup'!$G$31:$I$39,2,FALSE)))) -> 3 | N56: 0 | O56: 7 | P56: 7 | Q56: 7.07 | R56: 7.3528 | S56: 7.646912 | T56: 7.95278848 | U56: 8.270900019 | V56: 8.60173602 | W56: 8.945805461 | X56: 9.303637679 | Y56: 9.675783186 | Z56: 10.06281451 | AA56: 10.46532709 | AB56: 10.88394018 | AC56: 11.31929779 | AE56: =VLOOKUP($M56,'4 Escalation codes'!$A:$Q,3,FALSE) -> 0.0325 | AF56: =VLOOKUP($M56,'4 Escalation codes'!$A:$Q,4,FALSE) -> 0.044 | AG56: =VLOOKUP($M56,'4 Escalation codes'!$A:$Q,5,FALSE) -> 0.04 | AH56: =VLOOKUP($M56,'4 Escalation codes'!$A:$Q,6,FALSE) -> 0.04 | AI56: =VLOOKUP($M56,'4 Escalation codes'!$A:$Q,7,FALSE) -> 0.04 | AJ56: =VLOOKUP($M56,'4 Escalation codes'!$A:$Q,8,FALSE) -> 0.04 | AK56: =VLOOKUP($M56,'4 Escalation codes'!$A:$Q,9,FALSE) -> 0.04 | AL56: =VLOOKUP($M56,'4 Escalation codes'!$A:$Q,10,FALSE) -> 0.04 | AM56: =VLOOKUP($M56,'4 Escalation codes'!$A:$Q,11,FALSE) -> 0.04 | AN56: =VLOOKUP($M56,'4 Escalation codes'!$A:$Q,12,FALSE) -> 0.04 | AO56: =VLOOKUP($M56,'4 Escalation codes'!$A:$Q,13,FALSE) -> 0.04 | AP56: =VLOOKUP($M56,'4 Escalation codes'!$A:$Q,14,FALSE) -> 0.04 | AQ56: =VLOOKUP($M56,'4 Escalation codes'!$A:$Q,15,FALSE) -> 0.04 | AR56: =VLOOKUP($M56,'4 Escalation codes'!$A:$Q,16,FALSE) -> 0.04 | AS56: =VLOOKUP($M56,'4 Escalation codes'!$A:$Q,17,FALSE) -> 0.04 | AT56: =VLOOKUP($A56,'5 Download BI9'!$A:$U,13,FALSE) -> 7000 | AU56: =VLOOKUP($A56,'5 Download BI9'!$A:$U,13,FALSE) -> 7000 | AV56: =VLOOKUP($A56,'5 Download BI9'!$A:$U,20,FALSE) -> 7000 | AW56: =VLOOKUP($A56,'5 Download BI9'!$A:$U,19,FALSE) -> 7070 | AX56: 0.4025125806
A57: W2105.0001.1161 | B57: =VLOOKUP($A57,'5 Download BI9'!$A:$T,2,FALSE) -> 2105 - Internal Audit | C57: =VLOOKUP($A57,'5 Download BI9'!$A:$U,3,FALSE) -> 2105 | D57: =VLOOKUP($A57,'5 Download BI9'!$A:$U,4,FALSE) -> 0001 - General Admin | E57: =VLOOKUP($A57,'5 Download BI9'!$A:$U,5,FALSE) -> 0001 | F57: =VLOOKUP($A57,'5 Download BI9'!$A:$U,6,FALSE) -> 1161 | G57: =VLOOKUP($A57,'5 Download BI9'!$A:$U,7,FALSE) -> 1161 | H57: =VLOOKUP($A57,'5 Download BI9'!$A:$U,8,FALSE) -> E | I57: O | J57: =VLOOKUP($A57,'5 Download BI9'!$A:$U,12,FALSE) -> 1161 - Staff Costs-Conferences/Seminars | K57: =VLOOKUP(J57,'Esc code lookup'!$B$4:$E$701,4,FALSE) -> Employee Costs | L57: =VLOOKUP(K57,#REF!,2,FALSE) ->  | M57: =IF(E57>"5003","M",IF(ISNA(VLOOKUP(C57,'Esc code lookup'!$G$31:$I$39,1,FALSE)),VLOOKUP(J57,'Esc code lookup'!$B:$C,2,FALSE),IF(F57="1512","M",VLOOKUP(C57,'Esc code lookup'!$G$31:$I$39,2,FALSE)))) -> 3 | N57: 0 | O57: 5.1 | P57: 5.1 | Q57: 5.151 | R57: 5.35704 | S57: 5.5713216 | T57: 5.794174464 | U57: 6.025941443 | V57: 6.2669791 | W57: 6.517658264 | X57: 6.778364595 | Y57: 7.049499179 | Z57: 7.331479146 | AA57: 7.624738312 | AB57: 7.929727844 | AC57: 8.246916958 | AD57: =IF(O57=0,IF(P57<>0,"new"," ")) -> FALSE | AE57: =VLOOKUP($M57,'4 Escalation codes'!$A:$Q,3,FALSE) -> 0.0325 | AF57: =VLOOKUP($M57,'4 Escalation codes'!$A:$Q,4,FALSE) -> 0.044 | AG57: =VLOOKUP($M57,'4 Escalation codes'!$A:$Q,5,FALSE) -> 0.04 | AH57: =VLOOKUP($M57,'4 Escalation codes'!$A:$Q,6,FALSE) -> 0.04 | AI57: =VLOOKUP($M57,'4 Escalation codes'!$A:$Q,7,FALSE) -> 0.04 | AJ57: =VLOOKUP($M57,'4 Escalation codes'!$A:$Q,8,FALSE) -> 0.04 | AK57: =VLOOKUP($M57,'4 Escalation codes'!$A:$Q,9,FALSE) -> 0.04 | AL57: =VLOOKUP($M57,'4 Escalation codes'!$A:$Q,10,FALSE) -> 0.04 | AM57: =VLOOKUP($M57,'4 Escalation codes'!$A:$Q,11,FALSE) -> 0.04 | AN57: =VLOOKUP($M57,'4 Escalation codes'!$A:$Q,12,FALSE) -> 0.04 | AO57: =VLOOKUP($M57,'4 Escalation codes'!$A:$Q,13,FALSE) -> 0.04 | AP57: =VLOOKUP($M57,'4 Escalation codes'!$A:$Q,14,FALSE) -> 0.04 | AQ57: =VLOOKUP($M57,'4 Escalation codes'!$A:$Q,15,FALSE) -> 0.04 | AR57: =VLOOKUP($M57,'4 Escalation codes'!$A:$Q,16,FALSE) -> 0.04 | AS57: =VLOOKUP($M57,'4 Escalation codes'!$A:$Q,17,FALSE) -> 0.04 | AT57: =VLOOKUP($A57,'5 Download BI9'!$A:$U,13,FALSE) -> 5100 | AU57: =VLOOKUP($A57,'5 Download BI9'!$A:$U,13,FALSE) -> 5100 | AV57: =VLOOKUP($A57,'5 Download BI9'!$A:$U,20,FALSE) -> 5100 | AW57: =VLOOKUP($A57,'5 Download BI9'!$A:$U,19,FALSE) -> 5151 | AX57: 0.2932591658
A58: W2105.0001.1290 | B58: =VLOOKUP($A58,'5 Download BI9'!$A:$T,2,FALSE) -> 2105 - Internal Audit | C58: =VLOOKUP($A58,'5 Download BI9'!$A:$U,3,FALSE) -> 2105 | D58: =VLOOKUP($A58,'5 Download BI9'!$A:$U,4,FALSE) -> 0001 - General Admin | E58: =VLOOKUP($A58,'5 Download BI9'!$A:$U,5,FALSE) -> 0001 | F58: =VLOOKUP($A58,'5 Download BI9'!$A:$U,6,FALSE) -> 1290 | G58: =VLOOKUP($A58,'5 Download BI9'!$A:$U,7,FALSE) -> 1290 | H58: =VLOOKUP($A58,'5 Download BI9'!$A:$U,8,FALSE) -> E | I58: O | J58: =VLOOKUP($A58,'5 Download BI9'!$A:$U,12,FALSE) -> 1290 - Other Contract Services - GST | K58: =VLOOKUP(J58,'Esc code lookup'!$B$4:$E$701,4,FALSE) -> Materials and Contracts | L58: =VLOOKUP(K58,#REF!,2,FALSE) ->  | M58: =IF(E58>"5003","M",IF(ISNA(VLOOKUP(C58,'Esc code lookup'!$G$31:$I$39,1,FALSE)),VLOOKUP(J58,'Esc code lookup'!$B:$C,2,FALSE),IF(F58="1512","M",VLOOKUP(C58,'Esc code lookup'!$G$31:$I$39,2,FALSE)))) -> CPI-C | N58: 0 | O58: 25.25 | P58: 25.25 | Q58: 25.503 | R58: 26.140575 | S58: 26.79408937 | T58: 27.46394161 | U58: 28.2192 | V58: 28.995228 | W58: 29.79259677 | X58: 30.61189319 | Y58: 31.45372025 | Z58: 32.31869755 | AA58: 33.20746174 | AB58: 34.12066694 | AC58: 35.05898528 | AD58: =IF(O58=0,IF(P58<>0,"new"," ")) -> FALSE | AE58: =VLOOKUP($M58,'4 Escalation codes'!$A:$Q,3,FALSE) -> 0 | AF58: =VLOOKUP($M58,'4 Escalation codes'!$A:$Q,4,FALSE) -> 0.01 | AG58: =VLOOKUP($M58,'4 Escalation codes'!$A:$Q,5,FALSE) -> 0.03 | AH58: =VLOOKUP($M58,'4 Escalation codes'!$A:$Q,6,FALSE) -> 0.025 | AI58: =VLOOKUP($M58,'4 Escalation codes'!$A:$Q,7,FALSE) -> 0.025 | AJ58: =VLOOKUP($M58,'4 Escalation codes'!$A:$Q,8,FALSE) -> 0.025 | AK58: =VLOOKUP($M58,'4 Escalation codes'!$A:$Q,9,FALSE) -> 0.0275 | AL58: =VLOOKUP($M58,'4 Escalation codes'!$A:$Q,10,FALSE) -> 0.0275 | AM58: =VLOOKUP($M58,'4 Escalation codes'!$A:$Q,11,FALSE) -> 0.0275 | AN58: =VLOOKUP($M58,'4 Escalation codes'!$A:$Q,12,FALSE) -> 0.0275 | AO58: =VLOOKUP($M58,'4 Escalation codes'!$A:$Q,13,FALSE) -> 0.0275 | AP58: =VLOOKUP($M58,'4 Escalation codes'!$A:$Q,14,FALSE) -> 0.0275 | AQ58: =VLOOKUP($M58,'4 Escalation codes'!$A:$Q,15,FALSE) -> 0.0275 | AR58: =VLOOKUP($M58,'4 Escalation codes'!$A:$Q,16,FALSE) -> 0.0275 | AS58: =VLOOKUP($M58,'4 Escalation codes'!$A:$Q,17,FALSE) -> 0.0275 | AT58: =VLOOKUP($A58,'5 Download BI9'!$A:$U,13,FALSE) -> 25250 | AU58: =VLOOKUP($A58,'5 Download BI9'!$A:$U,13,FALSE) -> 25250 | AV58: =VLOOKUP($A58,'5 Download BI9'!$A:$U,20,FALSE) -> 25250 | AW58: =VLOOKUP($A58,'5 Download BI9'!$A:$U,19,FALSE) -> 25503 | AX58: 0.8887641827
A59: W2105.0001.1512 | B59: =VLOOKUP($A59,'5 Download BI9'!$A:$T,2,FALSE) -> 2105 - Internal Audit | C59: =VLOOKUP($A59,'5 Download BI9'!$A:$U,3,FALSE) -> 2105 | D59: =VLOOKUP($A59,'5 Download BI9'!$A:$U,4,FALSE) -> 0001 - General Admin | E59: =VLOOKUP($A59,'5 Download BI9'!$A:$U,5,FALSE) -> 0001 | F59: =VLOOKUP($A59,'5 Download BI9'!$A:$U,6,FALSE) -> 1512 | G59: =VLOOKUP($A59,'5 Download BI9'!$A:$U,7,FALSE) -> 1512 | H59: =VLOOKUP($A59,'5 Download BI9'!$A:$U,8,FALSE) -> E | I59: O | J59: =VLOOKUP($A59,'5 Download BI9'!$A:$U,12,FALSE) -> 1512 - Depn-Motor Vehicles | K59: =VLOOKUP(J59,'Esc code lookup'!$B$4:$E$701,4,FALSE) -> Depreciation & Amortisation | L59: =VLOOKUP(K59,#REF!,2,FALSE) ->  | M59: =IF(E59>"5003","M",IF(ISNA(VLOOKUP(C59,'Esc code lookup'!$G$31:$I$39,1,FALSE)),VLOOKUP(J59,'Esc code lookup'!$B:$C,2,FALSE),IF(F59="1512","M",VLOOKUP(C59,'Esc code lookup'!$G$31:$I$39,2,FALSE)))) -> 16 | N59: 0 | O59: 6.363 | P59: 6.363 | Q59: 6.363 | R59: 6.49026 | S59: 6.6200652 | T59: 6.752466504 | U59: 6.887515834 | V59: 7.025266151 | W59: 7.165771474 | X59: 7.309086903 | Y59: 7.455268641 | Z59: 7.604374014 | AA59: 7.756461494 | AB59: 7.911590724 | AC59: 8.069822539 | AD59: =IF(O59=0,IF(P59<>0,"new"," ")) -> FALSE | AE59: =VLOOKUP($M59,'4 Escalation codes'!$A:$Q,3,FALSE) -> 0 | AF59: =VLOOKUP($M59,'4 Escalation codes'!$A:$Q,4,FALSE) -> 0.02 | AG59: =VLOOKUP($M59,'4 Escalation codes'!$A:$Q,5,FALSE) -> 0.02 | AH59: =VLOOKUP($M59,'4 Escalation codes'!$A:$Q,6,FALSE) -> 0.02 | AI59: =VLOOKUP($M59,'4 Escalation codes'!$A:$Q,7,FALSE) -> 0.02 | AJ59: =VLOOKUP($M59,'4 Escalation codes'!$A:$Q,8,FALSE) -> 0.02 | AK59: =VLOOKUP($M59,'4 Escalation codes'!$A:$Q,9,FALSE) -> 0.02 | AL59: =VLOOKUP($M59,'4 Escalation codes'!$A:$Q,10,FALSE) -> 0.02 | AM59: =VLOOKUP($M59,'4 Escalation codes'!$A:$Q,11,FALSE) -> 0.02 | AN59: =VLOOKUP($M59,'4 Escalation codes'!$A:$Q,12,FALSE) -> 0.02 | AO59: =VLOOKUP($M59,'4 Escalation codes'!$A:$Q,13,FALSE) -> 0.02 | AP59: =VLOOKUP($M59,'4 Escalation codes'!$A:$Q,14,FALSE) -> 0.02 | AQ59: =VLOOKUP($M59,'4 Escalation codes'!$A:$Q,15,FALSE) -> 0.02 | AR59: =VLOOKUP($M59,'4 Escalation codes'!$A:$Q,16,FALSE) -> 0.02 | AS59: =VLOOKUP($M59,'4 Escalation codes'!$A:$Q,17,FALSE) -> 0.02 | AT59: =VLOOKUP($A59,'5 Download BI9'!$A:$U,13,FALSE) -> 6363 | AU59: =VLOOKUP($A59,'5 Download BI9'!$A:$U,13,FALSE) -> 6363 | AV59: =VLOOKUP($A59,'5 Download BI9'!$A:$U,20,FALSE) -> 6363 | AW59: =VLOOKUP($A59,'5 Download BI9'!$A:$U,19,FALSE) -> 6363 | AX59: 0.1520874803
A60: W2105.0001.1692 | B60: =VLOOKUP($A60,'5 Download BI9'!$A:$T,2,FALSE) -> 2105 - Internal Audit | C60: =VLOOKUP($A60,'5 Download BI9'!$A:$U,3,FALSE) -> 2105 | D60: =VLOOKUP($A60,'5 Download BI9'!$A:$U,4,FALSE) -> 0001 - General Admin | E60: =VLOOKUP($A60,'5 Download BI9'!$A:$U,5,FALSE) -> 0001 | F60: =VLOOKUP($A60,'5 Download BI9'!$A:$U,6,FALSE) -> 1692 | G60: =VLOOKUP($A60,'5 Download BI9'!$A:$U,7,FALSE) -> 1692 | H60: =VLOOKUP($A60,'5 Download BI9'!$A:$U,8,FALSE) -> E | I60: O | J60: =VLOOKUP($A60,'5 Download BI9'!$A:$U,12,FALSE) -> 1692 - Insur Costs-Public && Prof Liability | K60: =VLOOKUP(J60,'Esc code lookup'!$B$4:$E$701,4,FALSE) -> Other Expenses | L60: =VLOOKUP(K60,#REF!,2,FALSE) ->  | M60: =IF(E60>"5003","M",IF(ISNA(VLOOKUP(C60,'Esc code lookup'!$G$31:$I$39,1,FALSE)),VLOOKUP(J60,'Esc code lookup'!$B:$C,2,FALSE),IF(F60="1512","M",VLOOKUP(C60,'Esc code lookup'!$G$31:$I$39,2,FALSE)))) -> CPI-C | N60: 0 | O60: 4.163 | P60: 4.163 | Q60: 4.469 | R60: 4.580725 | S60: 4.695243125 | T60: 4.812624203 | U60: 4.944971369 | V60: 5.080958081 | W60: 5.220684429 | X60: 5.36425325 | Y60: 5.511770215 | Z60: 5.663343896 | AA60: 5.819085853 | AB60: 5.979110714 | AC60: 6.143536258 | AD60: =IF(O60=0,IF(P60<>0,"new"," ")) -> FALSE | AE60: =VLOOKUP($M60,'4 Escalation codes'!$A:$Q,3,FALSE) -> 0 | AF60: =VLOOKUP($M60,'4 Escalation codes'!$A:$Q,4,FALSE) -> 0.01 | AG60: =VLOOKUP($M60,'4 Escalation codes'!$A:$Q,5,FALSE) -> 0.03 | AH60: =VLOOKUP($M60,'4 Escalation codes'!$A:$Q,6,FALSE) -> 0.025 | AI60: =VLOOKUP($M60,'4 Escalation codes'!$A:$Q,7,FALSE) -> 0.025 | AJ60: =VLOOKUP($M60,'4 Escalation codes'!$A:$Q,8,FALSE) -> 0.025 | AK60: =VLOOKUP($M60,'4 Escalation codes'!$A:$Q,9,FALSE) -> 0.0275 | AL60: =VLOOKUP($M60,'4 Escalation codes'!$A:$Q,10,FALSE) -> 0.0275 | AM60: =VLOOKUP($M60,'4 Escalation codes'!$A:$Q,11,FALSE) -> 0.0275 | AN60: =VLOOKUP($M60,'4 Escalation codes'!$A:$Q,12,FALSE) -> 0.0275 | AO60: =VLOOKUP($M60,'4 Escalation codes'!$A:$Q,13,FALSE) -> 0.0275 | AP60: =VLOOKUP($M60,'4 Escalation codes'!$A:$Q,14,FALSE) -> 0.0275 | AQ60: =VLOOKUP($M60,'4 Escalation codes'!$A:$Q,15,FALSE) -> 0.0275 | AR60: =VLOOKUP($M60,'4 Escalation codes'!$A:$Q,16,FALSE) -> 0.0275 | AS60: =VLOOKUP($M60,'4 Escalation codes'!$A:$Q,17,FALSE) -> 0.0275 | AT60: =VLOOKUP($A60,'5 Download BI9'!$A:$U,13,FALSE) -> 4163 | AU60: =VLOOKUP($A60,'5 Download BI9'!$A:$U,13,FALSE) -> 4163 | AV60: =VLOOKUP($A60,'5 Download BI9'!$A:$U,20,FALSE) -> 4163 | AW60: =VLOOKUP($A60,'5 Download BI9'!$A:$U,19,FALSE) -> 4469 | AX60: 0.1557419571
A61: W2105.0001.1743 | B61: =VLOOKUP($A61,'5 Download BI9'!$A:$T,2,FALSE) -> 2105 - Internal Audit | C61: =VLOOKUP($A61,'5 Download BI9'!$A:$U,3,FALSE) -> 2105 | D61: =VLOOKUP($A61,'5 Download BI9'!$A:$U,4,FALSE) -> 0001 - General Admin | E61: =VLOOKUP($A61,'5 Download BI9'!$A:$U,5,FALSE) -> 0001 | F61: =VLOOKUP($A61,'5 Download BI9'!$A:$U,6,FALSE) -> 1743 | G61: =VLOOKUP($A61,'5 Download BI9'!$A:$U,7,FALSE) -> 1743 | H61: =VLOOKUP($A61,'5 Download BI9'!$A:$U,8,FALSE) -> E | I61: O | J61: =VLOOKUP($A61,'5 Download BI9'!$A:$U,12,FALSE) -> 1743 - Comm Costs-Mobile Phones | K61: =VLOOKUP(J61,'Esc code lookup'!$B$4:$E$701,4,FALSE) -> Other Expenses | L61: =VLOOKUP(K61,#REF!,2,FALSE) ->  | M61: =IF(E61>"5003","M",IF(ISNA(VLOOKUP(C61,'Esc code lookup'!$G$31:$I$39,1,FALSE)),VLOOKUP(J61,'Esc code lookup'!$B:$C,2,FALSE),IF(F61="1512","M",VLOOKUP(C61,'Esc code lookup'!$G$31:$I$39,2,FALSE)))) -> CPI-C | N61: 0 | O61: 0.859 | P61: 0.859 | Q61: 0.868 | R61: 0.8897 | S61: 0.9119425 | T61: 0.9347410625 | U61: 0.9604464417 | V61: 0.9868587189 | W61: 1.013997334 | X61: 1.04188226 | Y61: 1.070534022 | Z61: 1.099973708 | AA61: 1.130222985 | AB61: 1.161304117 | AC61: 1.19323998 | AE61: =VLOOKUP($M61,'4 Escalation codes'!$A:$Q,3,FALSE) -> 0 | AF61: =VLOOKUP($M61,'4 Escalation codes'!$A:$Q,4,FALSE) -> 0.01 | AG61: =VLOOKUP($M61,'4 Escalation codes'!$A:$Q,5,FALSE) -> 0.03 | AH61: =VLOOKUP($M61,'4 Escalation codes'!$A:$Q,6,FALSE) -> 0.025 | AI61: =VLOOKUP($M61,'4 Escalation codes'!$A:$Q,7,FALSE) -> 0.025 | AJ61: =VLOOKUP($M61,'4 Escalation codes'!$A:$Q,8,FALSE) -> 0.025 | AK61: =VLOOKUP($M61,'4 Escalation codes'!$A:$Q,9,FALSE) -> 0.0275 | AL61: =VLOOKUP($M61,'4 Escalation codes'!$A:$Q,10,FALSE) -> 0.0275 | AM61: =VLOOKUP($M61,'4 Escalation codes'!$A:$Q,11,FALSE) -> 0.0275 | AN61: =VLOOKUP($M61,'4 Escalation codes'!$A:$Q,12,FALSE) -> 0.0275 | AO61: =VLOOKUP($M61,'4 Escalation codes'!$A:$Q,13,FALSE) -> 0.0275 | AP61: =VLOOKUP($M61,'4 Escalation codes'!$A:$Q,14,FALSE) -> 0.0275 | AQ61: =VLOOKUP($M61,'4 Escalation codes'!$A:$Q,15,FALSE) -> 0.0275 | AR61: =VLOOKUP($M61,'4 Escalation codes'!$A:$Q,16,FALSE) -> 0.0275 | AS61: =VLOOKUP($M61,'4 Escalation codes'!$A:$Q,17,FALSE) -> 0.0275 | AT61: =VLOOKUP($A61,'5 Download BI9'!$A:$U,13,FALSE) -> 859 | AU61: =VLOOKUP($A61,'5 Download BI9'!$A:$U,13,FALSE) -> 859 | AV61: =VLOOKUP($A61,'5 Download BI9'!$A:$U,20,FALSE) -> 859 | AW61: =VLOOKUP($A61,'5 Download BI9'!$A:$U,19,FALSE) -> 868 | AX61: 0.03024927697
A62: W2105.0001.1748 | B62: =VLOOKUP($A62,'5 Download BI9'!$A:$T,2,FALSE) -> 2105 - Internal Audit | C62: =VLOOKUP($A62,'5 Download BI9'!$A:$U,3,FALSE) -> 2105 | D62: =VLOOKUP($A62,'5 Download BI9'!$A:$U,4,FALSE) -> 0001 - General Admin | E62: =VLOOKUP($A62,'5 Download BI9'!$A:$U,5,FALSE) -> 0001 | F62: =VLOOKUP($A62,'5 Download BI9'!$A:$U,6,FALSE) -> 1748 | G62: =VLOOKUP($A62,'5 Download BI9'!$A:$U,7,FALSE) -> 1748 | H62: =VLOOKUP($A62,'5 Download BI9'!$A:$U,8,FALSE) -> E | I62: O | J62: =VLOOKUP($A62,'5 Download BI9'!$A:$U,12,FALSE) -> 1748 - Comm Costs-Data Services | K62: =VLOOKUP(J62,'Esc code lookup'!$B$4:$E$701,4,FALSE) -> Other Expenses | L62: =VLOOKUP(K62,#REF!,2,FALSE) ->  | M62: =IF(E62>"5003","M",IF(ISNA(VLOOKUP(C62,'Esc code lookup'!$G$31:$I$39,1,FALSE)),VLOOKUP(J62,'Esc code lookup'!$B:$C,2,FALSE),IF(F62="1512","M",VLOOKUP(C62,'Esc code lookup'!$G$31:$I$39,2,FALSE)))) -> CPI-C | N62: 0 | O62: 0.408 | P62: 0.408 | Q62: 0.412 | R62: 0.4223 | S62: 0.4328575 | T62: 0.4436789375 | U62: 0.4558801083 | V62: 0.4684168113 | W62: 0.4812982736 | X62: 0.4945339761 | Y62: 0.5081336604 | Z62: 0.5221073361 | AA62: 0.5364652878 | AB62: 0.5512180833 | AC62: 0.5663765805 | AE62: =VLOOKUP($M62,'4 Escalation codes'!$A:$Q,3,FALSE) -> 0 | AF62: =VLOOKUP($M62,'4 Escalation codes'!$A:$Q,4,FALSE) -> 0.01 | AG62: =VLOOKUP($M62,'4 Escalation codes'!$A:$Q,5,FALSE) -> 0.03 | AH62: =VLOOKUP($M62,'4 Escalation codes'!$A:$Q,6,FALSE) -> 0.025 | AI62: =VLOOKUP($M62,'4 Escalation codes'!$A:$Q,7,FALSE) -> 0.025 | AJ62: =VLOOKUP($M62,'4 Escalation codes'!$A:$Q,8,FALSE) -> 0.025 | AK62: =VLOOKUP($M62,'4 Escalation codes'!$A:$Q,9,FALSE) -> 0.0275 | AL62: =VLOOKUP($M62,'4 Escalation codes'!$A:$Q,10,FALSE) -> 0.0275 | AM62: =VLOOKUP($M62,'4 Escalation codes'!$A:$Q,11,FALSE) -> 0.0275 | AN62: =VLOOKUP($M62,'4 Escalation codes'!$A:$Q,12,FALSE) -> 0.0275 | AO62: =VLOOKUP($M62,'4 Escalation codes'!$A:$Q,13,FALSE) -> 0.0275 | AP62: =VLOOKUP($M62,'4 Escalation codes'!$A:$Q,14,FALSE) -> 0.0275 | AQ62: =VLOOKUP($M62,'4 Escalation codes'!$A:$Q,15,FALSE) -> 0.0275 | AR62: =VLOOKUP($M62,'4 Escalation codes'!$A:$Q,16,FALSE) -> 0.0275 | AS62: =VLOOKUP($M62,'4 Escalation codes'!$A:$Q,17,FALSE) -> 0.0275 | AT62: =VLOOKUP($A62,'5 Download BI9'!$A:$U,13,FALSE) -> 408 | AU62: =VLOOKUP($A62,'5 Download BI9'!$A:$U,13,FALSE) -> 408 | AV62: =VLOOKUP($A62,'5 Download BI9'!$A:$U,20,FALSE) -> 408 | AW62: =VLOOKUP($A62,'5 Download BI9'!$A:$U,19,FALSE) -> 412 | AX62: 0.01435795174
A63: W2105.0001.1902 | B63: =VLOOKUP($A63,'5 Download BI9'!$A:$T,2,FALSE) -> 2105 - Internal Audit | C63: =VLOOKUP($A63,'5 Download BI9'!$A:$U,3,FALSE) -> 2105 | D63: =VLOOKUP($A63,'5 Download BI9'!$A:$U,4,FALSE) -> 0001 - General Admin | E63: =VLOOKUP($A63,'5 Download BI9'!$A:$U,5,FALSE) -> 0001 | F63: =VLOOKUP($A63,'5 Download BI9'!$A:$U,6,FALSE) -> 1902 | G63: =VLOOKUP($A63,'5 Download BI9'!$A:$U,7,FALSE) -> 1902 | H63: =VLOOKUP($A63,'5 Download BI9'!$A:$U,8,FALSE) -> E | I63: O | J63: =VLOOKUP($A63,'5 Download BI9'!$A:$U,12,FALSE) -> 1902 - Internal Chg-Information Technology | K63: =VLOOKUP(J63,'Esc code lookup'!$B$4:$E$701,4,FALSE) -> Internal Expenses | L63: =VLOOKUP(K63,#REF!,2,FALSE) ->  | M63: =IF(E63>"5003","M",IF(ISNA(VLOOKUP(C63,'Esc code lookup'!$G$31:$I$39,1,FALSE)),VLOOKUP(J63,'Esc code lookup'!$B:$C,2,FALSE),IF(F63="1512","M",VLOOKUP(C63,'Esc code lookup'!$G$31:$I$39,2,FALSE)))) -> CPI-C | N63: 0 | O63: 2.2 | P63: 2.2 | Q63: 2.222 | R63: 2.27755 | S63: 2.33448875 | T63: 2.392850969 | U63: 2.45865437 | V63: 2.526267366 | W63: 2.595739718 | X63: 2.66712256 | Y63: 2.740468431 | Z63: 2.815831313 | AA63: 2.893266674 | AB63: 2.972831507 | AC63: 3.054584374 | AE63: =VLOOKUP($M63,'4 Escalation codes'!$A:$Q,3,FALSE) -> 0 | AF63: =VLOOKUP($M63,'4 Escalation codes'!$A:$Q,4,FALSE) -> 0.01 | AG63: =VLOOKUP($M63,'4 Escalation codes'!$A:$Q,5,FALSE) -> 0.03 | AH63: =VLOOKUP($M63,'4 Escalation codes'!$A:$Q,6,FALSE) -> 0.025 | AI63: =VLOOKUP($M63,'4 Escalation codes'!$A:$Q,7,FALSE) -> 0.025 | AJ63: =VLOOKUP($M63,'4 Escalation codes'!$A:$Q,8,FALSE) -> 0.025 | AK63: =VLOOKUP($M63,'4 Escalation codes'!$A:$Q,9,FALSE) -> 0.0275 | AL63: =VLOOKUP($M63,'4 Escalation codes'!$A:$Q,10,FALSE) -> 0.0275 | AM63: =VLOOKUP($M63,'4 Escalation codes'!$A:$Q,11,FALSE) -> 0.0275 | AN63: =VLOOKUP($M63,'4 Escalation codes'!$A:$Q,12,FALSE) -> 0.0275 | AO63: =VLOOKUP($M63,'4 Escalation codes'!$A:$Q,13,FALSE) -> 0.0275 | AP63: =VLOOKUP($M63,'4 Escalation codes'!$A:$Q,14,FALSE) -> 0.0275 | AQ63: =VLOOKUP($M63,'4 Escalation codes'!$A:$Q,15,FALSE) -> 0.0275 | AR63: =VLOOKUP($M63,'4 Escalation codes'!$A:$Q,16,FALSE) -> 0.0275 | AS63: =VLOOKUP($M63,'4 Escalation codes'!$A:$Q,17,FALSE) -> 0.0275 | AT63: =VLOOKUP($A63,'5 Download BI9'!$A:$U,13,FALSE) -> 2200 | AU63: =VLOOKUP($A63,'5 Download BI9'!$A:$U,13,FALSE) -> 2200 | AV63: =VLOOKUP($A63,'5 Download BI9'!$A:$U,20,FALSE) -> 2200 | AW63: =VLOOKUP($A63,'5 Download BI9'!$A:$U,19,FALSE) -> 2222 | AX63: 0.0774353611
A64: W2105.0001.1908 | B64: =VLOOKUP($A64,'5 Download BI9'!$A:$T,2,FALSE) -> 2105 - Internal Audit | C64: =VLOOKUP($A64,'5 Download BI9'!$A:$U,3,FALSE) -> 2105 | D64: =VLOOKUP($A64,'5 Download BI9'!$A:$U,4,FALSE) -> 0001 - General Admin | E64: =VLOOKUP($A64,'5 Download BI9'!$A:$U,5,FALSE) -> 0001 | F64: =VLOOKUP($A64,'5 Download BI9'!$A:$U,6,FALSE) -> 1908 | G64: =VLOOKUP($A64,'5 Download BI9'!$A:$U,7,FALSE) -> 1908 | H64: =VLOOKUP($A64,'5 Download BI9'!$A:$U,8,FALSE) -> E | I64: O | J64: =VLOOKUP($A64,'5 Download BI9'!$A:$U,12,FALSE) -> 1908 - Internal Chg-Property Rental | K64: =VLOOKUP(J64,'Esc code lookup'!$B$4:$E$701,4,FALSE) -> Internal Expenses | L64: =VLOOKUP(K64,#REF!,2,FALSE) ->  | M64: =IF(E64>"5003","M",IF(ISNA(VLOOKUP(C64,'Esc code lookup'!$G$31:$I$39,1,FALSE)),VLOOKUP(J64,'Esc code lookup'!$B:$C,2,FALSE),IF(F64="1512","M",VLOOKUP(C64,'Esc code lookup'!$G$31:$I$39,2,FALSE)))) -> CPI-C | N64: 0 | O64: 21 | P64: 21 | Q64: 21.63 | R64: 22.17075 | S64: 22.72501875 | T64: 23.29314422 | U64: 23.93370568 | V64: 24.59188259 | W64: 25.26815936 | X64: 25.96303374 | Y64: 26.67701717 | Z64: 27.41063515 | AA64: 28.16442761 | AB64: 28.93894937 | AC64: 29.73477048 | AE64: =VLOOKUP($M64,'4 Escalation codes'!$A:$Q,3,FALSE) -> 0 | AF64: =VLOOKUP($M64,'4 Escalation codes'!$A:$Q,4,FALSE) -> 0.01 | AG64: =VLOOKUP($M64,'4 Escalation codes'!$A:$Q,5,FALSE) -> 0.03 | AH64: =VLOOKUP($M64,'4 Escalation codes'!$A:$Q,6,FALSE) -> 0.025 | AI64: =VLOOKUP($M64,'4 Escalation codes'!$A:$Q,7,FALSE) -> 0.025 | AJ64: =VLOOKUP($M64,'4 Escalation codes'!$A:$Q,8,FALSE) -> 0.025 | AK64: =VLOOKUP($M64,'4 Escalation codes'!$A:$Q,9,FALSE) -> 0.0275 | AL64: =VLOOKUP($M64,'4 Escalation codes'!$A:$Q,10,FALSE) -> 0.0275 | AM64: =VLOOKUP($M64,'4 Escalation codes'!$A:$Q,11,FALSE) -> 0.0275 | AN64: =VLOOKUP($M64,'4 Escalation codes'!$A:$Q,12,FALSE) -> 0.0275 | AO64: =VLOOKUP($M64,'4 Escalation codes'!$A:$Q,13,FALSE) -> 0.0275 | AP64: =VLOOKUP($M64,'4 Escalation codes'!$A:$Q,14,FALSE) -> 0.0275 | AQ64: =VLOOKUP($M64,'4 Escalation codes'!$A:$Q,15,FALSE) -> 0.0275 | AR64: =VLOOKUP($M64,'4 Escalation codes'!$A:$Q,16,FALSE) -> 0.0275 | AS64: =VLOOKUP($M64,'4 Escalation codes'!$A:$Q,17,FALSE) -> 0.0275 | AT64: =VLOOKUP($A64,'5 Download BI9'!$A:$U,13,FALSE) -> 21000 | AU64: =VLOOKUP($A64,'5 Download BI9'!$A:$U,13,FALSE) -> 21000 | AV64: =VLOOKUP($A64,'5 Download BI9'!$A:$U,20,FALSE) -> 21000 | AW64: =VLOOKUP($A64,'5 Download BI9'!$A:$U,19,FALSE) -> 21630 | AX64: 0.7537924665
A65: W2105.0001.1951 | B65: =VLOOKUP($A65,'5 Download BI9'!$A:$T,2,FALSE) -> 2105 - Internal Audit | C65: =VLOOKUP($A65,'5 Download BI9'!$A:$U,3,FALSE) -> 2105 | D65: =VLOOKUP($A65,'5 Download BI9'!$A:$U,4,FALSE) -> 0001 - General Admin | E65: =VLOOKUP($A65,'5 Download BI9'!$A:$U,5,FALSE) -> 0001 | F65: =VLOOKUP($A65,'5 Download BI9'!$A:$U,6,FALSE) -> 1951 | G65: =VLOOKUP($A65,'5 Download BI9'!$A:$U,7,FALSE) -> 1951 | H65: =VLOOKUP($A65,'5 Download BI9'!$A:$U,8,FALSE) -> E | I65: O | J65: =VLOOKUP($A65,'5 Download BI9'!$A:$U,12,FALSE) -> 1951 - Internal Chg-Motor Vehicles | K65: =VLOOKUP(J65,'Esc code lookup'!$B$4:$E$701,4,FALSE) -> Internal Expenses | L65: =VLOOKUP(K65,#REF!,2,FALSE) ->  | M65: =IF(E65>"5003","M",IF(ISNA(VLOOKUP(C65,'Esc code lookup'!$G$31:$I$39,1,FALSE)),VLOOKUP(J65,'Esc code lookup'!$B:$C,2,FALSE),IF(F65="1512","M",VLOOKUP(C65,'Esc code lookup'!$G$31:$I$39,2,FALSE)))) -> CPI-C | N65: 0 | O65: 8.5 | P65: 8.5 | Q65: 8.5 | R65: 8.7125 | S65: 8.9303125 | T65: 9.153570312 | U65: 9.405293496 | V65: 9.663939067 | W65: 9.929697392 | X65: 10.20276407 | Y65: 10.48334008 | Z65: 10.77163193 | AA65: 11.06785181 | AB65: 11.37221774 | AC65: 11.68495372 | AD65: =IF(O65=0,IF(P65<>0,"new"," ")) -> FALSE | AE65: =VLOOKUP($M65,'4 Escalation codes'!$A:$Q,3,FALSE) -> 0 | AF65: =VLOOKUP($M65,'4 Escalation codes'!$A:$Q,4,FALSE) -> 0.01 | AG65: =VLOOKUP($M65,'4 Escalation codes'!$A:$Q,5,FALSE) -> 0.03 | AH65: =VLOOKUP($M65,'4 Escalation codes'!$A:$Q,6,FALSE) -> 0.025 | AI65: =VLOOKUP($M65,'4 Escalation codes'!$A:$Q,7,FALSE) -> 0.025 | AJ65: =VLOOKUP($M65,'4 Escalation codes'!$A:$Q,8,FALSE) -> 0.025 | AK65: =VLOOKUP($M65,'4 Escalation codes'!$A:$Q,9,FALSE) -> 0.0275 | AL65: =VLOOKUP($M65,'4 Escalation codes'!$A:$Q,10,FALSE) -> 0.0275 | AM65: =VLOOKUP($M65,'4 Escalation codes'!$A:$Q,11,FALSE) -> 0.0275 | AN65: =VLOOKUP($M65,'4 Escalation codes'!$A:$Q,12,FALSE) -> 0.0275 | AO65: =VLOOKUP($M65,'4 Escalation codes'!$A:$Q,13,FALSE) -> 0.0275 | AP65: =VLOOKUP($M65,'4 Escalation codes'!$A:$Q,14,FALSE) -> 0.0275 | AQ65: =VLOOKUP($M65,'4 Escalation codes'!$A:$Q,15,FALSE) -> 0.0275 | AR65: =VLOOKUP($M65,'4 Escalation codes'!$A:$Q,16,FALSE) -> 0.0275 | AS65: =VLOOKUP($M65,'4 Escalation codes'!$A:$Q,17,FALSE) -> 0.0275 | AT65: =VLOOKUP($A65,'5 Download BI9'!$A:$U,13,FALSE) -> 8500 | AU65: =VLOOKUP($A65,'5 Download BI9'!$A:$U,13,FALSE) -> 8500 | AV65: =VLOOKUP($A65,'5 Download BI9'!$A:$U,20,FALSE) -> 8500 | AW65: =VLOOKUP($A65,'5 Download BI9'!$A:$U,19,FALSE) -> 8500 | AX65: 0.2962198782
A66: W2105.0001.1955 | B66: =VLOOKUP($A66,'5 Download BI9'!$A:$T,2,FALSE) -> 2105 - Internal Audit | C66: =VLOOKUP($A66,'5 Download BI9'!$A:$U,3,FALSE) -> 2105 | D66: =VLOOKUP($A66,'5 Download BI9'!$A:$U,4,FALSE) -> 0001 - General Admin | E66: =VLOOKUP($A66,'5 Download BI9'!$A:$U,5,FALSE) -> 0001 | F66: =VLOOKUP($A66,'5 Download BI9'!$A:$U,6,FALSE) -> 1955 | G66: =VLOOKUP($A66,'5 Download BI9'!$A:$U,7,FALSE) -> 1955 | H66: =VLOOKUP($A66,'5 Download BI9'!$A:$U,8,FALSE) -> E | I66: O | J66: =VLOOKUP($A66,'5 Download BI9'!$A:$U,12,FALSE) -> 1955 - Internal Chg-Other | K66: =VLOOKUP(J66,'Esc code lookup'!$B$4:$E$701,4,FALSE) -> Internal Expenses | L66: =VLOOKUP(K66,#REF!,2,FALSE) ->  | M66: =IF(E66>"5003","M",IF(ISNA(VLOOKUP(C66,'Esc code lookup'!$G$31:$I$39,1,FALSE)),VLOOKUP(J66,'Esc code lookup'!$B:$C,2,FALSE),IF(F66="1512","M",VLOOKUP(C66,'Esc code lookup'!$G$31:$I$39,2,FALSE)))) -> CPI-C | N66: 0 | O66: 5 | P66: 5 | Q66: 5.05 | R66: 5.17625 | S66: 5.30565625 | T66: 5.438297656 | U66: 5.587850842 | V66: 5.74151674 | W66: 5.89940845 | X66: 6.061642183 | Y66: 6.228337343 | Z66: 6.39961662 | AA66: 6.575606077 | AB66: 6.756435244 | AC66: 6.942237213 | AE66: =VLOOKUP($M66,'4 Escalation codes'!$A:$Q,3,FALSE) -> 0 | AF66: =VLOOKUP($M66,'4 Escalation codes'!$A:$Q,4,FALSE) -> 0.01 | AG66: =VLOOKUP($M66,'4 Escalation codes'!$A:$Q,5,FALSE) -> 0.03 | AH66: =VLOOKUP($M66,'4 Escalation codes'!$A:$Q,6,FALSE) -> 0.025 | AI66: =VLOOKUP($M66,'4 Escalation codes'!$A:$Q,7,FALSE) -> 0.025 | AJ66: =VLOOKUP($M66,'4 Escalation codes'!$A:$Q,8,FALSE) -> 0.025 | AK66: =VLOOKUP($M66,'4 Escalation codes'!$A:$Q,9,FALSE) -> 0.0275 | AL66: =VLOOKUP($M66,'4 Escalation codes'!$A:$Q,10,FALSE) -> 0.0275 | AM66: =VLOOKUP($M66,'4 Escalation codes'!$A:$Q,11,FALSE) -> 0.0275 | AN66: =VLOOKUP($M66,'4 Escalation codes'!$A:$Q,12,FALSE) -> 0.0275 | AO66: =VLOOKUP($M66,'4 Escalation codes'!$A:$Q,13,FALSE) -> 0.0275 | AP66: =VLOOKUP($M66,'4 Escalation codes'!$A:$Q,14,FALSE) -> 0.0275 | AQ66: =VLOOKUP($M66,'4 Escalation codes'!$A:$Q,15,FALSE) -> 0.0275 | AR66: =VLOOKUP($M66,'4 Escalation codes'!$A:$Q,16,FALSE) -> 0.0275 | AS66: =VLOOKUP($M66,'4 Escalation codes'!$A:$Q,17,FALSE) -> 0.0275 | AT66: =VLOOKUP($A66,'5 Download BI9'!$A:$U,13,FALSE) -> 5000 | AU66: =VLOOKUP($A66,'5 Download BI9'!$A:$U,13,FALSE) -> 5000 | AV66: =VLOOKUP($A66,'5 Download BI9'!$A:$U,20,FALSE) -> 5000 | AW66: =VLOOKUP($A66,'5 Download BI9'!$A:$U,19,FALSE) -> 5050 | AX66: 0.175989457
A67: W2105.0001.2240 | B67: =VLOOKUP($A67,'5 Download BI9'!$A:$T,2,FALSE) -> 2105 - Internal Audit | C67: =VLOOKUP($A67,'5 Download BI9'!$A:$U,3,FALSE) -> 2105 | D67: =VLOOKUP($A67,'5 Download BI9'!$A:$U,4,FALSE) -> 0001 - General Admin | E67: =VLOOKUP($A67,'5 Download BI9'!$A:$U,5,FALSE) -> 0001 | F67: =VLOOKUP($A67,'5 Download BI9'!$A:$U,6,FALSE) -> 2240 | G67: =VLOOKUP($A67,'5 Download BI9'!$A:$U,7,FALSE) -> 2240 | H67: =VLOOKUP($A67,'5 Download BI9'!$A:$U,8,FALSE) -> I | I67: O | J67: =VLOOKUP($A67,'5 Download BI9'!$A:$U,12,FALSE) -> 2240 - Inc-M/V Contribution-Contr. St | K67: =VLOOKUP(J67,'Esc code lookup'!$B$4:$E$701,4,FALSE) -> User Charges and Fees | L67: =VLOOKUP(K67,#REF!,2,FALSE) ->  | M67: =IF(E67>"5003","M",IF(ISNA(VLOOKUP(C67,'Esc code lookup'!$G$31:$I$39,1,FALSE)),VLOOKUP(J67,'Esc code lookup'!$B:$C,2,FALSE),IF(F67="1512","M",VLOOKUP(C67,'Esc code lookup'!$G$31:$I$39,2,FALSE)))) -> 2 | N67: 0 | O67: -12 | P67: -12 | Q67: -12 | R67: -12.42 | S67: -12.8547 | T67: -13.3046145 | U67: -13.77027601 | V67: -14.25223567 | W67: -14.75106392 | X67: -15.26735115 | Y67: -15.80170844 | Z67: -16.35476824 | AA67: -16.92718513 | AB67: -17.51963661 | AC67: -18.13282389 | AE67: =VLOOKUP($M67,'4 Escalation codes'!$A:$Q,3,FALSE) -> 0 | AF67: =VLOOKUP($M67,'4 Escalation codes'!$A:$Q,4,FALSE) -> 0.03 | AG67: =VLOOKUP($M67,'4 Escalation codes'!$A:$Q,5,FALSE) -> 0.035 | AH67: =VLOOKUP($M67,'4 Escalation codes'!$A:$Q,6,FALSE) -> 0.035 | AI67: =VLOOKUP($M67,'4 Escalation codes'!$A:$Q,7,FALSE) -> 0.035 | AJ67: =VLOOKUP($M67,'4 Escalation codes'!$A:$Q,8,FALSE) -> 0.035 | AK67: =VLOOKUP($M67,'4 Escalation codes'!$A:$Q,9,FALSE) -> 0.035 | AL67: =VLOOKUP($M67,'4 Escalation codes'!$A:$Q,10,FALSE) -> 0.035 | AM67: =VLOOKUP($M67,'4 Escalation codes'!$A:$Q,11,FALSE) -> 0.035 | AN67: =VLOOKUP($M67,'4 Escalation codes'!$A:$Q,12,FALSE) -> 0.035 | AO67: =VLOOKUP($M67,'4 Escalation codes'!$A:$Q,13,FALSE) -> 0.035 | AP67: =VLOOKUP($M67,'4 Escalation codes'!$A:$Q,14,FALSE) -> 0.035 | AQ67: =VLOOKUP($M67,'4 Escalation codes'!$A:$Q,15,FALSE) -> 0.035 | AR67: =VLOOKUP($M67,'4 Escalation codes'!$A:$Q,16,FALSE) -> 0.035 | AS67: =VLOOKUP($M67,'4 Escalation codes'!$A:$Q,17,FALSE) -> 0.035 | AT67: =VLOOKUP($A67,'5 Download BI9'!$A:$U,13,FALSE) -> -12000 | AU67: =VLOOKUP($A67,'5 Download BI9'!$A:$U,13,FALSE) -> -12000 | AV67: =VLOOKUP($A67,'5 Download BI9'!$A:$U,20,FALSE) -> -12000 | AW67: =VLOOKUP($A67,'5 Download BI9'!$A:$U,19,FALSE) -> -12000 | AX67: -0.5724168884
A68: W2105.0001.2523 | B68: =VLOOKUP($A68,'5 Download BI9'!$A:$T,2,FALSE) -> 2105 - Internal Audit | C68: =VLOOKUP($A68,'5 Download BI9'!$A:$U,3,FALSE) -> 2105 | D68: =VLOOKUP($A68,'5 Download BI9'!$A:$U,4,FALSE) -> 0001 - General Admin | E68: =VLOOKUP($A68,'5 Download BI9'!$A:$U,5,FALSE) -> 0001 | F68: =VLOOKUP($A68,'5 Download BI9'!$A:$U,6,FALSE) -> 2523 | G68: =VLOOKUP($A68,'5 Download BI9'!$A:$U,7,FALSE) -> 2523 | H68: =VLOOKUP($A68,'5 Download BI9'!$A:$U,8,FALSE) -> I | I68: O | J68: =VLOOKUP($A68,'5 Download BI9'!$A:$U,12,FALSE) -> 2523 - Inc-Recoverable Wages | K68: =VLOOKUP(J68,'Esc code lookup'!$B$4:$E$701,4,FALSE) -> User Charges and Fees | L68: =VLOOKUP(K68,#REF!,2,FALSE) ->  | M68: =IF(E68>"5003","M",IF(ISNA(VLOOKUP(C68,'Esc code lookup'!$G$31:$I$39,1,FALSE)),VLOOKUP(J68,'Esc code lookup'!$B:$C,2,FALSE),IF(F68="1512","M",VLOOKUP(C68,'Esc code lookup'!$G$31:$I$39,2,FALSE)))) -> 2 | N68: 0 | O68: -239.044 | P68: -239.044 | Q68: -254.684 | R68: -263.59794 | S68: -272.8238679 | T68: -282.3727033 | U68: -292.2557479 | V68: -302.4846991 | W68: -313.0716635 | X68: -324.0291718 | Y68: -335.3701928 | Z68: -347.1081495 | AA68: -359.2569348 | AB68: -371.8309275 | AC68: -384.8450099 | AE68: =VLOOKUP($M68,'4 Escalation codes'!$A:$Q,3,FALSE) -> 0 | AF68: =VLOOKUP($M68,'4 Escalation codes'!$A:$Q,4,FALSE) -> 0.03 | AG68: =VLOOKUP($M68,'4 Escalation codes'!$A:$Q,5,FALSE) -> 0.035 | AH68: =VLOOKUP($M68,'4 Escalation codes'!$A:$Q,6,FALSE) -> 0.035 | AI68: =VLOOKUP($M68,'4 Escalation codes'!$A:$Q,7,FALSE) -> 0.035 | AJ68: =VLOOKUP($M68,'4 Escalation codes'!$A:$Q,8,FALSE) -> 0.035 | AK68: =VLOOKUP($M68,'4 Escalation codes'!$A:$Q,9,FALSE) -> 0.035 | AL68: =VLOOKUP($M68,'4 Escalation codes'!$A:$Q,10,FALSE) -> 0.035 | AM68: =VLOOKUP($M68,'4 Escalation codes'!$A:$Q,11,FALSE) -> 0.035 | AN68: =VLOOKUP($M68,'4 Escalation codes'!$A:$Q,12,FALSE) -> 0.035 | AO68: =VLOOKUP($M68,'4 Escalation codes'!$A:$Q,13,FALSE) -> 0.035 | AP68: =VLOOKUP($M68,'4 Escalation codes'!$A:$Q,14,FALSE) -> 0.035 | AQ68: =VLOOKUP($M68,'4 Escalation codes'!$A:$Q,15,FALSE) -> 0.035 | AR68: =VLOOKUP($M68,'4 Escalation codes'!$A:$Q,16,FALSE) -> 0.035 | AS68: =VLOOKUP($M68,'4 Escalation codes'!$A:$Q,17,FALSE) -> 0.035 | AT68: =VLOOKUP($A68,'5 Download BI9'!$A:$U,13,FALSE) -> -239044 | AU68: =VLOOKUP($A68,'5 Download BI9'!$A:$U,13,FALSE) -> -239044 | AV68: =VLOOKUP($A68,'5 Download BI9'!$A:$U,20,FALSE) -> -239044 | AW68: =VLOOKUP($A68,'5 Download BI9'!$A:$U,19,FALSE) -> -254684 | AX68: -12.14878523
A69: W2105.0060.1001 | B69: =VLOOKUP($A69,'5 Download BI9'!$A:$T,2,FALSE) -> 2105 - Internal Audit | C69: =VLOOKUP($A69,'5 Download BI9'!$A:$U,3,FALSE) -> 2105 | D69: =VLOOKUP($A69,'5 Download BI9'!$A:$U,4,FALSE) -> 0060 - Internal Auditor | E69: =VLOOKUP($A69,'5 Download BI9'!$A:$U,5,FALSE) -> 0060 | F69: =VLOOKUP($A69,'5 Download BI9'!$A:$U,6,FALSE) -> 1001 | G69: =VLOOKUP($A69,'5 Download BI9'!$A:$U,7,FALSE) -> 1001 | H69: =VLOOKUP($A69,'5 Download BI9'!$A:$U,8,FALSE) -> E | I69: =IF(AND(G69>"3099",G69<"3141"),"C",IF(G69="1191","C",IF(G69="1192","C",IF(G69="1194","C",IF(G69="1195","C",IF(G69="1197","C",IF(G69="1198","C","O"))))))) -> O | J69: =VLOOKUP($A69,'5 Download BI9'!$A:$U,12,FALSE) -> 1001 - Award Staff - Salaries | K69: =VLOOKUP(J69,'Esc code lookup'!$B$4:$E$701,4,FALSE) -> Employee Costs | L69: =VLOOKUP(K69,#REF!,2,FALSE) ->  | M69: =IF(E69>"5003","M",IF(ISNA(VLOOKUP(C69,'Esc code lookup'!$G$31:$I$39,1,FALSE)),VLOOKUP(J69,'Esc code lookup'!$B:$C,2,FALSE),IF(F69="1512","M",VLOOKUP(C69,'Esc code lookup'!$G$31:$I$39,2,FALSE)))) -> 3 | N69: =AY69/1000 -> 0 | O69: =AU69/1000 -> 57.319 | P69: 57.319 | Q69: 59.183 | R69: 61.55032 | S69: 64.0123328 | T69: 66.57282611 | U69: 69.23573916 | V69: 72.00516872 | W69: 74.88537547 | X69: 77.88079049 | Y69: 80.99602211 | Z69: 84.23586299 | AA69: 87.60529751 | AB69: 91.10950941 | AC69: 94.75388979 | AE69: =VLOOKUP($M69,'4 Escalation codes'!$A:$Q,3,FALSE) -> 0.0325 | AF69: =VLOOKUP($M69,'4 Escalation codes'!$A:$Q,4,FALSE) -> 0.044 | AG69: =VLOOKUP($M69,'4 Escalation codes'!$A:$Q,5,FALSE) -> 0.04 | AH69: =VLOOKUP($M69,'4 Escalation codes'!$A:$Q,6,FALSE) -> 0.04 | AI69: =VLOOKUP($M69,'4 Escalation codes'!$A:$Q,7,FALSE) -> 0.04 | AJ69: =VLOOKUP($M69,'4 Escalation codes'!$A:$Q,8,FALSE) -> 0.04 | AK69: =VLOOKUP($M69,'4 Escalation codes'!$A:$Q,9,FALSE) -> 0.04 | AL69: =VLOOKUP($M69,'4 Escalation codes'!$A:$Q,10,FALSE) -> 0.04 | AM69: =VLOOKUP($M69,'4 Escalation codes'!$A:$Q,11,FALSE) -> 0.04 | AN69: =VLOOKUP($M69,'4 Escalation codes'!$A:$Q,12,FALSE) -> 0.04 | AO69: =VLOOKUP($M69,'4 Escalation codes'!$A:$Q,13,FALSE) -> 0.04 | AP69: =VLOOKUP($M69,'4 Escalation codes'!$A:$Q,14,FALSE) -> 0.04 | AQ69: =VLOOKUP($M69,'4 Escalation codes'!$A:$Q,15,FALSE) -> 0.04 | AR69: =VLOOKUP($M69,'4 Escalation codes'!$A:$Q,16,FALSE) -> 0.04 | AS69: =VLOOKUP($M69,'4 Escalation codes'!$A:$Q,17,FALSE) -> 0.04 | AT69: =VLOOKUP($A69,'5 Download BI9'!$A:$U,13,FALSE) -> 57319 | AU69: =VLOOKUP($A69,'5 Download BI9'!$A:$U,13,FALSE) -> 57319 | AV69: =VLOOKUP($A69,'5 Download BI9'!$A:$U,20,FALSE) -> 57319 | AW69: =VLOOKUP($A69,'5 Download BI9'!$A:$U,19,FALSE) -> 59183 | AX69: =AA69-Z69 -> 3.36943452
A70: W2105.0060.1055 | B70: =VLOOKUP($A70,'5 Download BI9'!$A:$T,2,FALSE) -> 2105 - Internal Audit | C70: =VLOOKUP($A70,'5 Download BI9'!$A:$U,3,FALSE) -> 2105 | D70: =VLOOKUP($A70,'5 Download BI9'!$A:$U,4,FALSE) -> 0060 - Internal Auditor | E70: =VLOOKUP($A70,'5 Download BI9'!$A:$U,5,FALSE) -> 0060 | F70: =VLOOKUP($A70,'5 Download BI9'!$A:$U,6,FALSE) -> 1055 | G70: =VLOOKUP($A70,'5 Download BI9'!$A:$U,7,FALSE) -> 1055 | H70: =VLOOKUP($A70,'5 Download BI9'!$A:$U,8,FALSE) -> E | I70: O | J70: =VLOOKUP($A70,'5 Download BI9'!$A:$U,12,FALSE) -> 1055 - Award Staff - LSL Accrual | K70: =VLOOKUP(J70,'Esc code lookup'!$B$4:$E$701,4,FALSE) -> Employee Costs | L70: =VLOOKUP(K70,#REF!,2,FALSE) ->  | M70: =IF(E70>"5003","M",IF(ISNA(VLOOKUP(C70,'Esc code lookup'!$G$31:$I$39,1,FALSE)),VLOOKUP(J70,'Esc code lookup'!$B:$C,2,FALSE),IF(F70="1512","M",VLOOKUP(C70,'Esc code lookup'!$G$31:$I$39,2,FALSE)))) -> 3 | N70: 0 | O70: 0.751 | P70: 0.751 | Q70: 0.799 | R70: 0.83096 | S70: 0.8641984 | T70: 0.898766336 | U70: 0.9347169894 | V70: 0.972105669 | W70: 1.010989896 | X70: 1.051429492 | Y70: 1.093486671 | Z70: 1.137226138 | AA70: 1.182715184 | AB70: 1.230023791 | AC70: 1.279224743 | AE70: =VLOOKUP($M70,'4 Escalation codes'!$A:$Q,3,FALSE) -> 0.0325 | AF70: =VLOOKUP($M70,'4 Escalation codes'!$A:$Q,4,FALSE) -> 0.044 | AG70: =VLOOKUP($M70,'4 Escalation codes'!$A:$Q,5,FALSE) -> 0.04 | AH70: =VLOOKUP($M70,'4 Escalation codes'!$A:$Q,6,FALSE) -> 0.04 | AI70: =VLOOKUP($M70,'4 Escalation codes'!$A:$Q,7,FALSE) -> 0.04 | AJ70: =VLOOKUP($M70,'4 Escalation codes'!$A:$Q,8,FALSE) -> 0.04 | AK70: =VLOOKUP($M70,'4 Escalation codes'!$A:$Q,9,FALSE) -> 0.04 | AL70: =VLOOKUP($M70,'4 Escalation codes'!$A:$Q,10,FALSE) -> 0.04 | AM70: =VLOOKUP($M70,'4 Escalation codes'!$A:$Q,11,FALSE) -> 0.04 | AN70: =VLOOKUP($M70,'4 Escalation codes'!$A:$Q,12,FALSE) -> 0.04 | AO70: =VLOOKUP($M70,'4 Escalation codes'!$A:$Q,13,FALSE) -> 0.04 | AP70: =VLOOKUP($M70,'4 Escalation codes'!$A:$Q,14,FALSE) -> 0.04 | AQ70: =VLOOKUP($M70,'4 Escalation codes'!$A:$Q,15,FALSE) -> 0.04 | AR70: =VLOOKUP($M70,'4 Escalation codes'!$A:$Q,16,FALSE) -> 0.04 | AS70: =VLOOKUP($M70,'4 Escalation codes'!$A:$Q,17,FALSE) -> 0.04 | AT70: =VLOOKUP($A70,'5 Download BI9'!$A:$U,13,FALSE) -> 751 | AU70: =VLOOKUP($A70,'5 Download BI9'!$A:$U,13,FALSE) -> 751 | AV70: =VLOOKUP($A70,'5 Download BI9'!$A:$U,20,FALSE) -> 751 | AW70: =VLOOKUP($A70,'5 Download BI9'!$A:$U,19,FALSE) -> 799 | AX70: 0.04548904552
A71: W2105.0060.1110 | B71: =VLOOKUP($A71,'5 Download BI9'!$A:$T,2,FALSE) -> 2105 - Internal Audit | C71: =VLOOKUP($A71,'5 Download BI9'!$A:$U,3,FALSE) -> 2105 | D71: =VLOOKUP($A71,'5 Download BI9'!$A:$U,4,FALSE) -> 0060 - Internal Auditor | E71: =VLOOKUP($A71,'5 Download BI9'!$A:$U,5,FALSE) -> 0060 | F71: =VLOOKUP($A71,'5 Download BI9'!$A:$U,6,FALSE) -> 1110 | G71: =VLOOKUP($A71,'5 Download BI9'!$A:$U,7,FALSE) -> 1110 | H71: =VLOOKUP($A71,'5 Download BI9'!$A:$U,8,FALSE) -> E | I71: O | J71: =VLOOKUP($A71,'5 Download BI9'!$A:$U,12,FALSE) -> 1110 - Award Staff - Superannuation. | K71: =VLOOKUP(J71,'Esc code lookup'!$B$4:$E$701,4,FALSE) -> Employee Costs | L71: =VLOOKUP(K71,#REF!,2,FALSE) ->  | M71: =IF(E71>"5003","M",IF(ISNA(VLOOKUP(C71,'Esc code lookup'!$G$31:$I$39,1,FALSE)),VLOOKUP(J71,'Esc code lookup'!$B:$C,2,FALSE),IF(F71="1512","M",VLOOKUP(C71,'Esc code lookup'!$G$31:$I$39,2,FALSE)))) -> 14 | N71: 0 | O71: 5.302 | P71: 5.302 | Q71: 5.622 | R71: 6.150468 | S71: 6.722461524 | T71: 7.327483061 | U71: 7.964974087 | V71: 8.641996885 | W71: 8.98767676 | X71: 9.347183831 | Y71: 9.721071184 | Z71: 10.10991403 | AA71: 10.51431059 | AB71: 10.93488302 | AC71: 11.37227834 | AE71: =VLOOKUP($M71,'4 Escalation codes'!$A:$Q,3,FALSE) -> 0 | AF71: =VLOOKUP($M71,'4 Escalation codes'!$A:$Q,4,FALSE) -> 0.044 | AG71: =VLOOKUP($M71,'4 Escalation codes'!$A:$Q,5,FALSE) -> 0.068 | AH71: =VLOOKUP($M71,'4 Escalation codes'!$A:$Q,6,FALSE) -> 0.094 | AI71: =VLOOKUP($M71,'4 Escalation codes'!$A:$Q,7,FALSE) -> 0.093 | AJ71: =VLOOKUP($M71,'4 Escalation codes'!$A:$Q,8,FALSE) -> 0.09 | AK71: =VLOOKUP($M71,'4 Escalation codes'!$A:$Q,9,FALSE) -> 0.087 | AL71: =VLOOKUP($M71,'4 Escalation codes'!$A:$Q,10,FALSE) -> 0.085 | AM71: =VLOOKUP($M71,'4 Escalation codes'!$A:$Q,11,FALSE) -> 0.04 | AN71: =VLOOKUP($M71,'4 Escalation codes'!$A:$Q,12,FALSE) -> 0.04 | AO71: =VLOOKUP($M71,'4 Escalation codes'!$A:$Q,13,FALSE) -> 0.04 | AP71: =VLOOKUP($M71,'4 Escalation codes'!$A:$Q,14,FALSE) -> 0.04 | AQ71: =VLOOKUP($M71,'4 Escalation codes'!$A:$Q,15,FALSE) -> 0.04 | AR71: =VLOOKUP($M71,'4 Escalation codes'!$A:$Q,16,FALSE) -> 0.04 | AS71: =VLOOKUP($M71,'4 Escalation codes'!$A:$Q,17,FALSE) -> 0.04 | AT71: =VLOOKUP($A71,'5 Download BI9'!$A:$U,13,FALSE) -> 5302 | AU71: =VLOOKUP($A71,'5 Download BI9'!$A:$U,13,FALSE) -> 5302 | AV71: =VLOOKUP($A71,'5 Download BI9'!$A:$U,20,FALSE) -> 5302 | AW71: =VLOOKUP($A71,'5 Download BI9'!$A:$U,19,FALSE) -> 5622 | AX71: 0.4043965613
A72: W2105.0060.1130 | B72: =VLOOKUP($A72,'5 Download BI9'!$A:$T,2,FALSE) -> 2105 - Internal Audit | C72: =VLOOKUP($A72,'5 Download BI9'!$A:$U,3,FALSE) -> 2105 | D72: =VLOOKUP($A72,'5 Download BI9'!$A:$U,4,FALSE) -> 0060 - Internal Auditor | E72: =VLOOKUP($A72,'5 Download BI9'!$A:$U,5,FALSE) -> 0060 | F72: =VLOOKUP($A72,'5 Download BI9'!$A:$U,6,FALSE) -> 1130 | G72: =VLOOKUP($A72,'5 Download BI9'!$A:$U,7,FALSE) -> 1130 | H72: =VLOOKUP($A72,'5 Download BI9'!$A:$U,8,FALSE) -> E | I72: O | J72: =VLOOKUP($A72,'5 Download BI9'!$A:$U,12,FALSE) -> 1130 - Staff Costs-Workers Comp Insur Prem | K72: =VLOOKUP(J72,'Esc code lookup'!$B$4:$E$701,4,FALSE) -> Employee Costs | L72: =VLOOKUP(K72,#REF!,2,FALSE) ->  | M72: =IF(E72>"5003","M",IF(ISNA(VLOOKUP(C72,'Esc code lookup'!$G$31:$I$39,1,FALSE)),VLOOKUP(J72,'Esc code lookup'!$B:$C,2,FALSE),IF(F72="1512","M",VLOOKUP(C72,'Esc code lookup'!$G$31:$I$39,2,FALSE)))) -> 3 | N72: 0 | O72: 2.136 | P72: 2.136 | Q72: 1.607 | R72: 1.67128 | S72: 1.7381312 | T72: 1.807656448 | U72: 1.879962706 | V72: 1.955161214 | W72: 2.033367663 | X72: 2.114702369 | Y72: 2.199290464 | Z72: 2.287262083 | AA72: 2.378752566 | AB72: 2.473902668 | AC72: 2.572858775 | AE72: =VLOOKUP($M72,'4 Escalation codes'!$A:$Q,3,FALSE) -> 0.0325 | AF72: =VLOOKUP($M72,'4 Escalation codes'!$A:$Q,4,FALSE) -> 0.044 | AG72: =VLOOKUP($M72,'4 Escalation codes'!$A:$Q,5,FALSE) -> 0.04 | AH72: =VLOOKUP($M72,'4 Escalation codes'!$A:$Q,6,FALSE) -> 0.04 | AI72: =VLOOKUP($M72,'4 Escalation codes'!$A:$Q,7,FALSE) -> 0.04 | AJ72: =VLOOKUP($M72,'4 Escalation codes'!$A:$Q,8,FALSE) -> 0.04 | AK72: =VLOOKUP($M72,'4 Escalation codes'!$A:$Q,9,FALSE) -> 0.04 | AL72: =VLOOKUP($M72,'4 Escalation codes'!$A:$Q,10,FALSE) -> 0.04 | AM72: =VLOOKUP($M72,'4 Escalation codes'!$A:$Q,11,FALSE) -> 0.04 | AN72: =VLOOKUP($M72,'4 Escalation codes'!$A:$Q,12,FALSE) -> 0.04 | AO72: =VLOOKUP($M72,'4 Escalation codes'!$A:$Q,13,FALSE) -> 0.04 | AP72: =VLOOKUP($M72,'4 Escalation codes'!$A:$Q,14,FALSE) -> 0.04 | AQ72: =VLOOKUP($M72,'4 Escalation codes'!$A:$Q,15,FALSE) -> 0.04 | AR72: =VLOOKUP($M72,'4 Escalation codes'!$A:$Q,16,FALSE) -> 0.04 | AS72: =VLOOKUP($M72,'4 Escalation codes'!$A:$Q,17,FALSE) -> 0.04 | AT72: =VLOOKUP($A72,'5 Download BI9'!$A:$U,13,FALSE) -> 2136 | AU72: =VLOOKUP($A72,'5 Download BI9'!$A:$U,13,FALSE) -> 2136 | AV72: =VLOOKUP($A72,'5 Download BI9'!$A:$U,20,FALSE) -> 2136 | AW72: =VLOOKUP($A72,'5 Download BI9'!$A:$U,19,FALSE) -> 1607 | AX72: 0.0914904833
A73: W2105.0060.1692 | B73: =VLOOKUP($A73,'5 Download BI9'!$A:$T,2,FALSE) -> 2105 - Internal Audit | C73: =VLOOKUP($A73,'5 Download BI9'!$A:$U,3,FALSE) -> 2105 | D73: =VLOOKUP($A73,'5 Download BI9'!$A:$U,4,FALSE) -> 0060 - Internal Auditor | E73: =VLOOKUP($A73,'5 Download BI9'!$A:$U,5,FALSE) -> 0060 | F73: =VLOOKUP($A73,'5 Download BI9'!$A:$U,6,FALSE) -> 1692 | G73: =VLOOKUP($A73,'5 Download BI9'!$A:$U,7,FALSE) -> 1692 | H73: =VLOOKUP($A73,'5 Download BI9'!$A:$U,8,FALSE) -> E | I73: O | J73: =VLOOKUP($A73,'5 Download BI9'!$A:$U,12,FALSE) -> 1692 - Insur Costs-Public && Prof Liability | K73: =VLOOKUP(J73,'Esc code lookup'!$B$4:$E$701,4,FALSE) -> Other Expenses | L73: =VLOOKUP(K73,#REF!,2,FALSE) ->  | M73: =IF(E73>"5003","M",IF(ISNA(VLOOKUP(C73,'Esc code lookup'!$G$31:$I$39,1,FALSE)),VLOOKUP(J73,'Esc code lookup'!$B:$C,2,FALSE),IF(F73="1512","M",VLOOKUP(C73,'Esc code lookup'!$G$31:$I$39,2,FALSE)))) -> CPI-C | N73: 0 | O73: 1.046 | P73: 1.046 | Q73: 1.115 | R73: 1.142875 | S73: 1.171446875 | T73: 1.200733047 | U73: 1.233753206 | V73: 1.267681419 | W73: 1.302542658 | X73: 1.338362581 | Y73: 1.375167552 | Z73: 1.41298466 | AA73: 1.451841738 | AB73: 1.491767386 | AC73: 1.532790989 | AE73: =VLOOKUP($M73,'4 Escalation codes'!$A:$Q,3,FALSE) -> 0 | AF73: =VLOOKUP($M73,'4 Escalation codes'!$A:$Q,4,FALSE) -> 0.01 | AG73: =VLOOKUP($M73,'4 Escalation codes'!$A:$Q,5,FALSE) -> 0.03 | AH73: =VLOOKUP($M73,'4 Escalation codes'!$A:$Q,6,FALSE) -> 0.025 | AI73: =VLOOKUP($M73,'4 Escalation codes'!$A:$Q,7,FALSE) -> 0.025 | AJ73: =VLOOKUP($M73,'4 Escalation codes'!$A:$Q,8,FALSE) -> 0.025 | AK73: =VLOOKUP($M73,'4 Escalation codes'!$A:$Q,9,FALSE) -> 0.0275 | AL73: =VLOOKUP($M73,'4 Escalation codes'!$A:$Q,10,FALSE) -> 0.0275 | AM73: =VLOOKUP($M73,'4 Escalation codes'!$A:$Q,11,FALSE) -> 0.0275 | AN73: =VLOOKUP($M73,'4 Escalation codes'!$A:$Q,12,FALSE) -> 0.0275 | AO73: =VLOOKUP($M73,'4 Escalation codes'!$A:$Q,13,FALSE) -> 0.0275 | AP73: =VLOOKUP($M73,'4 Escalation codes'!$A:$Q,14,FALSE) -> 0.0275 | AQ73: =VLOOKUP($M73,'4 Escalation codes'!$A:$Q,15,FALSE) -> 0.0275 | AR73: =VLOOKUP($M73,'4 Escalation codes'!$A:$Q,16,FALSE) -> 0.0275 | AS73: =VLOOKUP($M73,'4 Escalation codes'!$A:$Q,17,FALSE) -> 0.0275 | AT73: =VLOOKUP($A73,'5 Download BI9'!$A:$U,13,FALSE) -> 1046 | AU73: =VLOOKUP($A73,'5 Download BI9'!$A:$U,13,FALSE) -> 1046 | AV73: =VLOOKUP($A73,'5 Download BI9'!$A:$U,20,FALSE) -> 1046 | AW73: =VLOOKUP($A73,'5 Download BI9'!$A:$U,19,FALSE) -> 1115 | AX73: 0.03885707814
A74: W2105.0060.1832 | B74: =VLOOKUP($A74,'5 Download BI9'!$A:$T,2,FALSE) -> 2105 - Internal Audit | C74: =VLOOKUP($A74,'5 Download BI9'!$A:$U,3,FALSE) -> 2105 | D74: =VLOOKUP($A74,'5 Download BI9'!$A:$U,4,FALSE) -> 0060 - Internal Auditor | E74: =VLOOKUP($A74,'5 Download BI9'!$A:$U,5,FALSE) -> 0060 | F74: =VLOOKUP($A74,'5 Download BI9'!$A:$U,6,FALSE) -> 1832 | G74: =VLOOKUP($A74,'5 Download BI9'!$A:$U,7,FALSE) -> 1832 | H74: =VLOOKUP($A74,'5 Download BI9'!$A:$U,8,FALSE) -> E | I74: O | J74: =VLOOKUP($A74,'5 Download BI9'!$A:$U,12,FALSE) -> 1832 - Gen Admin-Sundry Expenses-GST | K74: =VLOOKUP(J74,'Esc code lookup'!$B$4:$E$701,4,FALSE) -> Other Expenses | L74: =VLOOKUP(K74,#REF!,2,FALSE) ->  | M74: =IF(E74>"5003","M",IF(ISNA(VLOOKUP(C74,'Esc code lookup'!$G$31:$I$39,1,FALSE)),VLOOKUP(J74,'Esc code lookup'!$B:$C,2,FALSE),IF(F74="1512","M",VLOOKUP(C74,'Esc code lookup'!$G$31:$I$39,2,FALSE)))) -> CPI-C | N74: 0 | O74: 1.01 | P74: 1.01 | Q74: 1.02 | R74: 1.0455 | S74: 1.0716375 | T74: 1.098428437 | U74: 1.12863522 | V74: 1.159672688 | W74: 1.191563687 | X74: 1.224331688 | Y74: 1.25800081 | Z74: 1.292595832 | AA74: 1.328142217 | AB74: 1.364666128 | AC74: 1.402194447 | AE74: =VLOOKUP($M74,'4 Escalation codes'!$A:$Q,3,FALSE) -> 0 | AF74: =VLOOKUP($M74,'4 Escalation codes'!$A:$Q,4,FALSE) -> 0.01 | AG74: =VLOOKUP($M74,'4 Escalation codes'!$A:$Q,5,FALSE) -> 0.03 | AH74: =VLOOKUP($M74,'4 Escalation codes'!$A:$Q,6,FALSE) -> 0.025 | AI74: =VLOOKUP($M74,'4 Escalation codes'!$A:$Q,7,FALSE) -> 0.025 | AJ74: =VLOOKUP($M74,'4 Escalation codes'!$A:$Q,8,FALSE) -> 0.025 | AK74: =VLOOKUP($M74,'4 Escalation codes'!$A:$Q,9,FALSE) -> 0.0275 | AL74: =VLOOKUP($M74,'4 Escalation codes'!$A:$Q,10,FALSE) -> 0.0275 | AM74: =VLOOKUP($M74,'4 Escalation codes'!$A:$Q,11,FALSE) -> 0.0275 | AN74: =VLOOKUP($M74,'4 Escalation codes'!$A:$Q,12,FALSE) -> 0.0275 | AO74: =VLOOKUP($M74,'4 Escalation codes'!$A:$Q,13,FALSE) -> 0.0275 | AP74: =VLOOKUP($M74,'4 Escalation codes'!$A:$Q,14,FALSE) -> 0.0275 | AQ74: =VLOOKUP($M74,'4 Escalation codes'!$A:$Q,15,FALSE) -> 0.0275 | AR74: =VLOOKUP($M74,'4 Escalation codes'!$A:$Q,16,FALSE) -> 0.0275 | AS74: =VLOOKUP($M74,'4 Escalation codes'!$A:$Q,17,FALSE) -> 0.0275 | AT74: =VLOOKUP($A74,'5 Download BI9'!$A:$U,13,FALSE) -> 1010 | AU74: =VLOOKUP($A74,'5 Download BI9'!$A:$U,13,FALSE) -> 1010 | AV74: =VLOOKUP($A74,'5 Download BI9'!$A:$U,20,FALSE) -> 1010 | AW74: =VLOOKUP($A74,'5 Download BI9'!$A:$U,19,FALSE) -> 1020 | AX74: 0.03554638538
A75: W2105.0060.1902 | B75: =VLOOKUP($A75,'5 Download BI9'!$A:$T,2,FALSE) -> 2105 - Internal Audit | C75: =VLOOKUP($A75,'5 Download BI9'!$A:$U,3,FALSE) -> 2105 | D75: =VLOOKUP($A75,'5 Download BI9'!$A:$U,4,FALSE) -> 0060 - Internal Auditor | E75: =VLOOKUP($A75,'5 Download BI9'!$A:$U,5,FALSE) -> 0060 | F75: =VLOOKUP($A75,'5 Download BI9'!$A:$U,6,FALSE) -> 1902 | G75: =VLOOKUP($A75,'5 Download BI9'!$A:$U,7,FALSE) -> 1902 | H75: =VLOOKUP($A75,'5 Download BI9'!$A:$U,8,FALSE) -> E | I75: O | J75: =VLOOKUP($A75,'5 Download BI9'!$A:$U,12,FALSE) -> 1902 - Internal Chg-Information Technology | K75: =VLOOKUP(J75,'Esc code lookup'!$B$4:$E$701,4,FALSE) -> Internal Expenses | L75: =VLOOKUP(K75,#REF!,2,FALSE) ->  | M75: =IF(E75>"5003","M",IF(ISNA(VLOOKUP(C75,'Esc code lookup'!$G$31:$I$39,1,FALSE)),VLOOKUP(J75,'Esc code lookup'!$B:$C,2,FALSE),IF(F75="1512","M",VLOOKUP(C75,'Esc code lookup'!$G$31:$I$39,2,FALSE)))) -> CPI-C | N75: 0 | O75: 1.1 | P75: 1.1 | Q75: 1.111 | R75: 1.138775 | S75: 1.167244375 | T75: 1.196425484 | U75: 1.229327185 | V75: 1.263133683 | W75: 1.297869859 | X75: 1.33356128 | Y75: 1.370234215 | Z75: 1.407915656 | AA75: 1.446633337 | AB75: 1.486415754 | AC75: 1.527292187 | AE75: =VLOOKUP($M75,'4 Escalation codes'!$A:$Q,3,FALSE) -> 0 | AF75: =VLOOKUP($M75,'4 Escalation codes'!$A:$Q,4,FALSE) -> 0.01 | AG75: =VLOOKUP($M75,'4 Escalation codes'!$A:$Q,5,FALSE) -> 0.03 | AH75: =VLOOKUP($M75,'4 Escalation codes'!$A:$Q,6,FALSE) -> 0.025 | AI75: =VLOOKUP($M75,'4 Escalation codes'!$A:$Q,7,FALSE) -> 0.025 | AJ75: =VLOOKUP($M75,'4 Escalation codes'!$A:$Q,8,FALSE) -> 0.025 | AK75: =VLOOKUP($M75,'4 Escalation codes'!$A:$Q,9,FALSE) -> 0.0275 | AL75: =VLOOKUP($M75,'4 Escalation codes'!$A:$Q,10,FALSE) -> 0.0275 | AM75: =VLOOKUP($M75,'4 Escalation codes'!$A:$Q,11,FALSE) -> 0.0275 | AN75: =VLOOKUP($M75,'4 Escalation codes'!$A:$Q,12,FALSE) -> 0.0275 | AO75: =VLOOKUP($M75,'4 Escalation codes'!$A:$Q,13,FALSE) -> 0.0275 | AP75: =VLOOKUP($M75,'4 Escalation codes'!$A:$Q,14,FALSE) -> 0.0275 | AQ75: =VLOOKUP($M75,'4 Escalation codes'!$A:$Q,15,FALSE) -> 0.0275 | AR75: =VLOOKUP($M75,'4 Escalation codes'!$A:$Q,16,FALSE) -> 0.0275 | AS75: =VLOOKUP($M75,'4 Escalation codes'!$A:$Q,17,FALSE) -> 0.0275 | AT75: =VLOOKUP($A75,'5 Download BI9'!$A:$U,13,FALSE) -> 1100 | AU75: =VLOOKUP($A75,'5 Download BI9'!$A:$U,13,FALSE) -> 1100 | AV75: =VLOOKUP($A75,'5 Download BI9'!$A:$U,20,FALSE) -> 1100 | AW75: =VLOOKUP($A75,'5 Download BI9'!$A:$U,19,FALSE) -> 1111 | AX75: 0.03871768055
A76: W2105.0060.1908 | B76: =VLOOKUP($A76,'5 Download BI9'!$A:$T,2,FALSE) -> 2105 - Internal Audit | C76: =VLOOKUP($A76,'5 Download BI9'!$A:$U,3,FALSE) -> 2105 | D76: =VLOOKUP($A76,'5 Download BI9'!$A:$U,4,FALSE) -> 0060 - Internal Auditor | E76: =VLOOKUP($A76,'5 Download BI9'!$A:$U,5,FALSE) -> 0060 | F76: =VLOOKUP($A76,'5 Download BI9'!$A:$U,6,FALSE) -> 1908 | G76: =VLOOKUP($A76,'5 Download BI9'!$A:$U,7,FALSE) -> 1908 | H76: =VLOOKUP($A76,'5 Download BI9'!$A:$U,8,FALSE) -> E | I76: O | J76: =VLOOKUP($A76,'5 Download BI9'!$A:$U,12,FALSE) -> 1908 - Internal Chg-Property Rental | K76: =VLOOKUP(J76,'Esc code lookup'!$B$4:$E$701,4,FALSE) -> Internal Expenses | L76: =VLOOKUP(K76,#REF!,2,FALSE) ->  | M76: =IF(E76>"5003","M",IF(ISNA(VLOOKUP(C76,'Esc code lookup'!$G$31:$I$39,1,FALSE)),VLOOKUP(J76,'Esc code lookup'!$B:$C,2,FALSE),IF(F76="1512","M",VLOOKUP(C76,'Esc code lookup'!$G$31:$I$39,2,FALSE)))) -> CPI-C | N76: 0 | O76: 6.3 | P76: 6.3 | Q76: 6.489 | R76: 6.651225 | S76: 6.817505625 | T76: 6.987943266 | U76: 7.180111705 | V76: 7.377564777 | W76: 7.580447809 | X76: 7.788910123 | Y76: 8.003105152 | Z76: 8.223190544 | AA76: 8.449328283 | AB76: 8.681684811 | AC76: 8.920431144 | AE76: =VLOOKUP($M76,'4 Escalation codes'!$A:$Q,3,FALSE) -> 0 | AF76: =VLOOKUP($M76,'4 Escalation codes'!$A:$Q,4,FALSE) -> 0.01 | AG76: =VLOOKUP($M76,'4 Escalation codes'!$A:$Q,5,FALSE) -> 0.03 | AH76: =VLOOKUP($M76,'4 Escalation codes'!$A:$Q,6,FALSE) -> 0.025 | AI76: =VLOOKUP($M76,'4 Escalation codes'!$A:$Q,7,FALSE) -> 0.025 | AJ76: =VLOOKUP($M76,'4 Escalation codes'!$A:$Q,8,FALSE) -> 0.025 | AK76: =VLOOKUP($M76,'4 Escalation codes'!$A:$Q,9,FALSE) -> 0.0275 | AL76: =VLOOKUP($M76,'4 Escalation codes'!$A:$Q,10,FALSE) -> 0.0275 | AM76: =VLOOKUP($M76,'4 Escalation codes'!$A:$Q,11,FALSE) -> 0.0275 | AN76: =VLOOKUP($M76,'4 Escalation codes'!$A:$Q,12,FALSE) -> 0.0275 | AO76: =VLOOKUP($M76,'4 Escalation codes'!$A:$Q,13,FALSE) -> 0.0275 | AP76: =VLOOKUP($M76,'4 Escalation codes'!$A:$Q,14,FALSE) -> 0.0275 | AQ76: =VLOOKUP($M76,'4 Escalation codes'!$A:$Q,15,FALSE) -> 0.0275 | AR76: =VLOOKUP($M76,'4 Escalation codes'!$A:$Q,16,FALSE) -> 0.0275 | AS76: =VLOOKUP($M76,'4 Escalation codes'!$A:$Q,17,FALSE) -> 0.0275 | AT76: =VLOOKUP($A76,'5 Download BI9'!$A:$U,13,FALSE) -> 6300 | AU76: =VLOOKUP($A76,'5 Download BI9'!$A:$U,13,FALSE) -> 6300 | AV76: =VLOOKUP($A76,'5 Download BI9'!$A:$U,20,FALSE) -> 6300 | AW76: =VLOOKUP($A76,'5 Download BI9'!$A:$U,19,FALSE) -> 6489 | AX76: 0.2261377399
A77: W2105.0060.1955 | B77: =VLOOKUP($A77,'5 Download BI9'!$A:$T,2,FALSE) -> 2105 - Internal Audit | C77: =VLOOKUP($A77,'5 Download BI9'!$A:$U,3,FALSE) -> 2105 | D77: =VLOOKUP($A77,'5 Download BI9'!$A:$U,4,FALSE) -> 0060 - Internal Auditor | E77: =VLOOKUP($A77,'5 Download BI9'!$A:$U,5,FALSE) -> 0060 | F77: =VLOOKUP($A77,'5 Download BI9'!$A:$U,6,FALSE) -> 1955 | G77: =VLOOKUP($A77,'5 Download BI9'!$A:$U,7,FALSE) -> 1955 | H77: =VLOOKUP($A77,'5 Download BI9'!$A:$U,8,FALSE) -> E | I77: O | J77: =VLOOKUP($A77,'5 Download BI9'!$A:$U,12,FALSE) -> 1955 - Internal Chg-Other | K77: =VLOOKUP(J77,'Esc code lookup'!$B$4:$E$701,4,FALSE) -> Internal Expenses | L77: =VLOOKUP(K77,#REF!,2,FALSE) ->  | M77: =IF(E77>"5003","M",IF(ISNA(VLOOKUP(C77,'Esc code lookup'!$G$31:$I$39,1,FALSE)),VLOOKUP(J77,'Esc code lookup'!$B:$C,2,FALSE),IF(F77="1512","M",VLOOKUP(C77,'Esc code lookup'!$G$31:$I$39,2,FALSE)))) -> CPI-C | N77: 0 | O77: 2.5 | P77: 2.5 | Q77: 2.525 | R77: 2.588125 | S77: 2.652828125 | T77: 2.719148828 | U77: 2.793925421 | V77: 2.87075837 | W77: 2.949704225 | X77: 3.030821091 | Y77: 3.114168671 | Z77: 3.19980831 | AA77: 3.287803038 | AB77: 3.378217622 | AC77: 3.471118606 | AE77: =VLOOKUP($M77,'4 Escalation codes'!$A:$Q,3,FALSE) -> 0 | AF77: =VLOOKUP($M77,'4 Escalation codes'!$A:$Q,4,FALSE) -> 0.01 | AG77: =VLOOKUP($M77,'4 Escalation codes'!$A:$Q,5,FALSE) -> 0.03 | AH77: =VLOOKUP($M77,'4 Escalation codes'!$A:$Q,6,FALSE) -> 0.025 | AI77: =VLOOKUP($M77,'4 Escalation codes'!$A:$Q,7,FALSE) -> 0.025 | AJ77: =VLOOKUP($M77,'4 Escalation codes'!$A:$Q,8,FALSE) -> 0.025 | AK77: =VLOOKUP($M77,'4 Escalation codes'!$A:$Q,9,FALSE) -> 0.0275 | AL77: =VLOOKUP($M77,'4 Escalation codes'!$A:$Q,10,FALSE) -> 0.0275 | AM77: =VLOOKUP($M77,'4 Escalation codes'!$A:$Q,11,FALSE) -> 0.0275 | AN77: =VLOOKUP($M77,'4 Escalation codes'!$A:$Q,12,FALSE) -> 0.0275 | AO77: =VLOOKUP($M77,'4 Escalation codes'!$A:$Q,13,FALSE) -> 0.0275 | AP77: =VLOOKUP($M77,'4 Escalation codes'!$A:$Q,14,FALSE) -> 0.0275 | AQ77: =VLOOKUP($M77,'4 Escalation codes'!$A:$Q,15,FALSE) -> 0.0275 | AR77: =VLOOKUP($M77,'4 Escalation codes'!$A:$Q,16,FALSE) -> 0.0275 | AS77: =VLOOKUP($M77,'4 Escalation codes'!$A:$Q,17,FALSE) -> 0.0275 | AT77: =VLOOKUP($A77,'5 Download BI9'!$A:$U,13,FALSE) -> 2500 | AU77: =VLOOKUP($A77,'5 Download BI9'!$A:$U,13,FALSE) -> 2500 | AV77: =VLOOKUP($A77,'5 Download BI9'!$A:$U,20,FALSE) -> 2500 | AW77: =VLOOKUP($A77,'5 Download BI9'!$A:$U,19,FALSE) -> 2525 | AX77: 0.08799472852
A78: W2105.0060.2523 | B78: =VLOOKUP($A78,'5 Download BI9'!$A:$T,2,FALSE) -> 2105 - Internal Audit | C78: =VLOOKUP($A78,'5 Download BI9'!$A:$U,3,FALSE) -> 2105 | D78: =VLOOKUP($A78,'5 Download BI9'!$A:$U,4,FALSE) -> 0060 - Internal Auditor | E78: =VLOOKUP($A78,'5 Download BI9'!$A:$U,5,FALSE) -> 0060 | F78: =VLOOKUP($A78,'5 Download BI9'!$A:$U,6,FALSE) -> 2523 | G78: =VLOOKUP($A78,'5 Download BI9'!$A:$U,7,FALSE) -> 2523 | H78: =VLOOKUP($A78,'5 Download BI9'!$A:$U,8,FALSE) -> I | I78: O | J78: =VLOOKUP($A78,'5 Download BI9'!$A:$U,12,FALSE) -> 2523 - Inc-Recoverable Wages | K78: =VLOOKUP(J78,'Esc code lookup'!$B$4:$E$701,4,FALSE) -> User Charges and Fees | L78: =VLOOKUP(K78,#REF!,2,FALSE) ->  | M78: =IF(E78>"5003","M",IF(ISNA(VLOOKUP(C78,'Esc code lookup'!$G$31:$I$39,1,FALSE)),VLOOKUP(J78,'Esc code lookup'!$B:$C,2,FALSE),IF(F78="1512","M",VLOOKUP(C78,'Esc code lookup'!$G$31:$I$39,2,FALSE)))) -> 2 | N78: 0 | O78: -58.098 | P78: -58.098 | Q78: -59.603 | R78: -61.689105 | S78: =IF($M78="M"," ",+R78*(1+AI78)) -> -63.84822367 | T78: -66.0829115 | U78: -68.39581341 | V78: -70.78966688 | W78: =IF($M78="M"," ",+V78*(1+AM78)) -> -73.26730522 | X78: -75.8316609 | Y78: -78.48576903 | Z78: -81.23277095 | AA78: =IF($M78="M"," ",+Z78*(1+AQ78)) -> -84.07591793 | AB78: =IF($M78="M"," ",+AA78*(1+AR78)) -> -87.01857506 | AC78: =IF($M78="M"," ",+AB78*(1+AS78)) -> -90.06422518 | AE78: =VLOOKUP($M78,'4 Escalation codes'!$A:$Q,3,FALSE) -> 0 | AF78: =VLOOKUP($M78,'4 Escalation codes'!$A:$Q,4,FALSE) -> 0.03 | AG78: =VLOOKUP($M78,'4 Escalation codes'!$A:$Q,5,FALSE) -> 0.035 | AH78: =VLOOKUP($M78,'4 Escalation codes'!$A:$Q,6,FALSE) -> 0.035 | AI78: =VLOOKUP($M78,'4 Escalation codes'!$A:$Q,7,FALSE) -> 0.035 | AJ78: =VLOOKUP($M78,'4 Escalation codes'!$A:$Q,8,FALSE) -> 0.035 | AK78: =VLOOKUP($M78,'4 Escalation codes'!$A:$Q,9,FALSE) -> 0.035 | AL78: =VLOOKUP($M78,'4 Escalation codes'!$A:$Q,10,FALSE) -> 0.035 | AM78: =VLOOKUP($M78,'4 Escalation codes'!$A:$Q,11,FALSE) -> 0.035 | AN78: =VLOOKUP($M78,'4 Escalation codes'!$A:$Q,12,FALSE) -> 0.035 | AO78: =VLOOKUP($M78,'4 Escalation codes'!$A:$Q,13,FALSE) -> 0.035 | AP78: =VLOOKUP($M78,'4 Escalation codes'!$A:$Q,14,FALSE) -> 0.035 | AQ78: =VLOOKUP($M78,'4 Escalation codes'!$A:$Q,15,FALSE) -> 0.035 | AR78: =VLOOKUP($M78,'4 Escalation codes'!$A:$Q,16,FALSE) -> 0.035 | AS78: =VLOOKUP($M78,'4 Escalation codes'!$A:$Q,17,FALSE) -> 0.035 | AT78: =VLOOKUP($A78,'5 Download BI9'!$A:$U,13,FALSE) -> -58098 | AU78: =VLOOKUP($A78,'5 Download BI9'!$A:$U,13,FALSE) -> -58098 | AV78: =VLOOKUP($A78,'5 Download BI9'!$A:$U,20,FALSE) -> -58098 | AW78: =VLOOKUP($A78,'5 Download BI9'!$A:$U,19,FALSE) -> -59603 | AX78: -2.843146983
